Workbook

Sheet ملاحظات
A1: * | B1: يتم الادخال بناء على نوع المخزن أولا ثم نوع الحركة إضافة أو صرف ثم الصنف المخزنى وبناء على نوع الحركة يتم اظهار الخلايا الواجب إدخالها باللون الأحمر وبعد ملئها يختفى اللون وفى حالة ملء خلية مخالفة لنوع الحركة يتم التلوين باللون الأحمر لوجود خطأ
A3: * | B3: يتم ادخال بيانات الموردين الجدد وفترة التوريد المتوقعة لكل مورد ( تؤثر في معادلة حجم الكمية المطلوبة ) والأصناف الجديدة والمخازن الجديدة ومراكز التكلفة وفئات المحازن في الجداول الخاصة بكل ما سبق والتي تظهر في الـــ Name Manager
A5: * | B5: من المهم تسجيل سرعة استخدام كل نوع بطئ أو متوسط أو سريع أو غيرة و تسجيل فترة توريد كل مورد لأهمية التأثير في شيت حد الطلب وتحديد الكمية المطلوبة بدقة
A7: * | B7: يتم اظهار قيمة الصرف في العمود المسمى قيمة الصرف ( بطريقة الوارد أولا منصرف أولا )
A9: * | B9: شيت المراجعة بدلالة الشهر لمراجعة جميع القيم والكميات في شهر معين بمجرد ادخال التاريخ في الخلية المسماة ( تاريخ_ملخص_الحركات ) وإدخال المخزن في الخلية المسماة (نوع_المخزن ) بإظهار رصيد أول قبل التاريخ المسجل و اجمالى القيم إضافة وصرف ورصيد أخر الفترة
A11: * | B11: شيت المراجعة بدلالة الشهر يظهر رقم أخر إذن صرف وتاريخة و رقم أخر إذن إضافة وتاريخة وأرصدة الفئات المخزنية خلال الفترة
A13: * | B13: شيت المراجعة بدلالة مراكز التكلفة لمراجعة مراكز التكلفة لكل الفئات المخزنية في خلال شهر معين المسجل في الخلية ( تاريخ_ملخص_الحركات ) وفقا للمخزن المسجل في ( نوع_المخزن) قيم وكميات مع إظهار قيمة كل إذن صرف لكل فئة مخزنية وإجمالى الكميات المسجلة لة
A15: * | B15: شيت المراجعة بدلالة الحركات يعتمد على الجداول المحورية وبالتالي بمجرد عمل تحديث Refresh للجدول يحدذ البيانات المسجلة بالكامل وعلية يتم المراجعة للشهر أو المورد أو نوع الاذن أو رقمة أو غيرة من البيانات المسجلة في شيت الشاشة
A17: * | B17: شيت حد الطلب يعتمد على تاريخ الشهر المسجل في (تاريخ_حد_الطلب) وتحديد شهور الاستهلاك في ( عدد_شهور_الاستهلاك ) وشهور أمان الصنف في ( عدد_شهور_الأمان ) وتحديد معامل كل سرعة استخدام وهنا هي مسجلة بطئ 2 متوسط 3 سريع 5 ( المعامل بالشهور ) وعلية تحديد خطر الأمان وخطر الاستهلاك لكل نوع للمخزن المختار فى خلال الفترة المسجلة وتحديد الكمية الواجب توافرها واعادة طلبها
A19: * | B19: شيت اذن الإضافة و إذن الصرف يتم اظهار البيانات الخاصة للإذن للرقم المختار

Sheet الشاشة
A1: المخزن | B1: التاريخ | C1: نوع الإذن | D1: رقم الإذن | E1: أسم الصنف | F1: مركز التكلفة | G1: المورد | H1: أمر الشراء | I1: فاتورة | J1: كمية الإضافة | K1: قيمة الإضافة | L1: كمية الصرف | M1: قيمة الصرف | N1: رقم الصنف | O1: الفئة المخزنية | P1: رصيد الكميات | Q1: رصيد القيم | R1: متوسط سعر الشراء | S1: إجمالي الكمية المضافة | T1: إجمالي الكمية المنصرفة | U1: ربط 1 | V1: ربط 2 | W1: رقم الأذن | Z1: الصنف | AA1: مخزن | AB1: أسم الصنف | AC1: أسماء الفئات المخزنية | AD1: سرعة الإستخدام | AE1: الربط | AG1: أسماء الموردين | AH1: فترة التوريد بالأيام | AJ1: مراكز التكلفة | AL1: أسماء الفئات المخزنية | AN1: عدد العمل فى الشهر | AP1: المخازن
A2: مخزن 1 | B2: 2019-12-31 | C2: اضافة | D2: FOB | E2: نوع 1 | G2: بدون مورد | H2: بدون أمر شراء | I2: بدون فاتورة | J2: 16 | K2: 56325.23 | M2: =IF(P2=0,ROUND(SUMIFS($K$1:K1,$A$1:A1,A2,$E$1:E1,E2)-SUMIFS($M$1:M1,$A$1:A1,A2,$E$1:E1,E2),2),ROUND(IFERROR(MAX(SUMIFS($K$1:K1,$A$1:A1,A2,$E$1:E1,E2,$S$1:S1,"<"&T2)-SUMIFS($M$1:M1,$A$1:A1,A2,$E$1:E1,E2,$S$1:S1,"<"&T2)-SUMIFS($M$1:M1,$A$1:A1,A2,$E$1:E1,E2),0)+(IFERROR(INDEX($R$1:R1,MATCH(1,($A$1:A1=A2)*($E$1:E1=E2)*($S$1:S1>(T2-1)),0)),"")*MIN(IF(L2="",0,L2),SUMIFS($L$1:L2,$A$1:A2,A2,$E$1:E2,E2)-SUMIFS($J$1:J2,$A$1:A2,A2,$E$1:E2,E2,$S$1:S2,"<"&T2))),0),2)) -> 0 | N2: =IFERROR(VALUE(INDEX($Z:$Z,MATCH(A2&E2,$AE:$AE,0),)),"") -> 1 | O2: =IFERROR(INDEX($AC:$AC,MATCH(E2,$AB:$AB,0),),"") -> فئة مخزنية 1 | P2: =SUMIFS($J$1:J2,$E$1:E2,E2,$A$1:A2,A2)-SUMIFS($L$1:L2,$E$1:E2,E2,$A$1:A2,A2) -> 16 | Q2: =MAX(0,ROUND(SUMIFS($K$1:K2,$E$1:E2,E2,$A$1:A2,A2)-SUMIFS($M$1:M2,$E$1:E2,E2,$A$1:A2,A2),2)) -> 56325.23 | R2: =IF(J2>0,ROUND(K2/J2,2),IFERROR(LOOKUP(2,1/(($A$1:A1=A2)*($E$1:E1=E2)),$R$1:R1),K2)) -> 3520.33 | S2: =SUMIFS($J$1:J2,$A$1:A2,A2,$E$1:E2,E2) -> 16 | T2: =SUMIFS($L$1:L2,$A$1:A2,A2,$E$1:E2,E2) -> 0 | U2: =A2&N2 -> مخزن 11 | V2: =D2&C2&COUNTIFS($C$1:C2,C2,$D$1:D2,D2,$A$1:A2,A2)&A2 -> FOBاضافة1مخزن 1 | W2: =IF(MAX(IFERROR((($C$1:C1=C2)*($A$1:A1=A2))*($D$1:D1),0))=0,"FOB",MAX(IFERROR((($C$1:C1=C2)*($A$1:A1=A2))*($D$1:D1),0))) -> FOB | X2: =IFERROR(W2+1,1) -> 1 | Z2: 1 | AA2: مخزن 1 | AB2: نوع 1 | AC2: فئة مخزنية 1 | AD2: بطئ | AE2: =المخازن_وأنواع_الأصناف[[#This Row],[مخزن]]&المخازن_وأنواع_الأصناف[[#This Row],[أسم الصنف]] -> مخزن 1نوع 1 | AG2: 1 مورد | AH2: 25 | AJ2: مركز تكلفة 1 | AL2: فئة مخزنية 1 | AN2: 22 | AP2: مخزن 1
A3: مخزن 1 | B3: 2019-12-31 | C3: اضافة | D3: FOB | E3: نوع 2 | G3: بدون مورد | H3: بدون أمر شراء | I3: بدون فاتورة | J3: 1 | K3: 4521.77 | M3: =IF(P3=0,ROUND(SUMIFS($K$1:K2,$A$1:A2,A3,$E$1:E2,E3)-SUMIFS($M$1:M2,$A$1:A2,A3,$E$1:E2,E3),2),ROUND(IFERROR(MAX(SUMIFS($K$1:K2,$A$1:A2,A3,$E$1:E2,E3,$S$1:S2,"<"&T3)-SUMIFS($M$1:M2,$A$1:A2,A3,$E$1:E2,E3,$S$1:S2,"<"&T3)-SUMIFS($M$1:M2,$A$1:A2,A3,$E$1:E2,E3),0)+(IFERROR(INDEX($R$1:R2,MATCH(1,($A$1:A2=A3)*($E$1:E2=E3)*($S$1:S2>(T3-1)),0)),"")*MIN(IF(L3="",0,L3),SUMIFS($L$1:L3,$A$1:A3,A3,$E$1:E3,E3)-SUMIFS($J$1:J3,$A$1:A3,A3,$E$1:E3,E3,$S$1:S3,"<"&T3))),0),2)) -> 0 | N3: =IFERROR(VALUE(INDEX($Z:$Z,MATCH(A3&E3,$AE:$AE,0),)),"") -> 2 | O3: =IFERROR(INDEX($AC:$AC,MATCH(E3,$AB:$AB,0),),"") -> فئة مخزنية 2 | P3: =SUMIFS($J$1:J3,$E$1:E3,E3,$A$1:A3,A3)-SUMIFS($L$1:L3,$E$1:E3,E3,$A$1:A3,A3) -> 1 | Q3: =MAX(0,ROUND(SUMIFS($K$1:K3,$E$1:E3,E3,$A$1:A3,A3)-SUMIFS($M$1:M3,$E$1:E3,E3,$A$1:A3,A3),2)) -> 4521.77 | R3: =IF(J3>0,ROUND(K3/J3,2),IFERROR(LOOKUP(2,1/(($A$1:A2=A3)*($E$1:E2=E3)),$R$1:R2),K3)) -> 4521.77 | S3: =SUMIFS($J$1:J3,$A$1:A3,A3,$E$1:E3,E3) -> 1 | T3: =SUMIFS($L$1:L3,$A$1:A3,A3,$E$1:E3,E3) -> 0 | U3: =A3&N3 -> مخزن 12 | V3: =D3&C3&COUNTIFS($C$1:C3,C3,$D$1:D3,D3,$A$1:A3,A3)&A3 -> FOBاضافة2مخزن 1 | W3: =IF(MAX(IFERROR((($C$1:C2=C3)*($A$1:A2=A3))*($D$1:D2),0))=0,"FOB",MAX(IFERROR((($C$1:C2=C3)*($A$1:A2=A3))*($D$1:D2),0))) -> FOB | X3: =IFERROR(W3+1,1) -> 1 | Z3: 2 | AA3: مخزن 1 | AB3: نوع 2 | AC3: فئة مخزنية 2 | AD3: بطئ | AE3: =المخازن_وأنواع_الأصناف[[#This Row],[مخزن]]&المخازن_وأنواع_الأصناف[[#This Row],[أسم الصنف]] -> مخزن 1نوع 2 | AG3: 2 مورد | AH3: 25 | AJ3: مركز تكلفة 2 | AL3: فئة مخزنية 2 | AP3: مخزن 2
A4: مخزن 1 | B4: 2019-12-31 | C4: اضافة | D4: FOB | E4: نوع 3 | G4: بدون مورد | H4: بدون أمر شراء | I4: بدون فاتورة | J4: 150 | K4: 65856.19 | M4: =IF(P4=0,ROUND(SUMIFS($K$1:K3,$A$1:A3,A4,$E$1:E3,E4)-SUMIFS($M$1:M3,$A$1:A3,A4,$E$1:E3,E4),2),ROUND(IFERROR(MAX(SUMIFS($K$1:K3,$A$1:A3,A4,$E$1:E3,E4,$S$1:S3,"<"&T4)-SUMIFS($M$1:M3,$A$1:A3,A4,$E$1:E3,E4,$S$1:S3,"<"&T4)-SUMIFS($M$1:M3,$A$1:A3,A4,$E$1:E3,E4),0)+(IFERROR(INDEX($R$1:R3,MATCH(1,($A$1:A3=A4)*($E$1:E3=E4)*($S$1:S3>(T4-1)),0)),"")*MIN(IF(L4="",0,L4),SUMIFS($L$1:L4,$A$1:A4,A4,$E$1:E4,E4)-SUMIFS($J$1:J4,$A$1:A4,A4,$E$1:E4,E4,$S$1:S4,"<"&T4))),0),2)) -> 0 | N4: =IFERROR(VALUE(INDEX($Z:$Z,MATCH(A4&E4,$AE:$AE,0),)),"") -> 3 | O4: =IFERROR(INDEX($AC:$AC,MATCH(E4,$AB:$AB,0),),"") -> فئة مخزنية 3 | P4: =SUMIFS($J$1:J4,$E$1:E4,E4,$A$1:A4,A4)-SUMIFS($L$1:L4,$E$1:E4,E4,$A$1:A4,A4) -> 150 | Q4: =MAX(0,ROUND(SUMIFS($K$1:K4,$E$1:E4,E4,$A$1:A4,A4)-SUMIFS($M$1:M4,$E$1:E4,E4,$A$1:A4,A4),2)) -> 65856.19 | R4: =IF(J4>0,ROUND(K4/J4,2),IFERROR(LOOKUP(2,1/(($A$1:A3=A4)*($E$1:E3=E4)),$R$1:R3),K4)) -> 439.04 | S4: =SUMIFS($J$1:J4,$A$1:A4,A4,$E$1:E4,E4) -> 150 | T4: =SUMIFS($L$1:L4,$A$1:A4,A4,$E$1:E4,E4) -> 0 | U4: مخزن 13 | V4: =D4&C4&COUNTIFS($C$1:C4,C4,$D$1:D4,D4,$A$1:A4,A4)&A4 -> FOBاضافة3مخزن 1 | W4: =IF(MAX(IFERROR((($C$1:C3=C4)*($A$1:A3=A4))*($D$1:D3),0))=0,"FOB",MAX(IFERROR((($C$1:C3=C4)*($A$1:A3=A4))*($D$1:D3),0))) -> FOB | X4: =IFERROR(W4+1,1) -> 1 | Z4: 3 | AA4: مخزن 1 | AB4: نوع 3 | AC4: فئة مخزنية 3 | AD4: بطئ | AE4: =المخازن_وأنواع_الأصناف[[#This Row],[مخزن]]&المخازن_وأنواع_الأصناف[[#This Row],[أسم الصنف]] -> مخزن 1نوع 3 | AG4: 3 مورد | AH4: 30 | AJ4: مركز تكلفة 3 | AL4: فئة مخزنية 3 | AP4: مخزن 3
A5: مخزن 1 | B5: 2019-12-31 | C5: اضافة | D5: FOB | E5: نوع 3 | G5: بدون مورد | H5: بدون أمر شراء | I5: بدون فاتورة | J5: 150 | K5: 12563 | M5: =IF(P5=0,ROUND(SUMIFS($K$1:K4,$A$1:A4,A5,$E$1:E4,E5)-SUMIFS($M$1:M4,$A$1:A4,A5,$E$1:E4,E5),2),ROUND(IFERROR(MAX(SUMIFS($K$1:K4,$A$1:A4,A5,$E$1:E4,E5,$S$1:S4,"<"&T5)-SUMIFS($M$1:M4,$A$1:A4,A5,$E$1:E4,E5,$S$1:S4,"<"&T5)-SUMIFS($M$1:M4,$A$1:A4,A5,$E$1:E4,E5),0)+(IFERROR(INDEX($R$1:R4,MATCH(1,($A$1:A4=A5)*($E$1:E4=E5)*($S$1:S4>(T5-1)),0)),"")*MIN(IF(L5="",0,L5),SUMIFS($L$1:L5,$A$1:A5,A5,$E$1:E5,E5)-SUMIFS($J$1:J5,$A$1:A5,A5,$E$1:E5,E5,$S$1:S5,"<"&T5))),0),2)) -> 0 | N5: =IFERROR(VALUE(INDEX($Z:$Z,MATCH(A5&E5,$AE:$AE,0),)),"") -> 3 | O5: =IFERROR(INDEX($AC:$AC,MATCH(E5,$AB:$AB,0),),"") -> فئة مخزنية 3 | P5: =SUMIFS($J$1:J5,$E$1:E5,E5,$A$1:A5,A5)-SUMIFS($L$1:L5,$E$1:E5,E5,$A$1:A5,A5) -> 300 | Q5: =MAX(0,ROUND(SUMIFS($K$1:K5,$E$1:E5,E5,$A$1:A5,A5)-SUMIFS($M$1:M5,$E$1:E5,E5,$A$1:A5,A5),2)) -> 78419.19 | R5: =IF(J5>0,ROUND(K5/J5,2),IFERROR(LOOKUP(2,1/(($A$1:A4=A5)*($E$1:E4=E5)),$R$1:R4),K5)) -> 83.75 | S5: =SUMIFS($J$1:J5,$A$1:A5,A5,$E$1:E5,E5) -> 300 | T5: =SUMIFS($L$1:L5,$A$1:A5,A5,$E$1:E5,E5) -> 0 | U5: مخزن 13 | V5: =D5&C5&COUNTIFS($C$1:C5,C5,$D$1:D5,D5,$A$1:A5,A5)&A5 -> FOBاضافة4مخزن 1 | W5: =IF(MAX(IFERROR((($C$1:C4=C5)*($A$1:A4=A5))*($D$1:D4),0))=0,"FOB",MAX(IFERROR((($C$1:C4=C5)*($A$1:A4=A5))*($D$1:D4),0))) -> FOB | X5: =IFERROR(W5+1,1) -> 1 | Z5: 4 | AA5: مخزن 1 | AB5: نوع 4 | AC5: فئة مخزنية 4 | AD5: بطئ | AE5: =المخازن_وأنواع_الأصناف[[#This Row],[مخزن]]&المخازن_وأنواع_الأصناف[[#This Row],[أسم الصنف]] -> مخزن 1نوع 4 | AG5: 4 مورد | AH5: 25 | AJ5: مركز تكلفة 4 | AL5: فئة مخزنية 4 | AP5: مخزن 4
A6: مخزن 1 | B6: 2019-12-31 | C6: اضافة | D6: FOB | E6: نوع 3 | G6: بدون مورد | H6: بدون أمر شراء | I6: بدون فاتورة | J6: 150 | K6: 11000 | M6: =IF(P6=0,ROUND(SUMIFS($K$1:K5,$A$1:A5,A6,$E$1:E5,E6)-SUMIFS($M$1:M5,$A$1:A5,A6,$E$1:E5,E6),2),ROUND(IFERROR(MAX(SUMIFS($K$1:K5,$A$1:A5,A6,$E$1:E5,E6,$S$1:S5,"<"&T6)-SUMIFS($M$1:M5,$A$1:A5,A6,$E$1:E5,E6,$S$1:S5,"<"&T6)-SUMIFS($M$1:M5,$A$1:A5,A6,$E$1:E5,E6),0)+(IFERROR(INDEX($R$1:R5,MATCH(1,($A$1:A5=A6)*($E$1:E5=E6)*($S$1:S5>(T6-1)),0)),"")*MIN(IF(L6="",0,L6),SUMIFS($L$1:L6,$A$1:A6,A6,$E$1:E6,E6)-SUMIFS($J$1:J6,$A$1:A6,A6,$E$1:E6,E6,$S$1:S6,"<"&T6))),0),2)) -> 0 | N6: =IFERROR(VALUE(INDEX($Z:$Z,MATCH(A6&E6,$AE:$AE,0),)),"") -> 3 | O6: =IFERROR(INDEX($AC:$AC,MATCH(E6,$AB:$AB,0),),"") -> فئة مخزنية 3 | P6: =SUMIFS($J$1:J6,$E$1:E6,E6,$A$1:A6,A6)-SUMIFS($L$1:L6,$E$1:E6,E6,$A$1:A6,A6) -> 450 | Q6: =MAX(0,ROUND(SUMIFS($K$1:K6,$E$1:E6,E6,$A$1:A6,A6)-SUMIFS($M$1:M6,$E$1:E6,E6,$A$1:A6,A6),2)) -> 89419.19 | R6: =IF(J6>0,ROUND(K6/J6,2),IFERROR(LOOKUP(2,1/(($A$1:A5=A6)*($E$1:E5=E6)),$R$1:R5),K6)) -> 73.33 | S6: =SUMIFS($J$1:J6,$A$1:A6,A6,$E$1:E6,E6) -> 450 | T6: =SUMIFS($L$1:L6,$A$1:A6,A6,$E$1:E6,E6) -> 0 | U6: مخزن 13 | V6: =D6&C6&COUNTIFS($C$1:C6,C6,$D$1:D6,D6,$A$1:A6,A6)&A6 -> FOBاضافة5مخزن 1 | W6: =IF(MAX(IFERROR((($C$1:C5=C6)*($A$1:A5=A6))*($D$1:D5),0))=0,"FOB",MAX(IFERROR((($C$1:C5=C6)*($A$1:A5=A6))*($D$1:D5),0))) -> FOB | X6: 1 | Z6: 1 | AA6: مخزن 2 | AB6: نوع 1 | AC6: فئة مخزنية 1 | AD6: بطئ | AE6: =المخازن_وأنواع_الأصناف[[#This Row],[مخزن]]&المخازن_وأنواع_الأصناف[[#This Row],[أسم الصنف]] -> مخزن 2نوع 1 | AG6: 5 مورد | AH6: 15 | AJ6: مركز تكلفة 5 | AL6: فئة مخزنية 5 | AP6: مخزن 5
A7: مخزن 1 | B7: 2019-12-31 | C7: اضافة | D7: FOB | E7: نوع 3 | G7: بدون مورد | H7: بدون أمر شراء | I7: بدون فاتورة | J7: 150 | K7: 18963.29 | M7: =IF(P7=0,ROUND(SUMIFS($K$1:K6,$A$1:A6,A7,$E$1:E6,E7)-SUMIFS($M$1:M6,$A$1:A6,A7,$E$1:E6,E7),2),ROUND(IFERROR(MAX(SUMIFS($K$1:K6,$A$1:A6,A7,$E$1:E6,E7,$S$1:S6,"<"&T7)-SUMIFS($M$1:M6,$A$1:A6,A7,$E$1:E6,E7,$S$1:S6,"<"&T7)-SUMIFS($M$1:M6,$A$1:A6,A7,$E$1:E6,E7),0)+(IFERROR(INDEX($R$1:R6,MATCH(1,($A$1:A6=A7)*($E$1:E6=E7)*($S$1:S6>(T7-1)),0)),"")*MIN(IF(L7="",0,L7),SUMIFS($L$1:L7,$A$1:A7,A7,$E$1:E7,E7)-SUMIFS($J$1:J7,$A$1:A7,A7,$E$1:E7,E7,$S$1:S7,"<"&T7))),0),2)) -> 0 | N7: =IFERROR(VALUE(INDEX($Z:$Z,MATCH(A7&E7,$AE:$AE,0),)),"") -> 3 | O7: =IFERROR(INDEX($AC:$AC,MATCH(E7,$AB:$AB,0),),"") -> فئة مخزنية 3 | P7: =SUMIFS($J$1:J7,$E$1:E7,E7,$A$1:A7,A7)-SUMIFS($L$1:L7,$E$1:E7,E7,$A$1:A7,A7) -> 600 | Q7: =MAX(0,ROUND(SUMIFS($K$1:K7,$E$1:E7,E7,$A$1:A7,A7)-SUMIFS($M$1:M7,$E$1:E7,E7,$A$1:A7,A7),2)) -> 108382.48 | R7: =IF(J7>0,ROUND(K7/J7,2),IFERROR(LOOKUP(2,1/(($A$1:A6=A7)*($E$1:E6=E7)),$R$1:R6),K7)) -> 126.42 | S7: =SUMIFS($J$1:J7,$A$1:A7,A7,$E$1:E7,E7) -> 600 | T7: =SUMIFS($L$1:L7,$A$1:A7,A7,$E$1:E7,E7) -> 0 | U7: مخزن 13 | V7: =D7&C7&COUNTIFS($C$1:C7,C7,$D$1:D7,D7,$A$1:A7,A7)&A7 -> FOBاضافة6مخزن 1 | W7: =IF(MAX(IFERROR((($C$1:C6=C7)*($A$1:A6=A7))*($D$1:D6),0))=0,"FOB",MAX(IFERROR((($C$1:C6=C7)*($A$1:A6=A7))*($D$1:D6),0))) -> FOB | X7: 1 | Z7: 2 | AA7: مخزن 2 | AB7: نوع 2 | AC7: فئة مخزنية 1 | AD7: بطئ | AE7: =المخازن_وأنواع_الأصناف[[#This Row],[مخزن]]&المخازن_وأنواع_الأصناف[[#This Row],[أسم الصنف]] -> مخزن 2نوع 2 | AG7: 6 مورد | AH7: 25 | AJ7: مركز تكلفة 6 | AP7: مخزن 6
A8: مخزن 1 | B8: 2019-12-31 | C8: اضافة | D8: FOB | E8: نوع 3 | G8: بدون مورد | H8: بدون أمر شراء | I8: بدون فاتورة | J8: 150 | K8: 32156.25 | M8: =IF(P8=0,ROUND(SUMIFS($K$1:K7,$A$1:A7,A8,$E$1:E7,E8)-SUMIFS($M$1:M7,$A$1:A7,A8,$E$1:E7,E8),2),ROUND(IFERROR(MAX(SUMIFS($K$1:K7,$A$1:A7,A8,$E$1:E7,E8,$S$1:S7,"<"&T8)-SUMIFS($M$1:M7,$A$1:A7,A8,$E$1:E7,E8,$S$1:S7,"<"&T8)-SUMIFS($M$1:M7,$A$1:A7,A8,$E$1:E7,E8),0)+(IFERROR(INDEX($R$1:R7,MATCH(1,($A$1:A7=A8)*($E$1:E7=E8)*($S$1:S7>(T8-1)),0)),"")*MIN(IF(L8="",0,L8),SUMIFS($L$1:L8,$A$1:A8,A8,$E$1:E8,E8)-SUMIFS($J$1:J8,$A$1:A8,A8,$E$1:E8,E8,$S$1:S8,"<"&T8))),0),2)) -> 0 | N8: =IFERROR(VALUE(INDEX($Z:$Z,MATCH(A8&E8,$AE:$AE,0),)),"") -> 3 | O8: =IFERROR(INDEX($AC:$AC,MATCH(E8,$AB:$AB,0),),"") -> فئة مخزنية 3 | P8: =SUMIFS($J$1:J8,$E$1:E8,E8,$A$1:A8,A8)-SUMIFS($L$1:L8,$E$1:E8,E8,$A$1:A8,A8) -> 750 | Q8: =MAX(0,ROUND(SUMIFS($K$1:K8,$E$1:E8,E8,$A$1:A8,A8)-SUMIFS($M$1:M8,$E$1:E8,E8,$A$1:A8,A8),2)) -> 140538.73 | R8: =IF(J8>0,ROUND(K8/J8,2),IFERROR(LOOKUP(2,1/(($A$1:A7=A8)*($E$1:E7=E8)),$R$1:R7),K8)) -> 214.38 | S8: =SUMIFS($J$1:J8,$A$1:A8,A8,$E$1:E8,E8) -> 750 | T8: =SUMIFS($L$1:L8,$A$1:A8,A8,$E$1:E8,E8) -> 0 | U8: مخزن 13 | V8: =D8&C8&COUNTIFS($C$1:C8,C8,$D$1:D8,D8,$A$1:A8,A8)&A8 -> FOBاضافة7مخزن 1 | W8: =IF(MAX(IFERROR((($C$1:C7=C8)*($A$1:A7=A8))*($D$1:D7),0))=0,"FOB",MAX(IFERROR((($C$1:C7=C8)*($A$1:A7=A8))*($D$1:D7),0))) -> FOB | X8: 1 | Z8: 3 | AA8: مخزن 2 | AB8: نوع 3 | AC8: فئة مخزنية 1 | AD8: سريع | AE8: =المخازن_وأنواع_الأصناف[[#This Row],[مخزن]]&المخازن_وأنواع_الأصناف[[#This Row],[أسم الصنف]] -> مخزن 2نوع 3 | AG8: 7 مورد | AH8: 25 | AJ8: مركز تكلفة 7 | AP8: مخزن 7
A9: مخزن 1 | B9: 2020-01-11 | C9: اضافة | D9: 1 | E9: نوع 1 | G9: 5 مورد | H9: 367 | I9: 1399 | J9: 1000 | K9: 15863.25 | M9: =IF(P9=0,ROUND(SUMIFS($K$1:K8,$A$1:A8,A9,$E$1:E8,E9)-SUMIFS($M$1:M8,$A$1:A8,A9,$E$1:E8,E9),2),ROUND(IFERROR(MAX(SUMIFS($K$1:K8,$A$1:A8,A9,$E$1:E8,E9,$S$1:S8,"<"&T9)-SUMIFS($M$1:M8,$A$1:A8,A9,$E$1:E8,E9,$S$1:S8,"<"&T9)-SUMIFS($M$1:M8,$A$1:A8,A9,$E$1:E8,E9),0)+(IFERROR(INDEX($R$1:R8,MATCH(1,($A$1:A8=A9)*($E$1:E8=E9)*($S$1:S8>(T9-1)),0)),"")*MIN(IF(L9="",0,L9),SUMIFS($L$1:L9,$A$1:A9,A9,$E$1:E9,E9)-SUMIFS($J$1:J9,$A$1:A9,A9,$E$1:E9,E9,$S$1:S9,"<"&T9))),0),2)) -> 0 | N9: =IFERROR(VALUE(INDEX($Z:$Z,MATCH(A9&E9,$AE:$AE,0),)),"") -> 1 | O9: =IFERROR(INDEX($AC:$AC,MATCH(E9,$AB:$AB,0),),"") -> فئة مخزنية 1 | P9: =SUMIFS($J$1:J9,$E$1:E9,E9,$A$1:A9,A9)-SUMIFS($L$1:L9,$E$1:E9,E9,$A$1:A9,A9) -> 1016 | Q9: =MAX(0,ROUND(SUMIFS($K$1:K9,$E$1:E9,E9,$A$1:A9,A9)-SUMIFS($M$1:M9,$E$1:E9,E9,$A$1:A9,A9),2)) -> 72188.48 | R9: =IF(J9>0,ROUND(K9/J9,2),IFERROR(LOOKUP(2,1/(($A$1:A8=A9)*($E$1:E8=E9)),$R$1:R8),K9)) -> 15.86 | S9: =SUMIFS($J$1:J9,$A$1:A9,A9,$E$1:E9,E9) -> 1016 | T9: =SUMIFS($L$1:L9,$A$1:A9,A9,$E$1:E9,E9) -> 0 | U9: مخزن 11 | V9: =D9&C9&COUNTIFS($C$1:C9,C9,$D$1:D9,D9,$A$1:A9,A9)&A9 -> 1اضافة1مخزن 1 | W9: =IF(MAX(IFERROR((($C$1:C8=C9)*($A$1:A8=A9))*($D$1:D8),0))=0,"FOB",MAX(IFERROR((($C$1:C8=C9)*($A$1:A8=A9))*($D$1:D8),0))) -> FOB | X9: 1 | Z9: 4 | AA9: مخزن 2 | AB9: نوع 4 | AC9: فئة مخزنية 1 | AD9: متوسط | AE9: =المخازن_وأنواع_الأصناف[[#This Row],[مخزن]]&المخازن_وأنواع_الأصناف[[#This Row],[أسم الصنف]] -> مخزن 2نوع 4 | AG9: 8 مورد | AH9: 30
A10: مخزن 1 | B10: 2020-01-11 | C10: اضافة | D10: 1 | E10: نوع 3 | G10: 5 مورد | H10: 367 | I10: 1399 | J10: 150 | K10: 19781.85 | M10: =IF(P10=0,ROUND(SUMIFS($K$1:K9,$A$1:A9,A10,$E$1:E9,E10)-SUMIFS($M$1:M9,$A$1:A9,A10,$E$1:E9,E10),2),ROUND(IFERROR(MAX(SUMIFS($K$1:K9,$A$1:A9,A10,$E$1:E9,E10,$S$1:S9,"<"&T10)-SUMIFS($M$1:M9,$A$1:A9,A10,$E$1:E9,E10,$S$1:S9,"<"&T10)-SUMIFS($M$1:M9,$A$1:A9,A10,$E$1:E9,E10),0)+(IFERROR(INDEX($R$1:R9,MATCH(1,($A$1:A9=A10)*($E$1:E9=E10)*($S$1:S9>(T10-1)),0)),"")*MIN(IF(L10="",0,L10),SUMIFS($L$1:L10,$A$1:A10,A10,$E$1:E10,E10)-SUMIFS($J$1:J10,$A$1:A10,A10,$E$1:E10,E10,$S$1:S10,"<"&T10))),0),2)) -> 0 | N10: =IFERROR(VALUE(INDEX($Z:$Z,MATCH(A10&E10,$AE:$AE,0),)),"") -> 3 | O10: =IFERROR(INDEX($AC:$AC,MATCH(E10,$AB:$AB,0),),"") -> فئة مخزنية 3 | P10: =SUMIFS($J$1:J10,$E$1:E10,E10,$A$1:A10,A10)-SUMIFS($L$1:L10,$E$1:E10,E10,$A$1:A10,A10) -> 900 | Q10: =MAX(0,ROUND(SUMIFS($K$1:K10,$E$1:E10,E10,$A$1:A10,A10)-SUMIFS($M$1:M10,$E$1:E10,E10,$A$1:A10,A10),2)) -> 160320.58 | R10: =IF(J10>0,ROUND(K10/J10,2),IFERROR(LOOKUP(2,1/(($A$1:A9=A10)*($E$1:E9=E10)),$R$1:R9),K10)) -> 131.88 | S10: =SUMIFS($J$1:J10,$A$1:A10,A10,$E$1:E10,E10) -> 900 | T10: =SUMIFS($L$1:L10,$A$1:A10,A10,$E$1:E10,E10) -> 0 | U10: مخزن 13 | V10: =D10&C10&COUNTIFS($C$1:C10,C10,$D$1:D10,D10,$A$1:A10,A10)&A10 -> 1اضافة2مخزن 1 | W10: =IF(MAX(IFERROR((($C$1:C9=C10)*($A$1:A9=A10))*($D$1:D9),0))=0,"FOB",MAX(IFERROR((($C$1:C9=C10)*($A$1:A9=A10))*($D$1:D9),0))) -> 1 | X10: 2 | Z10: 1 | AA10: مخزن 3 | AB10: نوع 1 | AC10: فئة مخزنية 1 | AD10: سريع | AE10: =المخازن_وأنواع_الأصناف[[#This Row],[مخزن]]&المخازن_وأنواع_الأصناف[[#This Row],[أسم الصنف]] -> مخزن 3نوع 1 | AG10: 9 مورد | AH10: 25
A11: مخزن 1 | B11: 2020-01-12 | C11: صرف | D11: 1 | E11: نوع 3 | F11: مركز تكلفة 4 | L11: 80 | M11: =IF(P11=0,ROUND(SUMIFS($K$1:K10,$A$1:A10,A11,$E$1:E10,E11)-SUMIFS($M$1:M10,$A$1:A10,A11,$E$1:E10,E11),2),ROUND(IFERROR(MAX(SUMIFS($K$1:K10,$A$1:A10,A11,$E$1:E10,E11,$S$1:S10,"<"&T11)-SUMIFS($M$1:M10,$A$1:A10,A11,$E$1:E10,E11,$S$1:S10,"<"&T11)-SUMIFS($M$1:M10,$A$1:A10,A11,$E$1:E10,E11),0)+(IFERROR(INDEX($R$1:R10,MATCH(1,($A$1:A10=A11)*($E$1:E10=E11)*($S$1:S10>(T11-1)),0)),"")*MIN(IF(L11="",0,L11),SUMIFS($L$1:L11,$A$1:A11,A11,$E$1:E11,E11)-SUMIFS($J$1:J11,$A$1:A11,A11,$E$1:E11,E11,$S$1:S11,"<"&T11))),0),2)) -> 35123.2 | N11: =IFERROR(VALUE(INDEX($Z:$Z,MATCH(A11&E11,$AE:$AE,0),)),"") -> 3 | O11: =IFERROR(INDEX($AC:$AC,MATCH(E11,$AB:$AB,0),),"") -> فئة مخزنية 3 | P11: =SUMIFS($J$1:J11,$E$1:E11,E11,$A$1:A11,A11)-SUMIFS($L$1:L11,$E$1:E11,E11,$A$1:A11,A11) -> 820 | Q11: =MAX(0,ROUND(SUMIFS($K$1:K11,$E$1:E11,E11,$A$1:A11,A11)-SUMIFS($M$1:M11,$E$1:E11,E11,$A$1:A11,A11),2)) -> 125197.38 | R11: =IF(J11>0,ROUND(K11/J11,2),IFERROR(LOOKUP(2,1/(($A$1:A10=A11)*($E$1:E10=E11)),$R$1:R10),K11)) -> 131.88 | S11: =SUMIFS($J$1:J11,$A$1:A11,A11,$E$1:E11,E11) -> 900 | T11: =SUMIFS($L$1:L11,$A$1:A11,A11,$E$1:E11,E11) -> 80 | U11: مخزن 13 | V11: =D11&C11&COUNTIFS($C$1:C11,C11,$D$1:D11,D11,$A$1:A11,A11)&A11 -> 1صرف1مخزن 1 | W11: =IF(MAX(IFERROR((($C$1:C10=C11)*($A$1:A10=A11))*($D$1:D10),0))=0,"FOB",MAX(IFERROR((($C$1:C10=C11)*($A$1:A10=A11))*($D$1:D10),0))) -> FOB | X11: 1 | Z11: 2 | AA11: مخزن 3 | AB11: نوع 2 | AC11: فئة مخزنية 1 | AD11: سريع | AE11: =المخازن_وأنواع_الأصناف[[#This Row],[مخزن]]&المخازن_وأنواع_الأصناف[[#This Row],[أسم الصنف]] -> مخزن 3نوع 2 | AG11: 10 مورد | AH11: 30
A12: مخزن 1 | B12: 2020-01-28 | C12: صرف | D12: 2 | E12: نوع 3 | F12: مركز تكلفة 4 | L12: 80 | M12: =IF(P12=0,ROUND(SUMIFS($K$1:K11,$A$1:A11,A12,$E$1:E11,E12)-SUMIFS($M$1:M11,$A$1:A11,A12,$E$1:E11,E12),2),ROUND(IFERROR(MAX(SUMIFS($K$1:K11,$A$1:A11,A12,$E$1:E11,E12,$S$1:S11,"<"&T12)-SUMIFS($M$1:M11,$A$1:A11,A12,$E$1:E11,E12,$S$1:S11,"<"&T12)-SUMIFS($M$1:M11,$A$1:A11,A12,$E$1:E11,E12),0)+(IFERROR(INDEX($R$1:R11,MATCH(1,($A$1:A11=A12)*($E$1:E11=E12)*($S$1:S11>(T12-1)),0)),"")*MIN(IF(L12="",0,L12),SUMIFS($L$1:L12,$A$1:A12,A12,$E$1:E12,E12)-SUMIFS($J$1:J12,$A$1:A12,A12,$E$1:E12,E12,$S$1:S12,"<"&T12))),0),2)) -> 31570.49 | N12: =IFERROR(VALUE(INDEX($Z:$Z,MATCH(A12&E12,$AE:$AE,0),)),"") -> 3 | O12: =IFERROR(INDEX($AC:$AC,MATCH(E12,$AB:$AB,0),),"") -> فئة مخزنية 3 | P12: =SUMIFS($J$1:J12,$E$1:E12,E12,$A$1:A12,A12)-SUMIFS($L$1:L12,$E$1:E12,E12,$A$1:A12,A12) -> 740 | Q12: =MAX(0,ROUND(SUMIFS($K$1:K12,$E$1:E12,E12,$A$1:A12,A12)-SUMIFS($M$1:M12,$E$1:E12,E12,$A$1:A12,A12),2)) -> 93626.89 | R12: =IF(J12>0,ROUND(K12/J12,2),IFERROR(LOOKUP(2,1/(($A$1:A11=A12)*($E$1:E11=E12)),$R$1:R11),K12)) -> 131.88 | S12: =SUMIFS($J$1:J12,$A$1:A12,A12,$E$1:E12,E12) -> 900 | T12: =SUMIFS($L$1:L12,$A$1:A12,A12,$E$1:E12,E12) -> 160 | U12: مخزن 13 | V12: =D12&C12&COUNTIFS($C$1:C12,C12,$D$1:D12,D12,$A$1:A12,A12)&A12 -> 2صرف1مخزن 1 | W12: =IF(MAX(IFERROR((($C$1:C11=C12)*($A$1:A11=A12))*($D$1:D11),0))=0,"FOB",MAX(IFERROR((($C$1:C11=C12)*($A$1:A11=A12))*($D$1:D11),0))) -> 1 | X12: 2 | Z12: 3 | AA12: مخزن 3 | AB12: نوع 3 | AC12: فئة مخزنية 1 | AD12: بطئ | AE12: =المخازن_وأنواع_الأصناف[[#This Row],[مخزن]]&المخازن_وأنواع_الأصناف[[#This Row],[أسم الصنف]] -> مخزن 3نوع 3 | AG12: 11 مورد | AH12: 35
A13: مخزن 1 | B13: 2020-01-28 | C13: صرف | D13: 3 | E13: نوع 3 | F13: مركز تكلفة 7 | L13: 80 | M13: =IF(P13=0,ROUND(SUMIFS($K$1:K12,$A$1:A12,A13,$E$1:E12,E13)-SUMIFS($M$1:M12,$A$1:A12,A13,$E$1:E12,E13),2),ROUND(IFERROR(MAX(SUMIFS($K$1:K12,$A$1:A12,A13,$E$1:E12,E13,$S$1:S12,"<"&T13)-SUMIFS($M$1:M12,$A$1:A12,A13,$E$1:E12,E13,$S$1:S12,"<"&T13)-SUMIFS($M$1:M12,$A$1:A12,A13,$E$1:E12,E13),0)+(IFERROR(INDEX($R$1:R12,MATCH(1,($A$1:A12=A13)*($E$1:E12=E13)*($S$1:S12>(T13-1)),0)),"")*MIN(IF(L13="",0,L13),SUMIFS($L$1:L13,$A$1:A13,A13,$E$1:E13,E13)-SUMIFS($J$1:J13,$A$1:A13,A13,$E$1:E13,E13,$S$1:S13,"<"&T13))),0),2)) -> 6700 | N13: =IFERROR(VALUE(INDEX($Z:$Z,MATCH(A13&E13,$AE:$AE,0),)),"") -> 3 | O13: =IFERROR(INDEX($AC:$AC,MATCH(E13,$AB:$AB,0),),"") -> فئة مخزنية 3 | P13: =SUMIFS($J$1:J13,$E$1:E13,E13,$A$1:A13,A13)-SUMIFS($L$1:L13,$E$1:E13,E13,$A$1:A13,A13) -> 660 | Q13: =MAX(0,ROUND(SUMIFS($K$1:K13,$E$1:E13,E13,$A$1:A13,A13)-SUMIFS($M$1:M13,$E$1:E13,E13,$A$1:A13,A13),2)) -> 86926.89 | R13: =IF(J13>0,ROUND(K13/J13,2),IFERROR(LOOKUP(2,1/(($A$1:A12=A13)*($E$1:E12=E13)),$R$1:R12),K13)) -> 131.88 | S13: =SUMIFS($J$1:J13,$A$1:A13,A13,$E$1:E13,E13) -> 900 | T13: =SUMIFS($L$1:L13,$A$1:A13,A13,$E$1:E13,E13) -> 240 | U13: مخزن 13 | V13: =D13&C13&COUNTIFS($C$1:C13,C13,$D$1:D13,D13,$A$1:A13,A13)&A13 -> 3صرف1مخزن 1 | W13: =IF(MAX(IFERROR((($C$1:C12=C13)*($A$1:A12=A13))*($D$1:D12),0))=0,"FOB",MAX(IFERROR((($C$1:C12=C13)*($A$1:A12=A13))*($D$1:D12),0))) -> 2 | X13: 3 | Z13: 4 | AA13: مخزن 3 | AB13: نوع 4 | AC13: فئة مخزنية 1 | AD13: بطئ | AE13: =المخازن_وأنواع_الأصناف[[#This Row],[مخزن]]&المخازن_وأنواع_الأصناف[[#This Row],[أسم الصنف]] -> مخزن 3نوع 4 | AG13: 12 مورد | AH13: 40
A14: مخزن 1 | B14: 2020-02-03 | C14: صرف | D14: 4 | E14: نوع 2 | F14: مركز تكلفة 4 | L14: 1 | M14: =IF(P14=0,ROUND(SUMIFS($K$1:K13,$A$1:A13,A14,$E$1:E13,E14)-SUMIFS($M$1:M13,$A$1:A13,A14,$E$1:E13,E14),2),ROUND(IFERROR(MAX(SUMIFS($K$1:K13,$A$1:A13,A14,$E$1:E13,E14,$S$1:S13,"<"&T14)-SUMIFS($M$1:M13,$A$1:A13,A14,$E$1:E13,E14,$S$1:S13,"<"&T14)-SUMIFS($M$1:M13,$A$1:A13,A14,$E$1:E13,E14),0)+(IFERROR(INDEX($R$1:R13,MATCH(1,($A$1:A13=A14)*($E$1:E13=E14)*($S$1:S13>(T14-1)),0)),"")*MIN(IF(L14="",0,L14),SUMIFS($L$1:L14,$A$1:A14,A14,$E$1:E14,E14)-SUMIFS($J$1:J14,$A$1:A14,A14,$E$1:E14,E14,$S$1:S14,"<"&T14))),0),2)) -> 4521.77 | N14: =IFERROR(VALUE(INDEX($Z:$Z,MATCH(A14&E14,$AE:$AE,0),)),"") -> 2 | O14: =IFERROR(INDEX($AC:$AC,MATCH(E14,$AB:$AB,0),),"") -> فئة مخزنية 2 | P14: =SUMIFS($J$1:J14,$E$1:E14,E14,$A$1:A14,A14)-SUMIFS($L$1:L14,$E$1:E14,E14,$A$1:A14,A14) -> 0 | Q14: =MAX(0,ROUND(SUMIFS($K$1:K14,$E$1:E14,E14,$A$1:A14,A14)-SUMIFS($M$1:M14,$E$1:E14,E14,$A$1:A14,A14),2)) -> 0 | R14: =IF(J14>0,ROUND(K14/J14,2),IFERROR(LOOKUP(2,1/(($A$1:A13=A14)*($E$1:E13=E14)),$R$1:R13),K14)) -> 4521.77 | S14: =SUMIFS($J$1:J14,$A$1:A14,A14,$E$1:E14,E14) -> 1 | T14: =SUMIFS($L$1:L14,$A$1:A14,A14,$E$1:E14,E14) -> 1 | U14: مخزن 12 | V14: =D14&C14&COUNTIFS($C$1:C14,C14,$D$1:D14,D14,$A$1:A14,A14)&A14 -> 4صرف1مخزن 1 | W14: =IF(MAX(IFERROR((($C$1:C13=C14)*($A$1:A13=A14))*($D$1:D13),0))=0,"FOB",MAX(IFERROR((($C$1:C13=C14)*($A$1:A13=A14))*($D$1:D13),0))) -> 3 | X14: 4 | Z14: 1 | AA14: مخزن 4 | AB14: نوع 1 | AC14: فئة مخزنية 1 | AD14: سريع | AE14: =المخازن_وأنواع_الأصناف[[#This Row],[مخزن]]&المخازن_وأنواع_الأصناف[[#This Row],[أسم الصنف]] -> مخزن 4نوع 1 | AG14: 13 مورد | AH14: 65
A15: مخزن 1 | B15: 2020-02-03 | C15: صرف | D15: 4 | E15: نوع 3 | F15: مركز تكلفة 4 | L15: 80 | M15: =IF(P15=0,ROUND(SUMIFS($K$1:K14,$A$1:A14,A15,$E$1:E14,E15)-SUMIFS($M$1:M14,$A$1:A14,A15,$E$1:E14,E15),2),ROUND(IFERROR(MAX(SUMIFS($K$1:K14,$A$1:A14,A15,$E$1:E14,E15,$S$1:S14,"<"&T15)-SUMIFS($M$1:M14,$A$1:A14,A15,$E$1:E14,E15,$S$1:S14,"<"&T15)-SUMIFS($M$1:M14,$A$1:A14,A15,$E$1:E14,E15),0)+(IFERROR(INDEX($R$1:R14,MATCH(1,($A$1:A14=A15)*($E$1:E14=E15)*($S$1:S14>(T15-1)),0)),"")*MIN(IF(L15="",0,L15),SUMIFS($L$1:L15,$A$1:A15,A15,$E$1:E15,E15)-SUMIFS($J$1:J15,$A$1:A15,A15,$E$1:E15,E15,$S$1:S15,"<"&T15))),0),2)) -> 6492.1 | N15: =IFERROR(VALUE(INDEX($Z:$Z,MATCH(A15&E15,$AE:$AE,0),)),"") -> 3 | O15: =IFERROR(INDEX($AC:$AC,MATCH(E15,$AB:$AB,0),),"") -> فئة مخزنية 3 | P15: =SUMIFS($J$1:J15,$E$1:E15,E15,$A$1:A15,A15)-SUMIFS($L$1:L15,$E$1:E15,E15,$A$1:A15,A15) -> 580 | Q15: =MAX(0,ROUND(SUMIFS($K$1:K15,$E$1:E15,E15,$A$1:A15,A15)-SUMIFS($M$1:M15,$E$1:E15,E15,$A$1:A15,A15),2)) -> 80434.79 | R15: =IF(J15>0,ROUND(K15/J15,2),IFERROR(LOOKUP(2,1/(($A$1:A14=A15)*($E$1:E14=E15)),$R$1:R14),K15)) -> 131.88 | S15: =SUMIFS($J$1:J15,$A$1:A15,A15,$E$1:E15,E15) -> 900 | T15: =SUMIFS($L$1:L15,$A$1:A15,A15,$E$1:E15,E15) -> 320 | U15: مخزن 13 | V15: =D15&C15&COUNTIFS($C$1:C15,C15,$D$1:D15,D15,$A$1:A15,A15)&A15 -> 4صرف2مخزن 1 | W15: =IF(MAX(IFERROR((($C$1:C14=C15)*($A$1:A14=A15))*($D$1:D14),0))=0,"FOB",MAX(IFERROR((($C$1:C14=C15)*($A$1:A14=A15))*($D$1:D14),0))) -> 4 | X15: 5 | Z15: 2 | AA15: مخزن 4 | AB15: نوع 2 | AC15: فئة مخزنية 1 | AD15: سريع | AE15: =المخازن_وأنواع_الأصناف[[#This Row],[مخزن]]&المخازن_وأنواع_الأصناف[[#This Row],[أسم الصنف]] -> مخزن 4نوع 2 | AG15: 14 مورد | AH15: 70
A16: مخزن 1 | B16: 2020-02-04 | C16: صرف | D16: 5 | E16: نوع 3 | F16: مركز تكلفة 5 | L16: 80 | M16: =IF(P16=0,ROUND(SUMIFS($K$1:K15,$A$1:A15,A16,$E$1:E15,E16)-SUMIFS($M$1:M15,$A$1:A15,A16,$E$1:E15,E16),2),ROUND(IFERROR(MAX(SUMIFS($K$1:K15,$A$1:A15,A16,$E$1:E15,E16,$S$1:S15,"<"&T16)-SUMIFS($M$1:M15,$A$1:A15,A16,$E$1:E15,E16,$S$1:S15,"<"&T16)-SUMIFS($M$1:M15,$A$1:A15,A16,$E$1:E15,E16),0)+(IFERROR(INDEX($R$1:R15,MATCH(1,($A$1:A15=A16)*($E$1:E15=E16)*($S$1:S15>(T16-1)),0)),"")*MIN(IF(L16="",0,L16),SUMIFS($L$1:L16,$A$1:A16,A16,$E$1:E16,E16)-SUMIFS($J$1:J16,$A$1:A16,A16,$E$1:E16,E16,$S$1:S16,"<"&T16))),0),2)) -> 5866.4 | N16: =IFERROR(VALUE(INDEX($Z:$Z,MATCH(A16&E16,$AE:$AE,0),)),"") -> 3 | O16: =IFERROR(INDEX($AC:$AC,MATCH(E16,$AB:$AB,0),),"") -> فئة مخزنية 3 | P16: =SUMIFS($J$1:J16,$E$1:E16,E16,$A$1:A16,A16)-SUMIFS($L$1:L16,$E$1:E16,E16,$A$1:A16,A16) -> 500 | Q16: =MAX(0,ROUND(SUMIFS($K$1:K16,$E$1:E16,E16,$A$1:A16,A16)-SUMIFS($M$1:M16,$E$1:E16,E16,$A$1:A16,A16),2)) -> 74568.39 | R16: =IF(J16>0,ROUND(K16/J16,2),IFERROR(LOOKUP(2,1/(($A$1:A15=A16)*($E$1:E15=E16)),$R$1:R15),K16)) -> 131.88 | S16: =SUMIFS($J$1:J16,$A$1:A16,A16,$E$1:E16,E16) -> 900 | T16: =SUMIFS($L$1:L16,$A$1:A16,A16,$E$1:E16,E16) -> 400 | U16: مخزن 13 | V16: =D16&C16&COUNTIFS($C$1:C16,C16,$D$1:D16,D16,$A$1:A16,A16)&A16 -> 5صرف1مخزن 1 | W16: =IF(MAX(IFERROR((($C$1:C15=C16)*($A$1:A15=A16))*($D$1:D15),0))=0,"FOB",MAX(IFERROR((($C$1:C15=C16)*($A$1:A15=A16))*($D$1:D15),0))) -> 4 | X16: 5 | Z16: 3 | AA16: مخزن 4 | AB16: نوع 3 | AC16: فئة مخزنية 1 | AD16: بطئ | AE16: =المخازن_وأنواع_الأصناف[[#This Row],[مخزن]]&المخازن_وأنواع_الأصناف[[#This Row],[أسم الصنف]] -> مخزن 4نوع 3 | AG16: 15 مورد | AH16: 30
A17: مخزن 1 | B17: 2020-02-09 | C17: صرف | D17: 5 | E17: نوع 3 | F17: مركز تكلفة 4 | L17: 80 | M17: =IF(P17=0,ROUND(SUMIFS($K$1:K16,$A$1:A16,A17,$E$1:E16,E17)-SUMIFS($M$1:M16,$A$1:A16,A17,$E$1:E16,E17),2),ROUND(IFERROR(MAX(SUMIFS($K$1:K16,$A$1:A16,A17,$E$1:E16,E17,$S$1:S16,"<"&T17)-SUMIFS($M$1:M16,$A$1:A16,A17,$E$1:E16,E17,$S$1:S16,"<"&T17)-SUMIFS($M$1:M16,$A$1:A16,A17,$E$1:E16,E17),0)+(IFERROR(INDEX($R$1:R16,MATCH(1,($A$1:A16=A17)*($E$1:E16=E17)*($S$1:S16>(T17-1)),0)),"")*MIN(IF(L17="",0,L17),SUMIFS($L$1:L17,$A$1:A17,A17,$E$1:E17,E17)-SUMIFS($J$1:J17,$A$1:A17,A17,$E$1:E17,E17,$S$1:S17,"<"&T17))),0),2)) -> 7459.6 | N17: =IFERROR(VALUE(INDEX($Z:$Z,MATCH(A17&E17,$AE:$AE,0),)),"") -> 3 | O17: =IFERROR(INDEX($AC:$AC,MATCH(E17,$AB:$AB,0),),"") -> فئة مخزنية 3 | P17: =SUMIFS($J$1:J17,$E$1:E17,E17,$A$1:A17,A17)-SUMIFS($L$1:L17,$E$1:E17,E17,$A$1:A17,A17) -> 420 | Q17: =MAX(0,ROUND(SUMIFS($K$1:K17,$E$1:E17,E17,$A$1:A17,A17)-SUMIFS($M$1:M17,$E$1:E17,E17,$A$1:A17,A17),2)) -> 67108.79 | R17: =IF(J17>0,ROUND(K17/J17,2),IFERROR(LOOKUP(2,1/(($A$1:A16=A17)*($E$1:E16=E17)),$R$1:R16),K17)) -> 131.88 | S17: =SUMIFS($J$1:J17,$A$1:A17,A17,$E$1:E17,E17) -> 900 | T17: =SUMIFS($L$1:L17,$A$1:A17,A17,$E$1:E17,E17) -> 480 | U17: مخزن 13 | V17: =D17&C17&COUNTIFS($C$1:C17,C17,$D$1:D17,D17,$A$1:A17,A17)&A17 -> 5صرف2مخزن 1 | W17: =IF(MAX(IFERROR((($C$1:C16=C17)*($A$1:A16=A17))*($D$1:D16),0))=0,"FOB",MAX(IFERROR((($C$1:C16=C17)*($A$1:A16=A17))*($D$1:D16),0))) -> 5 | X17: 6 | Z17: 4 | AA17: مخزن 4 | AB17: نوع 4 | AC17: فئة مخزنية 1 | AD17: بطئ | AE17: =المخازن_وأنواع_الأصناف[[#This Row],[مخزن]]&المخازن_وأنواع_الأصناف[[#This Row],[أسم الصنف]] -> مخزن 4نوع 4 | AG17: 16 مورد | AH17: 25
A18: مخزن 1 | B18: 2020-02-10 | C18: صرف | D18: 6 | E18: نوع 3 | F18: مركز تكلفة 4 | L18: 80 | M18: =IF(P18=0,ROUND(SUMIFS($K$1:K17,$A$1:A17,A18,$E$1:E17,E18)-SUMIFS($M$1:M17,$A$1:A17,A18,$E$1:E17,E18),2),ROUND(IFERROR(MAX(SUMIFS($K$1:K17,$A$1:A17,A18,$E$1:E17,E18,$S$1:S17,"<"&T18)-SUMIFS($M$1:M17,$A$1:A17,A18,$E$1:E17,E18,$S$1:S17,"<"&T18)-SUMIFS($M$1:M17,$A$1:A17,A18,$E$1:E17,E18),0)+(IFERROR(INDEX($R$1:R17,MATCH(1,($A$1:A17=A18)*($E$1:E17=E18)*($S$1:S17>(T18-1)),0)),"")*MIN(IF(L18="",0,L18),SUMIFS($L$1:L18,$A$1:A18,A18,$E$1:E18,E18)-SUMIFS($J$1:J18,$A$1:A18,A18,$E$1:E18,E18,$S$1:S18,"<"&T18))),0),2)) -> 10113.6 | N18: =IFERROR(VALUE(INDEX($Z:$Z,MATCH(A18&E18,$AE:$AE,0),)),"") -> 3 | O18: =IFERROR(INDEX($AC:$AC,MATCH(E18,$AB:$AB,0),),"") -> فئة مخزنية 3 | P18: =SUMIFS($J$1:J18,$E$1:E18,E18,$A$1:A18,A18)-SUMIFS($L$1:L18,$E$1:E18,E18,$A$1:A18,A18) -> 340 | Q18: =MAX(0,ROUND(SUMIFS($K$1:K18,$E$1:E18,E18,$A$1:A18,A18)-SUMIFS($M$1:M18,$E$1:E18,E18,$A$1:A18,A18),2)) -> 56995.19 | R18: =IF(J18>0,ROUND(K18/J18,2),IFERROR(LOOKUP(2,1/(($A$1:A17=A18)*($E$1:E17=E18)),$R$1:R17),K18)) -> 131.88 | S18: =SUMIFS($J$1:J18,$A$1:A18,A18,$E$1:E18,E18) -> 900 | T18: =SUMIFS($L$1:L18,$A$1:A18,A18,$E$1:E18,E18) -> 560 | U18: مخزن 13 | V18: =D18&C18&COUNTIFS($C$1:C18,C18,$D$1:D18,D18,$A$1:A18,A18)&A18 -> 6صرف1مخزن 1 | W18: =IF(MAX(IFERROR((($C$1:C17=C18)*($A$1:A17=A18))*($D$1:D17),0))=0,"FOB",MAX(IFERROR((($C$1:C17=C18)*($A$1:A17=A18))*($D$1:D17),0))) -> 5 | X18: 6 | Z18: 1 | AA18: مخزن 5 | AB18: نوع 1 | AC18: فئة مخزنية 1 | AD18: سريع | AE18: =المخازن_وأنواع_الأصناف[[#This Row],[مخزن]]&المخازن_وأنواع_الأصناف[[#This Row],[أسم الصنف]] -> مخزن 5نوع 1 | AG18: 17 مورد | AH18: 30
A19: مخزن 1 | B19: 2020-02-11 | C19: اضافة | D19: 2 | E19: نوع 4 | G19: 5 مورد | H19: 41 | I19: 1407 | J19: 7 | K19: 1373.44 | M19: =IF(P19=0,ROUND(SUMIFS($K$1:K18,$A$1:A18,A19,$E$1:E18,E19)-SUMIFS($M$1:M18,$A$1:A18,A19,$E$1:E18,E19),2),ROUND(IFERROR(MAX(SUMIFS($K$1:K18,$A$1:A18,A19,$E$1:E18,E19,$S$1:S18,"<"&T19)-SUMIFS($M$1:M18,$A$1:A18,A19,$E$1:E18,E19,$S$1:S18,"<"&T19)-SUMIFS($M$1:M18,$A$1:A18,A19,$E$1:E18,E19),0)+(IFERROR(INDEX($R$1:R18,MATCH(1,($A$1:A18=A19)*($E$1:E18=E19)*($S$1:S18>(T19-1)),0)),"")*MIN(IF(L19="",0,L19),SUMIFS($L$1:L19,$A$1:A19,A19,$E$1:E19,E19)-SUMIFS($J$1:J19,$A$1:A19,A19,$E$1:E19,E19,$S$1:S19,"<"&T19))),0),2)) -> 0 | N19: =IFERROR(VALUE(INDEX($Z:$Z,MATCH(A19&E19,$AE:$AE,0),)),"") -> 4 | O19: =IFERROR(INDEX($AC:$AC,MATCH(E19,$AB:$AB,0),),"") -> فئة مخزنية 4 | P19: =SUMIFS($J$1:J19,$E$1:E19,E19,$A$1:A19,A19)-SUMIFS($L$1:L19,$E$1:E19,E19,$A$1:A19,A19) -> 7 | Q19: =MAX(0,ROUND(SUMIFS($K$1:K19,$E$1:E19,E19,$A$1:A19,A19)-SUMIFS($M$1:M19,$E$1:E19,E19,$A$1:A19,A19),2)) -> 1373.44 | R19: =IF(J19>0,ROUND(K19/J19,2),IFERROR(LOOKUP(2,1/(($A$1:A18=A19)*($E$1:E18=E19)),$R$1:R18),K19)) -> 196.21 | S19: =SUMIFS($J$1:J19,$A$1:A19,A19,$E$1:E19,E19) -> 7 | T19: =SUMIFS($L$1:L19,$A$1:A19,A19,$E$1:E19,E19) -> 0 | U19: مخزن 14 | V19: =D19&C19&COUNTIFS($C$1:C19,C19,$D$1:D19,D19,$A$1:A19,A19)&A19 -> 2اضافة1مخزن 1 | W19: =IF(MAX(IFERROR((($C$1:C18=C19)*($A$1:A18=A19))*($D$1:D18),0))=0,"FOB",MAX(IFERROR((($C$1:C18=C19)*($A$1:A18=A19))*($D$1:D18),0))) -> 1 | X19: 2 | Z19: 2 | AA19: مخزن 5 | AB19: نوع 2 | AC19: فئة مخزنية 1 | AD19: سريع | AE19: =المخازن_وأنواع_الأصناف[[#This Row],[مخزن]]&المخازن_وأنواع_الأصناف[[#This Row],[أسم الصنف]] -> مخزن 5نوع 2 | AG19: 18 مورد | AH19: 15
A20: مخزن 1 | B20: 2020-02-11 | C20: اضافة | D20: 2 | E20: نوع 3 | G20: 5 مورد | H20: 41 | I20: 1407 | J20: 150 | K20: 10790.1 | M20: =IF(P20=0,ROUND(SUMIFS($K$1:K19,$A$1:A19,A20,$E$1:E19,E20)-SUMIFS($M$1:M19,$A$1:A19,A20,$E$1:E19,E20),2),ROUND(IFERROR(MAX(SUMIFS($K$1:K19,$A$1:A19,A20,$E$1:E19,E20,$S$1:S19,"<"&T20)-SUMIFS($M$1:M19,$A$1:A19,A20,$E$1:E19,E20,$S$1:S19,"<"&T20)-SUMIFS($M$1:M19,$A$1:A19,A20,$E$1:E19,E20),0)+(IFERROR(INDEX($R$1:R19,MATCH(1,($A$1:A19=A20)*($E$1:E19=E20)*($S$1:S19>(T20-1)),0)),"")*MIN(IF(L20="",0,L20),SUMIFS($L$1:L20,$A$1:A20,A20,$E$1:E20,E20)-SUMIFS($J$1:J20,$A$1:A20,A20,$E$1:E20,E20,$S$1:S20,"<"&T20))),0),2)) -> 0 | N20: =IFERROR(VALUE(INDEX($Z:$Z,MATCH(A20&E20,$AE:$AE,0),)),"") -> 3 | O20: =IFERROR(INDEX($AC:$AC,MATCH(E20,$AB:$AB,0),),"") -> فئة مخزنية 3 | P20: =SUMIFS($J$1:J20,$E$1:E20,E20,$A$1:A20,A20)-SUMIFS($L$1:L20,$E$1:E20,E20,$A$1:A20,A20) -> 490 | Q20: =MAX(0,ROUND(SUMIFS($K$1:K20,$E$1:E20,E20,$A$1:A20,A20)-SUMIFS($M$1:M20,$E$1:E20,E20,$A$1:A20,A20),2)) -> 67785.29 | R20: =IF(J20>0,ROUND(K20/J20,2),IFERROR(LOOKUP(2,1/(($A$1:A19=A20)*($E$1:E19=E20)),$R$1:R19),K20)) -> 71.93 | S20: =SUMIFS($J$1:J20,$A$1:A20,A20,$E$1:E20,E20) -> 1050 | T20: =SUMIFS($L$1:L20,$A$1:A20,A20,$E$1:E20,E20) -> 560 | U20: مخزن 13 | V20: =D20&C20&COUNTIFS($C$1:C20,C20,$D$1:D20,D20,$A$1:A20,A20)&A20 -> 2اضافة2مخزن 1 | W20: =IF(MAX(IFERROR((($C$1:C19=C20)*($A$1:A19=A20))*($D$1:D19),0))=0,"FOB",MAX(IFERROR((($C$1:C19=C20)*($A$1:A19=A20))*($D$1:D19),0))) -> 2 | X20: 3 | Z20: 3 | AA20: مخزن 5 | AB20: نوع 3 | AC20: فئة مخزنية 1 | AD20: سريع | AE20: =المخازن_وأنواع_الأصناف[[#This Row],[مخزن]]&المخازن_وأنواع_الأصناف[[#This Row],[أسم الصنف]] -> مخزن 5نوع 3 | AG20: 19 مورد | AH20: 50
A21: مخزن 1 | B21: 2020-02-12 | C21: صرف | D21: 7 | E21: نوع 3 | F21: مركز تكلفة 7 | L21: 80 | M21: =IF(P21=0,ROUND(SUMIFS($K$1:K20,$A$1:A20,A21,$E$1:E20,E21)-SUMIFS($M$1:M20,$A$1:A20,A21,$E$1:E20,E21),2),ROUND(IFERROR(MAX(SUMIFS($K$1:K20,$A$1:A20,A21,$E$1:E20,E21,$S$1:S20,"<"&T21)-SUMIFS($M$1:M20,$A$1:A20,A21,$E$1:E20,E21,$S$1:S20,"<"&T21)-SUMIFS($M$1:M20,$A$1:A20,A21,$E$1:E20,E21),0)+(IFERROR(INDEX($R$1:R20,MATCH(1,($A$1:A20=A21)*($E$1:E20=E21)*($S$1:S20>(T21-1)),0)),"")*MIN(IF(L21="",0,L21),SUMIFS($L$1:L21,$A$1:A21,A21,$E$1:E21,E21)-SUMIFS($J$1:J21,$A$1:A21,A21,$E$1:E21,E21,$S$1:S21,"<"&T21))),0),2)) -> 13632.29 | N21: =IFERROR(VALUE(INDEX($Z:$Z,MATCH(A21&E21,$AE:$AE,0),)),"") -> 3 | O21: =IFERROR(INDEX($AC:$AC,MATCH(E21,$AB:$AB,0),),"") -> فئة مخزنية 3 | P21: =SUMIFS($J$1:J21,$E$1:E21,E21,$A$1:A21,A21)-SUMIFS($L$1:L21,$E$1:E21,E21,$A$1:A21,A21) -> 410 | Q21: =MAX(0,ROUND(SUMIFS($K$1:K21,$E$1:E21,E21,$A$1:A21,A21)-SUMIFS($M$1:M21,$E$1:E21,E21,$A$1:A21,A21),2)) -> 54153 | R21: =IF(J21>0,ROUND(K21/J21,2),IFERROR(LOOKUP(2,1/(($A$1:A20=A21)*($E$1:E20=E21)),$R$1:R20),K21)) -> 71.93 | S21: =SUMIFS($J$1:J21,$A$1:A21,A21,$E$1:E21,E21) -> 1050 | T21: =SUMIFS($L$1:L21,$A$1:A21,A21,$E$1:E21,E21) -> 640 | U21: مخزن 13 | V21: =D21&C21&COUNTIFS($C$1:C21,C21,$D$1:D21,D21,$A$1:A21,A21)&A21 -> 7صرف1مخزن 1 | W21: =IF(MAX(IFERROR((($C$1:C20=C21)*($A$1:A20=A21))*($D$1:D20),0))=0,"FOB",MAX(IFERROR((($C$1:C20=C21)*($A$1:A20=A21))*($D$1:D20),0))) -> 6 | X21: 7 | Z21: 4 | AA21: مخزن 5 | AB21: نوع 4 | AC21: فئة مخزنية 3 | AD21: سريع | AE21: =المخازن_وأنواع_الأصناف[[#This Row],[مخزن]]&المخازن_وأنواع_الأصناف[[#This Row],[أسم الصنف]] -> مخزن 5نوع 4 | AG21: 20 مورد | AH21: 15
A22: مخزن 1 | B22: 2020-02-12 | C22: صرف | D22: 8 | E22: نوع 3 | F22: مركز تكلفة 5 | L22: 80 | M22: =IF(P22=0,ROUND(SUMIFS($K$1:K21,$A$1:A21,A22,$E$1:E21,E22)-SUMIFS($M$1:M21,$A$1:A21,A22,$E$1:E21,E22),2),ROUND(IFERROR(MAX(SUMIFS($K$1:K21,$A$1:A21,A22,$E$1:E21,E22,$S$1:S21,"<"&T22)-SUMIFS($M$1:M21,$A$1:A21,A22,$E$1:E21,E22,$S$1:S21,"<"&T22)-SUMIFS($M$1:M21,$A$1:A21,A22,$E$1:E21,E22),0)+(IFERROR(INDEX($R$1:R21,MATCH(1,($A$1:A21=A22)*($E$1:E21=E22)*($S$1:S21>(T22-1)),0)),"")*MIN(IF(L22="",0,L22),SUMIFS($L$1:L22,$A$1:A22,A22,$E$1:E22,E22)-SUMIFS($J$1:J22,$A$1:A22,A22,$E$1:E22,E22,$S$1:S22,"<"&T22))),0),2)) -> 17150.4 | N22: =IFERROR(VALUE(INDEX($Z:$Z,MATCH(A22&E22,$AE:$AE,0),)),"") -> 3 | O22: =IFERROR(INDEX($AC:$AC,MATCH(E22,$AB:$AB,0),),"") -> فئة مخزنية 3 | P22: =SUMIFS($J$1:J22,$E$1:E22,E22,$A$1:A22,A22)-SUMIFS($L$1:L22,$E$1:E22,E22,$A$1:A22,A22) -> 330 | Q22: =MAX(0,ROUND(SUMIFS($K$1:K22,$E$1:E22,E22,$A$1:A22,A22)-SUMIFS($M$1:M22,$E$1:E22,E22,$A$1:A22,A22),2)) -> 37002.6 | R22: =IF(J22>0,ROUND(K22/J22,2),IFERROR(LOOKUP(2,1/(($A$1:A21=A22)*($E$1:E21=E22)),$R$1:R21),K22)) -> 71.93 | S22: =SUMIFS($J$1:J22,$A$1:A22,A22,$E$1:E22,E22) -> 1050 | T22: =SUMIFS($L$1:L22,$A$1:A22,A22,$E$1:E22,E22) -> 720 | U22: مخزن 13 | V22: =D22&C22&COUNTIFS($C$1:C22,C22,$D$1:D22,D22,$A$1:A22,A22)&A22 -> 8صرف1مخزن 1 | W22: =IF(MAX(IFERROR((($C$1:C21=C22)*($A$1:A21=A22))*($D$1:D21),0))=0,"FOB",MAX(IFERROR((($C$1:C21=C22)*($A$1:A21=A22))*($D$1:D21),0))) -> 7 | X22: 8 | AE22: =المخازن_وأنواع_الأصناف[[#This Row],[مخزن]]&المخازن_وأنواع_الأصناف[[#This Row],[أسم الصنف]] ->  | AG22: 21 مورد | AH22: 50
A23: مخزن 1 | B23: 2020-02-22 | C23: اضافة | D23: 3 | E23: نوع 3 | G23: 5 مورد | H23: 50 | I23: 1409 | J23: 150 | K23: 1141.92 | M23: =IF(P23=0,ROUND(SUMIFS($K$1:K22,$A$1:A22,A23,$E$1:E22,E23)-SUMIFS($M$1:M22,$A$1:A22,A23,$E$1:E22,E23),2),ROUND(IFERROR(MAX(SUMIFS($K$1:K22,$A$1:A22,A23,$E$1:E22,E23,$S$1:S22,"<"&T23)-SUMIFS($M$1:M22,$A$1:A22,A23,$E$1:E22,E23,$S$1:S22,"<"&T23)-SUMIFS($M$1:M22,$A$1:A22,A23,$E$1:E22,E23),0)+(IFERROR(INDEX($R$1:R22,MATCH(1,($A$1:A22=A23)*($E$1:E22=E23)*($S$1:S22>(T23-1)),0)),"")*MIN(IF(L23="",0,L23),SUMIFS($L$1:L23,$A$1:A23,A23,$E$1:E23,E23)-SUMIFS($J$1:J23,$A$1:A23,A23,$E$1:E23,E23,$S$1:S23,"<"&T23))),0),2)) -> 0 | N23: =IFERROR(VALUE(INDEX($Z:$Z,MATCH(A23&E23,$AE:$AE,0),)),"") -> 3 | O23: =IFERROR(INDEX($AC:$AC,MATCH(E23,$AB:$AB,0),),"") -> فئة مخزنية 3 | P23: =SUMIFS($J$1:J23,$E$1:E23,E23,$A$1:A23,A23)-SUMIFS($L$1:L23,$E$1:E23,E23,$A$1:A23,A23) -> 480 | Q23: =MAX(0,ROUND(SUMIFS($K$1:K23,$E$1:E23,E23,$A$1:A23,A23)-SUMIFS($M$1:M23,$E$1:E23,E23,$A$1:A23,A23),2)) -> 38144.52 | R23: =IF(J23>0,ROUND(K23/J23,2),IFERROR(LOOKUP(2,1/(($A$1:A22=A23)*($E$1:E22=E23)),$R$1:R22),K23)) -> 7.61 | S23: =SUMIFS($J$1:J23,$A$1:A23,A23,$E$1:E23,E23) -> 1200 | T23: =SUMIFS($L$1:L23,$A$1:A23,A23,$E$1:E23,E23) -> 720 | U23: مخزن 13 | V23: =D23&C23&COUNTIFS($C$1:C23,C23,$D$1:D23,D23,$A$1:A23,A23)&A23 -> 3اضافة1مخزن 1 | W23: =IF(MAX(IFERROR((($C$1:C22=C23)*($A$1:A22=A23))*($D$1:D22),0))=0,"FOB",MAX(IFERROR((($C$1:C22=C23)*($A$1:A22=A23))*($D$1:D22),0))) -> 2 | X23: 3 | AE23: =المخازن_وأنواع_الأصناف[[#This Row],[مخزن]]&المخازن_وأنواع_الأصناف[[#This Row],[أسم الصنف]] ->  | AG23: 22 مورد | AH23: 15
A24: مخزن 1 | B24: 2020-02-22 | C24: اضافة | D24: 4 | E24: نوع 3 | G24: 5 مورد | H24: 56 | I24: 1412 | J24: 150 | K24: 1522.55 | M24: =IF(P24=0,ROUND(SUMIFS($K$1:K23,$A$1:A23,A24,$E$1:E23,E24)-SUMIFS($M$1:M23,$A$1:A23,A24,$E$1:E23,E24),2),ROUND(IFERROR(MAX(SUMIFS($K$1:K23,$A$1:A23,A24,$E$1:E23,E24,$S$1:S23,"<"&T24)-SUMIFS($M$1:M23,$A$1:A23,A24,$E$1:E23,E24,$S$1:S23,"<"&T24)-SUMIFS($M$1:M23,$A$1:A23,A24,$E$1:E23,E24),0)+(IFERROR(INDEX($R$1:R23,MATCH(1,($A$1:A23=A24)*($E$1:E23=E24)*($S$1:S23>(T24-1)),0)),"")*MIN(IF(L24="",0,L24),SUMIFS($L$1:L24,$A$1:A24,A24,$E$1:E24,E24)-SUMIFS($J$1:J24,$A$1:A24,A24,$E$1:E24,E24,$S$1:S24,"<"&T24))),0),2)) -> 0 | N24: =IFERROR(VALUE(INDEX($Z:$Z,MATCH(A24&E24,$AE:$AE,0),)),"") -> 3 | O24: =IFERROR(INDEX($AC:$AC,MATCH(E24,$AB:$AB,0),),"") -> فئة مخزنية 3 | P24: =SUMIFS($J$1:J24,$E$1:E24,E24,$A$1:A24,A24)-SUMIFS($L$1:L24,$E$1:E24,E24,$A$1:A24,A24) -> 630 | Q24: =MAX(0,ROUND(SUMIFS($K$1:K24,$E$1:E24,E24,$A$1:A24,A24)-SUMIFS($M$1:M24,$E$1:E24,E24,$A$1:A24,A24),2)) -> 39667.07 | R24: =IF(J24>0,ROUND(K24/J24,2),IFERROR(LOOKUP(2,1/(($A$1:A23=A24)*($E$1:E23=E24)),$R$1:R23),K24)) -> 10.15 | S24: =SUMIFS($J$1:J24,$A$1:A24,A24,$E$1:E24,E24) -> 1350 | T24: =SUMIFS($L$1:L24,$A$1:A24,A24,$E$1:E24,E24) -> 720 | U24: مخزن 13 | V24: =D24&C24&COUNTIFS($C$1:C24,C24,$D$1:D24,D24,$A$1:A24,A24)&A24 -> 4اضافة1مخزن 1 | W24: =IF(MAX(IFERROR((($C$1:C23=C24)*($A$1:A23=A24))*($D$1:D23),0))=0,"FOB",MAX(IFERROR((($C$1:C23=C24)*($A$1:A23=A24))*($D$1:D23),0))) -> 3 | X24: 4 | AE24: =المخازن_وأنواع_الأصناف[[#This Row],[مخزن]]&المخازن_وأنواع_الأصناف[[#This Row],[أسم الصنف]] ->  | AG24: 23 مورد | AH24: 15
A25: مخزن 1 | B25: 2020-02-22 | C25: صرف | D25: 8 | E25: نوع 3 | F25: مركز تكلفة 4 | L25: 80 | M25: =IF(P25=0,ROUND(SUMIFS($K$1:K24,$A$1:A24,A25,$E$1:E24,E25)-SUMIFS($M$1:M24,$A$1:A24,A25,$E$1:E24,E25),2),ROUND(IFERROR(MAX(SUMIFS($K$1:K24,$A$1:A24,A25,$E$1:E24,E25,$S$1:S24,"<"&T25)-SUMIFS($M$1:M24,$A$1:A24,A25,$E$1:E24,E25,$S$1:S24,"<"&T25)-SUMIFS($M$1:M24,$A$1:A24,A25,$E$1:E24,E25),0)+(IFERROR(INDEX($R$1:R24,MATCH(1,($A$1:A24=A25)*($E$1:E24=E25)*($S$1:S24>(T25-1)),0)),"")*MIN(IF(L25="",0,L25),SUMIFS($L$1:L25,$A$1:A25,A25,$E$1:E25,E25)-SUMIFS($J$1:J25,$A$1:A25,A25,$E$1:E25,E25,$S$1:S25,"<"&T25))),0),2)) -> 13024.65 | N25: =IFERROR(VALUE(INDEX($Z:$Z,MATCH(A25&E25,$AE:$AE,0),)),"") -> 3 | O25: =IFERROR(INDEX($AC:$AC,MATCH(E25,$AB:$AB,0),),"") -> فئة مخزنية 3 | P25: =SUMIFS($J$1:J25,$E$1:E25,E25,$A$1:A25,A25)-SUMIFS($L$1:L25,$E$1:E25,E25,$A$1:A25,A25) -> 550 | Q25: =MAX(0,ROUND(SUMIFS($K$1:K25,$E$1:E25,E25,$A$1:A25,A25)-SUMIFS($M$1:M25,$E$1:E25,E25,$A$1:A25,A25),2)) -> 26642.42 | R25: =IF(J25>0,ROUND(K25/J25,2),IFERROR(LOOKUP(2,1/(($A$1:A24=A25)*($E$1:E24=E25)),$R$1:R24),K25)) -> 10.15 | S25: =SUMIFS($J$1:J25,$A$1:A25,A25,$E$1:E25,E25) -> 1350 | T25: =SUMIFS($L$1:L25,$A$1:A25,A25,$E$1:E25,E25) -> 800 | U25: مخزن 13 | V25: =D25&C25&COUNTIFS($C$1:C25,C25,$D$1:D25,D25,$A$1:A25,A25)&A25 -> 8صرف2مخزن 1 | W25: =IF(MAX(IFERROR((($C$1:C24=C25)*($A$1:A24=A25))*($D$1:D24),0))=0,"FOB",MAX(IFERROR((($C$1:C24=C25)*($A$1:A24=A25))*($D$1:D24),0))) -> 8 | X25: 9 | AE25: =المخازن_وأنواع_الأصناف[[#This Row],[مخزن]]&المخازن_وأنواع_الأصناف[[#This Row],[أسم الصنف]] ->  | AG25: 24 مورد | AH25: 50
A26: مخزن 1 | B26: 2020-02-24 | C26: صرف | D26: 9 | E26: نوع 3 | F26: مركز تكلفة 5 | L26: 80 | M26: =IF(P26=0,ROUND(SUMIFS($K$1:K25,$A$1:A25,A26,$E$1:E25,E26)-SUMIFS($M$1:M25,$A$1:A25,A26,$E$1:E25,E26),2),ROUND(IFERROR(MAX(SUMIFS($K$1:K25,$A$1:A25,A26,$E$1:E25,E26,$S$1:S25,"<"&T26)-SUMIFS($M$1:M25,$A$1:A25,A26,$E$1:E25,E26,$S$1:S25,"<"&T26)-SUMIFS($M$1:M25,$A$1:A25,A26,$E$1:E25,E26),0)+(IFERROR(INDEX($R$1:R25,MATCH(1,($A$1:A25=A26)*($E$1:E25=E26)*($S$1:S25>(T26-1)),0)),"")*MIN(IF(L26="",0,L26),SUMIFS($L$1:L26,$A$1:A26,A26,$E$1:E26,E26)-SUMIFS($J$1:J26,$A$1:A26,A26,$E$1:E26,E26,$S$1:S26,"<"&T26))),0),2)) -> 10550.4 | N26: =IFERROR(VALUE(INDEX($Z:$Z,MATCH(A26&E26,$AE:$AE,0),)),"") -> 3 | O26: =IFERROR(INDEX($AC:$AC,MATCH(E26,$AB:$AB,0),),"") -> فئة مخزنية 3 | P26: =SUMIFS($J$1:J26,$E$1:E26,E26,$A$1:A26,A26)-SUMIFS($L$1:L26,$E$1:E26,E26,$A$1:A26,A26) -> 470 | Q26: =MAX(0,ROUND(SUMIFS($K$1:K26,$E$1:E26,E26,$A$1:A26,A26)-SUMIFS($M$1:M26,$E$1:E26,E26,$A$1:A26,A26),2)) -> 16092.02 | R26: =IF(J26>0,ROUND(K26/J26,2),IFERROR(LOOKUP(2,1/(($A$1:A25=A26)*($E$1:E25=E26)),$R$1:R25),K26)) -> 10.15 | S26: =SUMIFS($J$1:J26,$A$1:A26,A26,$E$1:E26,E26) -> 1350 | T26: =SUMIFS($L$1:L26,$A$1:A26,A26,$E$1:E26,E26) -> 880 | U26: مخزن 13 | V26: =D26&C26&COUNTIFS($C$1:C26,C26,$D$1:D26,D26,$A$1:A26,A26)&A26 -> 9صرف1مخزن 1 | W26: =IF(MAX(IFERROR((($C$1:C25=C26)*($A$1:A25=A26))*($D$1:D25),0))=0,"FOB",MAX(IFERROR((($C$1:C25=C26)*($A$1:A25=A26))*($D$1:D25),0))) -> 8 | X26: 9 | AE26: =المخازن_وأنواع_الأصناف[[#This Row],[مخزن]]&المخازن_وأنواع_الأصناف[[#This Row],[أسم الصنف]] ->  | AG26: 25 مورد | AH26: 25
A27: مخزن 1 | B27: 2020-02-25 | C27: اضافة | D27: 5 | E27: نوع 2 | G27: 3 مورد | H27: 57 | I27: 293 | J27: 1 | K27: 638.4 | M27: =IF(P27=0,ROUND(SUMIFS($K$1:K26,$A$1:A26,A27,$E$1:E26,E27)-SUMIFS($M$1:M26,$A$1:A26,A27,$E$1:E26,E27),2),ROUND(IFERROR(MAX(SUMIFS($K$1:K26,$A$1:A26,A27,$E$1:E26,E27,$S$1:S26,"<"&T27)-SUMIFS($M$1:M26,$A$1:A26,A27,$E$1:E26,E27,$S$1:S26,"<"&T27)-SUMIFS($M$1:M26,$A$1:A26,A27,$E$1:E26,E27),0)+(IFERROR(INDEX($R$1:R26,MATCH(1,($A$1:A26=A27)*($E$1:E26=E27)*($S$1:S26>(T27-1)),0)),"")*MIN(IF(L27="",0,L27),SUMIFS($L$1:L27,$A$1:A27,A27,$E$1:E27,E27)-SUMIFS($J$1:J27,$A$1:A27,A27,$E$1:E27,E27,$S$1:S27,"<"&T27))),0),2)) -> 0 | N27: =IFERROR(VALUE(INDEX($Z:$Z,MATCH(A27&E27,$AE:$AE,0),)),"") -> 2 | O27: =IFERROR(INDEX($AC:$AC,MATCH(E27,$AB:$AB,0),),"") -> فئة مخزنية 2 | P27: =SUMIFS($J$1:J27,$E$1:E27,E27,$A$1:A27,A27)-SUMIFS($L$1:L27,$E$1:E27,E27,$A$1:A27,A27) -> 1 | Q27: =MAX(0,ROUND(SUMIFS($K$1:K27,$E$1:E27,E27,$A$1:A27,A27)-SUMIFS($M$1:M27,$E$1:E27,E27,$A$1:A27,A27),2)) -> 638.4 | R27: =IF(J27>0,ROUND(K27/J27,2),IFERROR(LOOKUP(2,1/(($A$1:A26=A27)*($E$1:E26=E27)),$R$1:R26),K27)) -> 638.4 | S27: =SUMIFS($J$1:J27,$A$1:A27,A27,$E$1:E27,E27) -> 2 | T27: =SUMIFS($L$1:L27,$A$1:A27,A27,$E$1:E27,E27) -> 1 | U27: مخزن 12 | V27: =D27&C27&COUNTIFS($C$1:C27,C27,$D$1:D27,D27,$A$1:A27,A27)&A27 -> 5اضافة1مخزن 1 | W27: =IF(MAX(IFERROR((($C$1:C26=C27)*($A$1:A26=A27))*($D$1:D26),0))=0,"FOB",MAX(IFERROR((($C$1:C26=C27)*($A$1:A26=A27))*($D$1:D26),0))) -> 4 | X27: 5 | AE27: =المخازن_وأنواع_الأصناف[[#This Row],[مخزن]]&المخازن_وأنواع_الأصناف[[#This Row],[أسم الصنف]] ->  | AG27: 26 مورد | AH27: 25
A28: مخزن 1 | B28: 2020-02-25 | C28: اضافة | D28: 5 | E28: نوع 3 | G28: 3 مورد | H28: 57 | I28: 293 | J28: 150 | K28: 2394 | M28: =IF(P28=0,ROUND(SUMIFS($K$1:K27,$A$1:A27,A28,$E$1:E27,E28)-SUMIFS($M$1:M27,$A$1:A27,A28,$E$1:E27,E28),2),ROUND(IFERROR(MAX(SUMIFS($K$1:K27,$A$1:A27,A28,$E$1:E27,E28,$S$1:S27,"<"&T28)-SUMIFS($M$1:M27,$A$1:A27,A28,$E$1:E27,E28,$S$1:S27,"<"&T28)-SUMIFS($M$1:M27,$A$1:A27,A28,$E$1:E27,E28),0)+(IFERROR(INDEX($R$1:R27,MATCH(1,($A$1:A27=A28)*($E$1:E27=E28)*($S$1:S27>(T28-1)),0)),"")*MIN(IF(L28="",0,L28),SUMIFS($L$1:L28,$A$1:A28,A28,$E$1:E28,E28)-SUMIFS($J$1:J28,$A$1:A28,A28,$E$1:E28,E28,$S$1:S28,"<"&T28))),0),2)) -> 0 | N28: =IFERROR(VALUE(INDEX($Z:$Z,MATCH(A28&E28,$AE:$AE,0),)),"") -> 3 | O28: =IFERROR(INDEX($AC:$AC,MATCH(E28,$AB:$AB,0),),"") -> فئة مخزنية 3 | P28: =SUMIFS($J$1:J28,$E$1:E28,E28,$A$1:A28,A28)-SUMIFS($L$1:L28,$E$1:E28,E28,$A$1:A28,A28) -> 620 | Q28: =MAX(0,ROUND(SUMIFS($K$1:K28,$E$1:E28,E28,$A$1:A28,A28)-SUMIFS($M$1:M28,$E$1:E28,E28,$A$1:A28,A28),2)) -> 18486.02 | R28: =IF(J28>0,ROUND(K28/J28,2),IFERROR(LOOKUP(2,1/(($A$1:A27=A28)*($E$1:E27=E28)),$R$1:R27),K28)) -> 15.96 | S28: =SUMIFS($J$1:J28,$A$1:A28,A28,$E$1:E28,E28) -> 1500 | T28: =SUMIFS($L$1:L28,$A$1:A28,A28,$E$1:E28,E28) -> 880 | U28: مخزن 13 | V28: =D28&C28&COUNTIFS($C$1:C28,C28,$D$1:D28,D28,$A$1:A28,A28)&A28 -> 5اضافة2مخزن 1 | W28: =IF(MAX(IFERROR((($C$1:C27=C28)*($A$1:A27=A28))*($D$1:D27),0))=0,"FOB",MAX(IFERROR((($C$1:C27=C28)*($A$1:A27=A28))*($D$1:D27),0))) -> 5 | X28: 6 | AE28: =المخازن_وأنواع_الأصناف[[#This Row],[مخزن]]&المخازن_وأنواع_الأصناف[[#This Row],[أسم الصنف]] ->  | AG28: 27 مورد | AH28: 25
A29: مخزن 2 | B29: 2020-02-25 | C29: اضافة | D29: 1 | E29: نوع 3 | G29: 5 مورد | H29: 33 | I29: 1408 | J29: 150 | K29: 387.6 | M29: =IF(P29=0,ROUND(SUMIFS($K$1:K28,$A$1:A28,A29,$E$1:E28,E29)-SUMIFS($M$1:M28,$A$1:A28,A29,$E$1:E28,E29),2),ROUND(IFERROR(MAX(SUMIFS($K$1:K28,$A$1:A28,A29,$E$1:E28,E29,$S$1:S28,"<"&T29)-SUMIFS($M$1:M28,$A$1:A28,A29,$E$1:E28,E29,$S$1:S28,"<"&T29)-SUMIFS($M$1:M28,$A$1:A28,A29,$E$1:E28,E29),0)+(IFERROR(INDEX($R$1:R28,MATCH(1,($A$1:A28=A29)*($E$1:E28=E29)*($S$1:S28>(T29-1)),0)),"")*MIN(IF(L29="",0,L29),SUMIFS($L$1:L29,$A$1:A29,A29,$E$1:E29,E29)-SUMIFS($J$1:J29,$A$1:A29,A29,$E$1:E29,E29,$S$1:S29,"<"&T29))),0),2)) -> 0 | N29: =IFERROR(VALUE(INDEX($Z:$Z,MATCH(A29&E29,$AE:$AE,0),)),"") -> 3 | O29: =IFERROR(INDEX($AC:$AC,MATCH(E29,$AB:$AB,0),),"") -> فئة مخزنية 3 | P29: =SUMIFS($J$1:J29,$E$1:E29,E29,$A$1:A29,A29)-SUMIFS($L$1:L29,$E$1:E29,E29,$A$1:A29,A29) -> 150 | Q29: =MAX(0,ROUND(SUMIFS($K$1:K29,$E$1:E29,E29,$A$1:A29,A29)-SUMIFS($M$1:M29,$E$1:E29,E29,$A$1:A29,A29),2)) -> 387.6 | R29: =IF(J29>0,ROUND(K29/J29,2),IFERROR(LOOKUP(2,1/(($A$1:A28=A29)*($E$1:E28=E29)),$R$1:R28),K29)) -> 2.58 | S29: =SUMIFS($J$1:J29,$A$1:A29,A29,$E$1:E29,E29) -> 150 | T29: =SUMIFS($L$1:L29,$A$1:A29,A29,$E$1:E29,E29) -> 0 | U29: مخزن 23 | V29: =D29&C29&COUNTIFS($C$1:C29,C29,$D$1:D29,D29,$A$1:A29,A29)&A29 -> 1اضافة1مخزن 2 | W29: =IF(MAX(IFERROR((($C$1:C28=C29)*($A$1:A28=A29))*($D$1:D28),0))=0,"FOB",MAX(IFERROR((($C$1:C28=C29)*($A$1:A28=A29))*($D$1:D28),0))) -> FOB | X29: 1 | AE29: =المخازن_وأنواع_الأصناف[[#This Row],[مخزن]]&المخازن_وأنواع_الأصناف[[#This Row],[أسم الصنف]] ->  | AG29: 28 مورد | AH29: 30
A30: مخزن 1 | B30: 2020-02-25 | C30: صرف | D30: 9 | E30: نوع 1 | F30: مركز تكلفة 7 | L30: 2 | M30: =IF(P30=0,ROUND(SUMIFS($K$1:K29,$A$1:A29,A30,$E$1:E29,E30)-SUMIFS($M$1:M29,$A$1:A29,A30,$E$1:E29,E30),2),ROUND(IFERROR(MAX(SUMIFS($K$1:K29,$A$1:A29,A30,$E$1:E29,E30,$S$1:S29,"<"&T30)-SUMIFS($M$1:M29,$A$1:A29,A30,$E$1:E29,E30,$S$1:S29,"<"&T30)-SUMIFS($M$1:M29,$A$1:A29,A30,$E$1:E29,E30),0)+(IFERROR(INDEX($R$1:R29,MATCH(1,($A$1:A29=A30)*($E$1:E29=E30)*($S$1:S29>(T30-1)),0)),"")*MIN(IF(L30="",0,L30),SUMIFS($L$1:L30,$A$1:A30,A30,$E$1:E30,E30)-SUMIFS($J$1:J30,$A$1:A30,A30,$E$1:E30,E30,$S$1:S30,"<"&T30))),0),2)) -> 7040.66 | N30: =IFERROR(VALUE(INDEX($Z:$Z,MATCH(A30&E30,$AE:$AE,0),)),"") -> 1 | O30: =IFERROR(INDEX($AC:$AC,MATCH(E30,$AB:$AB,0),),"") -> فئة مخزنية 1 | P30: =SUMIFS($J$1:J30,$E$1:E30,E30,$A$1:A30,A30)-SUMIFS($L$1:L30,$E$1:E30,E30,$A$1:A30,A30) -> 1014 | Q30: =MAX(0,ROUND(SUMIFS($K$1:K30,$E$1:E30,E30,$A$1:A30,A30)-SUMIFS($M$1:M30,$E$1:E30,E30,$A$1:A30,A30),2)) -> 65147.82 | R30: =IF(J30>0,ROUND(K30/J30,2),IFERROR(LOOKUP(2,1/(($A$1:A29=A30)*($E$1:E29=E30)),$R$1:R29),K30)) -> 15.86 | S30: =SUMIFS($J$1:J30,$A$1:A30,A30,$E$1:E30,E30) -> 1016 | T30: =SUMIFS($L$1:L30,$A$1:A30,A30,$E$1:E30,E30) -> 2 | U30: مخزن 11 | V30: =D30&C30&COUNTIFS($C$1:C30,C30,$D$1:D30,D30,$A$1:A30,A30)&A30 -> 9صرف2مخزن 1 | W30: =IF(MAX(IFERROR((($C$1:C29=C30)*($A$1:A29=A30))*($D$1:D29),0))=0,"FOB",MAX(IFERROR((($C$1:C29=C30)*($A$1:A29=A30))*($D$1:D29),0))) -> 9 | X30: 10 | AE30: =المخازن_وأنواع_الأصناف[[#This Row],[مخزن]]&المخازن_وأنواع_الأصناف[[#This Row],[أسم الصنف]] ->  | AG30: 29 مورد | AH30: 15
A31: مخزن 1 | B31: 2020-02-26 | C31: صرف | D31: 10 | E31: نوع 2 | F31: مركز تكلفة 4 | L31: 1 | M31: =IF(P31=0,ROUND(SUMIFS($K$1:K30,$A$1:A30,A31,$E$1:E30,E31)-SUMIFS($M$1:M30,$A$1:A30,A31,$E$1:E30,E31),2),ROUND(IFERROR(MAX(SUMIFS($K$1:K30,$A$1:A30,A31,$E$1:E30,E31,$S$1:S30,"<"&T31)-SUMIFS($M$1:M30,$A$1:A30,A31,$E$1:E30,E31,$S$1:S30,"<"&T31)-SUMIFS($M$1:M30,$A$1:A30,A31,$E$1:E30,E31),0)+(IFERROR(INDEX($R$1:R30,MATCH(1,($A$1:A30=A31)*($E$1:E30=E31)*($S$1:S30>(T31-1)),0)),"")*MIN(IF(L31="",0,L31),SUMIFS($L$1:L31,$A$1:A31,A31,$E$1:E31,E31)-SUMIFS($J$1:J31,$A$1:A31,A31,$E$1:E31,E31,$S$1:S31,"<"&T31))),0),2)) -> 638.4 | N31: =IFERROR(VALUE(INDEX($Z:$Z,MATCH(A31&E31,$AE:$AE,0),)),"") -> 2 | O31: =IFERROR(INDEX($AC:$AC,MATCH(E31,$AB:$AB,0),),"") -> فئة مخزنية 2 | P31: =SUMIFS($J$1:J31,$E$1:E31,E31,$A$1:A31,A31)-SUMIFS($L$1:L31,$E$1:E31,E31,$A$1:A31,A31) -> 0 | Q31: =MAX(0,ROUND(SUMIFS($K$1:K31,$E$1:E31,E31,$A$1:A31,A31)-SUMIFS($M$1:M31,$E$1:E31,E31,$A$1:A31,A31),2)) -> 0 | R31: =IF(J31>0,ROUND(K31/J31,2),IFERROR(LOOKUP(2,1/(($A$1:A30=A31)*($E$1:E30=E31)),$R$1:R30),K31)) -> 638.4 | S31: =SUMIFS($J$1:J31,$A$1:A31,A31,$E$1:E31,E31) -> 2 | T31: =SUMIFS($L$1:L31,$A$1:A31,A31,$E$1:E31,E31) -> 2 | U31: مخزن 12 | V31: =D31&C31&COUNTIFS($C$1:C31,C31,$D$1:D31,D31,$A$1:A31,A31)&A31 -> 10صرف1مخزن 1 | W31: =IF(MAX(IFERROR((($C$1:C30=C31)*($A$1:A30=A31))*($D$1:D30),0))=0,"FOB",MAX(IFERROR((($C$1:C30=C31)*($A$1:A30=A31))*($D$1:D30),0))) -> 9 | X31: 10 | AE31: =المخازن_وأنواع_الأصناف[[#This Row],[مخزن]]&المخازن_وأنواع_الأصناف[[#This Row],[أسم الصنف]] ->  | AG31: 30 مورد | AH31: 15
A32: مخزن 1 | B32: 2020-02-26 | C32: صرف | D32: 10 | E32: نوع 3 | F32: مركز تكلفة 4 | L32: 80 | M32: =IF(P32=0,ROUND(SUMIFS($K$1:K31,$A$1:A31,A32,$E$1:E31,E32)-SUMIFS($M$1:M31,$A$1:A31,A32,$E$1:E31,E32),2),ROUND(IFERROR(MAX(SUMIFS($K$1:K31,$A$1:A31,A32,$E$1:E31,E32,$S$1:S31,"<"&T32)-SUMIFS($M$1:M31,$A$1:A31,A32,$E$1:E31,E32,$S$1:S31,"<"&T32)-SUMIFS($M$1:M31,$A$1:A31,A32,$E$1:E31,E32),0)+(IFERROR(INDEX($R$1:R31,MATCH(1,($A$1:A31=A32)*($E$1:E31=E32)*($S$1:S31>(T32-1)),0)),"")*MIN(IF(L32="",0,L32),SUMIFS($L$1:L32,$A$1:A32,A32,$E$1:E32,E32)-SUMIFS($J$1:J32,$A$1:A32,A32,$E$1:E32,E32,$S$1:S32,"<"&T32))),0),2)) -> 4315.8 | N32: =IFERROR(VALUE(INDEX($Z:$Z,MATCH(A32&E32,$AE:$AE,0),)),"") -> 3 | O32: =IFERROR(INDEX($AC:$AC,MATCH(E32,$AB:$AB,0),),"") -> فئة مخزنية 3 | P32: =SUMIFS($J$1:J32,$E$1:E32,E32,$A$1:A32,A32)-SUMIFS($L$1:L32,$E$1:E32,E32,$A$1:A32,A32) -> 540 | Q32: =MAX(0,ROUND(SUMIFS($K$1:K32,$E$1:E32,E32,$A$1:A32,A32)-SUMIFS($M$1:M32,$E$1:E32,E32,$A$1:A32,A32),2)) -> 14170.22 | R32: =IF(J32>0,ROUND(K32/J32,2),IFERROR(LOOKUP(2,1/(($A$1:A31=A32)*($E$1:E31=E32)),$R$1:R31),K32)) -> 15.96 | S32: =SUMIFS($J$1:J32,$A$1:A32,A32,$E$1:E32,E32) -> 1500 | T32: =SUMIFS($L$1:L32,$A$1:A32,A32,$E$1:E32,E32) -> 960 | U32: مخزن 13 | V32: =D32&C32&COUNTIFS($C$1:C32,C32,$D$1:D32,D32,$A$1:A32,A32)&A32 -> 10صرف2مخزن 1 | W32: =IF(MAX(IFERROR((($C$1:C31=C32)*($A$1:A31=A32))*($D$1:D31),0))=0,"FOB",MAX(IFERROR((($C$1:C31=C32)*($A$1:A31=A32))*($D$1:D31),0))) -> 10 | X32: 11 | AE32: =المخازن_وأنواع_الأصناف[[#This Row],[مخزن]]&المخازن_وأنواع_الأصناف[[#This Row],[أسم الصنف]] ->  | AG32: 31 مورد | AH32: 15
A33: مخزن 2 | B33: 2020-02-29 | C33: صرف | D33: 1 | E33: نوع 3 | F33: مركز تكلفة 7 | L33: 80 | M33: =IF(P33=0,ROUND(SUMIFS($K$1:K32,$A$1:A32,A33,$E$1:E32,E33)-SUMIFS($M$1:M32,$A$1:A32,A33,$E$1:E32,E33),2),ROUND(IFERROR(MAX(SUMIFS($K$1:K32,$A$1:A32,A33,$E$1:E32,E33,$S$1:S32,"<"&T33)-SUMIFS($M$1:M32,$A$1:A32,A33,$E$1:E32,E33,$S$1:S32,"<"&T33)-SUMIFS($M$1:M32,$A$1:A32,A33,$E$1:E32,E33),0)+(IFERROR(INDEX($R$1:R32,MATCH(1,($A$1:A32=A33)*($E$1:E32=E33)*($S$1:S32>(T33-1)),0)),"")*MIN(IF(L33="",0,L33),SUMIFS($L$1:L33,$A$1:A33,A33,$E$1:E33,E33)-SUMIFS($J$1:J33,$A$1:A33,A33,$E$1:E33,E33,$S$1:S33,"<"&T33))),0),2)) -> 206.4 | N33: =IFERROR(VALUE(INDEX($Z:$Z,MATCH(A33&E33,$AE:$AE,0),)),"") -> 3 | O33: =IFERROR(INDEX($AC:$AC,MATCH(E33,$AB:$AB,0),),"") -> فئة مخزنية 3 | P33: =SUMIFS($J$1:J33,$E$1:E33,E33,$A$1:A33,A33)-SUMIFS($L$1:L33,$E$1:E33,E33,$A$1:A33,A33) -> 70 | Q33: =MAX(0,ROUND(SUMIFS($K$1:K33,$E$1:E33,E33,$A$1:A33,A33)-SUMIFS($M$1:M33,$E$1:E33,E33,$A$1:A33,A33),2)) -> 181.2 | R33: =IF(J33>0,ROUND(K33/J33,2),IFERROR(LOOKUP(2,1/(($A$1:A32=A33)*($E$1:E32=E33)),$R$1:R32),K33)) -> 2.58 | S33: =SUMIFS($J$1:J33,$A$1:A33,A33,$E$1:E33,E33) -> 150 | T33: =SUMIFS($L$1:L33,$A$1:A33,A33,$E$1:E33,E33) -> 80 | U33: مخزن 23 | V33: =D33&C33&COUNTIFS($C$1:C33,C33,$D$1:D33,D33,$A$1:A33,A33)&A33 -> 1صرف1مخزن 2 | W33: =IF(MAX(IFERROR((($C$1:C32=C33)*($A$1:A32=A33))*($D$1:D32),0))=0,"FOB",MAX(IFERROR((($C$1:C32=C33)*($A$1:A32=A33))*($D$1:D32),0))) -> FOB | X33: 1 | AE33: =المخازن_وأنواع_الأصناف[[#This Row],[مخزن]]&المخازن_وأنواع_الأصناف[[#This Row],[أسم الصنف]] ->  | AG33: بدون مورد
A34: مخزن 2 | B34: 2020-03-01 | C34: اضافة | D34: 2 | M34: =IF(P34=0,ROUND(SUMIFS($K$1:K33,$A$1:A33,A34,$E$1:E33,E34)-SUMIFS($M$1:M33,$A$1:A33,A34,$E$1:E33,E34),2),ROUND(IFERROR(MAX(SUMIFS($K$1:K33,$A$1:A33,A34,$E$1:E33,E34,$S$1:S33,"<"&T34)-SUMIFS($M$1:M33,$A$1:A33,A34,$E$1:E33,E34,$S$1:S33,"<"&T34)-SUMIFS($M$1:M33,$A$1:A33,A34,$E$1:E33,E34),0)+(IFERROR(INDEX($R$1:R33,MATCH(1,($A$1:A33=A34)*($E$1:E33=E34)*($S$1:S33>(T34-1)),0)),"")*MIN(IF(L34="",0,L34),SUMIFS($L$1:L34,$A$1:A34,A34,$E$1:E34,E34)-SUMIFS($J$1:J34,$A$1:A34,A34,$E$1:E34,E34,$S$1:S34,"<"&T34))),0),2)) -> 0 | N34: =IFERROR(VALUE(INDEX($Z:$Z,MATCH(A34&E34,$AE:$AE,0),)),"") ->  | O34: =IFERROR(INDEX($AC:$AC,MATCH(E34,$AB:$AB,0),),"") ->  | P34: =SUMIFS($J$1:J34,$E$1:E34,E34,$A$1:A34,A34)-SUMIFS($L$1:L34,$E$1:E34,E34,$A$1:A34,A34) -> 0 | Q34: =MAX(0,ROUND(SUMIFS($K$1:K34,$E$1:E34,E34,$A$1:A34,A34)-SUMIFS($M$1:M34,$E$1:E34,E34,$A$1:A34,A34),2)) -> 0 | R34: =IF(J34>0,ROUND(K34/J34,2),IFERROR(LOOKUP(2,1/(($A$1:A33=A34)*($E$1:E33=E34)),$R$1:R33),K34)) -> 0 | S34: =SUMIFS($J$1:J34,$A$1:A34,A34,$E$1:E34,E34) -> 0 | T34: =SUMIFS($L$1:L34,$A$1:A34,A34,$E$1:E34,E34) -> 0 | U34: مخزن 2 | V34: =D34&C34&COUNTIFS($C$1:C34,C34,$D$1:D34,D34,$A$1:A34,A34)&A34 -> 2اضافة1مخزن 2 | W34: =IF(MAX(IFERROR((($C$1:C33=C34)*($A$1:A33=A34))*($D$1:D33),0))=0,"FOB",MAX(IFERROR((($C$1:C33=C34)*($A$1:A33=A34))*($D$1:D33),0))) -> 1 | X34: 2 | AE34: =المخازن_وأنواع_الأصناف[[#This Row],[مخزن]]&المخازن_وأنواع_الأصناف[[#This Row],[أسم الصنف]] -> 
A35: مخزن 2 | B35: 2020-03-01 | C35: صرف | D35: 2 | M35: =IF(P35=0,ROUND(SUMIFS($K$1:K34,$A$1:A34,A35,$E$1:E34,E35)-SUMIFS($M$1:M34,$A$1:A34,A35,$E$1:E34,E35),2),ROUND(IFERROR(MAX(SUMIFS($K$1:K34,$A$1:A34,A35,$E$1:E34,E35,$S$1:S34,"<"&T35)-SUMIFS($M$1:M34,$A$1:A34,A35,$E$1:E34,E35,$S$1:S34,"<"&T35)-SUMIFS($M$1:M34,$A$1:A34,A35,$E$1:E34,E35),0)+(IFERROR(INDEX($R$1:R34,MATCH(1,($A$1:A34=A35)*($E$1:E34=E35)*($S$1:S34>(T35-1)),0)),"")*MIN(IF(L35="",0,L35),SUMIFS($L$1:L35,$A$1:A35,A35,$E$1:E35,E35)-SUMIFS($J$1:J35,$A$1:A35,A35,$E$1:E35,E35,$S$1:S35,"<"&T35))),0),2)) -> 0 | N35: =IFERROR(VALUE(INDEX($Z:$Z,MATCH(A35&E35,$AE:$AE,0),)),"") ->  | O35: =IFERROR(INDEX($AC:$AC,MATCH(E35,$AB:$AB,0),),"") ->  | P35: =SUMIFS($J$1:J35,$E$1:E35,E35,$A$1:A35,A35)-SUMIFS($L$1:L35,$E$1:E35,E35,$A$1:A35,A35) -> 0 | Q35: =MAX(0,ROUND(SUMIFS($K$1:K35,$E$1:E35,E35,$A$1:A35,A35)-SUMIFS($M$1:M35,$E$1:E35,E35,$A$1:A35,A35),2)) -> 0 | R35: =IF(J35>0,ROUND(K35/J35,2),IFERROR(LOOKUP(2,1/(($A$1:A34=A35)*($E$1:E34=E35)),$R$1:R34),K35)) -> 0 | S35: =SUMIFS($J$1:J35,$A$1:A35,A35,$E$1:E35,E35) -> 0 | T35: =SUMIFS($L$1:L35,$A$1:A35,A35,$E$1:E35,E35) -> 0 | U35: مخزن 2 | V35: =D35&C35&COUNTIFS($C$1:C35,C35,$D$1:D35,D35,$A$1:A35,A35)&A35 -> 2صرف1مخزن 2 | W35: =IF(MAX(IFERROR((($C$1:C34=C35)*($A$1:A34=A35))*($D$1:D34),0))=0,"FOB",MAX(IFERROR((($C$1:C34=C35)*($A$1:A34=A35))*($D$1:D34),0))) -> 1 | X35: 2 | AE35: =المخازن_وأنواع_الأصناف[[#This Row],[مخزن]]&المخازن_وأنواع_الأصناف[[#This Row],[أسم الصنف]] -> 
M36: =IF(P36=0,ROUND(SUMIFS($K$1:K35,$A$1:A35,A36,$E$1:E35,E36)-SUMIFS($M$1:M35,$A$1:A35,A36,$E$1:E35,E36),2),ROUND(IFERROR(MAX(SUMIFS($K$1:K35,$A$1:A35,A36,$E$1:E35,E36,$S$1:S35,"<"&T36)-SUMIFS($M$1:M35,$A$1:A35,A36,$E$1:E35,E36,$S$1:S35,"<"&T36)-SUMIFS($M$1:M35,$A$1:A35,A36,$E$1:E35,E36),0)+(IFERROR(INDEX($R$1:R35,MATCH(1,($A$1:A35=A36)*($E$1:E35=E36)*($S$1:S35>(T36-1)),0)),"")*MIN(IF(L36="",0,L36),SUMIFS($L$1:L36,$A$1:A36,A36,$E$1:E36,E36)-SUMIFS($J$1:J36,$A$1:A36,A36,$E$1:E36,E36,$S$1:S36,"<"&T36))),0),2)) -> 0 | N36: =IFERROR(VALUE(INDEX($Z:$Z,MATCH(A36&E36,$AE:$AE,0),)),"") -> 0 | O36: =IFERROR(INDEX($AC:$AC,MATCH(E36,$AB:$AB,0),),"") ->  | P36: =SUMIFS($J$1:J36,$E$1:E36,E36,$A$1:A36,A36)-SUMIFS($L$1:L36,$E$1:E36,E36,$A$1:A36,A36) -> 0 | Q36: =MAX(0,ROUND(SUMIFS($K$1:K36,$E$1:E36,E36,$A$1:A36,A36)-SUMIFS($M$1:M36,$E$1:E36,E36,$A$1:A36,A36),2)) -> 0 | R36: =IF(J36>0,ROUND(K36/J36,2),IFERROR(LOOKUP(2,1/(($A$1:A35=A36)*($E$1:E35=E36)),$R$1:R35),K36)) -> 0 | S36: =SUMIFS($J$1:J36,$A$1:A36,A36,$E$1:E36,E36) -> 0 | T36: =SUMIFS($L$1:L36,$A$1:A36,A36,$E$1:E36,E36) -> 0 | U36: 0 | V36: =D36&C36&COUNTIFS($C$1:C36,C36,$D$1:D36,D36,$A$1:A36,A36)&A36 -> 0 | W36: =IF(MAX(IFERROR((($C$1:C35=C36)*($A$1:A35=A36))*($D$1:D35),0))=0,"FOB",MAX(IFERROR((($C$1:C35=C36)*($A$1:A35=A36))*($D$1:D35),0))) -> FOB | X36: 1 | AE36: =المخازن_وأنواع_الأصناف[[#This Row],[مخزن]]&المخازن_وأنواع_الأصناف[[#This Row],[أسم الصنف]] -> 
M37: =IF(P37=0,ROUND(SUMIFS($K$1:K36,$A$1:A36,A37,$E$1:E36,E37)-SUMIFS($M$1:M36,$A$1:A36,A37,$E$1:E36,E37),2),ROUND(IFERROR(MAX(SUMIFS($K$1:K36,$A$1:A36,A37,$E$1:E36,E37,$S$1:S36,"<"&T37)-SUMIFS($M$1:M36,$A$1:A36,A37,$E$1:E36,E37,$S$1:S36,"<"&T37)-SUMIFS($M$1:M36,$A$1:A36,A37,$E$1:E36,E37),0)+(IFERROR(INDEX($R$1:R36,MATCH(1,($A$1:A36=A37)*($E$1:E36=E37)*($S$1:S36>(T37-1)),0)),"")*MIN(IF(L37="",0,L37),SUMIFS($L$1:L37,$A$1:A37,A37,$E$1:E37,E37)-SUMIFS($J$1:J37,$A$1:A37,A37,$E$1:E37,E37,$S$1:S37,"<"&T37))),0),2)) -> 0 | N37: =IFERROR(VALUE(INDEX($Z:$Z,MATCH(A37&E37,$AE:$AE,0),)),"") -> 0 | O37: =IFERROR(INDEX($AC:$AC,MATCH(E37,$AB:$AB,0),),"") ->  | P37: =SUMIFS($J$1:J37,$E$1:E37,E37,$A$1:A37,A37)-SUMIFS($L$1:L37,$E$1:E37,E37,$A$1:A37,A37) -> 0 | Q37: =MAX(0,ROUND(SUMIFS($K$1:K37,$E$1:E37,E37,$A$1:A37,A37)-SUMIFS($M$1:M37,$E$1:E37,E37,$A$1:A37,A37),2)) -> 0 | R37: =IF(J37>0,ROUND(K37/J37,2),IFERROR(LOOKUP(2,1/(($A$1:A36=A37)*($E$1:E36=E37)),$R$1:R36),K37)) -> 0 | S37: =SUMIFS($J$1:J37,$A$1:A37,A37,$E$1:E37,E37) -> 0 | T37: =SUMIFS($L$1:L37,$A$1:A37,A37,$E$1:E37,E37) -> 0 | U37: 0 | V37: =D37&C37&COUNTIFS($C$1:C37,C37,$D$1:D37,D37,$A$1:A37,A37)&A37 -> 0 | W37: =IF(MAX(IFERROR((($C$1:C36=C37)*($A$1:A36=A37))*($D$1:D36),0))=0,"FOB",MAX(IFERROR((($C$1:C36=C37)*($A$1:A36=A37))*($D$1:D36),0))) -> FOB | X37: 1 | AE37: =المخازن_وأنواع_الأصناف[[#This Row],[مخزن]]&المخازن_وأنواع_الأصناف[[#This Row],[أسم الصنف]] -> 
M38: =IF(P38=0,ROUND(SUMIFS($K$1:K37,$A$1:A37,A38,$E$1:E37,E38)-SUMIFS($M$1:M37,$A$1:A37,A38,$E$1:E37,E38),2),ROUND(IFERROR(MAX(SUMIFS($K$1:K37,$A$1:A37,A38,$E$1:E37,E38,$S$1:S37,"<"&T38)-SUMIFS($M$1:M37,$A$1:A37,A38,$E$1:E37,E38,$S$1:S37,"<"&T38)-SUMIFS($M$1:M37,$A$1:A37,A38,$E$1:E37,E38),0)+(IFERROR(INDEX($R$1:R37,MATCH(1,($A$1:A37=A38)*($E$1:E37=E38)*($S$1:S37>(T38-1)),0)),"")*MIN(IF(L38="",0,L38),SUMIFS($L$1:L38,$A$1:A38,A38,$E$1:E38,E38)-SUMIFS($J$1:J38,$A$1:A38,A38,$E$1:E38,E38,$S$1:S38,"<"&T38))),0),2)) -> 0 | N38: =IFERROR(VALUE(INDEX($Z:$Z,MATCH(A38&E38,$AE:$AE,0),)),"") -> 0 | O38: =IFERROR(INDEX($AC:$AC,MATCH(E38,$AB:$AB,0),),"") ->  | P38: =SUMIFS($J$1:J38,$E$1:E38,E38,$A$1:A38,A38)-SUMIFS($L$1:L38,$E$1:E38,E38,$A$1:A38,A38) -> 0 | Q38: =MAX(0,ROUND(SUMIFS($K$1:K38,$E$1:E38,E38,$A$1:A38,A38)-SUMIFS($M$1:M38,$E$1:E38,E38,$A$1:A38,A38),2)) -> 0 | R38: =IF(J38>0,ROUND(K38/J38,2),IFERROR(LOOKUP(2,1/(($A$1:A37=A38)*($E$1:E37=E38)),$R$1:R37),K38)) -> 0 | S38: =SUMIFS($J$1:J38,$A$1:A38,A38,$E$1:E38,E38) -> 0 | T38: =SUMIFS($L$1:L38,$A$1:A38,A38,$E$1:E38,E38) -> 0 | U38: 0 | V38: =D38&C38&COUNTIFS($C$1:C38,C38,$D$1:D38,D38,$A$1:A38,A38)&A38 -> 0 | W38: =IF(MAX(IFERROR((($C$1:C37=C38)*($A$1:A37=A38))*($D$1:D37),0))=0,"FOB",MAX(IFERROR((($C$1:C37=C38)*($A$1:A37=A38))*($D$1:D37),0))) -> FOB | X38: 1 | AE38: =المخازن_وأنواع_الأصناف[[#This Row],[مخزن]]&المخازن_وأنواع_الأصناف[[#This Row],[أسم الصنف]] -> 
M39: =IF(P39=0,ROUND(SUMIFS($K$1:K38,$A$1:A38,A39,$E$1:E38,E39)-SUMIFS($M$1:M38,$A$1:A38,A39,$E$1:E38,E39),2),ROUND(IFERROR(MAX(SUMIFS($K$1:K38,$A$1:A38,A39,$E$1:E38,E39,$S$1:S38,"<"&T39)-SUMIFS($M$1:M38,$A$1:A38,A39,$E$1:E38,E39,$S$1:S38,"<"&T39)-SUMIFS($M$1:M38,$A$1:A38,A39,$E$1:E38,E39),0)+(IFERROR(INDEX($R$1:R38,MATCH(1,($A$1:A38=A39)*($E$1:E38=E39)*($S$1:S38>(T39-1)),0)),"")*MIN(IF(L39="",0,L39),SUMIFS($L$1:L39,$A$1:A39,A39,$E$1:E39,E39)-SUMIFS($J$1:J39,$A$1:A39,A39,$E$1:E39,E39,$S$1:S39,"<"&T39))),0),2)) -> 0 | N39: =IFERROR(VALUE(INDEX($Z:$Z,MATCH(A39&E39,$AE:$AE,0),)),"") -> 0 | O39: =IFERROR(INDEX($AC:$AC,MATCH(E39,$AB:$AB,0),),"") ->  | P39: =SUMIFS($J$1:J39,$E$1:E39,E39,$A$1:A39,A39)-SUMIFS($L$1:L39,$E$1:E39,E39,$A$1:A39,A39) -> 0 | Q39: =MAX(0,ROUND(SUMIFS($K$1:K39,$E$1:E39,E39,$A$1:A39,A39)-SUMIFS($M$1:M39,$E$1:E39,E39,$A$1:A39,A39),2)) -> 0 | R39: =IF(J39>0,ROUND(K39/J39,2),IFERROR(LOOKUP(2,1/(($A$1:A38=A39)*($E$1:E38=E39)),$R$1:R38),K39)) -> 0 | S39: =SUMIFS($J$1:J39,$A$1:A39,A39,$E$1:E39,E39) -> 0 | T39: =SUMIFS($L$1:L39,$A$1:A39,A39,$E$1:E39,E39) -> 0 | U39: 0 | V39: =D39&C39&COUNTIFS($C$1:C39,C39,$D$1:D39,D39,$A$1:A39,A39)&A39 -> 0 | W39: =IF(MAX(IFERROR((($C$1:C38=C39)*($A$1:A38=A39))*($D$1:D38),0))=0,"FOB",MAX(IFERROR((($C$1:C38=C39)*($A$1:A38=A39))*($D$1:D38),0))) -> FOB | X39: 1 | AE39: =المخازن_وأنواع_الأصناف[[#This Row],[مخزن]]&المخازن_وأنواع_الأصناف[[#This Row],[أسم الصنف]] -> 
M40: =IF(P40=0,ROUND(SUMIFS($K$1:K39,$A$1:A39,A40,$E$1:E39,E40)-SUMIFS($M$1:M39,$A$1:A39,A40,$E$1:E39,E40),2),ROUND(IFERROR(MAX(SUMIFS($K$1:K39,$A$1:A39,A40,$E$1:E39,E40,$S$1:S39,"<"&T40)-SUMIFS($M$1:M39,$A$1:A39,A40,$E$1:E39,E40,$S$1:S39,"<"&T40)-SUMIFS($M$1:M39,$A$1:A39,A40,$E$1:E39,E40),0)+(IFERROR(INDEX($R$1:R39,MATCH(1,($A$1:A39=A40)*($E$1:E39=E40)*($S$1:S39>(T40-1)),0)),"")*MIN(IF(L40="",0,L40),SUMIFS($L$1:L40,$A$1:A40,A40,$E$1:E40,E40)-SUMIFS($J$1:J40,$A$1:A40,A40,$E$1:E40,E40,$S$1:S40,"<"&T40))),0),2)) -> 0 | N40: =IFERROR(VALUE(INDEX($Z:$Z,MATCH(A40&E40,$AE:$AE,0),)),"") -> 0 | O40: =IFERROR(INDEX($AC:$AC,MATCH(E40,$AB:$AB,0),),"") ->  | P40: =SUMIFS($J$1:J40,$E$1:E40,E40,$A$1:A40,A40)-SUMIFS($L$1:L40,$E$1:E40,E40,$A$1:A40,A40) -> 0 | Q40: =MAX(0,ROUND(SUMIFS($K$1:K40,$E$1:E40,E40,$A$1:A40,A40)-SUMIFS($M$1:M40,$E$1:E40,E40,$A$1:A40,A40),2)) -> 0 | R40: =IF(J40>0,ROUND(K40/J40,2),IFERROR(LOOKUP(2,1/(($A$1:A39=A40)*($E$1:E39=E40)),$R$1:R39),K40)) -> 0 | S40: =SUMIFS($J$1:J40,$A$1:A40,A40,$E$1:E40,E40) -> 0 | T40: =SUMIFS($L$1:L40,$A$1:A40,A40,$E$1:E40,E40) -> 0 | U40: 0 | V40: =D40&C40&COUNTIFS($C$1:C40,C40,$D$1:D40,D40,$A$1:A40,A40)&A40 -> 0 | W40: =IF(MAX(IFERROR((($C$1:C39=C40)*($A$1:A39=A40))*($D$1:D39),0))=0,"FOB",MAX(IFERROR((($C$1:C39=C40)*($A$1:A39=A40))*($D$1:D39),0))) -> FOB | X40: 1 | AE40: =المخازن_وأنواع_الأصناف[[#This Row],[مخزن]]&المخازن_وأنواع_الأصناف[[#This Row],[أسم الصنف]] -> 
M41: =IF(P41=0,ROUND(SUMIFS($K$1:K40,$A$1:A40,A41,$E$1:E40,E41)-SUMIFS($M$1:M40,$A$1:A40,A41,$E$1:E40,E41),2),ROUND(IFERROR(MAX(SUMIFS($K$1:K40,$A$1:A40,A41,$E$1:E40,E41,$S$1:S40,"<"&T41)-SUMIFS($M$1:M40,$A$1:A40,A41,$E$1:E40,E41,$S$1:S40,"<"&T41)-SUMIFS($M$1:M40,$A$1:A40,A41,$E$1:E40,E41),0)+(IFERROR(INDEX($R$1:R40,MATCH(1,($A$1:A40=A41)*($E$1:E40=E41)*($S$1:S40>(T41-1)),0)),"")*MIN(IF(L41="",0,L41),SUMIFS($L$1:L41,$A$1:A41,A41,$E$1:E41,E41)-SUMIFS($J$1:J41,$A$1:A41,A41,$E$1:E41,E41,$S$1:S41,"<"&T41))),0),2)) -> 0 | N41: =IFERROR(VALUE(INDEX($Z:$Z,MATCH(A41&E41,$AE:$AE,0),)),"") -> 0 | O41: =IFERROR(INDEX($AC:$AC,MATCH(E41,$AB:$AB,0),),"") ->  | P41: =SUMIFS($J$1:J41,$E$1:E41,E41,$A$1:A41,A41)-SUMIFS($L$1:L41,$E$1:E41,E41,$A$1:A41,A41) -> 0 | Q41: =MAX(0,ROUND(SUMIFS($K$1:K41,$E$1:E41,E41,$A$1:A41,A41)-SUMIFS($M$1:M41,$E$1:E41,E41,$A$1:A41,A41),2)) -> 0 | R41: =IF(J41>0,ROUND(K41/J41,2),IFERROR(LOOKUP(2,1/(($A$1:A40=A41)*($E$1:E40=E41)),$R$1:R40),K41)) -> 0 | S41: =SUMIFS($J$1:J41,$A$1:A41,A41,$E$1:E41,E41) -> 0 | T41: =SUMIFS($L$1:L41,$A$1:A41,A41,$E$1:E41,E41) -> 0 | U41: 0 | V41: =D41&C41&COUNTIFS($C$1:C41,C41,$D$1:D41,D41,$A$1:A41,A41)&A41 -> 0 | W41: =IF(MAX(IFERROR((($C$1:C40=C41)*($A$1:A40=A41))*($D$1:D40),0))=0,"FOB",MAX(IFERROR((($C$1:C40=C41)*($A$1:A40=A41))*($D$1:D40),0))) -> FOB | X41: 1 | AE41: =المخازن_وأنواع_الأصناف[[#This Row],[مخزن]]&المخازن_وأنواع_الأصناف[[#This Row],[أسم الصنف]] -> 
M42: =IF(P42=0,ROUND(SUMIFS($K$1:K41,$A$1:A41,A42,$E$1:E41,E42)-SUMIFS($M$1:M41,$A$1:A41,A42,$E$1:E41,E42),2),ROUND(IFERROR(MAX(SUMIFS($K$1:K41,$A$1:A41,A42,$E$1:E41,E42,$S$1:S41,"<"&T42)-SUMIFS($M$1:M41,$A$1:A41,A42,$E$1:E41,E42,$S$1:S41,"<"&T42)-SUMIFS($M$1:M41,$A$1:A41,A42,$E$1:E41,E42),0)+(IFERROR(INDEX($R$1:R41,MATCH(1,($A$1:A41=A42)*($E$1:E41=E42)*($S$1:S41>(T42-1)),0)),"")*MIN(IF(L42="",0,L42),SUMIFS($L$1:L42,$A$1:A42,A42,$E$1:E42,E42)-SUMIFS($J$1:J42,$A$1:A42,A42,$E$1:E42,E42,$S$1:S42,"<"&T42))),0),2)) -> 0 | N42: =IFERROR(VALUE(INDEX($Z:$Z,MATCH(A42&E42,$AE:$AE,0),)),"") -> 0 | O42: =IFERROR(INDEX($AC:$AC,MATCH(E42,$AB:$AB,0),),"") ->  | P42: =SUMIFS($J$1:J42,$E$1:E42,E42,$A$1:A42,A42)-SUMIFS($L$1:L42,$E$1:E42,E42,$A$1:A42,A42) -> 0 | Q42: =MAX(0,ROUND(SUMIFS($K$1:K42,$E$1:E42,E42,$A$1:A42,A42)-SUMIFS($M$1:M42,$E$1:E42,E42,$A$1:A42,A42),2)) -> 0 | R42: =IF(J42>0,ROUND(K42/J42,2),IFERROR(LOOKUP(2,1/(($A$1:A41=A42)*($E$1:E41=E42)),$R$1:R41),K42)) -> 0 | S42: =SUMIFS($J$1:J42,$A$1:A42,A42,$E$1:E42,E42) -> 0 | T42: =SUMIFS($L$1:L42,$A$1:A42,A42,$E$1:E42,E42) -> 0 | U42: 0 | V42: =D42&C42&COUNTIFS($C$1:C42,C42,$D$1:D42,D42,$A$1:A42,A42)&A42 -> 0 | W42: =IF(MAX(IFERROR((($C$1:C41=C42)*($A$1:A41=A42))*($D$1:D41),0))=0,"FOB",MAX(IFERROR((($C$1:C41=C42)*($A$1:A41=A42))*($D$1:D41),0))) -> FOB | X42: 1 | AE42: =المخازن_وأنواع_الأصناف[[#This Row],[مخزن]]&المخازن_وأنواع_الأصناف[[#This Row],[أسم الصنف]] -> 
M43: =IF(P43=0,ROUND(SUMIFS($K$1:K42,$A$1:A42,A43,$E$1:E42,E43)-SUMIFS($M$1:M42,$A$1:A42,A43,$E$1:E42,E43),2),ROUND(IFERROR(MAX(SUMIFS($K$1:K42,$A$1:A42,A43,$E$1:E42,E43,$S$1:S42,"<"&T43)-SUMIFS($M$1:M42,$A$1:A42,A43,$E$1:E42,E43,$S$1:S42,"<"&T43)-SUMIFS($M$1:M42,$A$1:A42,A43,$E$1:E42,E43),0)+(IFERROR(INDEX($R$1:R42,MATCH(1,($A$1:A42=A43)*($E$1:E42=E43)*($S$1:S42>(T43-1)),0)),"")*MIN(IF(L43="",0,L43),SUMIFS($L$1:L43,$A$1:A43,A43,$E$1:E43,E43)-SUMIFS($J$1:J43,$A$1:A43,A43,$E$1:E43,E43,$S$1:S43,"<"&T43))),0),2)) -> 0 | N43: =IFERROR(VALUE(INDEX($Z:$Z,MATCH(A43&E43,$AE:$AE,0),)),"") -> 0 | O43: =IFERROR(INDEX($AC:$AC,MATCH(E43,$AB:$AB,0),),"") ->  | P43: =SUMIFS($J$1:J43,$E$1:E43,E43,$A$1:A43,A43)-SUMIFS($L$1:L43,$E$1:E43,E43,$A$1:A43,A43) -> 0 | Q43: =MAX(0,ROUND(SUMIFS($K$1:K43,$E$1:E43,E43,$A$1:A43,A43)-SUMIFS($M$1:M43,$E$1:E43,E43,$A$1:A43,A43),2)) -> 0 | R43: =IF(J43>0,ROUND(K43/J43,2),IFERROR(LOOKUP(2,1/(($A$1:A42=A43)*($E$1:E42=E43)),$R$1:R42),K43)) -> 0 | S43: =SUMIFS($J$1:J43,$A$1:A43,A43,$E$1:E43,E43) -> 0 | T43: =SUMIFS($L$1:L43,$A$1:A43,A43,$E$1:E43,E43) -> 0 | U43: 0 | V43: =D43&C43&COUNTIFS($C$1:C43,C43,$D$1:D43,D43,$A$1:A43,A43)&A43 -> 0 | W43: =IF(MAX(IFERROR((($C$1:C42=C43)*($A$1:A42=A43))*($D$1:D42),0))=0,"FOB",MAX(IFERROR((($C$1:C42=C43)*($A$1:A42=A43))*($D$1:D42),0))) -> FOB | X43: 1 | AE43: =المخازن_وأنواع_الأصناف[[#This Row],[مخزن]]&المخازن_وأنواع_الأصناف[[#This Row],[أسم الصنف]] -> 
M44: =IF(P44=0,ROUND(SUMIFS($K$1:K43,$A$1:A43,A44,$E$1:E43,E44)-SUMIFS($M$1:M43,$A$1:A43,A44,$E$1:E43,E44),2),ROUND(IFERROR(MAX(SUMIFS($K$1:K43,$A$1:A43,A44,$E$1:E43,E44,$S$1:S43,"<"&T44)-SUMIFS($M$1:M43,$A$1:A43,A44,$E$1:E43,E44,$S$1:S43,"<"&T44)-SUMIFS($M$1:M43,$A$1:A43,A44,$E$1:E43,E44),0)+(IFERROR(INDEX($R$1:R43,MATCH(1,($A$1:A43=A44)*($E$1:E43=E44)*($S$1:S43>(T44-1)),0)),"")*MIN(IF(L44="",0,L44),SUMIFS($L$1:L44,$A$1:A44,A44,$E$1:E44,E44)-SUMIFS($J$1:J44,$A$1:A44,A44,$E$1:E44,E44,$S$1:S44,"<"&T44))),0),2)) -> 0 | N44: =IFERROR(VALUE(INDEX($Z:$Z,MATCH(A44&E44,$AE:$AE,0),)),"") -> 0 | O44: =IFERROR(INDEX($AC:$AC,MATCH(E44,$AB:$AB,0),),"") ->  | P44: =SUMIFS($J$1:J44,$E$1:E44,E44,$A$1:A44,A44)-SUMIFS($L$1:L44,$E$1:E44,E44,$A$1:A44,A44) -> 0 | Q44: =MAX(0,ROUND(SUMIFS($K$1:K44,$E$1:E44,E44,$A$1:A44,A44)-SUMIFS($M$1:M44,$E$1:E44,E44,$A$1:A44,A44),2)) -> 0 | R44: =IF(J44>0,ROUND(K44/J44,2),IFERROR(LOOKUP(2,1/(($A$1:A43=A44)*($E$1:E43=E44)),$R$1:R43),K44)) -> 0 | S44: =SUMIFS($J$1:J44,$A$1:A44,A44,$E$1:E44,E44) -> 0 | T44: =SUMIFS($L$1:L44,$A$1:A44,A44,$E$1:E44,E44) -> 0 | U44: 0 | V44: =D44&C44&COUNTIFS($C$1:C44,C44,$D$1:D44,D44,$A$1:A44,A44)&A44 -> 0 | W44: =IF(MAX(IFERROR((($C$1:C43=C44)*($A$1:A43=A44))*($D$1:D43),0))=0,"FOB",MAX(IFERROR((($C$1:C43=C44)*($A$1:A43=A44))*($D$1:D43),0))) -> FOB | X44: 1 | AE44: =المخازن_وأنواع_الأصناف[[#This Row],[مخزن]]&المخازن_وأنواع_الأصناف[[#This Row],[أسم الصنف]] -> 
M45: =IF(P45=0,ROUND(SUMIFS($K$1:K44,$A$1:A44,A45,$E$1:E44,E45)-SUMIFS($M$1:M44,$A$1:A44,A45,$E$1:E44,E45),2),ROUND(IFERROR(MAX(SUMIFS($K$1:K44,$A$1:A44,A45,$E$1:E44,E45,$S$1:S44,"<"&T45)-SUMIFS($M$1:M44,$A$1:A44,A45,$E$1:E44,E45,$S$1:S44,"<"&T45)-SUMIFS($M$1:M44,$A$1:A44,A45,$E$1:E44,E45),0)+(IFERROR(INDEX($R$1:R44,MATCH(1,($A$1:A44=A45)*($E$1:E44=E45)*($S$1:S44>(T45-1)),0)),"")*MIN(IF(L45="",0,L45),SUMIFS($L$1:L45,$A$1:A45,A45,$E$1:E45,E45)-SUMIFS($J$1:J45,$A$1:A45,A45,$E$1:E45,E45,$S$1:S45,"<"&T45))),0),2)) -> 0 | N45: =IFERROR(VALUE(INDEX($Z:$Z,MATCH(A45&E45,$AE:$AE,0),)),"") -> 0 | O45: =IFERROR(INDEX($AC:$AC,MATCH(E45,$AB:$AB,0),),"") ->  | P45: =SUMIFS($J$1:J45,$E$1:E45,E45,$A$1:A45,A45)-SUMIFS($L$1:L45,$E$1:E45,E45,$A$1:A45,A45) -> 0 | Q45: =MAX(0,ROUND(SUMIFS($K$1:K45,$E$1:E45,E45,$A$1:A45,A45)-SUMIFS($M$1:M45,$E$1:E45,E45,$A$1:A45,A45),2)) -> 0 | R45: =IF(J45>0,ROUND(K45/J45,2),IFERROR(LOOKUP(2,1/(($A$1:A44=A45)*($E$1:E44=E45)),$R$1:R44),K45)) -> 0 | S45: =SUMIFS($J$1:J45,$A$1:A45,A45,$E$1:E45,E45) -> 0 | T45: =SUMIFS($L$1:L45,$A$1:A45,A45,$E$1:E45,E45) -> 0 | U45: 0 | V45: =D45&C45&COUNTIFS($C$1:C45,C45,$D$1:D45,D45,$A$1:A45,A45)&A45 -> 0 | W45: =IF(MAX(IFERROR((($C$1:C44=C45)*($A$1:A44=A45))*($D$1:D44),0))=0,"FOB",MAX(IFERROR((($C$1:C44=C45)*($A$1:A44=A45))*($D$1:D44),0))) -> FOB | X45: 1 | AE45: =المخازن_وأنواع_الأصناف[[#This Row],[مخزن]]&المخازن_وأنواع_الأصناف[[#This Row],[أسم الصنف]] -> 
M46: =IF(P46=0,ROUND(SUMIFS($K$1:K45,$A$1:A45,A46,$E$1:E45,E46)-SUMIFS($M$1:M45,$A$1:A45,A46,$E$1:E45,E46),2),ROUND(IFERROR(MAX(SUMIFS($K$1:K45,$A$1:A45,A46,$E$1:E45,E46,$S$1:S45,"<"&T46)-SUMIFS($M$1:M45,$A$1:A45,A46,$E$1:E45,E46,$S$1:S45,"<"&T46)-SUMIFS($M$1:M45,$A$1:A45,A46,$E$1:E45,E46),0)+(IFERROR(INDEX($R$1:R45,MATCH(1,($A$1:A45=A46)*($E$1:E45=E46)*($S$1:S45>(T46-1)),0)),"")*MIN(IF(L46="",0,L46),SUMIFS($L$1:L46,$A$1:A46,A46,$E$1:E46,E46)-SUMIFS($J$1:J46,$A$1:A46,A46,$E$1:E46,E46,$S$1:S46,"<"&T46))),0),2)) -> 0 | N46: =IFERROR(VALUE(INDEX($Z:$Z,MATCH(A46&E46,$AE:$AE,0),)),"") -> 0 | O46: =IFERROR(INDEX($AC:$AC,MATCH(E46,$AB:$AB,0),),"") ->  | P46: =SUMIFS($J$1:J46,$E$1:E46,E46,$A$1:A46,A46)-SUMIFS($L$1:L46,$E$1:E46,E46,$A$1:A46,A46) -> 0 | Q46: =MAX(0,ROUND(SUMIFS($K$1:K46,$E$1:E46,E46,$A$1:A46,A46)-SUMIFS($M$1:M46,$E$1:E46,E46,$A$1:A46,A46),2)) -> 0 | R46: =IF(J46>0,ROUND(K46/J46,2),IFERROR(LOOKUP(2,1/(($A$1:A45=A46)*($E$1:E45=E46)),$R$1:R45),K46)) -> 0 | S46: =SUMIFS($J$1:J46,$A$1:A46,A46,$E$1:E46,E46) -> 0 | T46: =SUMIFS($L$1:L46,$A$1:A46,A46,$E$1:E46,E46) -> 0 | U46: 0 | V46: =D46&C46&COUNTIFS($C$1:C46,C46,$D$1:D46,D46,$A$1:A46,A46)&A46 -> 0 | W46: =IF(MAX(IFERROR((($C$1:C45=C46)*($A$1:A45=A46))*($D$1:D45),0))=0,"FOB",MAX(IFERROR((($C$1:C45=C46)*($A$1:A45=A46))*($D$1:D45),0))) -> FOB | X46: 1 | AE46: =المخازن_وأنواع_الأصناف[[#This Row],[مخزن]]&المخازن_وأنواع_الأصناف[[#This Row],[أسم الصنف]] -> 
M47: =IF(P47=0,ROUND(SUMIFS($K$1:K46,$A$1:A46,A47,$E$1:E46,E47)-SUMIFS($M$1:M46,$A$1:A46,A47,$E$1:E46,E47),2),ROUND(IFERROR(MAX(SUMIFS($K$1:K46,$A$1:A46,A47,$E$1:E46,E47,$S$1:S46,"<"&T47)-SUMIFS($M$1:M46,$A$1:A46,A47,$E$1:E46,E47,$S$1:S46,"<"&T47)-SUMIFS($M$1:M46,$A$1:A46,A47,$E$1:E46,E47),0)+(IFERROR(INDEX($R$1:R46,MATCH(1,($A$1:A46=A47)*($E$1:E46=E47)*($S$1:S46>(T47-1)),0)),"")*MIN(IF(L47="",0,L47),SUMIFS($L$1:L47,$A$1:A47,A47,$E$1:E47,E47)-SUMIFS($J$1:J47,$A$1:A47,A47,$E$1:E47,E47,$S$1:S47,"<"&T47))),0),2)) -> 0 | N47: =IFERROR(VALUE(INDEX($Z:$Z,MATCH(A47&E47,$AE:$AE,0),)),"") -> 0 | O47: =IFERROR(INDEX($AC:$AC,MATCH(E47,$AB:$AB,0),),"") ->  | P47: =SUMIFS($J$1:J47,$E$1:E47,E47,$A$1:A47,A47)-SUMIFS($L$1:L47,$E$1:E47,E47,$A$1:A47,A47) -> 0 | Q47: =MAX(0,ROUND(SUMIFS($K$1:K47,$E$1:E47,E47,$A$1:A47,A47)-SUMIFS($M$1:M47,$E$1:E47,E47,$A$1:A47,A47),2)) -> 0 | R47: =IF(J47>0,ROUND(K47/J47,2),IFERROR(LOOKUP(2,1/(($A$1:A46=A47)*($E$1:E46=E47)),$R$1:R46),K47)) -> 0 | S47: =SUMIFS($J$1:J47,$A$1:A47,A47,$E$1:E47,E47) -> 0 | T47: =SUMIFS($L$1:L47,$A$1:A47,A47,$E$1:E47,E47) -> 0 | U47: 0 | V47: =D47&C47&COUNTIFS($C$1:C47,C47,$D$1:D47,D47,$A$1:A47,A47)&A47 -> 0 | W47: =IF(MAX(IFERROR((($C$1:C46=C47)*($A$1:A46=A47))*($D$1:D46),0))=0,"FOB",MAX(IFERROR((($C$1:C46=C47)*($A$1:A46=A47))*($D$1:D46),0))) -> FOB | X47: 1 | AE47: =المخازن_وأنواع_الأصناف[[#This Row],[مخزن]]&المخازن_وأنواع_الأصناف[[#This Row],[أسم الصنف]] -> 
M48: =IF(P48=0,ROUND(SUMIFS($K$1:K47,$A$1:A47,A48,$E$1:E47,E48)-SUMIFS($M$1:M47,$A$1:A47,A48,$E$1:E47,E48),2),ROUND(IFERROR(MAX(SUMIFS($K$1:K47,$A$1:A47,A48,$E$1:E47,E48,$S$1:S47,"<"&T48)-SUMIFS($M$1:M47,$A$1:A47,A48,$E$1:E47,E48,$S$1:S47,"<"&T48)-SUMIFS($M$1:M47,$A$1:A47,A48,$E$1:E47,E48),0)+(IFERROR(INDEX($R$1:R47,MATCH(1,($A$1:A47=A48)*($E$1:E47=E48)*($S$1:S47>(T48-1)),0)),"")*MIN(IF(L48="",0,L48),SUMIFS($L$1:L48,$A$1:A48,A48,$E$1:E48,E48)-SUMIFS($J$1:J48,$A$1:A48,A48,$E$1:E48,E48,$S$1:S48,"<"&T48))),0),2)) -> 0 | N48: =IFERROR(VALUE(INDEX($Z:$Z,MATCH(A48&E48,$AE:$AE,0),)),"") -> 0 | O48: =IFERROR(INDEX($AC:$AC,MATCH(E48,$AB:$AB,0),),"") ->  | P48: =SUMIFS($J$1:J48,$E$1:E48,E48,$A$1:A48,A48)-SUMIFS($L$1:L48,$E$1:E48,E48,$A$1:A48,A48) -> 0 | Q48: =MAX(0,ROUND(SUMIFS($K$1:K48,$E$1:E48,E48,$A$1:A48,A48)-SUMIFS($M$1:M48,$E$1:E48,E48,$A$1:A48,A48),2)) -> 0 | R48: =IF(J48>0,ROUND(K48/J48,2),IFERROR(LOOKUP(2,1/(($A$1:A47=A48)*($E$1:E47=E48)),$R$1:R47),K48)) -> 0 | S48: =SUMIFS($J$1:J48,$A$1:A48,A48,$E$1:E48,E48) -> 0 | T48: =SUMIFS($L$1:L48,$A$1:A48,A48,$E$1:E48,E48) -> 0 | U48: 0 | V48: =D48&C48&COUNTIFS($C$1:C48,C48,$D$1:D48,D48,$A$1:A48,A48)&A48 -> 0 | W48: =IF(MAX(IFERROR((($C$1:C47=C48)*($A$1:A47=A48))*($D$1:D47),0))=0,"FOB",MAX(IFERROR((($C$1:C47=C48)*($A$1:A47=A48))*($D$1:D47),0))) -> FOB | X48: 1 | AE48: =المخازن_وأنواع_الأصناف[[#This Row],[مخزن]]&المخازن_وأنواع_الأصناف[[#This Row],[أسم الصنف]] -> 

Sheet المراجعة بدلالة الشهر
A1: =TRIM("رصيد قيم المخزون حتى "&TEXT(EOMONTH($S$1,0),"YYYY/MM/DD")) -> رصيد قيم المخزون حتى 2020/02/29 | I1: =TRIM("رصيد كميات المخزون حتى "&TEXT(EOMONTH($S$1,0),"YYYY/MM/DD")) -> رصيد كميات المخزون حتى 2020/02/29 | S1: 2020-02-29
A2: كود الصنف | B2: أسم الصنف | C2: الفئة المخزنية | D2: رصيد أول | E2: مدين | F2: دائن | G2: رصيد أخر | I2: كود الصنف | J2: أسم الصنف | K2: الفئة المخزنية | L2: رصيد كميه أول | M2: وارد | N2: منصرف | O2: رصيد كميه أخر | P2: الجرد | Q2: الفارق | R2: معدل دوران المخزون | U2: نوع الإذن
A3: =MAX($A$2:A2)+1 -> 1 | B3: =IFERROR(INDEX(الشاشة!$A:$U,MATCH(نوع_المخزن&$A3,الشاشة!$U:$U,0),MATCH('المراجعة بدلالة الشهر'!B$2,الشاشة!$A$1:$V$1,0)),"") -> نوع 1 | C3: =IFERROR(INDEX(الشاشة!$A:$U,MATCH(نوع_المخزن&$A3,الشاشة!$U:$U,0),MATCH('المراجعة بدلالة الشهر'!C$2,الشاشة!$A$1:$V$1,0)),"") -> فئة مخزنية 1 | D3: =SUMIFS(الشاشة!$K:$K,الشاشة!$E:$E,B3,الشاشة!$B:$B,"<"&(EOMONTH($S$1,-1)+1),الشاشة!$A:$A,$S$9)-SUMIFS(الشاشة!$M:$M,الشاشة!$E:$E,B3,الشاشة!$B:$B,"<"&(EOMONTH($S$1,-1)+1),الشاشة!$A:$A,$S$9) -> 72188.48 | E3: =SUMIFS(الشاشة!$K:$K,الشاشة!$E:$E,'المراجعة بدلالة الشهر'!B3,الشاشة!$B:$B,">"&EOMONTH($S$1,-1),الشاشة!$B:$B,"<="&EOMONTH($S$1,0),الشاشة!$A:$A,$S$9) -> 0 | F3: =SUMIFS(الشاشة!$M:$M,الشاشة!$E:$E,'المراجعة بدلالة الشهر'!B3,الشاشة!$B:$B,">"&EOMONTH($S$1,-1),الشاشة!$B:$B,"<="&EOMONTH($S$1,0),الشاشة!$A:$A,$S$9) -> 7040.66 | G3: =ROUND(D3+E3-F3,2) -> 65147.82 | I3: =A3 -> 1 | J3: =B3 -> نوع 1 | K3: فئة مخزنية 1 | L3: =SUMIFS(الشاشة!$J:$J,الشاشة!$E:$E,'المراجعة بدلالة الشهر'!B3,الشاشة!$B:$B,"<"&(EOMONTH($S$1,-1)+1),الشاشة!$A:$A,$S$9)-SUMIFS(الشاشة!$L:$L,الشاشة!$E:$E,'المراجعة بدلالة الشهر'!B3,الشاشة!$B:$B,"<"&(EOMONTH($S$1,-1)+1),الشاشة!$A:$A,$S$9) -> 1016 | M3: =SUMIFS(الشاشة!$J:$J,الشاشة!$E:$E,'المراجعة بدلالة الشهر'!B3,الشاشة!$B:$B,">="&(EOMONTH('المراجعة بدلالة الشهر'!$S$1,-1)+1),الشاشة!$B:$B,"<="&(EOMONTH('المراجعة بدلالة الشهر'!$S$1,0)),الشاشة!$A:$A,$S$9) -> 0 | N3: =SUMIFS(الشاشة!$L:$L,الشاشة!$E:$E,'المراجعة بدلالة الشهر'!B3,الشاشة!$B:$B,">="&(EOMONTH('المراجعة بدلالة الشهر'!$S$1,-1)+1),الشاشة!$B:$B,"<="&(EOMONTH('المراجعة بدلالة الشهر'!$S$1,0)),الشاشة!$A:$A,$S$9) -> 2 | O3: =L3+M3-N3 -> 1014 | Q3: =O3-P3 -> 1014 | R3: =IFERROR(ROUND(G3/((L3+O3)/2),2),0) -> 64.19 | S3: ↑ تسجيل التاريخ | U3: اضافة
A4: =MAX($A$2:A3)+1 -> 2 | B4: =IFERROR(INDEX(الشاشة!$A:$U,MATCH(نوع_المخزن&$A4,الشاشة!$U:$U,0),MATCH('المراجعة بدلالة الشهر'!B$2,الشاشة!$A$1:$V$1,0)),"") -> نوع 2 | C4: =IFERROR(INDEX(الشاشة!$A:$U,MATCH(نوع_المخزن&$A4,الشاشة!$U:$U,0),MATCH('المراجعة بدلالة الشهر'!C$2,الشاشة!$A$1:$V$1,0)),"") -> فئة مخزنية 2 | D4: =SUMIFS(الشاشة!$K:$K,الشاشة!$E:$E,B4,الشاشة!$B:$B,"<"&(EOMONTH($S$1,-1)+1),الشاشة!$A:$A,$S$9)-SUMIFS(الشاشة!$M:$M,الشاشة!$E:$E,B4,الشاشة!$B:$B,"<"&(EOMONTH($S$1,-1)+1),الشاشة!$A:$A,$S$9) -> 4521.77 | E4: =SUMIFS(الشاشة!$K:$K,الشاشة!$E:$E,'المراجعة بدلالة الشهر'!B4,الشاشة!$B:$B,">"&EOMONTH($S$1,-1),الشاشة!$B:$B,"<="&EOMONTH($S$1,0),الشاشة!$A:$A,$S$9) -> 638.4 | F4: =SUMIFS(الشاشة!$M:$M,الشاشة!$E:$E,'المراجعة بدلالة الشهر'!B4,الشاشة!$B:$B,">"&EOMONTH($S$1,-1),الشاشة!$B:$B,"<="&EOMONTH($S$1,0),الشاشة!$A:$A,$S$9) -> 5160.17 | G4: =ROUND(D4+E4-F4,2) -> 0 | I4: =A4 -> 2 | J4: =B4 -> نوع 2 | K4: =C4 -> فئة مخزنية 2 | L4: =SUMIFS(الشاشة!$J:$J,الشاشة!$E:$E,'المراجعة بدلالة الشهر'!B4,الشاشة!$B:$B,"<"&(EOMONTH($S$1,-1)+1),الشاشة!$A:$A,$S$9)-SUMIFS(الشاشة!$L:$L,الشاشة!$E:$E,'المراجعة بدلالة الشهر'!B4,الشاشة!$B:$B,"<"&(EOMONTH($S$1,-1)+1),الشاشة!$A:$A,$S$9) -> 1 | M4: =SUMIFS(الشاشة!$J:$J,الشاشة!$E:$E,'المراجعة بدلالة الشهر'!B4,الشاشة!$B:$B,">="&(EOMONTH('المراجعة بدلالة الشهر'!$S$1,-1)+1),الشاشة!$B:$B,"<="&(EOMONTH('المراجعة بدلالة الشهر'!$S$1,0)),الشاشة!$A:$A,$S$9) -> 1 | N4: =SUMIFS(الشاشة!$L:$L,الشاشة!$E:$E,'المراجعة بدلالة الشهر'!B4,الشاشة!$B:$B,">="&(EOMONTH('المراجعة بدلالة الشهر'!$S$1,-1)+1),الشاشة!$B:$B,"<="&(EOMONTH('المراجعة بدلالة الشهر'!$S$1,0)),الشاشة!$A:$A,$S$9) -> 2 | O4: =L4+M4-N4 -> 0 | Q4: 0 | R4: 0 | U4: صرف
A5: =MAX($A$2:A4)+1 -> 3 | B5: =IFERROR(INDEX(الشاشة!$A:$U,MATCH(نوع_المخزن&$A5,الشاشة!$U:$U,0),MATCH('المراجعة بدلالة الشهر'!B$2,الشاشة!$A$1:$V$1,0)),"") -> نوع 3 | C5: =IFERROR(INDEX(الشاشة!$A:$U,MATCH(نوع_المخزن&$A5,الشاشة!$U:$U,0),MATCH('المراجعة بدلالة الشهر'!C$2,الشاشة!$A$1:$V$1,0)),"") -> فئة مخزنية 3 | D5: =SUMIFS(الشاشة!$K:$K,الشاشة!$E:$E,B5,الشاشة!$B:$B,"<"&(EOMONTH($S$1,-1)+1),الشاشة!$A:$A,$S$9)-SUMIFS(الشاشة!$M:$M,الشاشة!$E:$E,B5,الشاشة!$B:$B,"<"&(EOMONTH($S$1,-1)+1),الشاشة!$A:$A,$S$9) -> 86926.89 | E5: =SUMIFS(الشاشة!$K:$K,الشاشة!$E:$E,'المراجعة بدلالة الشهر'!B5,الشاشة!$B:$B,">"&EOMONTH($S$1,-1),الشاشة!$B:$B,"<="&EOMONTH($S$1,0),الشاشة!$A:$A,$S$9) -> 15848.57 | F5: =SUMIFS(الشاشة!$M:$M,الشاشة!$E:$E,'المراجعة بدلالة الشهر'!B5,الشاشة!$B:$B,">"&EOMONTH($S$1,-1),الشاشة!$B:$B,"<="&EOMONTH($S$1,0),الشاشة!$A:$A,$S$9) -> 88605.24 | G5: 14170.22 | I5: 3 | J5: نوع 3 | K5: فئة مخزنية 3 | L5: =SUMIFS(الشاشة!$J:$J,الشاشة!$E:$E,'المراجعة بدلالة الشهر'!B5,الشاشة!$B:$B,"<"&(EOMONTH($S$1,-1)+1),الشاشة!$A:$A,$S$9)-SUMIFS(الشاشة!$L:$L,الشاشة!$E:$E,'المراجعة بدلالة الشهر'!B5,الشاشة!$B:$B,"<"&(EOMONTH($S$1,-1)+1),الشاشة!$A:$A,$S$9) -> 660 | M5: =SUMIFS(الشاشة!$J:$J,الشاشة!$E:$E,'المراجعة بدلالة الشهر'!B5,الشاشة!$B:$B,">="&(EOMONTH('المراجعة بدلالة الشهر'!$S$1,-1)+1),الشاشة!$B:$B,"<="&(EOMONTH('المراجعة بدلالة الشهر'!$S$1,0)),الشاشة!$A:$A,$S$9) -> 600 | N5: =SUMIFS(الشاشة!$L:$L,الشاشة!$E:$E,'المراجعة بدلالة الشهر'!B5,الشاشة!$B:$B,">="&(EOMONTH('المراجعة بدلالة الشهر'!$S$1,-1)+1),الشاشة!$B:$B,"<="&(EOMONTH('المراجعة بدلالة الشهر'!$S$1,0)),الشاشة!$A:$A,$S$9) -> 720 | O5: 540 | Q5: 540 | R5: 23.62
A6: =MAX($A$2:A5)+1 -> 4 | B6: =IFERROR(INDEX(الشاشة!$A:$U,MATCH(نوع_المخزن&$A6,الشاشة!$U:$U,0),MATCH('المراجعة بدلالة الشهر'!B$2,الشاشة!$A$1:$V$1,0)),"") -> نوع 4 | C6: =IFERROR(INDEX(الشاشة!$A:$U,MATCH(نوع_المخزن&$A6,الشاشة!$U:$U,0),MATCH('المراجعة بدلالة الشهر'!C$2,الشاشة!$A$1:$V$1,0)),"") -> فئة مخزنية 4 | D6: =SUMIFS(الشاشة!$K:$K,الشاشة!$E:$E,B6,الشاشة!$B:$B,"<"&(EOMONTH($S$1,-1)+1),الشاشة!$A:$A,$S$9)-SUMIFS(الشاشة!$M:$M,الشاشة!$E:$E,B6,الشاشة!$B:$B,"<"&(EOMONTH($S$1,-1)+1),الشاشة!$A:$A,$S$9) -> 0 | E6: =SUMIFS(الشاشة!$K:$K,الشاشة!$E:$E,'المراجعة بدلالة الشهر'!B6,الشاشة!$B:$B,">"&EOMONTH($S$1,-1),الشاشة!$B:$B,"<="&EOMONTH($S$1,0),الشاشة!$A:$A,$S$9) -> 1373.44 | F6: =SUMIFS(الشاشة!$M:$M,الشاشة!$E:$E,'المراجعة بدلالة الشهر'!B6,الشاشة!$B:$B,">"&EOMONTH($S$1,-1),الشاشة!$B:$B,"<="&EOMONTH($S$1,0),الشاشة!$A:$A,$S$9) -> 0 | G6: 1373.44 | I6: 4 | J6: نوع 4 | K6: فئة مخزنية 4 | L6: =SUMIFS(الشاشة!$J:$J,الشاشة!$E:$E,'المراجعة بدلالة الشهر'!B6,الشاشة!$B:$B,"<"&(EOMONTH($S$1,-1)+1),الشاشة!$A:$A,$S$9)-SUMIFS(الشاشة!$L:$L,الشاشة!$E:$E,'المراجعة بدلالة الشهر'!B6,الشاشة!$B:$B,"<"&(EOMONTH($S$1,-1)+1),الشاشة!$A:$A,$S$9) -> 0 | M6: =SUMIFS(الشاشة!$J:$J,الشاشة!$E:$E,'المراجعة بدلالة الشهر'!B6,الشاشة!$B:$B,">="&(EOMONTH('المراجعة بدلالة الشهر'!$S$1,-1)+1),الشاشة!$B:$B,"<="&(EOMONTH('المراجعة بدلالة الشهر'!$S$1,0)),الشاشة!$A:$A,$S$9) -> 7 | N6: =SUMIFS(الشاشة!$L:$L,الشاشة!$E:$E,'المراجعة بدلالة الشهر'!B6,الشاشة!$B:$B,">="&(EOMONTH('المراجعة بدلالة الشهر'!$S$1,-1)+1),الشاشة!$B:$B,"<="&(EOMONTH('المراجعة بدلالة الشهر'!$S$1,0)),الشاشة!$A:$A,$S$9) -> 0 | O6: 7 | Q6: 7 | R6: 392.41
A7: =MAX($A$2:A6)+1 -> 5 | B7: =IFERROR(INDEX(الشاشة!$A:$U,MATCH(نوع_المخزن&$A7,الشاشة!$U:$U,0),MATCH('المراجعة بدلالة الشهر'!B$2,الشاشة!$A$1:$V$1,0)),"") ->  | C7: =IFERROR(INDEX(الشاشة!$A:$U,MATCH(نوع_المخزن&$A7,الشاشة!$U:$U,0),MATCH('المراجعة بدلالة الشهر'!C$2,الشاشة!$A$1:$V$1,0)),"") ->  | D7: =SUMIFS(الشاشة!$K:$K,الشاشة!$E:$E,B7,الشاشة!$B:$B,"<"&(EOMONTH($S$1,-1)+1),الشاشة!$A:$A,$S$9)-SUMIFS(الشاشة!$M:$M,الشاشة!$E:$E,B7,الشاشة!$B:$B,"<"&(EOMONTH($S$1,-1)+1),الشاشة!$A:$A,$S$9) -> 0 | E7: =SUMIFS(الشاشة!$K:$K,الشاشة!$E:$E,'المراجعة بدلالة الشهر'!B7,الشاشة!$B:$B,">"&EOMONTH($S$1,-1),الشاشة!$B:$B,"<="&EOMONTH($S$1,0),الشاشة!$A:$A,$S$9) -> 0 | F7: =SUMIFS(الشاشة!$M:$M,الشاشة!$E:$E,'المراجعة بدلالة الشهر'!B7,الشاشة!$B:$B,">"&EOMONTH($S$1,-1),الشاشة!$B:$B,"<="&EOMONTH($S$1,0),الشاشة!$A:$A,$S$9) -> 0 | G7: 0 | I7: 5 | L7: =SUMIFS(الشاشة!$J:$J,الشاشة!$E:$E,'المراجعة بدلالة الشهر'!B7,الشاشة!$B:$B,"<"&(EOMONTH($S$1,-1)+1),الشاشة!$A:$A,$S$9)-SUMIFS(الشاشة!$L:$L,الشاشة!$E:$E,'المراجعة بدلالة الشهر'!B7,الشاشة!$B:$B,"<"&(EOMONTH($S$1,-1)+1),الشاشة!$A:$A,$S$9) -> 0 | M7: =SUMIFS(الشاشة!$J:$J,الشاشة!$E:$E,'المراجعة بدلالة الشهر'!B7,الشاشة!$B:$B,">="&(EOMONTH('المراجعة بدلالة الشهر'!$S$1,-1)+1),الشاشة!$B:$B,"<="&(EOMONTH('المراجعة بدلالة الشهر'!$S$1,0)),الشاشة!$A:$A,$S$9) -> 0 | N7: =SUMIFS(الشاشة!$L:$L,الشاشة!$E:$E,'المراجعة بدلالة الشهر'!B7,الشاشة!$B:$B,">="&(EOMONTH('المراجعة بدلالة الشهر'!$S$1,-1)+1),الشاشة!$B:$B,"<="&(EOMONTH('المراجعة بدلالة الشهر'!$S$1,0)),الشاشة!$A:$A,$S$9) -> 0 | O7: 0 | Q7: 0 | R7: 0
A8: =MAX($A$2:A7)+1 -> 6 | B8: =IFERROR(INDEX(الشاشة!$A:$U,MATCH(نوع_المخزن&$A8,الشاشة!$U:$U,0),MATCH('المراجعة بدلالة الشهر'!B$2,الشاشة!$A$1:$V$1,0)),"") ->  | C8: =IFERROR(INDEX(الشاشة!$A:$U,MATCH(نوع_المخزن&$A8,الشاشة!$U:$U,0),MATCH('المراجعة بدلالة الشهر'!C$2,الشاشة!$A$1:$V$1,0)),"") ->  | D8: =SUMIFS(الشاشة!$K:$K,الشاشة!$E:$E,B8,الشاشة!$B:$B,"<"&(EOMONTH($S$1,-1)+1),الشاشة!$A:$A,$S$9)-SUMIFS(الشاشة!$M:$M,الشاشة!$E:$E,B8,الشاشة!$B:$B,"<"&(EOMONTH($S$1,-1)+1),الشاشة!$A:$A,$S$9) -> 0 | E8: =SUMIFS(الشاشة!$K:$K,الشاشة!$E:$E,'المراجعة بدلالة الشهر'!B8,الشاشة!$B:$B,">"&EOMONTH($S$1,-1),الشاشة!$B:$B,"<="&EOMONTH($S$1,0),الشاشة!$A:$A,$S$9) -> 0 | F8: =SUMIFS(الشاشة!$M:$M,الشاشة!$E:$E,'المراجعة بدلالة الشهر'!B8,الشاشة!$B:$B,">"&EOMONTH($S$1,-1),الشاشة!$B:$B,"<="&EOMONTH($S$1,0),الشاشة!$A:$A,$S$9) -> 0 | G8: 0 | I8: 6 | L8: =SUMIFS(الشاشة!$J:$J,الشاشة!$E:$E,'المراجعة بدلالة الشهر'!B8,الشاشة!$B:$B,"<"&(EOMONTH($S$1,-1)+1),الشاشة!$A:$A,$S$9)-SUMIFS(الشاشة!$L:$L,الشاشة!$E:$E,'المراجعة بدلالة الشهر'!B8,الشاشة!$B:$B,"<"&(EOMONTH($S$1,-1)+1),الشاشة!$A:$A,$S$9) -> 0 | M8: =SUMIFS(الشاشة!$J:$J,الشاشة!$E:$E,'المراجعة بدلالة الشهر'!B8,الشاشة!$B:$B,">="&(EOMONTH('المراجعة بدلالة الشهر'!$S$1,-1)+1),الشاشة!$B:$B,"<="&(EOMONTH('المراجعة بدلالة الشهر'!$S$1,0)),الشاشة!$A:$A,$S$9) -> 0 | N8: =SUMIFS(الشاشة!$L:$L,الشاشة!$E:$E,'المراجعة بدلالة الشهر'!B8,الشاشة!$B:$B,">="&(EOMONTH('المراجعة بدلالة الشهر'!$S$1,-1)+1),الشاشة!$B:$B,"<="&(EOMONTH('المراجعة بدلالة الشهر'!$S$1,0)),الشاشة!$A:$A,$S$9) -> 0 | O8: 0 | Q8: 0 | R8: 0
A9: =MAX($A$2:A8)+1 -> 7 | B9: =IFERROR(INDEX(الشاشة!$A:$U,MATCH(نوع_المخزن&$A9,الشاشة!$U:$U,0),MATCH('المراجعة بدلالة الشهر'!B$2,الشاشة!$A$1:$V$1,0)),"") ->  | C9: =IFERROR(INDEX(الشاشة!$A:$U,MATCH(نوع_المخزن&$A9,الشاشة!$U:$U,0),MATCH('المراجعة بدلالة الشهر'!C$2,الشاشة!$A$1:$V$1,0)),"") ->  | D9: =SUMIFS(الشاشة!$K:$K,الشاشة!$E:$E,B9,الشاشة!$B:$B,"<"&(EOMONTH($S$1,-1)+1),الشاشة!$A:$A,$S$9)-SUMIFS(الشاشة!$M:$M,الشاشة!$E:$E,B9,الشاشة!$B:$B,"<"&(EOMONTH($S$1,-1)+1),الشاشة!$A:$A,$S$9) -> 0 | E9: =SUMIFS(الشاشة!$K:$K,الشاشة!$E:$E,'المراجعة بدلالة الشهر'!B9,الشاشة!$B:$B,">"&EOMONTH($S$1,-1),الشاشة!$B:$B,"<="&EOMONTH($S$1,0),الشاشة!$A:$A,$S$9) -> 0 | F9: =SUMIFS(الشاشة!$M:$M,الشاشة!$E:$E,'المراجعة بدلالة الشهر'!B9,الشاشة!$B:$B,">"&EOMONTH($S$1,-1),الشاشة!$B:$B,"<="&EOMONTH($S$1,0),الشاشة!$A:$A,$S$9) -> 0 | G9: 0 | I9: 7 | L9: =SUMIFS(الشاشة!$J:$J,الشاشة!$E:$E,'المراجعة بدلالة الشهر'!B9,الشاشة!$B:$B,"<"&(EOMONTH($S$1,-1)+1),الشاشة!$A:$A,$S$9)-SUMIFS(الشاشة!$L:$L,الشاشة!$E:$E,'المراجعة بدلالة الشهر'!B9,الشاشة!$B:$B,"<"&(EOMONTH($S$1,-1)+1),الشاشة!$A:$A,$S$9) -> 0 | M9: =SUMIFS(الشاشة!$J:$J,الشاشة!$E:$E,'المراجعة بدلالة الشهر'!B9,الشاشة!$B:$B,">="&(EOMONTH('المراجعة بدلالة الشهر'!$S$1,-1)+1),الشاشة!$B:$B,"<="&(EOMONTH('المراجعة بدلالة الشهر'!$S$1,0)),الشاشة!$A:$A,$S$9) -> 0 | N9: =SUMIFS(الشاشة!$L:$L,الشاشة!$E:$E,'المراجعة بدلالة الشهر'!B9,الشاشة!$B:$B,">="&(EOMONTH('المراجعة بدلالة الشهر'!$S$1,-1)+1),الشاشة!$B:$B,"<="&(EOMONTH('المراجعة بدلالة الشهر'!$S$1,0)),الشاشة!$A:$A,$S$9) -> 0 | O9: 0 | Q9: 0 | R9: 0 | S9: مخزن 1
A10: =MAX($A$2:A9)+1 -> 8 | B10: =IFERROR(INDEX(الشاشة!$A:$U,MATCH(نوع_المخزن&$A10,الشاشة!$U:$U,0),MATCH('المراجعة بدلالة الشهر'!B$2,الشاشة!$A$1:$V$1,0)),"") ->  | C10: =IFERROR(INDEX(الشاشة!$A:$U,MATCH(نوع_المخزن&$A10,الشاشة!$U:$U,0),MATCH('المراجعة بدلالة الشهر'!C$2,الشاشة!$A$1:$V$1,0)),"") ->  | D10: =SUMIFS(الشاشة!$K:$K,الشاشة!$E:$E,B10,الشاشة!$B:$B,"<"&(EOMONTH($S$1,-1)+1),الشاشة!$A:$A,$S$9)-SUMIFS(الشاشة!$M:$M,الشاشة!$E:$E,B10,الشاشة!$B:$B,"<"&(EOMONTH($S$1,-1)+1),الشاشة!$A:$A,$S$9) -> 0 | E10: =SUMIFS(الشاشة!$K:$K,الشاشة!$E:$E,'المراجعة بدلالة الشهر'!B10,الشاشة!$B:$B,">"&EOMONTH($S$1,-1),الشاشة!$B:$B,"<="&EOMONTH($S$1,0),الشاشة!$A:$A,$S$9) -> 0 | F10: =SUMIFS(الشاشة!$M:$M,الشاشة!$E:$E,'المراجعة بدلالة الشهر'!B10,الشاشة!$B:$B,">"&EOMONTH($S$1,-1),الشاشة!$B:$B,"<="&EOMONTH($S$1,0),الشاشة!$A:$A,$S$9) -> 0 | G10: 0 | I10: 8 | L10: =SUMIFS(الشاشة!$J:$J,الشاشة!$E:$E,'المراجعة بدلالة الشهر'!B10,الشاشة!$B:$B,"<"&(EOMONTH($S$1,-1)+1),الشاشة!$A:$A,$S$9)-SUMIFS(الشاشة!$L:$L,الشاشة!$E:$E,'المراجعة بدلالة الشهر'!B10,الشاشة!$B:$B,"<"&(EOMONTH($S$1,-1)+1),الشاشة!$A:$A,$S$9) -> 0 | M10: =SUMIFS(الشاشة!$J:$J,الشاشة!$E:$E,'المراجعة بدلالة الشهر'!B10,الشاشة!$B:$B,">="&(EOMONTH('المراجعة بدلالة الشهر'!$S$1,-1)+1),الشاشة!$B:$B,"<="&(EOMONTH('المراجعة بدلالة الشهر'!$S$1,0)),الشاشة!$A:$A,$S$9) -> 0 | N10: =SUMIFS(الشاشة!$L:$L,الشاشة!$E:$E,'المراجعة بدلالة الشهر'!B10,الشاشة!$B:$B,">="&(EOMONTH('المراجعة بدلالة الشهر'!$S$1,-1)+1),الشاشة!$B:$B,"<="&(EOMONTH('المراجعة بدلالة الشهر'!$S$1,0)),الشاشة!$A:$A,$S$9) -> 0 | O10: 0 | Q10: 0 | R10: 0 | S10: ↑ تسجيل الفرع
A11: =MAX($A$2:A10)+1 -> 9 | B11: =IFERROR(INDEX(الشاشة!$A:$U,MATCH(نوع_المخزن&$A11,الشاشة!$U:$U,0),MATCH('المراجعة بدلالة الشهر'!B$2,الشاشة!$A$1:$V$1,0)),"") ->  | C11: =IFERROR(INDEX(الشاشة!$A:$U,MATCH(نوع_المخزن&$A11,الشاشة!$U:$U,0),MATCH('المراجعة بدلالة الشهر'!C$2,الشاشة!$A$1:$V$1,0)),"") ->  | D11: =SUMIFS(الشاشة!$K:$K,الشاشة!$E:$E,B11,الشاشة!$B:$B,"<"&(EOMONTH($S$1,-1)+1),الشاشة!$A:$A,$S$9)-SUMIFS(الشاشة!$M:$M,الشاشة!$E:$E,B11,الشاشة!$B:$B,"<"&(EOMONTH($S$1,-1)+1),الشاشة!$A:$A,$S$9) -> 0 | E11: =SUMIFS(الشاشة!$K:$K,الشاشة!$E:$E,'المراجعة بدلالة الشهر'!B11,الشاشة!$B:$B,">"&EOMONTH($S$1,-1),الشاشة!$B:$B,"<="&EOMONTH($S$1,0),الشاشة!$A:$A,$S$9) -> 0 | F11: =SUMIFS(الشاشة!$M:$M,الشاشة!$E:$E,'المراجعة بدلالة الشهر'!B11,الشاشة!$B:$B,">"&EOMONTH($S$1,-1),الشاشة!$B:$B,"<="&EOMONTH($S$1,0),الشاشة!$A:$A,$S$9) -> 0 | G11: 0 | I11: 9 | L11: =SUMIFS(الشاشة!$J:$J,الشاشة!$E:$E,'المراجعة بدلالة الشهر'!B11,الشاشة!$B:$B,"<"&(EOMONTH($S$1,-1)+1),الشاشة!$A:$A,$S$9)-SUMIFS(الشاشة!$L:$L,الشاشة!$E:$E,'المراجعة بدلالة الشهر'!B11,الشاشة!$B:$B,"<"&(EOMONTH($S$1,-1)+1),الشاشة!$A:$A,$S$9) -> 0 | M11: =SUMIFS(الشاشة!$J:$J,الشاشة!$E:$E,'المراجعة بدلالة الشهر'!B11,الشاشة!$B:$B,">="&(EOMONTH('المراجعة بدلالة الشهر'!$S$1,-1)+1),الشاشة!$B:$B,"<="&(EOMONTH('المراجعة بدلالة الشهر'!$S$1,0)),الشاشة!$A:$A,$S$9) -> 0 | N11: =SUMIFS(الشاشة!$L:$L,الشاشة!$E:$E,'المراجعة بدلالة الشهر'!B11,الشاشة!$B:$B,">="&(EOMONTH('المراجعة بدلالة الشهر'!$S$1,-1)+1),الشاشة!$B:$B,"<="&(EOMONTH('المراجعة بدلالة الشهر'!$S$1,0)),الشاشة!$A:$A,$S$9) -> 0 | O11: 0 | Q11: 0 | R11: 0
A12: =MAX($A$2:A11)+1 -> 10 | B12: =IFERROR(INDEX(الشاشة!$A:$U,MATCH(نوع_المخزن&$A12,الشاشة!$U:$U,0),MATCH('المراجعة بدلالة الشهر'!B$2,الشاشة!$A$1:$V$1,0)),"") ->  | C12: =IFERROR(INDEX(الشاشة!$A:$U,MATCH(نوع_المخزن&$A12,الشاشة!$U:$U,0),MATCH('المراجعة بدلالة الشهر'!C$2,الشاشة!$A$1:$V$1,0)),"") ->  | D12: =SUMIFS(الشاشة!$K:$K,الشاشة!$E:$E,B12,الشاشة!$B:$B,"<"&(EOMONTH($S$1,-1)+1),الشاشة!$A:$A,$S$9)-SUMIFS(الشاشة!$M:$M,الشاشة!$E:$E,B12,الشاشة!$B:$B,"<"&(EOMONTH($S$1,-1)+1),الشاشة!$A:$A,$S$9) -> 0 | E12: =SUMIFS(الشاشة!$K:$K,الشاشة!$E:$E,'المراجعة بدلالة الشهر'!B12,الشاشة!$B:$B,">"&EOMONTH($S$1,-1),الشاشة!$B:$B,"<="&EOMONTH($S$1,0),الشاشة!$A:$A,$S$9) -> 0 | F12: =SUMIFS(الشاشة!$M:$M,الشاشة!$E:$E,'المراجعة بدلالة الشهر'!B12,الشاشة!$B:$B,">"&EOMONTH($S$1,-1),الشاشة!$B:$B,"<="&EOMONTH($S$1,0),الشاشة!$A:$A,$S$9) -> 0 | G12: 0 | I12: 10 | L12: =SUMIFS(الشاشة!$J:$J,الشاشة!$E:$E,'المراجعة بدلالة الشهر'!B12,الشاشة!$B:$B,"<"&(EOMONTH($S$1,-1)+1),الشاشة!$A:$A,$S$9)-SUMIFS(الشاشة!$L:$L,الشاشة!$E:$E,'المراجعة بدلالة الشهر'!B12,الشاشة!$B:$B,"<"&(EOMONTH($S$1,-1)+1),الشاشة!$A:$A,$S$9) -> 0 | M12: =SUMIFS(الشاشة!$J:$J,الشاشة!$E:$E,'المراجعة بدلالة الشهر'!B12,الشاشة!$B:$B,">="&(EOMONTH('المراجعة بدلالة الشهر'!$S$1,-1)+1),الشاشة!$B:$B,"<="&(EOMONTH('المراجعة بدلالة الشهر'!$S$1,0)),الشاشة!$A:$A,$S$9) -> 0 | N12: =SUMIFS(الشاشة!$L:$L,الشاشة!$E:$E,'المراجعة بدلالة الشهر'!B12,الشاشة!$B:$B,">="&(EOMONTH('المراجعة بدلالة الشهر'!$S$1,-1)+1),الشاشة!$B:$B,"<="&(EOMONTH('المراجعة بدلالة الشهر'!$S$1,0)),الشاشة!$A:$A,$S$9) -> 0 | O12: 0 | Q12: 0 | R12: 0
A13: =MAX($A$2:A12)+1 -> 11 | B13: =IFERROR(INDEX(الشاشة!$A:$U,MATCH(نوع_المخزن&$A13,الشاشة!$U:$U,0),MATCH('المراجعة بدلالة الشهر'!B$2,الشاشة!$A$1:$V$1,0)),"") ->  | C13: =IFERROR(INDEX(الشاشة!$A:$U,MATCH(نوع_المخزن&$A13,الشاشة!$U:$U,0),MATCH('المراجعة بدلالة الشهر'!C$2,الشاشة!$A$1:$V$1,0)),"") ->  | D13: =SUMIFS(الشاشة!$K:$K,الشاشة!$E:$E,B13,الشاشة!$B:$B,"<"&(EOMONTH($S$1,-1)+1),الشاشة!$A:$A,$S$9)-SUMIFS(الشاشة!$M:$M,الشاشة!$E:$E,B13,الشاشة!$B:$B,"<"&(EOMONTH($S$1,-1)+1),الشاشة!$A:$A,$S$9) -> 0 | E13: =SUMIFS(الشاشة!$K:$K,الشاشة!$E:$E,'المراجعة بدلالة الشهر'!B13,الشاشة!$B:$B,">"&EOMONTH($S$1,-1),الشاشة!$B:$B,"<="&EOMONTH($S$1,0),الشاشة!$A:$A,$S$9) -> 0 | F13: =SUMIFS(الشاشة!$M:$M,الشاشة!$E:$E,'المراجعة بدلالة الشهر'!B13,الشاشة!$B:$B,">"&EOMONTH($S$1,-1),الشاشة!$B:$B,"<="&EOMONTH($S$1,0),الشاشة!$A:$A,$S$9) -> 0 | G13: 0 | I13: 11 | L13: =SUMIFS(الشاشة!$J:$J,الشاشة!$E:$E,'المراجعة بدلالة الشهر'!B13,الشاشة!$B:$B,"<"&(EOMONTH($S$1,-1)+1),الشاشة!$A:$A,$S$9)-SUMIFS(الشاشة!$L:$L,الشاشة!$E:$E,'المراجعة بدلالة الشهر'!B13,الشاشة!$B:$B,"<"&(EOMONTH($S$1,-1)+1),الشاشة!$A:$A,$S$9) -> 0 | M13: =SUMIFS(الشاشة!$J:$J,الشاشة!$E:$E,'المراجعة بدلالة الشهر'!B13,الشاشة!$B:$B,">="&(EOMONTH('المراجعة بدلالة الشهر'!$S$1,-1)+1),الشاشة!$B:$B,"<="&(EOMONTH('المراجعة بدلالة الشهر'!$S$1,0)),الشاشة!$A:$A,$S$9) -> 0 | N13: =SUMIFS(الشاشة!$L:$L,الشاشة!$E:$E,'المراجعة بدلالة الشهر'!B13,الشاشة!$B:$B,">="&(EOMONTH('المراجعة بدلالة الشهر'!$S$1,-1)+1),الشاشة!$B:$B,"<="&(EOMONTH('المراجعة بدلالة الشهر'!$S$1,0)),الشاشة!$A:$A,$S$9) -> 0 | O13: 0 | Q13: 0 | R13: 0
A14: =MAX($A$2:A13)+1 -> 12 | B14: =IFERROR(INDEX(الشاشة!$A:$U,MATCH(نوع_المخزن&$A14,الشاشة!$U:$U,0),MATCH('المراجعة بدلالة الشهر'!B$2,الشاشة!$A$1:$V$1,0)),"") ->  | C14: =IFERROR(INDEX(الشاشة!$A:$U,MATCH(نوع_المخزن&$A14,الشاشة!$U:$U,0),MATCH('المراجعة بدلالة الشهر'!C$2,الشاشة!$A$1:$V$1,0)),"") ->  | D14: =SUMIFS(الشاشة!$K:$K,الشاشة!$E:$E,B14,الشاشة!$B:$B,"<"&(EOMONTH($S$1,-1)+1),الشاشة!$A:$A,$S$9)-SUMIFS(الشاشة!$M:$M,الشاشة!$E:$E,B14,الشاشة!$B:$B,"<"&(EOMONTH($S$1,-1)+1),الشاشة!$A:$A,$S$9) -> 0 | E14: =SUMIFS(الشاشة!$K:$K,الشاشة!$E:$E,'المراجعة بدلالة الشهر'!B14,الشاشة!$B:$B,">"&EOMONTH($S$1,-1),الشاشة!$B:$B,"<="&EOMONTH($S$1,0),الشاشة!$A:$A,$S$9) -> 0 | F14: =SUMIFS(الشاشة!$M:$M,الشاشة!$E:$E,'المراجعة بدلالة الشهر'!B14,الشاشة!$B:$B,">"&EOMONTH($S$1,-1),الشاشة!$B:$B,"<="&EOMONTH($S$1,0),الشاشة!$A:$A,$S$9) -> 0 | G14: 0 | I14: 12 | L14: =SUMIFS(الشاشة!$J:$J,الشاشة!$E:$E,'المراجعة بدلالة الشهر'!B14,الشاشة!$B:$B,"<"&(EOMONTH($S$1,-1)+1),الشاشة!$A:$A,$S$9)-SUMIFS(الشاشة!$L:$L,الشاشة!$E:$E,'المراجعة بدلالة الشهر'!B14,الشاشة!$B:$B,"<"&(EOMONTH($S$1,-1)+1),الشاشة!$A:$A,$S$9) -> 0 | M14: =SUMIFS(الشاشة!$J:$J,الشاشة!$E:$E,'المراجعة بدلالة الشهر'!B14,الشاشة!$B:$B,">="&(EOMONTH('المراجعة بدلالة الشهر'!$S$1,-1)+1),الشاشة!$B:$B,"<="&(EOMONTH('المراجعة بدلالة الشهر'!$S$1,0)),الشاشة!$A:$A,$S$9) -> 0 | N14: =SUMIFS(الشاشة!$L:$L,الشاشة!$E:$E,'المراجعة بدلالة الشهر'!B14,الشاشة!$B:$B,">="&(EOMONTH('المراجعة بدلالة الشهر'!$S$1,-1)+1),الشاشة!$B:$B,"<="&(EOMONTH('المراجعة بدلالة الشهر'!$S$1,0)),الشاشة!$A:$A,$S$9) -> 0 | O14: 0 | Q14: 0 | R14: 0
A15: =MAX($A$2:A14)+1 -> 13 | B15: =IFERROR(INDEX(الشاشة!$A:$U,MATCH(نوع_المخزن&$A15,الشاشة!$U:$U,0),MATCH('المراجعة بدلالة الشهر'!B$2,الشاشة!$A$1:$V$1,0)),"") ->  | C15: =IFERROR(INDEX(الشاشة!$A:$U,MATCH(نوع_المخزن&$A15,الشاشة!$U:$U,0),MATCH('المراجعة بدلالة الشهر'!C$2,الشاشة!$A$1:$V$1,0)),"") ->  | D15: =SUMIFS(الشاشة!$K:$K,الشاشة!$E:$E,B15,الشاشة!$B:$B,"<"&(EOMONTH($S$1,-1)+1),الشاشة!$A:$A,$S$9)-SUMIFS(الشاشة!$M:$M,الشاشة!$E:$E,B15,الشاشة!$B:$B,"<"&(EOMONTH($S$1,-1)+1),الشاشة!$A:$A,$S$9) -> 0 | E15: =SUMIFS(الشاشة!$K:$K,الشاشة!$E:$E,'المراجعة بدلالة الشهر'!B15,الشاشة!$B:$B,">"&EOMONTH($S$1,-1),الشاشة!$B:$B,"<="&EOMONTH($S$1,0),الشاشة!$A:$A,$S$9) -> 0 | F15: =SUMIFS(الشاشة!$M:$M,الشاشة!$E:$E,'المراجعة بدلالة الشهر'!B15,الشاشة!$B:$B,">"&EOMONTH($S$1,-1),الشاشة!$B:$B,"<="&EOMONTH($S$1,0),الشاشة!$A:$A,$S$9) -> 0 | G15: 0 | I15: 13 | L15: =SUMIFS(الشاشة!$J:$J,الشاشة!$E:$E,'المراجعة بدلالة الشهر'!B15,الشاشة!$B:$B,"<"&(EOMONTH($S$1,-1)+1),الشاشة!$A:$A,$S$9)-SUMIFS(الشاشة!$L:$L,الشاشة!$E:$E,'المراجعة بدلالة الشهر'!B15,الشاشة!$B:$B,"<"&(EOMONTH($S$1,-1)+1),الشاشة!$A:$A,$S$9) -> 0 | M15: =SUMIFS(الشاشة!$J:$J,الشاشة!$E:$E,'المراجعة بدلالة الشهر'!B15,الشاشة!$B:$B,">="&(EOMONTH('المراجعة بدلالة الشهر'!$S$1,-1)+1),الشاشة!$B:$B,"<="&(EOMONTH('المراجعة بدلالة الشهر'!$S$1,0)),الشاشة!$A:$A,$S$9) -> 0 | N15: =SUMIFS(الشاشة!$L:$L,الشاشة!$E:$E,'المراجعة بدلالة الشهر'!B15,الشاشة!$B:$B,">="&(EOMONTH('المراجعة بدلالة الشهر'!$S$1,-1)+1),الشاشة!$B:$B,"<="&(EOMONTH('المراجعة بدلالة الشهر'!$S$1,0)),الشاشة!$A:$A,$S$9) -> 0 | O15: 0 | Q15: 0 | R15: 0
A16: =MAX($A$2:A15)+1 -> 14 | B16: =IFERROR(INDEX(الشاشة!$A:$U,MATCH(نوع_المخزن&$A16,الشاشة!$U:$U,0),MATCH('المراجعة بدلالة الشهر'!B$2,الشاشة!$A$1:$V$1,0)),"") ->  | C16: =IFERROR(INDEX(الشاشة!$A:$U,MATCH(نوع_المخزن&$A16,الشاشة!$U:$U,0),MATCH('المراجعة بدلالة الشهر'!C$2,الشاشة!$A$1:$V$1,0)),"") ->  | D16: =SUMIFS(الشاشة!$K:$K,الشاشة!$E:$E,B16,الشاشة!$B:$B,"<"&(EOMONTH($S$1,-1)+1),الشاشة!$A:$A,$S$9)-SUMIFS(الشاشة!$M:$M,الشاشة!$E:$E,B16,الشاشة!$B:$B,"<"&(EOMONTH($S$1,-1)+1),الشاشة!$A:$A,$S$9) -> 0 | E16: =SUMIFS(الشاشة!$K:$K,الشاشة!$E:$E,'المراجعة بدلالة الشهر'!B16,الشاشة!$B:$B,">"&EOMONTH($S$1,-1),الشاشة!$B:$B,"<="&EOMONTH($S$1,0),الشاشة!$A:$A,$S$9) -> 0 | F16: =SUMIFS(الشاشة!$M:$M,الشاشة!$E:$E,'المراجعة بدلالة الشهر'!B16,الشاشة!$B:$B,">"&EOMONTH($S$1,-1),الشاشة!$B:$B,"<="&EOMONTH($S$1,0),الشاشة!$A:$A,$S$9) -> 0 | G16: 0 | I16: 14 | L16: =SUMIFS(الشاشة!$J:$J,الشاشة!$E:$E,'المراجعة بدلالة الشهر'!B16,الشاشة!$B:$B,"<"&(EOMONTH($S$1,-1)+1),الشاشة!$A:$A,$S$9)-SUMIFS(الشاشة!$L:$L,الشاشة!$E:$E,'المراجعة بدلالة الشهر'!B16,الشاشة!$B:$B,"<"&(EOMONTH($S$1,-1)+1),الشاشة!$A:$A,$S$9) -> 0 | M16: =SUMIFS(الشاشة!$J:$J,الشاشة!$E:$E,'المراجعة بدلالة الشهر'!B16,الشاشة!$B:$B,">="&(EOMONTH('المراجعة بدلالة الشهر'!$S$1,-1)+1),الشاشة!$B:$B,"<="&(EOMONTH('المراجعة بدلالة الشهر'!$S$1,0)),الشاشة!$A:$A,$S$9) -> 0 | N16: =SUMIFS(الشاشة!$L:$L,الشاشة!$E:$E,'المراجعة بدلالة الشهر'!B16,الشاشة!$B:$B,">="&(EOMONTH('المراجعة بدلالة الشهر'!$S$1,-1)+1),الشاشة!$B:$B,"<="&(EOMONTH('المراجعة بدلالة الشهر'!$S$1,0)),الشاشة!$A:$A,$S$9) -> 0 | O16: 0 | Q16: 0 | R16: 0
A17: =MAX($A$2:A16)+1 -> 15 | B17: =IFERROR(INDEX(الشاشة!$A:$U,MATCH(نوع_المخزن&$A17,الشاشة!$U:$U,0),MATCH('المراجعة بدلالة الشهر'!B$2,الشاشة!$A$1:$V$1,0)),"") ->  | C17: =IFERROR(INDEX(الشاشة!$A:$U,MATCH(نوع_المخزن&$A17,الشاشة!$U:$U,0),MATCH('المراجعة بدلالة الشهر'!C$2,الشاشة!$A$1:$V$1,0)),"") ->  | D17: =SUMIFS(الشاشة!$K:$K,الشاشة!$E:$E,B17,الشاشة!$B:$B,"<"&(EOMONTH($S$1,-1)+1),الشاشة!$A:$A,$S$9)-SUMIFS(الشاشة!$M:$M,الشاشة!$E:$E,B17,الشاشة!$B:$B,"<"&(EOMONTH($S$1,-1)+1),الشاشة!$A:$A,$S$9) -> 0 | E17: =SUMIFS(الشاشة!$K:$K,الشاشة!$E:$E,'المراجعة بدلالة الشهر'!B17,الشاشة!$B:$B,">"&EOMONTH($S$1,-1),الشاشة!$B:$B,"<="&EOMONTH($S$1,0),الشاشة!$A:$A,$S$9) -> 0 | F17: =SUMIFS(الشاشة!$M:$M,الشاشة!$E:$E,'المراجعة بدلالة الشهر'!B17,الشاشة!$B:$B,">"&EOMONTH($S$1,-1),الشاشة!$B:$B,"<="&EOMONTH($S$1,0),الشاشة!$A:$A,$S$9) -> 0 | G17: 0 | I17: 15 | L17: =SUMIFS(الشاشة!$J:$J,الشاشة!$E:$E,'المراجعة بدلالة الشهر'!B17,الشاشة!$B:$B,"<"&(EOMONTH($S$1,-1)+1),الشاشة!$A:$A,$S$9)-SUMIFS(الشاشة!$L:$L,الشاشة!$E:$E,'المراجعة بدلالة الشهر'!B17,الشاشة!$B:$B,"<"&(EOMONTH($S$1,-1)+1),الشاشة!$A:$A,$S$9) -> 0 | M17: =SUMIFS(الشاشة!$J:$J,الشاشة!$E:$E,'المراجعة بدلالة الشهر'!B17,الشاشة!$B:$B,">="&(EOMONTH('المراجعة بدلالة الشهر'!$S$1,-1)+1),الشاشة!$B:$B,"<="&(EOMONTH('المراجعة بدلالة الشهر'!$S$1,0)),الشاشة!$A:$A,$S$9) -> 0 | N17: =SUMIFS(الشاشة!$L:$L,الشاشة!$E:$E,'المراجعة بدلالة الشهر'!B17,الشاشة!$B:$B,">="&(EOMONTH('المراجعة بدلالة الشهر'!$S$1,-1)+1),الشاشة!$B:$B,"<="&(EOMONTH('المراجعة بدلالة الشهر'!$S$1,0)),الشاشة!$A:$A,$S$9) -> 0 | O17: 0 | Q17: 0 | R17: 0
A18: =MAX($A$2:A17)+1 -> 16 | B18: =IFERROR(INDEX(الشاشة!$A:$U,MATCH(نوع_المخزن&$A18,الشاشة!$U:$U,0),MATCH('المراجعة بدلالة الشهر'!B$2,الشاشة!$A$1:$V$1,0)),"") ->  | C18: =IFERROR(INDEX(الشاشة!$A:$U,MATCH(نوع_المخزن&$A18,الشاشة!$U:$U,0),MATCH('المراجعة بدلالة الشهر'!C$2,الشاشة!$A$1:$V$1,0)),"") ->  | D18: =SUMIFS(الشاشة!$K:$K,الشاشة!$E:$E,B18,الشاشة!$B:$B,"<"&(EOMONTH($S$1,-1)+1),الشاشة!$A:$A,$S$9)-SUMIFS(الشاشة!$M:$M,الشاشة!$E:$E,B18,الشاشة!$B:$B,"<"&(EOMONTH($S$1,-1)+1),الشاشة!$A:$A,$S$9) -> 0 | E18: =SUMIFS(الشاشة!$K:$K,الشاشة!$E:$E,'المراجعة بدلالة الشهر'!B18,الشاشة!$B:$B,">"&EOMONTH($S$1,-1),الشاشة!$B:$B,"<="&EOMONTH($S$1,0),الشاشة!$A:$A,$S$9) -> 0 | F18: =SUMIFS(الشاشة!$M:$M,الشاشة!$E:$E,'المراجعة بدلالة الشهر'!B18,الشاشة!$B:$B,">"&EOMONTH($S$1,-1),الشاشة!$B:$B,"<="&EOMONTH($S$1,0),الشاشة!$A:$A,$S$9) -> 0 | G18: 0 | I18: 16 | L18: =SUMIFS(الشاشة!$J:$J,الشاشة!$E:$E,'المراجعة بدلالة الشهر'!B18,الشاشة!$B:$B,"<"&(EOMONTH($S$1,-1)+1),الشاشة!$A:$A,$S$9)-SUMIFS(الشاشة!$L:$L,الشاشة!$E:$E,'المراجعة بدلالة الشهر'!B18,الشاشة!$B:$B,"<"&(EOMONTH($S$1,-1)+1),الشاشة!$A:$A,$S$9) -> 0 | M18: =SUMIFS(الشاشة!$J:$J,الشاشة!$E:$E,'المراجعة بدلالة الشهر'!B18,الشاشة!$B:$B,">="&(EOMONTH('المراجعة بدلالة الشهر'!$S$1,-1)+1),الشاشة!$B:$B,"<="&(EOMONTH('المراجعة بدلالة الشهر'!$S$1,0)),الشاشة!$A:$A,$S$9) -> 0 | N18: =SUMIFS(الشاشة!$L:$L,الشاشة!$E:$E,'المراجعة بدلالة الشهر'!B18,الشاشة!$B:$B,">="&(EOMONTH('المراجعة بدلالة الشهر'!$S$1,-1)+1),الشاشة!$B:$B,"<="&(EOMONTH('المراجعة بدلالة الشهر'!$S$1,0)),الشاشة!$A:$A,$S$9) -> 0 | O18: 0 | Q18: 0 | R18: 0
A19: =MAX($A$2:A18)+1 -> 17 | B19: =IFERROR(INDEX(الشاشة!$A:$U,MATCH(نوع_المخزن&$A19,الشاشة!$U:$U,0),MATCH('المراجعة بدلالة الشهر'!B$2,الشاشة!$A$1:$V$1,0)),"") ->  | C19: =IFERROR(INDEX(الشاشة!$A:$U,MATCH(نوع_المخزن&$A19,الشاشة!$U:$U,0),MATCH('المراجعة بدلالة الشهر'!C$2,الشاشة!$A$1:$V$1,0)),"") ->  | D19: =SUMIFS(الشاشة!$K:$K,الشاشة!$E:$E,B19,الشاشة!$B:$B,"<"&(EOMONTH($S$1,-1)+1),الشاشة!$A:$A,$S$9)-SUMIFS(الشاشة!$M:$M,الشاشة!$E:$E,B19,الشاشة!$B:$B,"<"&(EOMONTH($S$1,-1)+1),الشاشة!$A:$A,$S$9) -> 0 | E19: =SUMIFS(الشاشة!$K:$K,الشاشة!$E:$E,'المراجعة بدلالة الشهر'!B19,الشاشة!$B:$B,">"&EOMONTH($S$1,-1),الشاشة!$B:$B,"<="&EOMONTH($S$1,0),الشاشة!$A:$A,$S$9) -> 0 | F19: =SUMIFS(الشاشة!$M:$M,الشاشة!$E:$E,'المراجعة بدلالة الشهر'!B19,الشاشة!$B:$B,">"&EOMONTH($S$1,-1),الشاشة!$B:$B,"<="&EOMONTH($S$1,0),الشاشة!$A:$A,$S$9) -> 0 | G19: 0 | I19: 17 | L19: =SUMIFS(الشاشة!$J:$J,الشاشة!$E:$E,'المراجعة بدلالة الشهر'!B19,الشاشة!$B:$B,"<"&(EOMONTH($S$1,-1)+1),الشاشة!$A:$A,$S$9)-SUMIFS(الشاشة!$L:$L,الشاشة!$E:$E,'المراجعة بدلالة الشهر'!B19,الشاشة!$B:$B,"<"&(EOMONTH($S$1,-1)+1),الشاشة!$A:$A,$S$9) -> 0 | M19: =SUMIFS(الشاشة!$J:$J,الشاشة!$E:$E,'المراجعة بدلالة الشهر'!B19,الشاشة!$B:$B,">="&(EOMONTH('المراجعة بدلالة الشهر'!$S$1,-1)+1),الشاشة!$B:$B,"<="&(EOMONTH('المراجعة بدلالة الشهر'!$S$1,0)),الشاشة!$A:$A,$S$9) -> 0 | N19: =SUMIFS(الشاشة!$L:$L,الشاشة!$E:$E,'المراجعة بدلالة الشهر'!B19,الشاشة!$B:$B,">="&(EOMONTH('المراجعة بدلالة الشهر'!$S$1,-1)+1),الشاشة!$B:$B,"<="&(EOMONTH('المراجعة بدلالة الشهر'!$S$1,0)),الشاشة!$A:$A,$S$9) -> 0 | O19: 0 | Q19: 0 | R19: 0
A20: =MAX($A$2:A19)+1 -> 18 | B20: =IFERROR(INDEX(الشاشة!$A:$U,MATCH(نوع_المخزن&$A20,الشاشة!$U:$U,0),MATCH('المراجعة بدلالة الشهر'!B$2,الشاشة!$A$1:$V$1,0)),"") ->  | C20: =IFERROR(INDEX(الشاشة!$A:$U,MATCH(نوع_المخزن&$A20,الشاشة!$U:$U,0),MATCH('المراجعة بدلالة الشهر'!C$2,الشاشة!$A$1:$V$1,0)),"") ->  | D20: =SUMIFS(الشاشة!$K:$K,الشاشة!$E:$E,B20,الشاشة!$B:$B,"<"&(EOMONTH($S$1,-1)+1),الشاشة!$A:$A,$S$9)-SUMIFS(الشاشة!$M:$M,الشاشة!$E:$E,B20,الشاشة!$B:$B,"<"&(EOMONTH($S$1,-1)+1),الشاشة!$A:$A,$S$9) -> 0 | E20: =SUMIFS(الشاشة!$K:$K,الشاشة!$E:$E,'المراجعة بدلالة الشهر'!B20,الشاشة!$B:$B,">"&EOMONTH($S$1,-1),الشاشة!$B:$B,"<="&EOMONTH($S$1,0),الشاشة!$A:$A,$S$9) -> 0 | F20: =SUMIFS(الشاشة!$M:$M,الشاشة!$E:$E,'المراجعة بدلالة الشهر'!B20,الشاشة!$B:$B,">"&EOMONTH($S$1,-1),الشاشة!$B:$B,"<="&EOMONTH($S$1,0),الشاشة!$A:$A,$S$9) -> 0 | G20: 0 | I20: 18 | L20: =SUMIFS(الشاشة!$J:$J,الشاشة!$E:$E,'المراجعة بدلالة الشهر'!B20,الشاشة!$B:$B,"<"&(EOMONTH($S$1,-1)+1),الشاشة!$A:$A,$S$9)-SUMIFS(الشاشة!$L:$L,الشاشة!$E:$E,'المراجعة بدلالة الشهر'!B20,الشاشة!$B:$B,"<"&(EOMONTH($S$1,-1)+1),الشاشة!$A:$A,$S$9) -> 0 | M20: =SUMIFS(الشاشة!$J:$J,الشاشة!$E:$E,'المراجعة بدلالة الشهر'!B20,الشاشة!$B:$B,">="&(EOMONTH('المراجعة بدلالة الشهر'!$S$1,-1)+1),الشاشة!$B:$B,"<="&(EOMONTH('المراجعة بدلالة الشهر'!$S$1,0)),الشاشة!$A:$A,$S$9) -> 0 | N20: =SUMIFS(الشاشة!$L:$L,الشاشة!$E:$E,'المراجعة بدلالة الشهر'!B20,الشاشة!$B:$B,">="&(EOMONTH('المراجعة بدلالة الشهر'!$S$1,-1)+1),الشاشة!$B:$B,"<="&(EOMONTH('المراجعة بدلالة الشهر'!$S$1,0)),الشاشة!$A:$A,$S$9) -> 0 | O20: 0 | Q20: 0 | R20: 0
A21: =MAX($A$2:A20)+1 -> 19 | B21: =IFERROR(INDEX(الشاشة!$A:$U,MATCH(نوع_المخزن&$A21,الشاشة!$U:$U,0),MATCH('المراجعة بدلالة الشهر'!B$2,الشاشة!$A$1:$V$1,0)),"") ->  | C21: =IFERROR(INDEX(الشاشة!$A:$U,MATCH(نوع_المخزن&$A21,الشاشة!$U:$U,0),MATCH('المراجعة بدلالة الشهر'!C$2,الشاشة!$A$1:$V$1,0)),"") ->  | D21: =SUMIFS(الشاشة!$K:$K,الشاشة!$E:$E,B21,الشاشة!$B:$B,"<"&(EOMONTH($S$1,-1)+1),الشاشة!$A:$A,$S$9)-SUMIFS(الشاشة!$M:$M,الشاشة!$E:$E,B21,الشاشة!$B:$B,"<"&(EOMONTH($S$1,-1)+1),الشاشة!$A:$A,$S$9) -> 0 | E21: =SUMIFS(الشاشة!$K:$K,الشاشة!$E:$E,'المراجعة بدلالة الشهر'!B21,الشاشة!$B:$B,">"&EOMONTH($S$1,-1),الشاشة!$B:$B,"<="&EOMONTH($S$1,0),الشاشة!$A:$A,$S$9) -> 0 | F21: =SUMIFS(الشاشة!$M:$M,الشاشة!$E:$E,'المراجعة بدلالة الشهر'!B21,الشاشة!$B:$B,">"&EOMONTH($S$1,-1),الشاشة!$B:$B,"<="&EOMONTH($S$1,0),الشاشة!$A:$A,$S$9) -> 0 | G21: 0 | I21: 19 | L21: =SUMIFS(الشاشة!$J:$J,الشاشة!$E:$E,'المراجعة بدلالة الشهر'!B21,الشاشة!$B:$B,"<"&(EOMONTH($S$1,-1)+1),الشاشة!$A:$A,$S$9)-SUMIFS(الشاشة!$L:$L,الشاشة!$E:$E,'المراجعة بدلالة الشهر'!B21,الشاشة!$B:$B,"<"&(EOMONTH($S$1,-1)+1),الشاشة!$A:$A,$S$9) -> 0 | M21: =SUMIFS(الشاشة!$J:$J,الشاشة!$E:$E,'المراجعة بدلالة الشهر'!B21,الشاشة!$B:$B,">="&(EOMONTH('المراجعة بدلالة الشهر'!$S$1,-1)+1),الشاشة!$B:$B,"<="&(EOMONTH('المراجعة بدلالة الشهر'!$S$1,0)),الشاشة!$A:$A,$S$9) -> 0 | N21: =SUMIFS(الشاشة!$L:$L,الشاشة!$E:$E,'المراجعة بدلالة الشهر'!B21,الشاشة!$B:$B,">="&(EOMONTH('المراجعة بدلالة الشهر'!$S$1,-1)+1),الشاشة!$B:$B,"<="&(EOMONTH('المراجعة بدلالة الشهر'!$S$1,0)),الشاشة!$A:$A,$S$9) -> 0 | O21: 0 | Q21: 0 | R21: 0
A22: =MAX($A$2:A21)+1 -> 20 | B22: =IFERROR(INDEX(الشاشة!$A:$U,MATCH(نوع_المخزن&$A22,الشاشة!$U:$U,0),MATCH('المراجعة بدلالة الشهر'!B$2,الشاشة!$A$1:$V$1,0)),"") ->  | C22: =IFERROR(INDEX(الشاشة!$A:$U,MATCH(نوع_المخزن&$A22,الشاشة!$U:$U,0),MATCH('المراجعة بدلالة الشهر'!C$2,الشاشة!$A$1:$V$1,0)),"") ->  | D22: =SUMIFS(الشاشة!$K:$K,الشاشة!$E:$E,B22,الشاشة!$B:$B,"<"&(EOMONTH($S$1,-1)+1),الشاشة!$A:$A,$S$9)-SUMIFS(الشاشة!$M:$M,الشاشة!$E:$E,B22,الشاشة!$B:$B,"<"&(EOMONTH($S$1,-1)+1),الشاشة!$A:$A,$S$9) -> 0 | E22: =SUMIFS(الشاشة!$K:$K,الشاشة!$E:$E,'المراجعة بدلالة الشهر'!B22,الشاشة!$B:$B,">"&EOMONTH($S$1,-1),الشاشة!$B:$B,"<="&EOMONTH($S$1,0),الشاشة!$A:$A,$S$9) -> 0 | F22: =SUMIFS(الشاشة!$M:$M,الشاشة!$E:$E,'المراجعة بدلالة الشهر'!B22,الشاشة!$B:$B,">"&EOMONTH($S$1,-1),الشاشة!$B:$B,"<="&EOMONTH($S$1,0),الشاشة!$A:$A,$S$9) -> 0 | G22: 0 | I22: 20 | L22: =SUMIFS(الشاشة!$J:$J,الشاشة!$E:$E,'المراجعة بدلالة الشهر'!B22,الشاشة!$B:$B,"<"&(EOMONTH($S$1,-1)+1),الشاشة!$A:$A,$S$9)-SUMIFS(الشاشة!$L:$L,الشاشة!$E:$E,'المراجعة بدلالة الشهر'!B22,الشاشة!$B:$B,"<"&(EOMONTH($S$1,-1)+1),الشاشة!$A:$A,$S$9) -> 0 | M22: =SUMIFS(الشاشة!$J:$J,الشاشة!$E:$E,'المراجعة بدلالة الشهر'!B22,الشاشة!$B:$B,">="&(EOMONTH('المراجعة بدلالة الشهر'!$S$1,-1)+1),الشاشة!$B:$B,"<="&(EOMONTH('المراجعة بدلالة الشهر'!$S$1,0)),الشاشة!$A:$A,$S$9) -> 0 | N22: =SUMIFS(الشاشة!$L:$L,الشاشة!$E:$E,'المراجعة بدلالة الشهر'!B22,الشاشة!$B:$B,">="&(EOMONTH('المراجعة بدلالة الشهر'!$S$1,-1)+1),الشاشة!$B:$B,"<="&(EOMONTH('المراجعة بدلالة الشهر'!$S$1,0)),الشاشة!$A:$A,$S$9) -> 0 | O22: 0 | Q22: 0 | R22: 0
A23: =MAX($A$2:A22)+1 -> 21 | B23: =IFERROR(INDEX(الشاشة!$A:$U,MATCH(نوع_المخزن&$A23,الشاشة!$U:$U,0),MATCH('المراجعة بدلالة الشهر'!B$2,الشاشة!$A$1:$V$1,0)),"") ->  | C23: =IFERROR(INDEX(الشاشة!$A:$U,MATCH(نوع_المخزن&$A23,الشاشة!$U:$U,0),MATCH('المراجعة بدلالة الشهر'!C$2,الشاشة!$A$1:$V$1,0)),"") ->  | D23: =SUMIFS(الشاشة!$K:$K,الشاشة!$E:$E,B23,الشاشة!$B:$B,"<"&(EOMONTH($S$1,-1)+1),الشاشة!$A:$A,$S$9)-SUMIFS(الشاشة!$M:$M,الشاشة!$E:$E,B23,الشاشة!$B:$B,"<"&(EOMONTH($S$1,-1)+1),الشاشة!$A:$A,$S$9) -> 0 | E23: =SUMIFS(الشاشة!$K:$K,الشاشة!$E:$E,'المراجعة بدلالة الشهر'!B23,الشاشة!$B:$B,">"&EOMONTH($S$1,-1),الشاشة!$B:$B,"<="&EOMONTH($S$1,0),الشاشة!$A:$A,$S$9) -> 0 | F23: =SUMIFS(الشاشة!$M:$M,الشاشة!$E:$E,'المراجعة بدلالة الشهر'!B23,الشاشة!$B:$B,">"&EOMONTH($S$1,-1),الشاشة!$B:$B,"<="&EOMONTH($S$1,0),الشاشة!$A:$A,$S$9) -> 0 | G23: 0 | I23: 21 | L23: =SUMIFS(الشاشة!$J:$J,الشاشة!$E:$E,'المراجعة بدلالة الشهر'!B23,الشاشة!$B:$B,"<"&(EOMONTH($S$1,-1)+1),الشاشة!$A:$A,$S$9)-SUMIFS(الشاشة!$L:$L,الشاشة!$E:$E,'المراجعة بدلالة الشهر'!B23,الشاشة!$B:$B,"<"&(EOMONTH($S$1,-1)+1),الشاشة!$A:$A,$S$9) -> 0 | M23: =SUMIFS(الشاشة!$J:$J,الشاشة!$E:$E,'المراجعة بدلالة الشهر'!B23,الشاشة!$B:$B,">="&(EOMONTH('المراجعة بدلالة الشهر'!$S$1,-1)+1),الشاشة!$B:$B,"<="&(EOMONTH('المراجعة بدلالة الشهر'!$S$1,0)),الشاشة!$A:$A,$S$9) -> 0 | N23: =SUMIFS(الشاشة!$L:$L,الشاشة!$E:$E,'المراجعة بدلالة الشهر'!B23,الشاشة!$B:$B,">="&(EOMONTH('المراجعة بدلالة الشهر'!$S$1,-1)+1),الشاشة!$B:$B,"<="&(EOMONTH('المراجعة بدلالة الشهر'!$S$1,0)),الشاشة!$A:$A,$S$9) -> 0 | O23: 0 | Q23: 0 | R23: 0
A24: =MAX($A$2:A23)+1 -> 22 | B24: =IFERROR(INDEX(الشاشة!$A:$U,MATCH(نوع_المخزن&$A24,الشاشة!$U:$U,0),MATCH('المراجعة بدلالة الشهر'!B$2,الشاشة!$A$1:$V$1,0)),"") ->  | C24: =IFERROR(INDEX(الشاشة!$A:$U,MATCH(نوع_المخزن&$A24,الشاشة!$U:$U,0),MATCH('المراجعة بدلالة الشهر'!C$2,الشاشة!$A$1:$V$1,0)),"") ->  | D24: =SUMIFS(الشاشة!$K:$K,الشاشة!$E:$E,B24,الشاشة!$B:$B,"<"&(EOMONTH($S$1,-1)+1),الشاشة!$A:$A,$S$9)-SUMIFS(الشاشة!$M:$M,الشاشة!$E:$E,B24,الشاشة!$B:$B,"<"&(EOMONTH($S$1,-1)+1),الشاشة!$A:$A,$S$9) -> 0 | E24: =SUMIFS(الشاشة!$K:$K,الشاشة!$E:$E,'المراجعة بدلالة الشهر'!B24,الشاشة!$B:$B,">"&EOMONTH($S$1,-1),الشاشة!$B:$B,"<="&EOMONTH($S$1,0),الشاشة!$A:$A,$S$9) -> 0 | F24: =SUMIFS(الشاشة!$M:$M,الشاشة!$E:$E,'المراجعة بدلالة الشهر'!B24,الشاشة!$B:$B,">"&EOMONTH($S$1,-1),الشاشة!$B:$B,"<="&EOMONTH($S$1,0),الشاشة!$A:$A,$S$9) -> 0 | G24: 0 | I24: 22 | L24: =SUMIFS(الشاشة!$J:$J,الشاشة!$E:$E,'المراجعة بدلالة الشهر'!B24,الشاشة!$B:$B,"<"&(EOMONTH($S$1,-1)+1),الشاشة!$A:$A,$S$9)-SUMIFS(الشاشة!$L:$L,الشاشة!$E:$E,'المراجعة بدلالة الشهر'!B24,الشاشة!$B:$B,"<"&(EOMONTH($S$1,-1)+1),الشاشة!$A:$A,$S$9) -> 0 | M24: =SUMIFS(الشاشة!$J:$J,الشاشة!$E:$E,'المراجعة بدلالة الشهر'!B24,الشاشة!$B:$B,">="&(EOMONTH('المراجعة بدلالة الشهر'!$S$1,-1)+1),الشاشة!$B:$B,"<="&(EOMONTH('المراجعة بدلالة الشهر'!$S$1,0)),الشاشة!$A:$A,$S$9) -> 0 | N24: =SUMIFS(الشاشة!$L:$L,الشاشة!$E:$E,'المراجعة بدلالة الشهر'!B24,الشاشة!$B:$B,">="&(EOMONTH('المراجعة بدلالة الشهر'!$S$1,-1)+1),الشاشة!$B:$B,"<="&(EOMONTH('المراجعة بدلالة الشهر'!$S$1,0)),الشاشة!$A:$A,$S$9) -> 0 | O24: 0 | Q24: 0 | R24: 0
A25: =MAX($A$2:A24)+1 -> 23 | B25: =IFERROR(INDEX(الشاشة!$A:$U,MATCH(نوع_المخزن&$A25,الشاشة!$U:$U,0),MATCH('المراجعة بدلالة الشهر'!B$2,الشاشة!$A$1:$V$1,0)),"") ->  | C25: =IFERROR(INDEX(الشاشة!$A:$U,MATCH(نوع_المخزن&$A25,الشاشة!$U:$U,0),MATCH('المراجعة بدلالة الشهر'!C$2,الشاشة!$A$1:$V$1,0)),"") ->  | D25: =SUMIFS(الشاشة!$K:$K,الشاشة!$E:$E,B25,الشاشة!$B:$B,"<"&(EOMONTH($S$1,-1)+1),الشاشة!$A:$A,$S$9)-SUMIFS(الشاشة!$M:$M,الشاشة!$E:$E,B25,الشاشة!$B:$B,"<"&(EOMONTH($S$1,-1)+1),الشاشة!$A:$A,$S$9) -> 0 | E25: =SUMIFS(الشاشة!$K:$K,الشاشة!$E:$E,'المراجعة بدلالة الشهر'!B25,الشاشة!$B:$B,">"&EOMONTH($S$1,-1),الشاشة!$B:$B,"<="&EOMONTH($S$1,0),الشاشة!$A:$A,$S$9) -> 0 | F25: =SUMIFS(الشاشة!$M:$M,الشاشة!$E:$E,'المراجعة بدلالة الشهر'!B25,الشاشة!$B:$B,">"&EOMONTH($S$1,-1),الشاشة!$B:$B,"<="&EOMONTH($S$1,0),الشاشة!$A:$A,$S$9) -> 0 | G25: 0 | I25: 23 | L25: =SUMIFS(الشاشة!$J:$J,الشاشة!$E:$E,'المراجعة بدلالة الشهر'!B25,الشاشة!$B:$B,"<"&(EOMONTH($S$1,-1)+1),الشاشة!$A:$A,$S$9)-SUMIFS(الشاشة!$L:$L,الشاشة!$E:$E,'المراجعة بدلالة الشهر'!B25,الشاشة!$B:$B,"<"&(EOMONTH($S$1,-1)+1),الشاشة!$A:$A,$S$9) -> 0 | M25: =SUMIFS(الشاشة!$J:$J,الشاشة!$E:$E,'المراجعة بدلالة الشهر'!B25,الشاشة!$B:$B,">="&(EOMONTH('المراجعة بدلالة الشهر'!$S$1,-1)+1),الشاشة!$B:$B,"<="&(EOMONTH('المراجعة بدلالة الشهر'!$S$1,0)),الشاشة!$A:$A,$S$9) -> 0 | N25: =SUMIFS(الشاشة!$L:$L,الشاشة!$E:$E,'المراجعة بدلالة الشهر'!B25,الشاشة!$B:$B,">="&(EOMONTH('المراجعة بدلالة الشهر'!$S$1,-1)+1),الشاشة!$B:$B,"<="&(EOMONTH('المراجعة بدلالة الشهر'!$S$1,0)),الشاشة!$A:$A,$S$9) -> 0 | O25: 0 | Q25: 0 | R25: 0
A26: =MAX($A$2:A25)+1 -> 24 | B26: =IFERROR(INDEX(الشاشة!$A:$U,MATCH(نوع_المخزن&$A26,الشاشة!$U:$U,0),MATCH('المراجعة بدلالة الشهر'!B$2,الشاشة!$A$1:$V$1,0)),"") ->  | C26: =IFERROR(INDEX(الشاشة!$A:$U,MATCH(نوع_المخزن&$A26,الشاشة!$U:$U,0),MATCH('المراجعة بدلالة الشهر'!C$2,الشاشة!$A$1:$V$1,0)),"") ->  | D26: =SUMIFS(الشاشة!$K:$K,الشاشة!$E:$E,B26,الشاشة!$B:$B,"<"&(EOMONTH($S$1,-1)+1),الشاشة!$A:$A,$S$9)-SUMIFS(الشاشة!$M:$M,الشاشة!$E:$E,B26,الشاشة!$B:$B,"<"&(EOMONTH($S$1,-1)+1),الشاشة!$A:$A,$S$9) -> 0 | E26: =SUMIFS(الشاشة!$K:$K,الشاشة!$E:$E,'المراجعة بدلالة الشهر'!B26,الشاشة!$B:$B,">"&EOMONTH($S$1,-1),الشاشة!$B:$B,"<="&EOMONTH($S$1,0),الشاشة!$A:$A,$S$9) -> 0 | F26: =SUMIFS(الشاشة!$M:$M,الشاشة!$E:$E,'المراجعة بدلالة الشهر'!B26,الشاشة!$B:$B,">"&EOMONTH($S$1,-1),الشاشة!$B:$B,"<="&EOMONTH($S$1,0),الشاشة!$A:$A,$S$9) -> 0 | G26: 0 | I26: 24 | L26: =SUMIFS(الشاشة!$J:$J,الشاشة!$E:$E,'المراجعة بدلالة الشهر'!B26,الشاشة!$B:$B,"<"&(EOMONTH($S$1,-1)+1),الشاشة!$A:$A,$S$9)-SUMIFS(الشاشة!$L:$L,الشاشة!$E:$E,'المراجعة بدلالة الشهر'!B26,الشاشة!$B:$B,"<"&(EOMONTH($S$1,-1)+1),الشاشة!$A:$A,$S$9) -> 0 | M26: =SUMIFS(الشاشة!$J:$J,الشاشة!$E:$E,'المراجعة بدلالة الشهر'!B26,الشاشة!$B:$B,">="&(EOMONTH('المراجعة بدلالة الشهر'!$S$1,-1)+1),الشاشة!$B:$B,"<="&(EOMONTH('المراجعة بدلالة الشهر'!$S$1,0)),الشاشة!$A:$A,$S$9) -> 0 | N26: =SUMIFS(الشاشة!$L:$L,الشاشة!$E:$E,'المراجعة بدلالة الشهر'!B26,الشاشة!$B:$B,">="&(EOMONTH('المراجعة بدلالة الشهر'!$S$1,-1)+1),الشاشة!$B:$B,"<="&(EOMONTH('المراجعة بدلالة الشهر'!$S$1,0)),الشاشة!$A:$A,$S$9) -> 0 | O26: 0 | Q26: 0 | R26: 0
A27: =MAX($A$2:A26)+1 -> 25 | B27: =IFERROR(INDEX(الشاشة!$A:$U,MATCH(نوع_المخزن&$A27,الشاشة!$U:$U,0),MATCH('المراجعة بدلالة الشهر'!B$2,الشاشة!$A$1:$V$1,0)),"") ->  | C27: =IFERROR(INDEX(الشاشة!$A:$U,MATCH(نوع_المخزن&$A27,الشاشة!$U:$U,0),MATCH('المراجعة بدلالة الشهر'!C$2,الشاشة!$A$1:$V$1,0)),"") ->  | D27: =SUMIFS(الشاشة!$K:$K,الشاشة!$E:$E,B27,الشاشة!$B:$B,"<"&(EOMONTH($S$1,-1)+1),الشاشة!$A:$A,$S$9)-SUMIFS(الشاشة!$M:$M,الشاشة!$E:$E,B27,الشاشة!$B:$B,"<"&(EOMONTH($S$1,-1)+1),الشاشة!$A:$A,$S$9) -> 0 | E27: =SUMIFS(الشاشة!$K:$K,الشاشة!$E:$E,'المراجعة بدلالة الشهر'!B27,الشاشة!$B:$B,">"&EOMONTH($S$1,-1),الشاشة!$B:$B,"<="&EOMONTH($S$1,0),الشاشة!$A:$A,$S$9) -> 0 | F27: =SUMIFS(الشاشة!$M:$M,الشاشة!$E:$E,'المراجعة بدلالة الشهر'!B27,الشاشة!$B:$B,">"&EOMONTH($S$1,-1),الشاشة!$B:$B,"<="&EOMONTH($S$1,0),الشاشة!$A:$A,$S$9) -> 0 | G27: 0 | I27: 25 | L27: =SUMIFS(الشاشة!$J:$J,الشاشة!$E:$E,'المراجعة بدلالة الشهر'!B27,الشاشة!$B:$B,"<"&(EOMONTH($S$1,-1)+1),الشاشة!$A:$A,$S$9)-SUMIFS(الشاشة!$L:$L,الشاشة!$E:$E,'المراجعة بدلالة الشهر'!B27,الشاشة!$B:$B,"<"&(EOMONTH($S$1,-1)+1),الشاشة!$A:$A,$S$9) -> 0 | M27: =SUMIFS(الشاشة!$J:$J,الشاشة!$E:$E,'المراجعة بدلالة الشهر'!B27,الشاشة!$B:$B,">="&(EOMONTH('المراجعة بدلالة الشهر'!$S$1,-1)+1),الشاشة!$B:$B,"<="&(EOMONTH('المراجعة بدلالة الشهر'!$S$1,0)),الشاشة!$A:$A,$S$9) -> 0 | N27: =SUMIFS(الشاشة!$L:$L,الشاشة!$E:$E,'المراجعة بدلالة الشهر'!B27,الشاشة!$B:$B,">="&(EOMONTH('المراجعة بدلالة الشهر'!$S$1,-1)+1),الشاشة!$B:$B,"<="&(EOMONTH('المراجعة بدلالة الشهر'!$S$1,0)),الشاشة!$A:$A,$S$9) -> 0 | O27: 0 | Q27: 0 | R27: 0
A28: =MAX($A$2:A27)+1 -> 26 | B28: =IFERROR(INDEX(الشاشة!$A:$U,MATCH(نوع_المخزن&$A28,الشاشة!$U:$U,0),MATCH('المراجعة بدلالة الشهر'!B$2,الشاشة!$A$1:$V$1,0)),"") ->  | C28: =IFERROR(INDEX(الشاشة!$A:$U,MATCH(نوع_المخزن&$A28,الشاشة!$U:$U,0),MATCH('المراجعة بدلالة الشهر'!C$2,الشاشة!$A$1:$V$1,0)),"") ->  | D28: =SUMIFS(الشاشة!$K:$K,الشاشة!$E:$E,B28,الشاشة!$B:$B,"<"&(EOMONTH($S$1,-1)+1),الشاشة!$A:$A,$S$9)-SUMIFS(الشاشة!$M:$M,الشاشة!$E:$E,B28,الشاشة!$B:$B,"<"&(EOMONTH($S$1,-1)+1),الشاشة!$A:$A,$S$9) -> 0 | E28: =SUMIFS(الشاشة!$K:$K,الشاشة!$E:$E,'المراجعة بدلالة الشهر'!B28,الشاشة!$B:$B,">"&EOMONTH($S$1,-1),الشاشة!$B:$B,"<="&EOMONTH($S$1,0),الشاشة!$A:$A,$S$9) -> 0 | F28: =SUMIFS(الشاشة!$M:$M,الشاشة!$E:$E,'المراجعة بدلالة الشهر'!B28,الشاشة!$B:$B,">"&EOMONTH($S$1,-1),الشاشة!$B:$B,"<="&EOMONTH($S$1,0),الشاشة!$A:$A,$S$9) -> 0 | G28: 0 | I28: 26 | L28: =SUMIFS(الشاشة!$J:$J,الشاشة!$E:$E,'المراجعة بدلالة الشهر'!B28,الشاشة!$B:$B,"<"&(EOMONTH($S$1,-1)+1),الشاشة!$A:$A,$S$9)-SUMIFS(الشاشة!$L:$L,الشاشة!$E:$E,'المراجعة بدلالة الشهر'!B28,الشاشة!$B:$B,"<"&(EOMONTH($S$1,-1)+1),الشاشة!$A:$A,$S$9) -> 0 | M28: =SUMIFS(الشاشة!$J:$J,الشاشة!$E:$E,'المراجعة بدلالة الشهر'!B28,الشاشة!$B:$B,">="&(EOMONTH('المراجعة بدلالة الشهر'!$S$1,-1)+1),الشاشة!$B:$B,"<="&(EOMONTH('المراجعة بدلالة الشهر'!$S$1,0)),الشاشة!$A:$A,$S$9) -> 0 | N28: =SUMIFS(الشاشة!$L:$L,الشاشة!$E:$E,'المراجعة بدلالة الشهر'!B28,الشاشة!$B:$B,">="&(EOMONTH('المراجعة بدلالة الشهر'!$S$1,-1)+1),الشاشة!$B:$B,"<="&(EOMONTH('المراجعة بدلالة الشهر'!$S$1,0)),الشاشة!$A:$A,$S$9) -> 0 | O28: 0 | Q28: 0 | R28: 0
A29: =MAX($A$2:A28)+1 -> 27 | B29: =IFERROR(INDEX(الشاشة!$A:$U,MATCH(نوع_المخزن&$A29,الشاشة!$U:$U,0),MATCH('المراجعة بدلالة الشهر'!B$2,الشاشة!$A$1:$V$1,0)),"") ->  | C29: =IFERROR(INDEX(الشاشة!$A:$U,MATCH(نوع_المخزن&$A29,الشاشة!$U:$U,0),MATCH('المراجعة بدلالة الشهر'!C$2,الشاشة!$A$1:$V$1,0)),"") ->  | D29: =SUMIFS(الشاشة!$K:$K,الشاشة!$E:$E,B29,الشاشة!$B:$B,"<"&(EOMONTH($S$1,-1)+1),الشاشة!$A:$A,$S$9)-SUMIFS(الشاشة!$M:$M,الشاشة!$E:$E,B29,الشاشة!$B:$B,"<"&(EOMONTH($S$1,-1)+1),الشاشة!$A:$A,$S$9) -> 0 | E29: =SUMIFS(الشاشة!$K:$K,الشاشة!$E:$E,'المراجعة بدلالة الشهر'!B29,الشاشة!$B:$B,">"&EOMONTH($S$1,-1),الشاشة!$B:$B,"<="&EOMONTH($S$1,0),الشاشة!$A:$A,$S$9) -> 0 | F29: =SUMIFS(الشاشة!$M:$M,الشاشة!$E:$E,'المراجعة بدلالة الشهر'!B29,الشاشة!$B:$B,">"&EOMONTH($S$1,-1),الشاشة!$B:$B,"<="&EOMONTH($S$1,0),الشاشة!$A:$A,$S$9) -> 0 | G29: 0 | I29: 27 | L29: =SUMIFS(الشاشة!$J:$J,الشاشة!$E:$E,'المراجعة بدلالة الشهر'!B29,الشاشة!$B:$B,"<"&(EOMONTH($S$1,-1)+1),الشاشة!$A:$A,$S$9)-SUMIFS(الشاشة!$L:$L,الشاشة!$E:$E,'المراجعة بدلالة الشهر'!B29,الشاشة!$B:$B,"<"&(EOMONTH($S$1,-1)+1),الشاشة!$A:$A,$S$9) -> 0 | M29: =SUMIFS(الشاشة!$J:$J,الشاشة!$E:$E,'المراجعة بدلالة الشهر'!B29,الشاشة!$B:$B,">="&(EOMONTH('المراجعة بدلالة الشهر'!$S$1,-1)+1),الشاشة!$B:$B,"<="&(EOMONTH('المراجعة بدلالة الشهر'!$S$1,0)),الشاشة!$A:$A,$S$9) -> 0 | N29: =SUMIFS(الشاشة!$L:$L,الشاشة!$E:$E,'المراجعة بدلالة الشهر'!B29,الشاشة!$B:$B,">="&(EOMONTH('المراجعة بدلالة الشهر'!$S$1,-1)+1),الشاشة!$B:$B,"<="&(EOMONTH('المراجعة بدلالة الشهر'!$S$1,0)),الشاشة!$A:$A,$S$9) -> 0 | O29: 0 | Q29: 0 | R29: 0
A30: =MAX($A$2:A29)+1 -> 28 | B30: =IFERROR(INDEX(الشاشة!$A:$U,MATCH(نوع_المخزن&$A30,الشاشة!$U:$U,0),MATCH('المراجعة بدلالة الشهر'!B$2,الشاشة!$A$1:$V$1,0)),"") ->  | C30: =IFERROR(INDEX(الشاشة!$A:$U,MATCH(نوع_المخزن&$A30,الشاشة!$U:$U,0),MATCH('المراجعة بدلالة الشهر'!C$2,الشاشة!$A$1:$V$1,0)),"") ->  | D30: =SUMIFS(الشاشة!$K:$K,الشاشة!$E:$E,B30,الشاشة!$B:$B,"<"&(EOMONTH($S$1,-1)+1),الشاشة!$A:$A,$S$9)-SUMIFS(الشاشة!$M:$M,الشاشة!$E:$E,B30,الشاشة!$B:$B,"<"&(EOMONTH($S$1,-1)+1),الشاشة!$A:$A,$S$9) -> 0 | E30: =SUMIFS(الشاشة!$K:$K,الشاشة!$E:$E,'المراجعة بدلالة الشهر'!B30,الشاشة!$B:$B,">"&EOMONTH($S$1,-1),الشاشة!$B:$B,"<="&EOMONTH($S$1,0),الشاشة!$A:$A,$S$9) -> 0 | F30: =SUMIFS(الشاشة!$M:$M,الشاشة!$E:$E,'المراجعة بدلالة الشهر'!B30,الشاشة!$B:$B,">"&EOMONTH($S$1,-1),الشاشة!$B:$B,"<="&EOMONTH($S$1,0),الشاشة!$A:$A,$S$9) -> 0 | G30: 0 | I30: 28 | L30: =SUMIFS(الشاشة!$J:$J,الشاشة!$E:$E,'المراجعة بدلالة الشهر'!B30,الشاشة!$B:$B,"<"&(EOMONTH($S$1,-1)+1),الشاشة!$A:$A,$S$9)-SUMIFS(الشاشة!$L:$L,الشاشة!$E:$E,'المراجعة بدلالة الشهر'!B30,الشاشة!$B:$B,"<"&(EOMONTH($S$1,-1)+1),الشاشة!$A:$A,$S$9) -> 0 | M30: =SUMIFS(الشاشة!$J:$J,الشاشة!$E:$E,'المراجعة بدلالة الشهر'!B30,الشاشة!$B:$B,">="&(EOMONTH('المراجعة بدلالة الشهر'!$S$1,-1)+1),الشاشة!$B:$B,"<="&(EOMONTH('المراجعة بدلالة الشهر'!$S$1,0)),الشاشة!$A:$A,$S$9) -> 0 | N30: =SUMIFS(الشاشة!$L:$L,الشاشة!$E:$E,'المراجعة بدلالة الشهر'!B30,الشاشة!$B:$B,">="&(EOMONTH('المراجعة بدلالة الشهر'!$S$1,-1)+1),الشاشة!$B:$B,"<="&(EOMONTH('المراجعة بدلالة الشهر'!$S$1,0)),الشاشة!$A:$A,$S$9) -> 0 | O30: 0 | Q30: 0 | R30: 0
A31: =MAX($A$2:A30)+1 -> 29 | B31: =IFERROR(INDEX(الشاشة!$A:$U,MATCH(نوع_المخزن&$A31,الشاشة!$U:$U,0),MATCH('المراجعة بدلالة الشهر'!B$2,الشاشة!$A$1:$V$1,0)),"") ->  | C31: =IFERROR(INDEX(الشاشة!$A:$U,MATCH(نوع_المخزن&$A31,الشاشة!$U:$U,0),MATCH('المراجعة بدلالة الشهر'!C$2,الشاشة!$A$1:$V$1,0)),"") ->  | D31: =SUMIFS(الشاشة!$K:$K,الشاشة!$E:$E,B31,الشاشة!$B:$B,"<"&(EOMONTH($S$1,-1)+1),الشاشة!$A:$A,$S$9)-SUMIFS(الشاشة!$M:$M,الشاشة!$E:$E,B31,الشاشة!$B:$B,"<"&(EOMONTH($S$1,-1)+1),الشاشة!$A:$A,$S$9) -> 0 | E31: =SUMIFS(الشاشة!$K:$K,الشاشة!$E:$E,'المراجعة بدلالة الشهر'!B31,الشاشة!$B:$B,">"&EOMONTH($S$1,-1),الشاشة!$B:$B,"<="&EOMONTH($S$1,0),الشاشة!$A:$A,$S$9) -> 0 | F31: =SUMIFS(الشاشة!$M:$M,الشاشة!$E:$E,'المراجعة بدلالة الشهر'!B31,الشاشة!$B:$B,">"&EOMONTH($S$1,-1),الشاشة!$B:$B,"<="&EOMONTH($S$1,0),الشاشة!$A:$A,$S$9) -> 0 | G31: 0 | I31: 29 | L31: =SUMIFS(الشاشة!$J:$J,الشاشة!$E:$E,'المراجعة بدلالة الشهر'!B31,الشاشة!$B:$B,"<"&(EOMONTH($S$1,-1)+1),الشاشة!$A:$A,$S$9)-SUMIFS(الشاشة!$L:$L,الشاشة!$E:$E,'المراجعة بدلالة الشهر'!B31,الشاشة!$B:$B,"<"&(EOMONTH($S$1,-1)+1),الشاشة!$A:$A,$S$9) -> 0 | M31: =SUMIFS(الشاشة!$J:$J,الشاشة!$E:$E,'المراجعة بدلالة الشهر'!B31,الشاشة!$B:$B,">="&(EOMONTH('المراجعة بدلالة الشهر'!$S$1,-1)+1),الشاشة!$B:$B,"<="&(EOMONTH('المراجعة بدلالة الشهر'!$S$1,0)),الشاشة!$A:$A,$S$9) -> 0 | N31: =SUMIFS(الشاشة!$L:$L,الشاشة!$E:$E,'المراجعة بدلالة الشهر'!B31,الشاشة!$B:$B,">="&(EOMONTH('المراجعة بدلالة الشهر'!$S$1,-1)+1),الشاشة!$B:$B,"<="&(EOMONTH('المراجعة بدلالة الشهر'!$S$1,0)),الشاشة!$A:$A,$S$9) -> 0 | O31: 0 | Q31: 0 | R31: 0
A32: =MAX($A$2:A31)+1 -> 30 | B32: =IFERROR(INDEX(الشاشة!$A:$U,MATCH(نوع_المخزن&$A32,الشاشة!$U:$U,0),MATCH('المراجعة بدلالة الشهر'!B$2,الشاشة!$A$1:$V$1,0)),"") ->  | C32: =IFERROR(INDEX(الشاشة!$A:$U,MATCH(نوع_المخزن&$A32,الشاشة!$U:$U,0),MATCH('المراجعة بدلالة الشهر'!C$2,الشاشة!$A$1:$V$1,0)),"") ->  | D32: =SUMIFS(الشاشة!$K:$K,الشاشة!$E:$E,B32,الشاشة!$B:$B,"<"&(EOMONTH($S$1,-1)+1),الشاشة!$A:$A,$S$9)-SUMIFS(الشاشة!$M:$M,الشاشة!$E:$E,B32,الشاشة!$B:$B,"<"&(EOMONTH($S$1,-1)+1),الشاشة!$A:$A,$S$9) -> 0 | E32: =SUMIFS(الشاشة!$K:$K,الشاشة!$E:$E,'المراجعة بدلالة الشهر'!B32,الشاشة!$B:$B,">"&EOMONTH($S$1,-1),الشاشة!$B:$B,"<="&EOMONTH($S$1,0),الشاشة!$A:$A,$S$9) -> 0 | F32: =SUMIFS(الشاشة!$M:$M,الشاشة!$E:$E,'المراجعة بدلالة الشهر'!B32,الشاشة!$B:$B,">"&EOMONTH($S$1,-1),الشاشة!$B:$B,"<="&EOMONTH($S$1,0),الشاشة!$A:$A,$S$9) -> 0 | G32: 0 | I32: 30 | L32: =SUMIFS(الشاشة!$J:$J,الشاشة!$E:$E,'المراجعة بدلالة الشهر'!B32,الشاشة!$B:$B,"<"&(EOMONTH($S$1,-1)+1),الشاشة!$A:$A,$S$9)-SUMIFS(الشاشة!$L:$L,الشاشة!$E:$E,'المراجعة بدلالة الشهر'!B32,الشاشة!$B:$B,"<"&(EOMONTH($S$1,-1)+1),الشاشة!$A:$A,$S$9) -> 0 | M32: =SUMIFS(الشاشة!$J:$J,الشاشة!$E:$E,'المراجعة بدلالة الشهر'!B32,الشاشة!$B:$B,">="&(EOMONTH('المراجعة بدلالة الشهر'!$S$1,-1)+1),الشاشة!$B:$B,"<="&(EOMONTH('المراجعة بدلالة الشهر'!$S$1,0)),الشاشة!$A:$A,$S$9) -> 0 | N32: =SUMIFS(الشاشة!$L:$L,الشاشة!$E:$E,'المراجعة بدلالة الشهر'!B32,الشاشة!$B:$B,">="&(EOMONTH('المراجعة بدلالة الشهر'!$S$1,-1)+1),الشاشة!$B:$B,"<="&(EOMONTH('المراجعة بدلالة الشهر'!$S$1,0)),الشاشة!$A:$A,$S$9) -> 0 | O32: 0 | Q32: 0 | R32: 0
A33: =MAX($A$2:A32)+1 -> 31 | B33: =IFERROR(INDEX(الشاشة!$A:$U,MATCH(نوع_المخزن&$A33,الشاشة!$U:$U,0),MATCH('المراجعة بدلالة الشهر'!B$2,الشاشة!$A$1:$V$1,0)),"") ->  | C33: =IFERROR(INDEX(الشاشة!$A:$U,MATCH(نوع_المخزن&$A33,الشاشة!$U:$U,0),MATCH('المراجعة بدلالة الشهر'!C$2,الشاشة!$A$1:$V$1,0)),"") ->  | D33: =SUMIFS(الشاشة!$K:$K,الشاشة!$E:$E,B33,الشاشة!$B:$B,"<"&(EOMONTH($S$1,-1)+1),الشاشة!$A:$A,$S$9)-SUMIFS(الشاشة!$M:$M,الشاشة!$E:$E,B33,الشاشة!$B:$B,"<"&(EOMONTH($S$1,-1)+1),الشاشة!$A:$A,$S$9) -> 0 | E33: =SUMIFS(الشاشة!$K:$K,الشاشة!$E:$E,'المراجعة بدلالة الشهر'!B33,الشاشة!$B:$B,">"&EOMONTH($S$1,-1),الشاشة!$B:$B,"<="&EOMONTH($S$1,0),الشاشة!$A:$A,$S$9) -> 0 | F33: =SUMIFS(الشاشة!$M:$M,الشاشة!$E:$E,'المراجعة بدلالة الشهر'!B33,الشاشة!$B:$B,">"&EOMONTH($S$1,-1),الشاشة!$B:$B,"<="&EOMONTH($S$1,0),الشاشة!$A:$A,$S$9) -> 0 | G33: 0 | I33: 31 | L33: =SUMIFS(الشاشة!$J:$J,الشاشة!$E:$E,'المراجعة بدلالة الشهر'!B33,الشاشة!$B:$B,"<"&(EOMONTH($S$1,-1)+1),الشاشة!$A:$A,$S$9)-SUMIFS(الشاشة!$L:$L,الشاشة!$E:$E,'المراجعة بدلالة الشهر'!B33,الشاشة!$B:$B,"<"&(EOMONTH($S$1,-1)+1),الشاشة!$A:$A,$S$9) -> 0 | M33: =SUMIFS(الشاشة!$J:$J,الشاشة!$E:$E,'المراجعة بدلالة الشهر'!B33,الشاشة!$B:$B,">="&(EOMONTH('المراجعة بدلالة الشهر'!$S$1,-1)+1),الشاشة!$B:$B,"<="&(EOMONTH('المراجعة بدلالة الشهر'!$S$1,0)),الشاشة!$A:$A,$S$9) -> 0 | N33: =SUMIFS(الشاشة!$L:$L,الشاشة!$E:$E,'المراجعة بدلالة الشهر'!B33,الشاشة!$B:$B,">="&(EOMONTH('المراجعة بدلالة الشهر'!$S$1,-1)+1),الشاشة!$B:$B,"<="&(EOMONTH('المراجعة بدلالة الشهر'!$S$1,0)),الشاشة!$A:$A,$S$9) -> 0 | O33: 0 | Q33: 0 | R33: 0
A34: =MAX($A$2:A33)+1 -> 32 | B34: =IFERROR(INDEX(الشاشة!$A:$U,MATCH(نوع_المخزن&$A34,الشاشة!$U:$U,0),MATCH('المراجعة بدلالة الشهر'!B$2,الشاشة!$A$1:$V$1,0)),"") ->  | C34: =IFERROR(INDEX(الشاشة!$A:$U,MATCH(نوع_المخزن&$A34,الشاشة!$U:$U,0),MATCH('المراجعة بدلالة الشهر'!C$2,الشاشة!$A$1:$V$1,0)),"") ->  | D34: =SUMIFS(الشاشة!$K:$K,الشاشة!$E:$E,B34,الشاشة!$B:$B,"<"&(EOMONTH($S$1,-1)+1),الشاشة!$A:$A,$S$9)-SUMIFS(الشاشة!$M:$M,الشاشة!$E:$E,B34,الشاشة!$B:$B,"<"&(EOMONTH($S$1,-1)+1),الشاشة!$A:$A,$S$9) -> 0 | E34: =SUMIFS(الشاشة!$K:$K,الشاشة!$E:$E,'المراجعة بدلالة الشهر'!B34,الشاشة!$B:$B,">"&EOMONTH($S$1,-1),الشاشة!$B:$B,"<="&EOMONTH($S$1,0),الشاشة!$A:$A,$S$9) -> 0 | F34: =SUMIFS(الشاشة!$M:$M,الشاشة!$E:$E,'المراجعة بدلالة الشهر'!B34,الشاشة!$B:$B,">"&EOMONTH($S$1,-1),الشاشة!$B:$B,"<="&EOMONTH($S$1,0),الشاشة!$A:$A,$S$9) -> 0 | G34: 0 | I34: 32 | L34: =SUMIFS(الشاشة!$J:$J,الشاشة!$E:$E,'المراجعة بدلالة الشهر'!B34,الشاشة!$B:$B,"<"&(EOMONTH($S$1,-1)+1),الشاشة!$A:$A,$S$9)-SUMIFS(الشاشة!$L:$L,الشاشة!$E:$E,'المراجعة بدلالة الشهر'!B34,الشاشة!$B:$B,"<"&(EOMONTH($S$1,-1)+1),الشاشة!$A:$A,$S$9) -> 0 | M34: =SUMIFS(الشاشة!$J:$J,الشاشة!$E:$E,'المراجعة بدلالة الشهر'!B34,الشاشة!$B:$B,">="&(EOMONTH('المراجعة بدلالة الشهر'!$S$1,-1)+1),الشاشة!$B:$B,"<="&(EOMONTH('المراجعة بدلالة الشهر'!$S$1,0)),الشاشة!$A:$A,$S$9) -> 0 | N34: =SUMIFS(الشاشة!$L:$L,الشاشة!$E:$E,'المراجعة بدلالة الشهر'!B34,الشاشة!$B:$B,">="&(EOMONTH('المراجعة بدلالة الشهر'!$S$1,-1)+1),الشاشة!$B:$B,"<="&(EOMONTH('المراجعة بدلالة الشهر'!$S$1,0)),الشاشة!$A:$A,$S$9) -> 0 | O34: 0 | Q34: 0 | R34: 0
A35: =MAX($A$2:A34)+1 -> 33 | B35: =IFERROR(INDEX(الشاشة!$A:$U,MATCH(نوع_المخزن&$A35,الشاشة!$U:$U,0),MATCH('المراجعة بدلالة الشهر'!B$2,الشاشة!$A$1:$V$1,0)),"") ->  | C35: =IFERROR(INDEX(الشاشة!$A:$U,MATCH(نوع_المخزن&$A35,الشاشة!$U:$U,0),MATCH('المراجعة بدلالة الشهر'!C$2,الشاشة!$A$1:$V$1,0)),"") ->  | D35: =SUMIFS(الشاشة!$K:$K,الشاشة!$E:$E,B35,الشاشة!$B:$B,"<"&(EOMONTH($S$1,-1)+1),الشاشة!$A:$A,$S$9)-SUMIFS(الشاشة!$M:$M,الشاشة!$E:$E,B35,الشاشة!$B:$B,"<"&(EOMONTH($S$1,-1)+1),الشاشة!$A:$A,$S$9) -> 0 | E35: =SUMIFS(الشاشة!$K:$K,الشاشة!$E:$E,'المراجعة بدلالة الشهر'!B35,الشاشة!$B:$B,">"&EOMONTH($S$1,-1),الشاشة!$B:$B,"<="&EOMONTH($S$1,0),الشاشة!$A:$A,$S$9) -> 0 | F35: =SUMIFS(الشاشة!$M:$M,الشاشة!$E:$E,'المراجعة بدلالة الشهر'!B35,الشاشة!$B:$B,">"&EOMONTH($S$1,-1),الشاشة!$B:$B,"<="&EOMONTH($S$1,0),الشاشة!$A:$A,$S$9) -> 0 | G35: 0 | I35: 33 | L35: =SUMIFS(الشاشة!$J:$J,الشاشة!$E:$E,'المراجعة بدلالة الشهر'!B35,الشاشة!$B:$B,"<"&(EOMONTH($S$1,-1)+1),الشاشة!$A:$A,$S$9)-SUMIFS(الشاشة!$L:$L,الشاشة!$E:$E,'المراجعة بدلالة الشهر'!B35,الشاشة!$B:$B,"<"&(EOMONTH($S$1,-1)+1),الشاشة!$A:$A,$S$9) -> 0 | M35: =SUMIFS(الشاشة!$J:$J,الشاشة!$E:$E,'المراجعة بدلالة الشهر'!B35,الشاشة!$B:$B,">="&(EOMONTH('المراجعة بدلالة الشهر'!$S$1,-1)+1),الشاشة!$B:$B,"<="&(EOMONTH('المراجعة بدلالة الشهر'!$S$1,0)),الشاشة!$A:$A,$S$9) -> 0 | N35: =SUMIFS(الشاشة!$L:$L,الشاشة!$E:$E,'المراجعة بدلالة الشهر'!B35,الشاشة!$B:$B,">="&(EOMONTH('المراجعة بدلالة الشهر'!$S$1,-1)+1),الشاشة!$B:$B,"<="&(EOMONTH('المراجعة بدلالة الشهر'!$S$1,0)),الشاشة!$A:$A,$S$9) -> 0 | O35: 0 | Q35: =O35-P35 -> 0 | R35: =IFERROR(ROUND(G35/((L35+O35)/2),2),0) -> 0
A36: =MAX($A$2:A35)+1 -> 34 | B36: =IFERROR(INDEX(الشاشة!$A:$U,MATCH(نوع_المخزن&$A36,الشاشة!$U:$U,0),MATCH('المراجعة بدلالة الشهر'!B$2,الشاشة!$A$1:$V$1,0)),"") ->  | C36: =IFERROR(INDEX(الشاشة!$A:$U,MATCH(نوع_المخزن&$A36,الشاشة!$U:$U,0),MATCH('المراجعة بدلالة الشهر'!C$2,الشاشة!$A$1:$V$1,0)),"") ->  | D36: =SUMIFS(الشاشة!$K:$K,الشاشة!$E:$E,B36,الشاشة!$B:$B,"<"&(EOMONTH($S$1,-1)+1),الشاشة!$A:$A,$S$9)-SUMIFS(الشاشة!$M:$M,الشاشة!$E:$E,B36,الشاشة!$B:$B,"<"&(EOMONTH($S$1,-1)+1),الشاشة!$A:$A,$S$9) -> 0 | E36: =SUMIFS(الشاشة!$K:$K,الشاشة!$E:$E,'المراجعة بدلالة الشهر'!B36,الشاشة!$B:$B,">"&EOMONTH($S$1,-1),الشاشة!$B:$B,"<="&EOMONTH($S$1,0),الشاشة!$A:$A,$S$9) -> 0 | F36: =SUMIFS(الشاشة!$M:$M,الشاشة!$E:$E,'المراجعة بدلالة الشهر'!B36,الشاشة!$B:$B,">"&EOMONTH($S$1,-1),الشاشة!$B:$B,"<="&EOMONTH($S$1,0),الشاشة!$A:$A,$S$9) -> 0 | G36: 0 | I36: 34 | L36: =SUMIFS(الشاشة!$J:$J,الشاشة!$E:$E,'المراجعة بدلالة الشهر'!B36,الشاشة!$B:$B,"<"&(EOMONTH($S$1,-1)+1),الشاشة!$A:$A,$S$9)-SUMIFS(الشاشة!$L:$L,الشاشة!$E:$E,'المراجعة بدلالة الشهر'!B36,الشاشة!$B:$B,"<"&(EOMONTH($S$1,-1)+1),الشاشة!$A:$A,$S$9) -> 0 | M36: =SUMIFS(الشاشة!$J:$J,الشاشة!$E:$E,'المراجعة بدلالة الشهر'!B36,الشاشة!$B:$B,">="&(EOMONTH('المراجعة بدلالة الشهر'!$S$1,-1)+1),الشاشة!$B:$B,"<="&(EOMONTH('المراجعة بدلالة الشهر'!$S$1,0)),الشاشة!$A:$A,$S$9) -> 0 | N36: =SUMIFS(الشاشة!$L:$L,الشاشة!$E:$E,'المراجعة بدلالة الشهر'!B36,الشاشة!$B:$B,">="&(EOMONTH('المراجعة بدلالة الشهر'!$S$1,-1)+1),الشاشة!$B:$B,"<="&(EOMONTH('المراجعة بدلالة الشهر'!$S$1,0)),الشاشة!$A:$A,$S$9) -> 0 | O36: 0 | Q36: 0 | R36: 0
A37: =MAX($A$2:A36)+1 -> 35 | B37: =IFERROR(INDEX(الشاشة!$A:$U,MATCH(نوع_المخزن&$A37,الشاشة!$U:$U,0),MATCH('المراجعة بدلالة الشهر'!B$2,الشاشة!$A$1:$V$1,0)),"") ->  | C37: =IFERROR(INDEX(الشاشة!$A:$U,MATCH(نوع_المخزن&$A37,الشاشة!$U:$U,0),MATCH('المراجعة بدلالة الشهر'!C$2,الشاشة!$A$1:$V$1,0)),"") ->  | D37: =SUMIFS(الشاشة!$K:$K,الشاشة!$E:$E,B37,الشاشة!$B:$B,"<"&(EOMONTH($S$1,-1)+1),الشاشة!$A:$A,$S$9)-SUMIFS(الشاشة!$M:$M,الشاشة!$E:$E,B37,الشاشة!$B:$B,"<"&(EOMONTH($S$1,-1)+1),الشاشة!$A:$A,$S$9) -> 0 | E37: =SUMIFS(الشاشة!$K:$K,الشاشة!$E:$E,'المراجعة بدلالة الشهر'!B37,الشاشة!$B:$B,">"&EOMONTH($S$1,-1),الشاشة!$B:$B,"<="&EOMONTH($S$1,0),الشاشة!$A:$A,$S$9) -> 0 | F37: =SUMIFS(الشاشة!$M:$M,الشاشة!$E:$E,'المراجعة بدلالة الشهر'!B37,الشاشة!$B:$B,">"&EOMONTH($S$1,-1),الشاشة!$B:$B,"<="&EOMONTH($S$1,0),الشاشة!$A:$A,$S$9) -> 0 | G37: 0 | I37: 35 | L37: =SUMIFS(الشاشة!$J:$J,الشاشة!$E:$E,'المراجعة بدلالة الشهر'!B37,الشاشة!$B:$B,"<"&(EOMONTH($S$1,-1)+1),الشاشة!$A:$A,$S$9)-SUMIFS(الشاشة!$L:$L,الشاشة!$E:$E,'المراجعة بدلالة الشهر'!B37,الشاشة!$B:$B,"<"&(EOMONTH($S$1,-1)+1),الشاشة!$A:$A,$S$9) -> 0 | M37: =SUMIFS(الشاشة!$J:$J,الشاشة!$E:$E,'المراجعة بدلالة الشهر'!B37,الشاشة!$B:$B,">="&(EOMONTH('المراجعة بدلالة الشهر'!$S$1,-1)+1),الشاشة!$B:$B,"<="&(EOMONTH('المراجعة بدلالة الشهر'!$S$1,0)),الشاشة!$A:$A,$S$9) -> 0 | N37: =SUMIFS(الشاشة!$L:$L,الشاشة!$E:$E,'المراجعة بدلالة الشهر'!B37,الشاشة!$B:$B,">="&(EOMONTH('المراجعة بدلالة الشهر'!$S$1,-1)+1),الشاشة!$B:$B,"<="&(EOMONTH('المراجعة بدلالة الشهر'!$S$1,0)),الشاشة!$A:$A,$S$9) -> 0 | O37: 0 | Q37: 0 | R37: 0
A38: =MAX($A$2:A37)+1 -> 36 | B38: =IFERROR(INDEX(الشاشة!$A:$U,MATCH(نوع_المخزن&$A38,الشاشة!$U:$U,0),MATCH('المراجعة بدلالة الشهر'!B$2,الشاشة!$A$1:$V$1,0)),"") ->  | C38: =IFERROR(INDEX(الشاشة!$A:$U,MATCH(نوع_المخزن&$A38,الشاشة!$U:$U,0),MATCH('المراجعة بدلالة الشهر'!C$2,الشاشة!$A$1:$V$1,0)),"") ->  | D38: =SUMIFS(الشاشة!$K:$K,الشاشة!$E:$E,B38,الشاشة!$B:$B,"<"&(EOMONTH($S$1,-1)+1),الشاشة!$A:$A,$S$9)-SUMIFS(الشاشة!$M:$M,الشاشة!$E:$E,B38,الشاشة!$B:$B,"<"&(EOMONTH($S$1,-1)+1),الشاشة!$A:$A,$S$9) -> 0 | E38: =SUMIFS(الشاشة!$K:$K,الشاشة!$E:$E,'المراجعة بدلالة الشهر'!B38,الشاشة!$B:$B,">"&EOMONTH($S$1,-1),الشاشة!$B:$B,"<="&EOMONTH($S$1,0),الشاشة!$A:$A,$S$9) -> 0 | F38: =SUMIFS(الشاشة!$M:$M,الشاشة!$E:$E,'المراجعة بدلالة الشهر'!B38,الشاشة!$B:$B,">"&EOMONTH($S$1,-1),الشاشة!$B:$B,"<="&EOMONTH($S$1,0),الشاشة!$A:$A,$S$9) -> 0 | G38: 0 | I38: 36 | L38: =SUMIFS(الشاشة!$J:$J,الشاشة!$E:$E,'المراجعة بدلالة الشهر'!B38,الشاشة!$B:$B,"<"&(EOMONTH($S$1,-1)+1),الشاشة!$A:$A,$S$9)-SUMIFS(الشاشة!$L:$L,الشاشة!$E:$E,'المراجعة بدلالة الشهر'!B38,الشاشة!$B:$B,"<"&(EOMONTH($S$1,-1)+1),الشاشة!$A:$A,$S$9) -> 0 | M38: =SUMIFS(الشاشة!$J:$J,الشاشة!$E:$E,'المراجعة بدلالة الشهر'!B38,الشاشة!$B:$B,">="&(EOMONTH('المراجعة بدلالة الشهر'!$S$1,-1)+1),الشاشة!$B:$B,"<="&(EOMONTH('المراجعة بدلالة الشهر'!$S$1,0)),الشاشة!$A:$A,$S$9) -> 0 | N38: =SUMIFS(الشاشة!$L:$L,الشاشة!$E:$E,'المراجعة بدلالة الشهر'!B38,الشاشة!$B:$B,">="&(EOMONTH('المراجعة بدلالة الشهر'!$S$1,-1)+1),الشاشة!$B:$B,"<="&(EOMONTH('المراجعة بدلالة الشهر'!$S$1,0)),الشاشة!$A:$A,$S$9) -> 0 | O38: 0 | Q38: 0 | R38: 0
A39: =MAX($A$2:A38)+1 -> 37 | B39: =IFERROR(INDEX(الشاشة!$A:$U,MATCH(نوع_المخزن&$A39,الشاشة!$U:$U,0),MATCH('المراجعة بدلالة الشهر'!B$2,الشاشة!$A$1:$V$1,0)),"") ->  | C39: =IFERROR(INDEX(الشاشة!$A:$U,MATCH(نوع_المخزن&$A39,الشاشة!$U:$U,0),MATCH('المراجعة بدلالة الشهر'!C$2,الشاشة!$A$1:$V$1,0)),"") ->  | D39: =SUMIFS(الشاشة!$K:$K,الشاشة!$E:$E,B39,الشاشة!$B:$B,"<"&(EOMONTH($S$1,-1)+1),الشاشة!$A:$A,$S$9)-SUMIFS(الشاشة!$M:$M,الشاشة!$E:$E,B39,الشاشة!$B:$B,"<"&(EOMONTH($S$1,-1)+1),الشاشة!$A:$A,$S$9) -> 0 | E39: =SUMIFS(الشاشة!$K:$K,الشاشة!$E:$E,'المراجعة بدلالة الشهر'!B39,الشاشة!$B:$B,">"&EOMONTH($S$1,-1),الشاشة!$B:$B,"<="&EOMONTH($S$1,0),الشاشة!$A:$A,$S$9) -> 0 | F39: =SUMIFS(الشاشة!$M:$M,الشاشة!$E:$E,'المراجعة بدلالة الشهر'!B39,الشاشة!$B:$B,">"&EOMONTH($S$1,-1),الشاشة!$B:$B,"<="&EOMONTH($S$1,0),الشاشة!$A:$A,$S$9) -> 0 | G39: 0 | I39: 37 | L39: =SUMIFS(الشاشة!$J:$J,الشاشة!$E:$E,'المراجعة بدلالة الشهر'!B39,الشاشة!$B:$B,"<"&(EOMONTH($S$1,-1)+1),الشاشة!$A:$A,$S$9)-SUMIFS(الشاشة!$L:$L,الشاشة!$E:$E,'المراجعة بدلالة الشهر'!B39,الشاشة!$B:$B,"<"&(EOMONTH($S$1,-1)+1),الشاشة!$A:$A,$S$9) -> 0 | M39: =SUMIFS(الشاشة!$J:$J,الشاشة!$E:$E,'المراجعة بدلالة الشهر'!B39,الشاشة!$B:$B,">="&(EOMONTH('المراجعة بدلالة الشهر'!$S$1,-1)+1),الشاشة!$B:$B,"<="&(EOMONTH('المراجعة بدلالة الشهر'!$S$1,0)),الشاشة!$A:$A,$S$9) -> 0 | N39: =SUMIFS(الشاشة!$L:$L,الشاشة!$E:$E,'المراجعة بدلالة الشهر'!B39,الشاشة!$B:$B,">="&(EOMONTH('المراجعة بدلالة الشهر'!$S$1,-1)+1),الشاشة!$B:$B,"<="&(EOMONTH('المراجعة بدلالة الشهر'!$S$1,0)),الشاشة!$A:$A,$S$9) -> 0 | O39: 0 | Q39: 0 | R39: 0
A40: =MAX($A$2:A39)+1 -> 38 | B40: =IFERROR(INDEX(الشاشة!$A:$U,MATCH(نوع_المخزن&$A40,الشاشة!$U:$U,0),MATCH('المراجعة بدلالة الشهر'!B$2,الشاشة!$A$1:$V$1,0)),"") ->  | C40: =IFERROR(INDEX(الشاشة!$A:$U,MATCH(نوع_المخزن&$A40,الشاشة!$U:$U,0),MATCH('المراجعة بدلالة الشهر'!C$2,الشاشة!$A$1:$V$1,0)),"") ->  | D40: =SUMIFS(الشاشة!$K:$K,الشاشة!$E:$E,B40,الشاشة!$B:$B,"<"&(EOMONTH($S$1,-1)+1),الشاشة!$A:$A,$S$9)-SUMIFS(الشاشة!$M:$M,الشاشة!$E:$E,B40,الشاشة!$B:$B,"<"&(EOMONTH($S$1,-1)+1),الشاشة!$A:$A,$S$9) -> 0 | E40: =SUMIFS(الشاشة!$K:$K,الشاشة!$E:$E,'المراجعة بدلالة الشهر'!B40,الشاشة!$B:$B,">"&EOMONTH($S$1,-1),الشاشة!$B:$B,"<="&EOMONTH($S$1,0),الشاشة!$A:$A,$S$9) -> 0 | F40: =SUMIFS(الشاشة!$M:$M,الشاشة!$E:$E,'المراجعة بدلالة الشهر'!B40,الشاشة!$B:$B,">"&EOMONTH($S$1,-1),الشاشة!$B:$B,"<="&EOMONTH($S$1,0),الشاشة!$A:$A,$S$9) -> 0 | G40: 0 | I40: 38 | L40: =SUMIFS(الشاشة!$J:$J,الشاشة!$E:$E,'المراجعة بدلالة الشهر'!B40,الشاشة!$B:$B,"<"&(EOMONTH($S$1,-1)+1),الشاشة!$A:$A,$S$9)-SUMIFS(الشاشة!$L:$L,الشاشة!$E:$E,'المراجعة بدلالة الشهر'!B40,الشاشة!$B:$B,"<"&(EOMONTH($S$1,-1)+1),الشاشة!$A:$A,$S$9) -> 0 | M40: =SUMIFS(الشاشة!$J:$J,الشاشة!$E:$E,'المراجعة بدلالة الشهر'!B40,الشاشة!$B:$B,">="&(EOMONTH('المراجعة بدلالة الشهر'!$S$1,-1)+1),الشاشة!$B:$B,"<="&(EOMONTH('المراجعة بدلالة الشهر'!$S$1,0)),الشاشة!$A:$A,$S$9) -> 0 | N40: =SUMIFS(الشاشة!$L:$L,الشاشة!$E:$E,'المراجعة بدلالة الشهر'!B40,الشاشة!$B:$B,">="&(EOMONTH('المراجعة بدلالة الشهر'!$S$1,-1)+1),الشاشة!$B:$B,"<="&(EOMONTH('المراجعة بدلالة الشهر'!$S$1,0)),الشاشة!$A:$A,$S$9) -> 0 | O40: 0 | Q40: 0 | R40: 0
A41: =MAX($A$2:A40)+1 -> 39 | B41: =IFERROR(INDEX(الشاشة!$A:$U,MATCH(نوع_المخزن&$A41,الشاشة!$U:$U,0),MATCH('المراجعة بدلالة الشهر'!B$2,الشاشة!$A$1:$V$1,0)),"") ->  | C41: =IFERROR(INDEX(الشاشة!$A:$U,MATCH(نوع_المخزن&$A41,الشاشة!$U:$U,0),MATCH('المراجعة بدلالة الشهر'!C$2,الشاشة!$A$1:$V$1,0)),"") ->  | D41: =SUMIFS(الشاشة!$K:$K,الشاشة!$E:$E,B41,الشاشة!$B:$B,"<"&(EOMONTH($S$1,-1)+1),الشاشة!$A:$A,$S$9)-SUMIFS(الشاشة!$M:$M,الشاشة!$E:$E,B41,الشاشة!$B:$B,"<"&(EOMONTH($S$1,-1)+1),الشاشة!$A:$A,$S$9) -> 0 | E41: =SUMIFS(الشاشة!$K:$K,الشاشة!$E:$E,'المراجعة بدلالة الشهر'!B41,الشاشة!$B:$B,">"&EOMONTH($S$1,-1),الشاشة!$B:$B,"<="&EOMONTH($S$1,0),الشاشة!$A:$A,$S$9) -> 0 | F41: =SUMIFS(الشاشة!$M:$M,الشاشة!$E:$E,'المراجعة بدلالة الشهر'!B41,الشاشة!$B:$B,">"&EOMONTH($S$1,-1),الشاشة!$B:$B,"<="&EOMONTH($S$1,0),الشاشة!$A:$A,$S$9) -> 0 | G41: 0 | I41: 39 | L41: =SUMIFS(الشاشة!$J:$J,الشاشة!$E:$E,'المراجعة بدلالة الشهر'!B41,الشاشة!$B:$B,"<"&(EOMONTH($S$1,-1)+1),الشاشة!$A:$A,$S$9)-SUMIFS(الشاشة!$L:$L,الشاشة!$E:$E,'المراجعة بدلالة الشهر'!B41,الشاشة!$B:$B,"<"&(EOMONTH($S$1,-1)+1),الشاشة!$A:$A,$S$9) -> 0 | M41: =SUMIFS(الشاشة!$J:$J,الشاشة!$E:$E,'المراجعة بدلالة الشهر'!B41,الشاشة!$B:$B,">="&(EOMONTH('المراجعة بدلالة الشهر'!$S$1,-1)+1),الشاشة!$B:$B,"<="&(EOMONTH('المراجعة بدلالة الشهر'!$S$1,0)),الشاشة!$A:$A,$S$9) -> 0 | N41: =SUMIFS(الشاشة!$L:$L,الشاشة!$E:$E,'المراجعة بدلالة الشهر'!B41,الشاشة!$B:$B,">="&(EOMONTH('المراجعة بدلالة الشهر'!$S$1,-1)+1),الشاشة!$B:$B,"<="&(EOMONTH('المراجعة بدلالة الشهر'!$S$1,0)),الشاشة!$A:$A,$S$9) -> 0 | O41: 0 | Q41: 0 | R41: 0
A42: =MAX($A$2:A41)+1 -> 40 | B42: =IFERROR(INDEX(الشاشة!$A:$U,MATCH(نوع_المخزن&$A42,الشاشة!$U:$U,0),MATCH('المراجعة بدلالة الشهر'!B$2,الشاشة!$A$1:$V$1,0)),"") ->  | C42: =IFERROR(INDEX(الشاشة!$A:$U,MATCH(نوع_المخزن&$A42,الشاشة!$U:$U,0),MATCH('المراجعة بدلالة الشهر'!C$2,الشاشة!$A$1:$V$1,0)),"") ->  | D42: =SUMIFS(الشاشة!$K:$K,الشاشة!$E:$E,B42,الشاشة!$B:$B,"<"&(EOMONTH($S$1,-1)+1),الشاشة!$A:$A,$S$9)-SUMIFS(الشاشة!$M:$M,الشاشة!$E:$E,B42,الشاشة!$B:$B,"<"&(EOMONTH($S$1,-1)+1),الشاشة!$A:$A,$S$9) -> 0 | E42: =SUMIFS(الشاشة!$K:$K,الشاشة!$E:$E,'المراجعة بدلالة الشهر'!B42,الشاشة!$B:$B,">"&EOMONTH($S$1,-1),الشاشة!$B:$B,"<="&EOMONTH($S$1,0),الشاشة!$A:$A,$S$9) -> 0 | F42: =SUMIFS(الشاشة!$M:$M,الشاشة!$E:$E,'المراجعة بدلالة الشهر'!B42,الشاشة!$B:$B,">"&EOMONTH($S$1,-1),الشاشة!$B:$B,"<="&EOMONTH($S$1,0),الشاشة!$A:$A,$S$9) -> 0 | G42: 0 | I42: 40 | L42: =SUMIFS(الشاشة!$J:$J,الشاشة!$E:$E,'المراجعة بدلالة الشهر'!B42,الشاشة!$B:$B,"<"&(EOMONTH($S$1,-1)+1),الشاشة!$A:$A,$S$9)-SUMIFS(الشاشة!$L:$L,الشاشة!$E:$E,'المراجعة بدلالة الشهر'!B42,الشاشة!$B:$B,"<"&(EOMONTH($S$1,-1)+1),الشاشة!$A:$A,$S$9) -> 0 | M42: =SUMIFS(الشاشة!$J:$J,الشاشة!$E:$E,'المراجعة بدلالة الشهر'!B42,الشاشة!$B:$B,">="&(EOMONTH('المراجعة بدلالة الشهر'!$S$1,-1)+1),الشاشة!$B:$B,"<="&(EOMONTH('المراجعة بدلالة الشهر'!$S$1,0)),الشاشة!$A:$A,$S$9) -> 0 | N42: =SUMIFS(الشاشة!$L:$L,الشاشة!$E:$E,'المراجعة بدلالة الشهر'!B42,الشاشة!$B:$B,">="&(EOMONTH('المراجعة بدلالة الشهر'!$S$1,-1)+1),الشاشة!$B:$B,"<="&(EOMONTH('المراجعة بدلالة الشهر'!$S$1,0)),الشاشة!$A:$A,$S$9) -> 0 | O42: 0 | Q42: 0 | R42: 0
A43: =MAX($A$2:A42)+1 -> 41 | B43: =IFERROR(INDEX(الشاشة!$A:$U,MATCH(نوع_المخزن&$A43,الشاشة!$U:$U,0),MATCH('المراجعة بدلالة الشهر'!B$2,الشاشة!$A$1:$V$1,0)),"") ->  | C43: =IFERROR(INDEX(الشاشة!$A:$U,MATCH(نوع_المخزن&$A43,الشاشة!$U:$U,0),MATCH('المراجعة بدلالة الشهر'!C$2,الشاشة!$A$1:$V$1,0)),"") ->  | D43: =SUMIFS(الشاشة!$K:$K,الشاشة!$E:$E,B43,الشاشة!$B:$B,"<"&(EOMONTH($S$1,-1)+1),الشاشة!$A:$A,$S$9)-SUMIFS(الشاشة!$M:$M,الشاشة!$E:$E,B43,الشاشة!$B:$B,"<"&(EOMONTH($S$1,-1)+1),الشاشة!$A:$A,$S$9) -> 0 | E43: =SUMIFS(الشاشة!$K:$K,الشاشة!$E:$E,'المراجعة بدلالة الشهر'!B43,الشاشة!$B:$B,">"&EOMONTH($S$1,-1),الشاشة!$B:$B,"<="&EOMONTH($S$1,0),الشاشة!$A:$A,$S$9) -> 0 | F43: =SUMIFS(الشاشة!$M:$M,الشاشة!$E:$E,'المراجعة بدلالة الشهر'!B43,الشاشة!$B:$B,">"&EOMONTH($S$1,-1),الشاشة!$B:$B,"<="&EOMONTH($S$1,0),الشاشة!$A:$A,$S$9) -> 0 | G43: 0 | I43: 41 | L43: =SUMIFS(الشاشة!$J:$J,الشاشة!$E:$E,'المراجعة بدلالة الشهر'!B43,الشاشة!$B:$B,"<"&(EOMONTH($S$1,-1)+1),الشاشة!$A:$A,$S$9)-SUMIFS(الشاشة!$L:$L,الشاشة!$E:$E,'المراجعة بدلالة الشهر'!B43,الشاشة!$B:$B,"<"&(EOMONTH($S$1,-1)+1),الشاشة!$A:$A,$S$9) -> 0 | M43: =SUMIFS(الشاشة!$J:$J,الشاشة!$E:$E,'المراجعة بدلالة الشهر'!B43,الشاشة!$B:$B,">="&(EOMONTH('المراجعة بدلالة الشهر'!$S$1,-1)+1),الشاشة!$B:$B,"<="&(EOMONTH('المراجعة بدلالة الشهر'!$S$1,0)),الشاشة!$A:$A,$S$9) -> 0 | N43: =SUMIFS(الشاشة!$L:$L,الشاشة!$E:$E,'المراجعة بدلالة الشهر'!B43,الشاشة!$B:$B,">="&(EOMONTH('المراجعة بدلالة الشهر'!$S$1,-1)+1),الشاشة!$B:$B,"<="&(EOMONTH('المراجعة بدلالة الشهر'!$S$1,0)),الشاشة!$A:$A,$S$9) -> 0 | O43: 0 | Q43: 0 | R43: 0
A44: =MAX($A$2:A43)+1 -> 42 | B44: =IFERROR(INDEX(الشاشة!$A:$U,MATCH(نوع_المخزن&$A44,الشاشة!$U:$U,0),MATCH('المراجعة بدلالة الشهر'!B$2,الشاشة!$A$1:$V$1,0)),"") ->  | C44: =IFERROR(INDEX(الشاشة!$A:$U,MATCH(نوع_المخزن&$A44,الشاشة!$U:$U,0),MATCH('المراجعة بدلالة الشهر'!C$2,الشاشة!$A$1:$V$1,0)),"") ->  | D44: =SUMIFS(الشاشة!$K:$K,الشاشة!$E:$E,B44,الشاشة!$B:$B,"<"&(EOMONTH($S$1,-1)+1),الشاشة!$A:$A,$S$9)-SUMIFS(الشاشة!$M:$M,الشاشة!$E:$E,B44,الشاشة!$B:$B,"<"&(EOMONTH($S$1,-1)+1),الشاشة!$A:$A,$S$9) -> 0 | E44: =SUMIFS(الشاشة!$K:$K,الشاشة!$E:$E,'المراجعة بدلالة الشهر'!B44,الشاشة!$B:$B,">"&EOMONTH($S$1,-1),الشاشة!$B:$B,"<="&EOMONTH($S$1,0),الشاشة!$A:$A,$S$9) -> 0 | F44: =SUMIFS(الشاشة!$M:$M,الشاشة!$E:$E,'المراجعة بدلالة الشهر'!B44,الشاشة!$B:$B,">"&EOMONTH($S$1,-1),الشاشة!$B:$B,"<="&EOMONTH($S$1,0),الشاشة!$A:$A,$S$9) -> 0 | G44: 0 | I44: 42 | L44: =SUMIFS(الشاشة!$J:$J,الشاشة!$E:$E,'المراجعة بدلالة الشهر'!B44,الشاشة!$B:$B,"<"&(EOMONTH($S$1,-1)+1),الشاشة!$A:$A,$S$9)-SUMIFS(الشاشة!$L:$L,الشاشة!$E:$E,'المراجعة بدلالة الشهر'!B44,الشاشة!$B:$B,"<"&(EOMONTH($S$1,-1)+1),الشاشة!$A:$A,$S$9) -> 0 | M44: =SUMIFS(الشاشة!$J:$J,الشاشة!$E:$E,'المراجعة بدلالة الشهر'!B44,الشاشة!$B:$B,">="&(EOMONTH('المراجعة بدلالة الشهر'!$S$1,-1)+1),الشاشة!$B:$B,"<="&(EOMONTH('المراجعة بدلالة الشهر'!$S$1,0)),الشاشة!$A:$A,$S$9) -> 0 | N44: =SUMIFS(الشاشة!$L:$L,الشاشة!$E:$E,'المراجعة بدلالة الشهر'!B44,الشاشة!$B:$B,">="&(EOMONTH('المراجعة بدلالة الشهر'!$S$1,-1)+1),الشاشة!$B:$B,"<="&(EOMONTH('المراجعة بدلالة الشهر'!$S$1,0)),الشاشة!$A:$A,$S$9) -> 0 | O44: 0 | Q44: 0 | R44: 0
A45: =MAX($A$2:A44)+1 -> 43 | B45: =IFERROR(INDEX(الشاشة!$A:$U,MATCH(نوع_المخزن&$A45,الشاشة!$U:$U,0),MATCH('المراجعة بدلالة الشهر'!B$2,الشاشة!$A$1:$V$1,0)),"") ->  | C45: =IFERROR(INDEX(الشاشة!$A:$U,MATCH(نوع_المخزن&$A45,الشاشة!$U:$U,0),MATCH('المراجعة بدلالة الشهر'!C$2,الشاشة!$A$1:$V$1,0)),"") ->  | D45: =SUMIFS(الشاشة!$K:$K,الشاشة!$E:$E,B45,الشاشة!$B:$B,"<"&(EOMONTH($S$1,-1)+1),الشاشة!$A:$A,$S$9)-SUMIFS(الشاشة!$M:$M,الشاشة!$E:$E,B45,الشاشة!$B:$B,"<"&(EOMONTH($S$1,-1)+1),الشاشة!$A:$A,$S$9) -> 0 | E45: =SUMIFS(الشاشة!$K:$K,الشاشة!$E:$E,'المراجعة بدلالة الشهر'!B45,الشاشة!$B:$B,">"&EOMONTH($S$1,-1),الشاشة!$B:$B,"<="&EOMONTH($S$1,0),الشاشة!$A:$A,$S$9) -> 0 | F45: =SUMIFS(الشاشة!$M:$M,الشاشة!$E:$E,'المراجعة بدلالة الشهر'!B45,الشاشة!$B:$B,">"&EOMONTH($S$1,-1),الشاشة!$B:$B,"<="&EOMONTH($S$1,0),الشاشة!$A:$A,$S$9) -> 0 | G45: 0 | I45: 43 | L45: =SUMIFS(الشاشة!$J:$J,الشاشة!$E:$E,'المراجعة بدلالة الشهر'!B45,الشاشة!$B:$B,"<"&(EOMONTH($S$1,-1)+1),الشاشة!$A:$A,$S$9)-SUMIFS(الشاشة!$L:$L,الشاشة!$E:$E,'المراجعة بدلالة الشهر'!B45,الشاشة!$B:$B,"<"&(EOMONTH($S$1,-1)+1),الشاشة!$A:$A,$S$9) -> 0 | M45: =SUMIFS(الشاشة!$J:$J,الشاشة!$E:$E,'المراجعة بدلالة الشهر'!B45,الشاشة!$B:$B,">="&(EOMONTH('المراجعة بدلالة الشهر'!$S$1,-1)+1),الشاشة!$B:$B,"<="&(EOMONTH('المراجعة بدلالة الشهر'!$S$1,0)),الشاشة!$A:$A,$S$9) -> 0 | N45: =SUMIFS(الشاشة!$L:$L,الشاشة!$E:$E,'المراجعة بدلالة الشهر'!B45,الشاشة!$B:$B,">="&(EOMONTH('المراجعة بدلالة الشهر'!$S$1,-1)+1),الشاشة!$B:$B,"<="&(EOMONTH('المراجعة بدلالة الشهر'!$S$1,0)),الشاشة!$A:$A,$S$9) -> 0 | O45: 0 | Q45: 0 | R45: 0
A46: =MAX($A$2:A45)+1 -> 44 | B46: =IFERROR(INDEX(الشاشة!$A:$U,MATCH(نوع_المخزن&$A46,الشاشة!$U:$U,0),MATCH('المراجعة بدلالة الشهر'!B$2,الشاشة!$A$1:$V$1,0)),"") ->  | C46: =IFERROR(INDEX(الشاشة!$A:$U,MATCH(نوع_المخزن&$A46,الشاشة!$U:$U,0),MATCH('المراجعة بدلالة الشهر'!C$2,الشاشة!$A$1:$V$1,0)),"") ->  | D46: =SUMIFS(الشاشة!$K:$K,الشاشة!$E:$E,B46,الشاشة!$B:$B,"<"&(EOMONTH($S$1,-1)+1),الشاشة!$A:$A,$S$9)-SUMIFS(الشاشة!$M:$M,الشاشة!$E:$E,B46,الشاشة!$B:$B,"<"&(EOMONTH($S$1,-1)+1),الشاشة!$A:$A,$S$9) -> 0 | E46: =SUMIFS(الشاشة!$K:$K,الشاشة!$E:$E,'المراجعة بدلالة الشهر'!B46,الشاشة!$B:$B,">"&EOMONTH($S$1,-1),الشاشة!$B:$B,"<="&EOMONTH($S$1,0),الشاشة!$A:$A,$S$9) -> 0 | F46: =SUMIFS(الشاشة!$M:$M,الشاشة!$E:$E,'المراجعة بدلالة الشهر'!B46,الشاشة!$B:$B,">"&EOMONTH($S$1,-1),الشاشة!$B:$B,"<="&EOMONTH($S$1,0),الشاشة!$A:$A,$S$9) -> 0 | G46: 0 | I46: 44 | L46: =SUMIFS(الشاشة!$J:$J,الشاشة!$E:$E,'المراجعة بدلالة الشهر'!B46,الشاشة!$B:$B,"<"&(EOMONTH($S$1,-1)+1),الشاشة!$A:$A,$S$9)-SUMIFS(الشاشة!$L:$L,الشاشة!$E:$E,'المراجعة بدلالة الشهر'!B46,الشاشة!$B:$B,"<"&(EOMONTH($S$1,-1)+1),الشاشة!$A:$A,$S$9) -> 0 | M46: =SUMIFS(الشاشة!$J:$J,الشاشة!$E:$E,'المراجعة بدلالة الشهر'!B46,الشاشة!$B:$B,">="&(EOMONTH('المراجعة بدلالة الشهر'!$S$1,-1)+1),الشاشة!$B:$B,"<="&(EOMONTH('المراجعة بدلالة الشهر'!$S$1,0)),الشاشة!$A:$A,$S$9) -> 0 | N46: =SUMIFS(الشاشة!$L:$L,الشاشة!$E:$E,'المراجعة بدلالة الشهر'!B46,الشاشة!$B:$B,">="&(EOMONTH('المراجعة بدلالة الشهر'!$S$1,-1)+1),الشاشة!$B:$B,"<="&(EOMONTH('المراجعة بدلالة الشهر'!$S$1,0)),الشاشة!$A:$A,$S$9) -> 0 | O46: 0 | Q46: 0 | R46: 0
A47: =MAX($A$2:A46)+1 -> 45 | B47: =IFERROR(INDEX(الشاشة!$A:$U,MATCH(نوع_المخزن&$A47,الشاشة!$U:$U,0),MATCH('المراجعة بدلالة الشهر'!B$2,الشاشة!$A$1:$V$1,0)),"") ->  | C47: =IFERROR(INDEX(الشاشة!$A:$U,MATCH(نوع_المخزن&$A47,الشاشة!$U:$U,0),MATCH('المراجعة بدلالة الشهر'!C$2,الشاشة!$A$1:$V$1,0)),"") ->  | D47: =SUMIFS(الشاشة!$K:$K,الشاشة!$E:$E,B47,الشاشة!$B:$B,"<"&(EOMONTH($S$1,-1)+1),الشاشة!$A:$A,$S$9)-SUMIFS(الشاشة!$M:$M,الشاشة!$E:$E,B47,الشاشة!$B:$B,"<"&(EOMONTH($S$1,-1)+1),الشاشة!$A:$A,$S$9) -> 0 | E47: =SUMIFS(الشاشة!$K:$K,الشاشة!$E:$E,'المراجعة بدلالة الشهر'!B47,الشاشة!$B:$B,">"&EOMONTH($S$1,-1),الشاشة!$B:$B,"<="&EOMONTH($S$1,0),الشاشة!$A:$A,$S$9) -> 0 | F47: =SUMIFS(الشاشة!$M:$M,الشاشة!$E:$E,'المراجعة بدلالة الشهر'!B47,الشاشة!$B:$B,">"&EOMONTH($S$1,-1),الشاشة!$B:$B,"<="&EOMONTH($S$1,0),الشاشة!$A:$A,$S$9) -> 0 | G47: 0 | I47: 45 | L47: =SUMIFS(الشاشة!$J:$J,الشاشة!$E:$E,'المراجعة بدلالة الشهر'!B47,الشاشة!$B:$B,"<"&(EOMONTH($S$1,-1)+1),الشاشة!$A:$A,$S$9)-SUMIFS(الشاشة!$L:$L,الشاشة!$E:$E,'المراجعة بدلالة الشهر'!B47,الشاشة!$B:$B,"<"&(EOMONTH($S$1,-1)+1),الشاشة!$A:$A,$S$9) -> 0 | M47: =SUMIFS(الشاشة!$J:$J,الشاشة!$E:$E,'المراجعة بدلالة الشهر'!B47,الشاشة!$B:$B,">="&(EOMONTH('المراجعة بدلالة الشهر'!$S$1,-1)+1),الشاشة!$B:$B,"<="&(EOMONTH('المراجعة بدلالة الشهر'!$S$1,0)),الشاشة!$A:$A,$S$9) -> 0 | N47: =SUMIFS(الشاشة!$L:$L,الشاشة!$E:$E,'المراجعة بدلالة الشهر'!B47,الشاشة!$B:$B,">="&(EOMONTH('المراجعة بدلالة الشهر'!$S$1,-1)+1),الشاشة!$B:$B,"<="&(EOMONTH('المراجعة بدلالة الشهر'!$S$1,0)),الشاشة!$A:$A,$S$9) -> 0 | O47: 0 | Q47: 0 | R47: 0
A48: =MAX($A$2:A47)+1 -> 46 | B48: =IFERROR(INDEX(الشاشة!$A:$U,MATCH(نوع_المخزن&$A48,الشاشة!$U:$U,0),MATCH('المراجعة بدلالة الشهر'!B$2,الشاشة!$A$1:$V$1,0)),"") ->  | C48: =IFERROR(INDEX(الشاشة!$A:$U,MATCH(نوع_المخزن&$A48,الشاشة!$U:$U,0),MATCH('المراجعة بدلالة الشهر'!C$2,الشاشة!$A$1:$V$1,0)),"") ->  | D48: =SUMIFS(الشاشة!$K:$K,الشاشة!$E:$E,B48,الشاشة!$B:$B,"<"&(EOMONTH($S$1,-1)+1),الشاشة!$A:$A,$S$9)-SUMIFS(الشاشة!$M:$M,الشاشة!$E:$E,B48,الشاشة!$B:$B,"<"&(EOMONTH($S$1,-1)+1),الشاشة!$A:$A,$S$9) -> 0 | E48: =SUMIFS(الشاشة!$K:$K,الشاشة!$E:$E,'المراجعة بدلالة الشهر'!B48,الشاشة!$B:$B,">"&EOMONTH($S$1,-1),الشاشة!$B:$B,"<="&EOMONTH($S$1,0),الشاشة!$A:$A,$S$9) -> 0 | F48: =SUMIFS(الشاشة!$M:$M,الشاشة!$E:$E,'المراجعة بدلالة الشهر'!B48,الشاشة!$B:$B,">"&EOMONTH($S$1,-1),الشاشة!$B:$B,"<="&EOMONTH($S$1,0),الشاشة!$A:$A,$S$9) -> 0 | G48: 0 | I48: 46 | L48: =SUMIFS(الشاشة!$J:$J,الشاشة!$E:$E,'المراجعة بدلالة الشهر'!B48,الشاشة!$B:$B,"<"&(EOMONTH($S$1,-1)+1),الشاشة!$A:$A,$S$9)-SUMIFS(الشاشة!$L:$L,الشاشة!$E:$E,'المراجعة بدلالة الشهر'!B48,الشاشة!$B:$B,"<"&(EOMONTH($S$1,-1)+1),الشاشة!$A:$A,$S$9) -> 0 | M48: =SUMIFS(الشاشة!$J:$J,الشاشة!$E:$E,'المراجعة بدلالة الشهر'!B48,الشاشة!$B:$B,">="&(EOMONTH('المراجعة بدلالة الشهر'!$S$1,-1)+1),الشاشة!$B:$B,"<="&(EOMONTH('المراجعة بدلالة الشهر'!$S$1,0)),الشاشة!$A:$A,$S$9) -> 0 | N48: =SUMIFS(الشاشة!$L:$L,الشاشة!$E:$E,'المراجعة بدلالة الشهر'!B48,الشاشة!$B:$B,">="&(EOMONTH('المراجعة بدلالة الشهر'!$S$1,-1)+1),الشاشة!$B:$B,"<="&(EOMONTH('المراجعة بدلالة الشهر'!$S$1,0)),الشاشة!$A:$A,$S$9) -> 0 | O48: 0 | Q48: 0 | R48: 0
A49: =MAX($A$2:A48)+1 -> 47 | B49: =IFERROR(INDEX(الشاشة!$A:$U,MATCH(نوع_المخزن&$A49,الشاشة!$U:$U,0),MATCH('المراجعة بدلالة الشهر'!B$2,الشاشة!$A$1:$V$1,0)),"") ->  | C49: =IFERROR(INDEX(الشاشة!$A:$U,MATCH(نوع_المخزن&$A49,الشاشة!$U:$U,0),MATCH('المراجعة بدلالة الشهر'!C$2,الشاشة!$A$1:$V$1,0)),"") ->  | D49: =SUMIFS(الشاشة!$K:$K,الشاشة!$E:$E,B49,الشاشة!$B:$B,"<"&(EOMONTH($S$1,-1)+1),الشاشة!$A:$A,$S$9)-SUMIFS(الشاشة!$M:$M,الشاشة!$E:$E,B49,الشاشة!$B:$B,"<"&(EOMONTH($S$1,-1)+1),الشاشة!$A:$A,$S$9) -> 0 | E49: =SUMIFS(الشاشة!$K:$K,الشاشة!$E:$E,'المراجعة بدلالة الشهر'!B49,الشاشة!$B:$B,">"&EOMONTH($S$1,-1),الشاشة!$B:$B,"<="&EOMONTH($S$1,0),الشاشة!$A:$A,$S$9) -> 0 | F49: =SUMIFS(الشاشة!$M:$M,الشاشة!$E:$E,'المراجعة بدلالة الشهر'!B49,الشاشة!$B:$B,">"&EOMONTH($S$1,-1),الشاشة!$B:$B,"<="&EOMONTH($S$1,0),الشاشة!$A:$A,$S$9) -> 0 | G49: 0 | I49: 47 | L49: =SUMIFS(الشاشة!$J:$J,الشاشة!$E:$E,'المراجعة بدلالة الشهر'!B49,الشاشة!$B:$B,"<"&(EOMONTH($S$1,-1)+1),الشاشة!$A:$A,$S$9)-SUMIFS(الشاشة!$L:$L,الشاشة!$E:$E,'المراجعة بدلالة الشهر'!B49,الشاشة!$B:$B,"<"&(EOMONTH($S$1,-1)+1),الشاشة!$A:$A,$S$9) -> 0 | M49: =SUMIFS(الشاشة!$J:$J,الشاشة!$E:$E,'المراجعة بدلالة الشهر'!B49,الشاشة!$B:$B,">="&(EOMONTH('المراجعة بدلالة الشهر'!$S$1,-1)+1),الشاشة!$B:$B,"<="&(EOMONTH('المراجعة بدلالة الشهر'!$S$1,0)),الشاشة!$A:$A,$S$9) -> 0 | N49: =SUMIFS(الشاشة!$L:$L,الشاشة!$E:$E,'المراجعة بدلالة الشهر'!B49,الشاشة!$B:$B,">="&(EOMONTH('المراجعة بدلالة الشهر'!$S$1,-1)+1),الشاشة!$B:$B,"<="&(EOMONTH('المراجعة بدلالة الشهر'!$S$1,0)),الشاشة!$A:$A,$S$9) -> 0 | O49: 0 | Q49: 0 | R49: 0
A50: =MAX($A$2:A49)+1 -> 48 | B50: =IFERROR(INDEX(الشاشة!$A:$U,MATCH(نوع_المخزن&$A50,الشاشة!$U:$U,0),MATCH('المراجعة بدلالة الشهر'!B$2,الشاشة!$A$1:$V$1,0)),"") ->  | C50: =IFERROR(INDEX(الشاشة!$A:$U,MATCH(نوع_المخزن&$A50,الشاشة!$U:$U,0),MATCH('المراجعة بدلالة الشهر'!C$2,الشاشة!$A$1:$V$1,0)),"") ->  | D50: =SUMIFS(الشاشة!$K:$K,الشاشة!$E:$E,B50,الشاشة!$B:$B,"<"&(EOMONTH($S$1,-1)+1),الشاشة!$A:$A,$S$9)-SUMIFS(الشاشة!$M:$M,الشاشة!$E:$E,B50,الشاشة!$B:$B,"<"&(EOMONTH($S$1,-1)+1),الشاشة!$A:$A,$S$9) -> 0 | E50: =SUMIFS(الشاشة!$K:$K,الشاشة!$E:$E,'المراجعة بدلالة الشهر'!B50,الشاشة!$B:$B,">"&EOMONTH($S$1,-1),الشاشة!$B:$B,"<="&EOMONTH($S$1,0),الشاشة!$A:$A,$S$9) -> 0 | F50: =SUMIFS(الشاشة!$M:$M,الشاشة!$E:$E,'المراجعة بدلالة الشهر'!B50,الشاشة!$B:$B,">"&EOMONTH($S$1,-1),الشاشة!$B:$B,"<="&EOMONTH($S$1,0),الشاشة!$A:$A,$S$9) -> 0 | G50: 0 | I50: 48 | L50: =SUMIFS(الشاشة!$J:$J,الشاشة!$E:$E,'المراجعة بدلالة الشهر'!B50,الشاشة!$B:$B,"<"&(EOMONTH($S$1,-1)+1),الشاشة!$A:$A,$S$9)-SUMIFS(الشاشة!$L:$L,الشاشة!$E:$E,'المراجعة بدلالة الشهر'!B50,الشاشة!$B:$B,"<"&(EOMONTH($S$1,-1)+1),الشاشة!$A:$A,$S$9) -> 0 | M50: =SUMIFS(الشاشة!$J:$J,الشاشة!$E:$E,'المراجعة بدلالة الشهر'!B50,الشاشة!$B:$B,">="&(EOMONTH('المراجعة بدلالة الشهر'!$S$1,-1)+1),الشاشة!$B:$B,"<="&(EOMONTH('المراجعة بدلالة الشهر'!$S$1,0)),الشاشة!$A:$A,$S$9) -> 0 | N50: =SUMIFS(الشاشة!$L:$L,الشاشة!$E:$E,'المراجعة بدلالة الشهر'!B50,الشاشة!$B:$B,">="&(EOMONTH('المراجعة بدلالة الشهر'!$S$1,-1)+1),الشاشة!$B:$B,"<="&(EOMONTH('المراجعة بدلالة الشهر'!$S$1,0)),الشاشة!$A:$A,$S$9) -> 0 | O50: 0 | Q50: 0 | R50: 0
A51: =MAX($A$2:A50)+1 -> 49 | B51: =IFERROR(INDEX(الشاشة!$A:$U,MATCH(نوع_المخزن&$A51,الشاشة!$U:$U,0),MATCH('المراجعة بدلالة الشهر'!B$2,الشاشة!$A$1:$V$1,0)),"") ->  | C51: =IFERROR(INDEX(الشاشة!$A:$U,MATCH(نوع_المخزن&$A51,الشاشة!$U:$U,0),MATCH('المراجعة بدلالة الشهر'!C$2,الشاشة!$A$1:$V$1,0)),"") ->  | D51: =SUMIFS(الشاشة!$K:$K,الشاشة!$E:$E,B51,الشاشة!$B:$B,"<"&(EOMONTH($S$1,-1)+1),الشاشة!$A:$A,$S$9)-SUMIFS(الشاشة!$M:$M,الشاشة!$E:$E,B51,الشاشة!$B:$B,"<"&(EOMONTH($S$1,-1)+1),الشاشة!$A:$A,$S$9) -> 0 | E51: =SUMIFS(الشاشة!$K:$K,الشاشة!$E:$E,'المراجعة بدلالة الشهر'!B51,الشاشة!$B:$B,">"&EOMONTH($S$1,-1),الشاشة!$B:$B,"<="&EOMONTH($S$1,0),الشاشة!$A:$A,$S$9) -> 0 | F51: =SUMIFS(الشاشة!$M:$M,الشاشة!$E:$E,'المراجعة بدلالة الشهر'!B51,الشاشة!$B:$B,">"&EOMONTH($S$1,-1),الشاشة!$B:$B,"<="&EOMONTH($S$1,0),الشاشة!$A:$A,$S$9) -> 0 | G51: 0 | I51: 49 | L51: =SUMIFS(الشاشة!$J:$J,الشاشة!$E:$E,'المراجعة بدلالة الشهر'!B51,الشاشة!$B:$B,"<"&(EOMONTH($S$1,-1)+1),الشاشة!$A:$A,$S$9)-SUMIFS(الشاشة!$L:$L,الشاشة!$E:$E,'المراجعة بدلالة الشهر'!B51,الشاشة!$B:$B,"<"&(EOMONTH($S$1,-1)+1),الشاشة!$A:$A,$S$9) -> 0 | M51: =SUMIFS(الشاشة!$J:$J,الشاشة!$E:$E,'المراجعة بدلالة الشهر'!B51,الشاشة!$B:$B,">="&(EOMONTH('المراجعة بدلالة الشهر'!$S$1,-1)+1),الشاشة!$B:$B,"<="&(EOMONTH('المراجعة بدلالة الشهر'!$S$1,0)),الشاشة!$A:$A,$S$9) -> 0 | N51: =SUMIFS(الشاشة!$L:$L,الشاشة!$E:$E,'المراجعة بدلالة الشهر'!B51,الشاشة!$B:$B,">="&(EOMONTH('المراجعة بدلالة الشهر'!$S$1,-1)+1),الشاشة!$B:$B,"<="&(EOMONTH('المراجعة بدلالة الشهر'!$S$1,0)),الشاشة!$A:$A,$S$9) -> 0 | O51: 0 | Q51: 0 | R51: 0
A52: =MAX($A$2:A51)+1 -> 50 | B52: =IFERROR(INDEX(الشاشة!$A:$U,MATCH(نوع_المخزن&$A52,الشاشة!$U:$U,0),MATCH('المراجعة بدلالة الشهر'!B$2,الشاشة!$A$1:$V$1,0)),"") ->  | C52: =IFERROR(INDEX(الشاشة!$A:$U,MATCH(نوع_المخزن&$A52,الشاشة!$U:$U,0),MATCH('المراجعة بدلالة الشهر'!C$2,الشاشة!$A$1:$V$1,0)),"") ->  | D52: =SUMIFS(الشاشة!$K:$K,الشاشة!$E:$E,B52,الشاشة!$B:$B,"<"&(EOMONTH($S$1,-1)+1),الشاشة!$A:$A,$S$9)-SUMIFS(الشاشة!$M:$M,الشاشة!$E:$E,B52,الشاشة!$B:$B,"<"&(EOMONTH($S$1,-1)+1),الشاشة!$A:$A,$S$9) -> 0 | E52: =SUMIFS(الشاشة!$K:$K,الشاشة!$E:$E,'المراجعة بدلالة الشهر'!B52,الشاشة!$B:$B,">"&EOMONTH($S$1,-1),الشاشة!$B:$B,"<="&EOMONTH($S$1,0),الشاشة!$A:$A,$S$9) -> 0 | F52: =SUMIFS(الشاشة!$M:$M,الشاشة!$E:$E,'المراجعة بدلالة الشهر'!B52,الشاشة!$B:$B,">"&EOMONTH($S$1,-1),الشاشة!$B:$B,"<="&EOMONTH($S$1,0),الشاشة!$A:$A,$S$9) -> 0 | G52: 0 | I52: 50 | L52: =SUMIFS(الشاشة!$J:$J,الشاشة!$E:$E,'المراجعة بدلالة الشهر'!B52,الشاشة!$B:$B,"<"&(EOMONTH($S$1,-1)+1),الشاشة!$A:$A,$S$9)-SUMIFS(الشاشة!$L:$L,الشاشة!$E:$E,'المراجعة بدلالة الشهر'!B52,الشاشة!$B:$B,"<"&(EOMONTH($S$1,-1)+1),الشاشة!$A:$A,$S$9) -> 0 | M52: =SUMIFS(الشاشة!$J:$J,الشاشة!$E:$E,'المراجعة بدلالة الشهر'!B52,الشاشة!$B:$B,">="&(EOMONTH('المراجعة بدلالة الشهر'!$S$1,-1)+1),الشاشة!$B:$B,"<="&(EOMONTH('المراجعة بدلالة الشهر'!$S$1,0)),الشاشة!$A:$A,$S$9) -> 0 | N52: =SUMIFS(الشاشة!$L:$L,الشاشة!$E:$E,'المراجعة بدلالة الشهر'!B52,الشاشة!$B:$B,">="&(EOMONTH('المراجعة بدلالة الشهر'!$S$1,-1)+1),الشاشة!$B:$B,"<="&(EOMONTH('المراجعة بدلالة الشهر'!$S$1,0)),الشاشة!$A:$A,$S$9) -> 0 | O52: 0 | Q52: 0 | R52: 0
A53: =MAX($A$2:A52)+1 -> 51 | B53: =IFERROR(INDEX(الشاشة!$A:$U,MATCH(نوع_المخزن&$A53,الشاشة!$U:$U,0),MATCH('المراجعة بدلالة الشهر'!B$2,الشاشة!$A$1:$V$1,0)),"") ->  | C53: =IFERROR(INDEX(الشاشة!$A:$U,MATCH(نوع_المخزن&$A53,الشاشة!$U:$U,0),MATCH('المراجعة بدلالة الشهر'!C$2,الشاشة!$A$1:$V$1,0)),"") ->  | D53: =SUMIFS(الشاشة!$K:$K,الشاشة!$E:$E,B53,الشاشة!$B:$B,"<"&(EOMONTH($S$1,-1)+1),الشاشة!$A:$A,$S$9)-SUMIFS(الشاشة!$M:$M,الشاشة!$E:$E,B53,الشاشة!$B:$B,"<"&(EOMONTH($S$1,-1)+1),الشاشة!$A:$A,$S$9) -> 0 | E53: =SUMIFS(الشاشة!$K:$K,الشاشة!$E:$E,'المراجعة بدلالة الشهر'!B53,الشاشة!$B:$B,">"&EOMONTH($S$1,-1),الشاشة!$B:$B,"<="&EOMONTH($S$1,0),الشاشة!$A:$A,$S$9) -> 0 | F53: =SUMIFS(الشاشة!$M:$M,الشاشة!$E:$E,'المراجعة بدلالة الشهر'!B53,الشاشة!$B:$B,">"&EOMONTH($S$1,-1),الشاشة!$B:$B,"<="&EOMONTH($S$1,0),الشاشة!$A:$A,$S$9) -> 0 | G53: 0 | I53: 51 | L53: =SUMIFS(الشاشة!$J:$J,الشاشة!$E:$E,'المراجعة بدلالة الشهر'!B53,الشاشة!$B:$B,"<"&(EOMONTH($S$1,-1)+1),الشاشة!$A:$A,$S$9)-SUMIFS(الشاشة!$L:$L,الشاشة!$E:$E,'المراجعة بدلالة الشهر'!B53,الشاشة!$B:$B,"<"&(EOMONTH($S$1,-1)+1),الشاشة!$A:$A,$S$9) -> 0 | M53: =SUMIFS(الشاشة!$J:$J,الشاشة!$E:$E,'المراجعة بدلالة الشهر'!B53,الشاشة!$B:$B,">="&(EOMONTH('المراجعة بدلالة الشهر'!$S$1,-1)+1),الشاشة!$B:$B,"<="&(EOMONTH('المراجعة بدلالة الشهر'!$S$1,0)),الشاشة!$A:$A,$S$9) -> 0 | N53: =SUMIFS(الشاشة!$L:$L,الشاشة!$E:$E,'المراجعة بدلالة الشهر'!B53,الشاشة!$B:$B,">="&(EOMONTH('المراجعة بدلالة الشهر'!$S$1,-1)+1),الشاشة!$B:$B,"<="&(EOMONTH('المراجعة بدلالة الشهر'!$S$1,0)),الشاشة!$A:$A,$S$9) -> 0 | O53: 0 | Q53: 0 | R53: 0
A54: =MAX($A$2:A53)+1 -> 52 | B54: =IFERROR(INDEX(الشاشة!$A:$U,MATCH(نوع_المخزن&$A54,الشاشة!$U:$U,0),MATCH('المراجعة بدلالة الشهر'!B$2,الشاشة!$A$1:$V$1,0)),"") ->  | C54: =IFERROR(INDEX(الشاشة!$A:$U,MATCH(نوع_المخزن&$A54,الشاشة!$U:$U,0),MATCH('المراجعة بدلالة الشهر'!C$2,الشاشة!$A$1:$V$1,0)),"") ->  | D54: =SUMIFS(الشاشة!$K:$K,الشاشة!$E:$E,B54,الشاشة!$B:$B,"<"&(EOMONTH($S$1,-1)+1),الشاشة!$A:$A,$S$9)-SUMIFS(الشاشة!$M:$M,الشاشة!$E:$E,B54,الشاشة!$B:$B,"<"&(EOMONTH($S$1,-1)+1),الشاشة!$A:$A,$S$9) -> 0 | E54: =SUMIFS(الشاشة!$K:$K,الشاشة!$E:$E,'المراجعة بدلالة الشهر'!B54,الشاشة!$B:$B,">"&EOMONTH($S$1,-1),الشاشة!$B:$B,"<="&EOMONTH($S$1,0),الشاشة!$A:$A,$S$9) -> 0 | F54: =SUMIFS(الشاشة!$M:$M,الشاشة!$E:$E,'المراجعة بدلالة الشهر'!B54,الشاشة!$B:$B,">"&EOMONTH($S$1,-1),الشاشة!$B:$B,"<="&EOMONTH($S$1,0),الشاشة!$A:$A,$S$9) -> 0 | G54: 0 | I54: 52 | L54: =SUMIFS(الشاشة!$J:$J,الشاشة!$E:$E,'المراجعة بدلالة الشهر'!B54,الشاشة!$B:$B,"<"&(EOMONTH($S$1,-1)+1),الشاشة!$A:$A,$S$9)-SUMIFS(الشاشة!$L:$L,الشاشة!$E:$E,'المراجعة بدلالة الشهر'!B54,الشاشة!$B:$B,"<"&(EOMONTH($S$1,-1)+1),الشاشة!$A:$A,$S$9) -> 0 | M54: =SUMIFS(الشاشة!$J:$J,الشاشة!$E:$E,'المراجعة بدلالة الشهر'!B54,الشاشة!$B:$B,">="&(EOMONTH('المراجعة بدلالة الشهر'!$S$1,-1)+1),الشاشة!$B:$B,"<="&(EOMONTH('المراجعة بدلالة الشهر'!$S$1,0)),الشاشة!$A:$A,$S$9) -> 0 | N54: =SUMIFS(الشاشة!$L:$L,الشاشة!$E:$E,'المراجعة بدلالة الشهر'!B54,الشاشة!$B:$B,">="&(EOMONTH('المراجعة بدلالة الشهر'!$S$1,-1)+1),الشاشة!$B:$B,"<="&(EOMONTH('المراجعة بدلالة الشهر'!$S$1,0)),الشاشة!$A:$A,$S$9) -> 0 | O54: 0 | Q54: 0 | R54: 0
A55: =MAX($A$2:A54)+1 -> 53 | B55: =IFERROR(INDEX(الشاشة!$A:$U,MATCH(نوع_المخزن&$A55,الشاشة!$U:$U,0),MATCH('المراجعة بدلالة الشهر'!B$2,الشاشة!$A$1:$V$1,0)),"") ->  | C55: =IFERROR(INDEX(الشاشة!$A:$U,MATCH(نوع_المخزن&$A55,الشاشة!$U:$U,0),MATCH('المراجعة بدلالة الشهر'!C$2,الشاشة!$A$1:$V$1,0)),"") ->  | D55: =SUMIFS(الشاشة!$K:$K,الشاشة!$E:$E,B55,الشاشة!$B:$B,"<"&(EOMONTH($S$1,-1)+1),الشاشة!$A:$A,$S$9)-SUMIFS(الشاشة!$M:$M,الشاشة!$E:$E,B55,الشاشة!$B:$B,"<"&(EOMONTH($S$1,-1)+1),الشاشة!$A:$A,$S$9) -> 0 | E55: =SUMIFS(الشاشة!$K:$K,الشاشة!$E:$E,'المراجعة بدلالة الشهر'!B55,الشاشة!$B:$B,">"&EOMONTH($S$1,-1),الشاشة!$B:$B,"<="&EOMONTH($S$1,0),الشاشة!$A:$A,$S$9) -> 0 | F55: =SUMIFS(الشاشة!$M:$M,الشاشة!$E:$E,'المراجعة بدلالة الشهر'!B55,الشاشة!$B:$B,">"&EOMONTH($S$1,-1),الشاشة!$B:$B,"<="&EOMONTH($S$1,0),الشاشة!$A:$A,$S$9) -> 0 | G55: 0 | I55: 53 | L55: =SUMIFS(الشاشة!$J:$J,الشاشة!$E:$E,'المراجعة بدلالة الشهر'!B55,الشاشة!$B:$B,"<"&(EOMONTH($S$1,-1)+1),الشاشة!$A:$A,$S$9)-SUMIFS(الشاشة!$L:$L,الشاشة!$E:$E,'المراجعة بدلالة الشهر'!B55,الشاشة!$B:$B,"<"&(EOMONTH($S$1,-1)+1),الشاشة!$A:$A,$S$9) -> 0 | M55: =SUMIFS(الشاشة!$J:$J,الشاشة!$E:$E,'المراجعة بدلالة الشهر'!B55,الشاشة!$B:$B,">="&(EOMONTH('المراجعة بدلالة الشهر'!$S$1,-1)+1),الشاشة!$B:$B,"<="&(EOMONTH('المراجعة بدلالة الشهر'!$S$1,0)),الشاشة!$A:$A,$S$9) -> 0 | N55: =SUMIFS(الشاشة!$L:$L,الشاشة!$E:$E,'المراجعة بدلالة الشهر'!B55,الشاشة!$B:$B,">="&(EOMONTH('المراجعة بدلالة الشهر'!$S$1,-1)+1),الشاشة!$B:$B,"<="&(EOMONTH('المراجعة بدلالة الشهر'!$S$1,0)),الشاشة!$A:$A,$S$9) -> 0 | O55: 0 | Q55: 0 | R55: 0
A56: =MAX($A$2:A55)+1 -> 54 | B56: =IFERROR(INDEX(الشاشة!$A:$U,MATCH(نوع_المخزن&$A56,الشاشة!$U:$U,0),MATCH('المراجعة بدلالة الشهر'!B$2,الشاشة!$A$1:$V$1,0)),"") ->  | C56: =IFERROR(INDEX(الشاشة!$A:$U,MATCH(نوع_المخزن&$A56,الشاشة!$U:$U,0),MATCH('المراجعة بدلالة الشهر'!C$2,الشاشة!$A$1:$V$1,0)),"") ->  | D56: =SUMIFS(الشاشة!$K:$K,الشاشة!$E:$E,B56,الشاشة!$B:$B,"<"&(EOMONTH($S$1,-1)+1),الشاشة!$A:$A,$S$9)-SUMIFS(الشاشة!$M:$M,الشاشة!$E:$E,B56,الشاشة!$B:$B,"<"&(EOMONTH($S$1,-1)+1),الشاشة!$A:$A,$S$9) -> 0 | E56: =SUMIFS(الشاشة!$K:$K,الشاشة!$E:$E,'المراجعة بدلالة الشهر'!B56,الشاشة!$B:$B,">"&EOMONTH($S$1,-1),الشاشة!$B:$B,"<="&EOMONTH($S$1,0),الشاشة!$A:$A,$S$9) -> 0 | F56: =SUMIFS(الشاشة!$M:$M,الشاشة!$E:$E,'المراجعة بدلالة الشهر'!B56,الشاشة!$B:$B,">"&EOMONTH($S$1,-1),الشاشة!$B:$B,"<="&EOMONTH($S$1,0),الشاشة!$A:$A,$S$9) -> 0 | G56: 0 | I56: 54 | L56: =SUMIFS(الشاشة!$J:$J,الشاشة!$E:$E,'المراجعة بدلالة الشهر'!B56,الشاشة!$B:$B,"<"&(EOMONTH($S$1,-1)+1),الشاشة!$A:$A,$S$9)-SUMIFS(الشاشة!$L:$L,الشاشة!$E:$E,'المراجعة بدلالة الشهر'!B56,الشاشة!$B:$B,"<"&(EOMONTH($S$1,-1)+1),الشاشة!$A:$A,$S$9) -> 0 | M56: =SUMIFS(الشاشة!$J:$J,الشاشة!$E:$E,'المراجعة بدلالة الشهر'!B56,الشاشة!$B:$B,">="&(EOMONTH('المراجعة بدلالة الشهر'!$S$1,-1)+1),الشاشة!$B:$B,"<="&(EOMONTH('المراجعة بدلالة الشهر'!$S$1,0)),الشاشة!$A:$A,$S$9) -> 0 | N56: =SUMIFS(الشاشة!$L:$L,الشاشة!$E:$E,'المراجعة بدلالة الشهر'!B56,الشاشة!$B:$B,">="&(EOMONTH('المراجعة بدلالة الشهر'!$S$1,-1)+1),الشاشة!$B:$B,"<="&(EOMONTH('المراجعة بدلالة الشهر'!$S$1,0)),الشاشة!$A:$A,$S$9) -> 0 | O56: 0 | Q56: 0 | R56: 0
A57: =MAX($A$2:A56)+1 -> 55 | B57: =IFERROR(INDEX(الشاشة!$A:$U,MATCH(نوع_المخزن&$A57,الشاشة!$U:$U,0),MATCH('المراجعة بدلالة الشهر'!B$2,الشاشة!$A$1:$V$1,0)),"") ->  | C57: =IFERROR(INDEX(الشاشة!$A:$U,MATCH(نوع_المخزن&$A57,الشاشة!$U:$U,0),MATCH('المراجعة بدلالة الشهر'!C$2,الشاشة!$A$1:$V$1,0)),"") ->  | D57: =SUMIFS(الشاشة!$K:$K,الشاشة!$E:$E,B57,الشاشة!$B:$B,"<"&(EOMONTH($S$1,-1)+1),الشاشة!$A:$A,$S$9)-SUMIFS(الشاشة!$M:$M,الشاشة!$E:$E,B57,الشاشة!$B:$B,"<"&(EOMONTH($S$1,-1)+1),الشاشة!$A:$A,$S$9) -> 0 | E57: =SUMIFS(الشاشة!$K:$K,الشاشة!$E:$E,'المراجعة بدلالة الشهر'!B57,الشاشة!$B:$B,">"&EOMONTH($S$1,-1),الشاشة!$B:$B,"<="&EOMONTH($S$1,0),الشاشة!$A:$A,$S$9) -> 0 | F57: =SUMIFS(الشاشة!$M:$M,الشاشة!$E:$E,'المراجعة بدلالة الشهر'!B57,الشاشة!$B:$B,">"&EOMONTH($S$1,-1),الشاشة!$B:$B,"<="&EOMONTH($S$1,0),الشاشة!$A:$A,$S$9) -> 0 | G57: 0 | I57: 55 | L57: =SUMIFS(الشاشة!$J:$J,الشاشة!$E:$E,'المراجعة بدلالة الشهر'!B57,الشاشة!$B:$B,"<"&(EOMONTH($S$1,-1)+1),الشاشة!$A:$A,$S$9)-SUMIFS(الشاشة!$L:$L,الشاشة!$E:$E,'المراجعة بدلالة الشهر'!B57,الشاشة!$B:$B,"<"&(EOMONTH($S$1,-1)+1),الشاشة!$A:$A,$S$9) -> 0 | M57: =SUMIFS(الشاشة!$J:$J,الشاشة!$E:$E,'المراجعة بدلالة الشهر'!B57,الشاشة!$B:$B,">="&(EOMONTH('المراجعة بدلالة الشهر'!$S$1,-1)+1),الشاشة!$B:$B,"<="&(EOMONTH('المراجعة بدلالة الشهر'!$S$1,0)),الشاشة!$A:$A,$S$9) -> 0 | N57: =SUMIFS(الشاشة!$L:$L,الشاشة!$E:$E,'المراجعة بدلالة الشهر'!B57,الشاشة!$B:$B,">="&(EOMONTH('المراجعة بدلالة الشهر'!$S$1,-1)+1),الشاشة!$B:$B,"<="&(EOMONTH('المراجعة بدلالة الشهر'!$S$1,0)),الشاشة!$A:$A,$S$9) -> 0 | O57: 0 | Q57: 0 | R57: 0
A58: =MAX($A$2:A57)+1 -> 56 | B58: =IFERROR(INDEX(الشاشة!$A:$U,MATCH(نوع_المخزن&$A58,الشاشة!$U:$U,0),MATCH('المراجعة بدلالة الشهر'!B$2,الشاشة!$A$1:$V$1,0)),"") ->  | C58: =IFERROR(INDEX(الشاشة!$A:$U,MATCH(نوع_المخزن&$A58,الشاشة!$U:$U,0),MATCH('المراجعة بدلالة الشهر'!C$2,الشاشة!$A$1:$V$1,0)),"") ->  | D58: =SUMIFS(الشاشة!$K:$K,الشاشة!$E:$E,B58,الشاشة!$B:$B,"<"&(EOMONTH($S$1,-1)+1),الشاشة!$A:$A,$S$9)-SUMIFS(الشاشة!$M:$M,الشاشة!$E:$E,B58,الشاشة!$B:$B,"<"&(EOMONTH($S$1,-1)+1),الشاشة!$A:$A,$S$9) -> 0 | E58: =SUMIFS(الشاشة!$K:$K,الشاشة!$E:$E,'المراجعة بدلالة الشهر'!B58,الشاشة!$B:$B,">"&EOMONTH($S$1,-1),الشاشة!$B:$B,"<="&EOMONTH($S$1,0),الشاشة!$A:$A,$S$9) -> 0 | F58: =SUMIFS(الشاشة!$M:$M,الشاشة!$E:$E,'المراجعة بدلالة الشهر'!B58,الشاشة!$B:$B,">"&EOMONTH($S$1,-1),الشاشة!$B:$B,"<="&EOMONTH($S$1,0),الشاشة!$A:$A,$S$9) -> 0 | G58: 0 | I58: 56 | L58: =SUMIFS(الشاشة!$J:$J,الشاشة!$E:$E,'المراجعة بدلالة الشهر'!B58,الشاشة!$B:$B,"<"&(EOMONTH($S$1,-1)+1),الشاشة!$A:$A,$S$9)-SUMIFS(الشاشة!$L:$L,الشاشة!$E:$E,'المراجعة بدلالة الشهر'!B58,الشاشة!$B:$B,"<"&(EOMONTH($S$1,-1)+1),الشاشة!$A:$A,$S$9) -> 0 | M58: =SUMIFS(الشاشة!$J:$J,الشاشة!$E:$E,'المراجعة بدلالة الشهر'!B58,الشاشة!$B:$B,">="&(EOMONTH('المراجعة بدلالة الشهر'!$S$1,-1)+1),الشاشة!$B:$B,"<="&(EOMONTH('المراجعة بدلالة الشهر'!$S$1,0)),الشاشة!$A:$A,$S$9) -> 0 | N58: =SUMIFS(الشاشة!$L:$L,الشاشة!$E:$E,'المراجعة بدلالة الشهر'!B58,الشاشة!$B:$B,">="&(EOMONTH('المراجعة بدلالة الشهر'!$S$1,-1)+1),الشاشة!$B:$B,"<="&(EOMONTH('المراجعة بدلالة الشهر'!$S$1,0)),الشاشة!$A:$A,$S$9) -> 0 | O58: 0 | Q58: 0 | R58: 0
A59: =MAX($A$2:A58)+1 -> 57 | B59: =IFERROR(INDEX(الشاشة!$A:$U,MATCH(نوع_المخزن&$A59,الشاشة!$U:$U,0),MATCH('المراجعة بدلالة الشهر'!B$2,الشاشة!$A$1:$V$1,0)),"") ->  | C59: =IFERROR(INDEX(الشاشة!$A:$U,MATCH(نوع_المخزن&$A59,الشاشة!$U:$U,0),MATCH('المراجعة بدلالة الشهر'!C$2,الشاشة!$A$1:$V$1,0)),"") ->  | D59: =SUMIFS(الشاشة!$K:$K,الشاشة!$E:$E,B59,الشاشة!$B:$B,"<"&(EOMONTH($S$1,-1)+1),الشاشة!$A:$A,$S$9)-SUMIFS(الشاشة!$M:$M,الشاشة!$E:$E,B59,الشاشة!$B:$B,"<"&(EOMONTH($S$1,-1)+1),الشاشة!$A:$A,$S$9) -> 0 | E59: =SUMIFS(الشاشة!$K:$K,الشاشة!$E:$E,'المراجعة بدلالة الشهر'!B59,الشاشة!$B:$B,">"&EOMONTH($S$1,-1),الشاشة!$B:$B,"<="&EOMONTH($S$1,0),الشاشة!$A:$A,$S$9) -> 0 | F59: =SUMIFS(الشاشة!$M:$M,الشاشة!$E:$E,'المراجعة بدلالة الشهر'!B59,الشاشة!$B:$B,">"&EOMONTH($S$1,-1),الشاشة!$B:$B,"<="&EOMONTH($S$1,0),الشاشة!$A:$A,$S$9) -> 0 | G59: 0 | I59: 57 | L59: =SUMIFS(الشاشة!$J:$J,الشاشة!$E:$E,'المراجعة بدلالة الشهر'!B59,الشاشة!$B:$B,"<"&(EOMONTH($S$1,-1)+1),الشاشة!$A:$A,$S$9)-SUMIFS(الشاشة!$L:$L,الشاشة!$E:$E,'المراجعة بدلالة الشهر'!B59,الشاشة!$B:$B,"<"&(EOMONTH($S$1,-1)+1),الشاشة!$A:$A,$S$9) -> 0 | M59: =SUMIFS(الشاشة!$J:$J,الشاشة!$E:$E,'المراجعة بدلالة الشهر'!B59,الشاشة!$B:$B,">="&(EOMONTH('المراجعة بدلالة الشهر'!$S$1,-1)+1),الشاشة!$B:$B,"<="&(EOMONTH('المراجعة بدلالة الشهر'!$S$1,0)),الشاشة!$A:$A,$S$9) -> 0 | N59: =SUMIFS(الشاشة!$L:$L,الشاشة!$E:$E,'المراجعة بدلالة الشهر'!B59,الشاشة!$B:$B,">="&(EOMONTH('المراجعة بدلالة الشهر'!$S$1,-1)+1),الشاشة!$B:$B,"<="&(EOMONTH('المراجعة بدلالة الشهر'!$S$1,0)),الشاشة!$A:$A,$S$9) -> 0 | O59: 0 | Q59: 0 | R59: 0
A60: =MAX($A$2:A59)+1 -> 58 | B60: =IFERROR(INDEX(الشاشة!$A:$U,MATCH(نوع_المخزن&$A60,الشاشة!$U:$U,0),MATCH('المراجعة بدلالة الشهر'!B$2,الشاشة!$A$1:$V$1,0)),"") ->  | C60: =IFERROR(INDEX(الشاشة!$A:$U,MATCH(نوع_المخزن&$A60,الشاشة!$U:$U,0),MATCH('المراجعة بدلالة الشهر'!C$2,الشاشة!$A$1:$V$1,0)),"") ->  | D60: =SUMIFS(الشاشة!$K:$K,الشاشة!$E:$E,B60,الشاشة!$B:$B,"<"&(EOMONTH($S$1,-1)+1),الشاشة!$A:$A,$S$9)-SUMIFS(الشاشة!$M:$M,الشاشة!$E:$E,B60,الشاشة!$B:$B,"<"&(EOMONTH($S$1,-1)+1),الشاشة!$A:$A,$S$9) -> 0 | E60: =SUMIFS(الشاشة!$K:$K,الشاشة!$E:$E,'المراجعة بدلالة الشهر'!B60,الشاشة!$B:$B,">"&EOMONTH($S$1,-1),الشاشة!$B:$B,"<="&EOMONTH($S$1,0),الشاشة!$A:$A,$S$9) -> 0 | F60: =SUMIFS(الشاشة!$M:$M,الشاشة!$E:$E,'المراجعة بدلالة الشهر'!B60,الشاشة!$B:$B,">"&EOMONTH($S$1,-1),الشاشة!$B:$B,"<="&EOMONTH($S$1,0),الشاشة!$A:$A,$S$9) -> 0 | G60: 0 | I60: 58 | L60: =SUMIFS(الشاشة!$J:$J,الشاشة!$E:$E,'المراجعة بدلالة الشهر'!B60,الشاشة!$B:$B,"<"&(EOMONTH($S$1,-1)+1),الشاشة!$A:$A,$S$9)-SUMIFS(الشاشة!$L:$L,الشاشة!$E:$E,'المراجعة بدلالة الشهر'!B60,الشاشة!$B:$B,"<"&(EOMONTH($S$1,-1)+1),الشاشة!$A:$A,$S$9) -> 0 | M60: =SUMIFS(الشاشة!$J:$J,الشاشة!$E:$E,'المراجعة بدلالة الشهر'!B60,الشاشة!$B:$B,">="&(EOMONTH('المراجعة بدلالة الشهر'!$S$1,-1)+1),الشاشة!$B:$B,"<="&(EOMONTH('المراجعة بدلالة الشهر'!$S$1,0)),الشاشة!$A:$A,$S$9) -> 0 | N60: =SUMIFS(الشاشة!$L:$L,الشاشة!$E:$E,'المراجعة بدلالة الشهر'!B60,الشاشة!$B:$B,">="&(EOMONTH('المراجعة بدلالة الشهر'!$S$1,-1)+1),الشاشة!$B:$B,"<="&(EOMONTH('المراجعة بدلالة الشهر'!$S$1,0)),الشاشة!$A:$A,$S$9) -> 0 | O60: 0 | Q60: 0 | R60: 0
A61: =MAX($A$2:A60)+1 -> 59 | B61: =IFERROR(INDEX(الشاشة!$A:$U,MATCH(نوع_المخزن&$A61,الشاشة!$U:$U,0),MATCH('المراجعة بدلالة الشهر'!B$2,الشاشة!$A$1:$V$1,0)),"") ->  | C61: =IFERROR(INDEX(الشاشة!$A:$U,MATCH(نوع_المخزن&$A61,الشاشة!$U:$U,0),MATCH('المراجعة بدلالة الشهر'!C$2,الشاشة!$A$1:$V$1,0)),"") ->  | D61: =SUMIFS(الشاشة!$K:$K,الشاشة!$E:$E,B61,الشاشة!$B:$B,"<"&(EOMONTH($S$1,-1)+1),الشاشة!$A:$A,$S$9)-SUMIFS(الشاشة!$M:$M,الشاشة!$E:$E,B61,الشاشة!$B:$B,"<"&(EOMONTH($S$1,-1)+1),الشاشة!$A:$A,$S$9) -> 0 | E61: =SUMIFS(الشاشة!$K:$K,الشاشة!$E:$E,'المراجعة بدلالة الشهر'!B61,الشاشة!$B:$B,">"&EOMONTH($S$1,-1),الشاشة!$B:$B,"<="&EOMONTH($S$1,0),الشاشة!$A:$A,$S$9) -> 0 | F61: =SUMIFS(الشاشة!$M:$M,الشاشة!$E:$E,'المراجعة بدلالة الشهر'!B61,الشاشة!$B:$B,">"&EOMONTH($S$1,-1),الشاشة!$B:$B,"<="&EOMONTH($S$1,0),الشاشة!$A:$A,$S$9) -> 0 | G61: 0 | I61: 59 | L61: =SUMIFS(الشاشة!$J:$J,الشاشة!$E:$E,'المراجعة بدلالة الشهر'!B61,الشاشة!$B:$B,"<"&(EOMONTH($S$1,-1)+1),الشاشة!$A:$A,$S$9)-SUMIFS(الشاشة!$L:$L,الشاشة!$E:$E,'المراجعة بدلالة الشهر'!B61,الشاشة!$B:$B,"<"&(EOMONTH($S$1,-1)+1),الشاشة!$A:$A,$S$9) -> 0 | M61: =SUMIFS(الشاشة!$J:$J,الشاشة!$E:$E,'المراجعة بدلالة الشهر'!B61,الشاشة!$B:$B,">="&(EOMONTH('المراجعة بدلالة الشهر'!$S$1,-1)+1),الشاشة!$B:$B,"<="&(EOMONTH('المراجعة بدلالة الشهر'!$S$1,0)),الشاشة!$A:$A,$S$9) -> 0 | N61: =SUMIFS(الشاشة!$L:$L,الشاشة!$E:$E,'المراجعة بدلالة الشهر'!B61,الشاشة!$B:$B,">="&(EOMONTH('المراجعة بدلالة الشهر'!$S$1,-1)+1),الشاشة!$B:$B,"<="&(EOMONTH('المراجعة بدلالة الشهر'!$S$1,0)),الشاشة!$A:$A,$S$9) -> 0 | O61: 0 | Q61: 0 | R61: 0
A62: =MAX($A$2:A61)+1 -> 60 | B62: =IFERROR(INDEX(الشاشة!$A:$U,MATCH(نوع_المخزن&$A62,الشاشة!$U:$U,0),MATCH('المراجعة بدلالة الشهر'!B$2,الشاشة!$A$1:$V$1,0)),"") ->  | C62: =IFERROR(INDEX(الشاشة!$A:$U,MATCH(نوع_المخزن&$A62,الشاشة!$U:$U,0),MATCH('المراجعة بدلالة الشهر'!C$2,الشاشة!$A$1:$V$1,0)),"") ->  | D62: =SUMIFS(الشاشة!$K:$K,الشاشة!$E:$E,B62,الشاشة!$B:$B,"<"&(EOMONTH($S$1,-1)+1),الشاشة!$A:$A,$S$9)-SUMIFS(الشاشة!$M:$M,الشاشة!$E:$E,B62,الشاشة!$B:$B,"<"&(EOMONTH($S$1,-1)+1),الشاشة!$A:$A,$S$9) -> 0 | E62: =SUMIFS(الشاشة!$K:$K,الشاشة!$E:$E,'المراجعة بدلالة الشهر'!B62,الشاشة!$B:$B,">"&EOMONTH($S$1,-1),الشاشة!$B:$B,"<="&EOMONTH($S$1,0),الشاشة!$A:$A,$S$9) -> 0 | F62: =SUMIFS(الشاشة!$M:$M,الشاشة!$E:$E,'المراجعة بدلالة الشهر'!B62,الشاشة!$B:$B,">"&EOMONTH($S$1,-1),الشاشة!$B:$B,"<="&EOMONTH($S$1,0),الشاشة!$A:$A,$S$9) -> 0 | G62: 0 | I62: 60 | L62: =SUMIFS(الشاشة!$J:$J,الشاشة!$E:$E,'المراجعة بدلالة الشهر'!B62,الشاشة!$B:$B,"<"&(EOMONTH($S$1,-1)+1),الشاشة!$A:$A,$S$9)-SUMIFS(الشاشة!$L:$L,الشاشة!$E:$E,'المراجعة بدلالة الشهر'!B62,الشاشة!$B:$B,"<"&(EOMONTH($S$1,-1)+1),الشاشة!$A:$A,$S$9) -> 0 | M62: =SUMIFS(الشاشة!$J:$J,الشاشة!$E:$E,'المراجعة بدلالة الشهر'!B62,الشاشة!$B:$B,">="&(EOMONTH('المراجعة بدلالة الشهر'!$S$1,-1)+1),الشاشة!$B:$B,"<="&(EOMONTH('المراجعة بدلالة الشهر'!$S$1,0)),الشاشة!$A:$A,$S$9) -> 0 | N62: =SUMIFS(الشاشة!$L:$L,الشاشة!$E:$E,'المراجعة بدلالة الشهر'!B62,الشاشة!$B:$B,">="&(EOMONTH('المراجعة بدلالة الشهر'!$S$1,-1)+1),الشاشة!$B:$B,"<="&(EOMONTH('المراجعة بدلالة الشهر'!$S$1,0)),الشاشة!$A:$A,$S$9) -> 0 | O62: 0 | Q62: 0 | R62: 0
A63: =MAX($A$2:A62)+1 -> 61 | B63: =IFERROR(INDEX(الشاشة!$A:$U,MATCH(نوع_المخزن&$A63,الشاشة!$U:$U,0),MATCH('المراجعة بدلالة الشهر'!B$2,الشاشة!$A$1:$V$1,0)),"") ->  | C63: =IFERROR(INDEX(الشاشة!$A:$U,MATCH(نوع_المخزن&$A63,الشاشة!$U:$U,0),MATCH('المراجعة بدلالة الشهر'!C$2,الشاشة!$A$1:$V$1,0)),"") ->  | D63: =SUMIFS(الشاشة!$K:$K,الشاشة!$E:$E,B63,الشاشة!$B:$B,"<"&(EOMONTH($S$1,-1)+1),الشاشة!$A:$A,$S$9)-SUMIFS(الشاشة!$M:$M,الشاشة!$E:$E,B63,الشاشة!$B:$B,"<"&(EOMONTH($S$1,-1)+1),الشاشة!$A:$A,$S$9) -> 0 | E63: =SUMIFS(الشاشة!$K:$K,الشاشة!$E:$E,'المراجعة بدلالة الشهر'!B63,الشاشة!$B:$B,">"&EOMONTH($S$1,-1),الشاشة!$B:$B,"<="&EOMONTH($S$1,0),الشاشة!$A:$A,$S$9) -> 0 | F63: =SUMIFS(الشاشة!$M:$M,الشاشة!$E:$E,'المراجعة بدلالة الشهر'!B63,الشاشة!$B:$B,">"&EOMONTH($S$1,-1),الشاشة!$B:$B,"<="&EOMONTH($S$1,0),الشاشة!$A:$A,$S$9) -> 0 | G63: 0 | I63: 61 | L63: =SUMIFS(الشاشة!$J:$J,الشاشة!$E:$E,'المراجعة بدلالة الشهر'!B63,الشاشة!$B:$B,"<"&(EOMONTH($S$1,-1)+1),الشاشة!$A:$A,$S$9)-SUMIFS(الشاشة!$L:$L,الشاشة!$E:$E,'المراجعة بدلالة الشهر'!B63,الشاشة!$B:$B,"<"&(EOMONTH($S$1,-1)+1),الشاشة!$A:$A,$S$9) -> 0 | M63: =SUMIFS(الشاشة!$J:$J,الشاشة!$E:$E,'المراجعة بدلالة الشهر'!B63,الشاشة!$B:$B,">="&(EOMONTH('المراجعة بدلالة الشهر'!$S$1,-1)+1),الشاشة!$B:$B,"<="&(EOMONTH('المراجعة بدلالة الشهر'!$S$1,0)),الشاشة!$A:$A,$S$9) -> 0 | N63: =SUMIFS(الشاشة!$L:$L,الشاشة!$E:$E,'المراجعة بدلالة الشهر'!B63,الشاشة!$B:$B,">="&(EOMONTH('المراجعة بدلالة الشهر'!$S$1,-1)+1),الشاشة!$B:$B,"<="&(EOMONTH('المراجعة بدلالة الشهر'!$S$1,0)),الشاشة!$A:$A,$S$9) -> 0 | O63: 0 | Q63: 0 | R63: 0
A64: =MAX($A$2:A63)+1 -> 62 | B64: =IFERROR(INDEX(الشاشة!$A:$U,MATCH(نوع_المخزن&$A64,الشاشة!$U:$U,0),MATCH('المراجعة بدلالة الشهر'!B$2,الشاشة!$A$1:$V$1,0)),"") ->  | C64: =IFERROR(INDEX(الشاشة!$A:$U,MATCH(نوع_المخزن&$A64,الشاشة!$U:$U,0),MATCH('المراجعة بدلالة الشهر'!C$2,الشاشة!$A$1:$V$1,0)),"") ->  | D64: =SUMIFS(الشاشة!$K:$K,الشاشة!$E:$E,B64,الشاشة!$B:$B,"<"&(EOMONTH($S$1,-1)+1),الشاشة!$A:$A,$S$9)-SUMIFS(الشاشة!$M:$M,الشاشة!$E:$E,B64,الشاشة!$B:$B,"<"&(EOMONTH($S$1,-1)+1),الشاشة!$A:$A,$S$9) -> 0 | E64: =SUMIFS(الشاشة!$K:$K,الشاشة!$E:$E,'المراجعة بدلالة الشهر'!B64,الشاشة!$B:$B,">"&EOMONTH($S$1,-1),الشاشة!$B:$B,"<="&EOMONTH($S$1,0),الشاشة!$A:$A,$S$9) -> 0 | F64: =SUMIFS(الشاشة!$M:$M,الشاشة!$E:$E,'المراجعة بدلالة الشهر'!B64,الشاشة!$B:$B,">"&EOMONTH($S$1,-1),الشاشة!$B:$B,"<="&EOMONTH($S$1,0),الشاشة!$A:$A,$S$9) -> 0 | G64: 0 | I64: 62 | L64: =SUMIFS(الشاشة!$J:$J,الشاشة!$E:$E,'المراجعة بدلالة الشهر'!B64,الشاشة!$B:$B,"<"&(EOMONTH($S$1,-1)+1),الشاشة!$A:$A,$S$9)-SUMIFS(الشاشة!$L:$L,الشاشة!$E:$E,'المراجعة بدلالة الشهر'!B64,الشاشة!$B:$B,"<"&(EOMONTH($S$1,-1)+1),الشاشة!$A:$A,$S$9) -> 0 | M64: =SUMIFS(الشاشة!$J:$J,الشاشة!$E:$E,'المراجعة بدلالة الشهر'!B64,الشاشة!$B:$B,">="&(EOMONTH('المراجعة بدلالة الشهر'!$S$1,-1)+1),الشاشة!$B:$B,"<="&(EOMONTH('المراجعة بدلالة الشهر'!$S$1,0)),الشاشة!$A:$A,$S$9) -> 0 | N64: =SUMIFS(الشاشة!$L:$L,الشاشة!$E:$E,'المراجعة بدلالة الشهر'!B64,الشاشة!$B:$B,">="&(EOMONTH('المراجعة بدلالة الشهر'!$S$1,-1)+1),الشاشة!$B:$B,"<="&(EOMONTH('المراجعة بدلالة الشهر'!$S$1,0)),الشاشة!$A:$A,$S$9) -> 0 | O64: 0 | Q64: 0 | R64: 0
A65: =MAX($A$2:A64)+1 -> 63 | B65: =IFERROR(INDEX(الشاشة!$A:$U,MATCH(نوع_المخزن&$A65,الشاشة!$U:$U,0),MATCH('المراجعة بدلالة الشهر'!B$2,الشاشة!$A$1:$V$1,0)),"") ->  | C65: =IFERROR(INDEX(الشاشة!$A:$U,MATCH(نوع_المخزن&$A65,الشاشة!$U:$U,0),MATCH('المراجعة بدلالة الشهر'!C$2,الشاشة!$A$1:$V$1,0)),"") ->  | D65: =SUMIFS(الشاشة!$K:$K,الشاشة!$E:$E,B65,الشاشة!$B:$B,"<"&(EOMONTH($S$1,-1)+1),الشاشة!$A:$A,$S$9)-SUMIFS(الشاشة!$M:$M,الشاشة!$E:$E,B65,الشاشة!$B:$B,"<"&(EOMONTH($S$1,-1)+1),الشاشة!$A:$A,$S$9) -> 0 | E65: =SUMIFS(الشاشة!$K:$K,الشاشة!$E:$E,'المراجعة بدلالة الشهر'!B65,الشاشة!$B:$B,">"&EOMONTH($S$1,-1),الشاشة!$B:$B,"<="&EOMONTH($S$1,0),الشاشة!$A:$A,$S$9) -> 0 | F65: =SUMIFS(الشاشة!$M:$M,الشاشة!$E:$E,'المراجعة بدلالة الشهر'!B65,الشاشة!$B:$B,">"&EOMONTH($S$1,-1),الشاشة!$B:$B,"<="&EOMONTH($S$1,0),الشاشة!$A:$A,$S$9) -> 0 | G65: 0 | I65: 63 | L65: =SUMIFS(الشاشة!$J:$J,الشاشة!$E:$E,'المراجعة بدلالة الشهر'!B65,الشاشة!$B:$B,"<"&(EOMONTH($S$1,-1)+1),الشاشة!$A:$A,$S$9)-SUMIFS(الشاشة!$L:$L,الشاشة!$E:$E,'المراجعة بدلالة الشهر'!B65,الشاشة!$B:$B,"<"&(EOMONTH($S$1,-1)+1),الشاشة!$A:$A,$S$9) -> 0 | M65: =SUMIFS(الشاشة!$J:$J,الشاشة!$E:$E,'المراجعة بدلالة الشهر'!B65,الشاشة!$B:$B,">="&(EOMONTH('المراجعة بدلالة الشهر'!$S$1,-1)+1),الشاشة!$B:$B,"<="&(EOMONTH('المراجعة بدلالة الشهر'!$S$1,0)),الشاشة!$A:$A,$S$9) -> 0 | N65: =SUMIFS(الشاشة!$L:$L,الشاشة!$E:$E,'المراجعة بدلالة الشهر'!B65,الشاشة!$B:$B,">="&(EOMONTH('المراجعة بدلالة الشهر'!$S$1,-1)+1),الشاشة!$B:$B,"<="&(EOMONTH('المراجعة بدلالة الشهر'!$S$1,0)),الشاشة!$A:$A,$S$9) -> 0 | O65: 0 | Q65: 0 | R65: 0
A66: =MAX($A$2:A65)+1 -> 64 | B66: =IFERROR(INDEX(الشاشة!$A:$U,MATCH(نوع_المخزن&$A66,الشاشة!$U:$U,0),MATCH('المراجعة بدلالة الشهر'!B$2,الشاشة!$A$1:$V$1,0)),"") ->  | C66: =IFERROR(INDEX(الشاشة!$A:$U,MATCH(نوع_المخزن&$A66,الشاشة!$U:$U,0),MATCH('المراجعة بدلالة الشهر'!C$2,الشاشة!$A$1:$V$1,0)),"") ->  | D66: =SUMIFS(الشاشة!$K:$K,الشاشة!$E:$E,B66,الشاشة!$B:$B,"<"&(EOMONTH($S$1,-1)+1),الشاشة!$A:$A,$S$9)-SUMIFS(الشاشة!$M:$M,الشاشة!$E:$E,B66,الشاشة!$B:$B,"<"&(EOMONTH($S$1,-1)+1),الشاشة!$A:$A,$S$9) -> 0 | E66: =SUMIFS(الشاشة!$K:$K,الشاشة!$E:$E,'المراجعة بدلالة الشهر'!B66,الشاشة!$B:$B,">"&EOMONTH($S$1,-1),الشاشة!$B:$B,"<="&EOMONTH($S$1,0),الشاشة!$A:$A,$S$9) -> 0 | F66: =SUMIFS(الشاشة!$M:$M,الشاشة!$E:$E,'المراجعة بدلالة الشهر'!B66,الشاشة!$B:$B,">"&EOMONTH($S$1,-1),الشاشة!$B:$B,"<="&EOMONTH($S$1,0),الشاشة!$A:$A,$S$9) -> 0 | G66: 0 | I66: 64 | L66: =SUMIFS(الشاشة!$J:$J,الشاشة!$E:$E,'المراجعة بدلالة الشهر'!B66,الشاشة!$B:$B,"<"&(EOMONTH($S$1,-1)+1),الشاشة!$A:$A,$S$9)-SUMIFS(الشاشة!$L:$L,الشاشة!$E:$E,'المراجعة بدلالة الشهر'!B66,الشاشة!$B:$B,"<"&(EOMONTH($S$1,-1)+1),الشاشة!$A:$A,$S$9) -> 0 | M66: =SUMIFS(الشاشة!$J:$J,الشاشة!$E:$E,'المراجعة بدلالة الشهر'!B66,الشاشة!$B:$B,">="&(EOMONTH('المراجعة بدلالة الشهر'!$S$1,-1)+1),الشاشة!$B:$B,"<="&(EOMONTH('المراجعة بدلالة الشهر'!$S$1,0)),الشاشة!$A:$A,$S$9) -> 0 | N66: =SUMIFS(الشاشة!$L:$L,الشاشة!$E:$E,'المراجعة بدلالة الشهر'!B66,الشاشة!$B:$B,">="&(EOMONTH('المراجعة بدلالة الشهر'!$S$1,-1)+1),الشاشة!$B:$B,"<="&(EOMONTH('المراجعة بدلالة الشهر'!$S$1,0)),الشاشة!$A:$A,$S$9) -> 0 | O66: 0 | Q66: 0 | R66: 0
A67: =MAX($A$2:A66)+1 -> 65 | B67: =IFERROR(INDEX(الشاشة!$A:$U,MATCH(نوع_المخزن&$A67,الشاشة!$U:$U,0),MATCH('المراجعة بدلالة الشهر'!B$2,الشاشة!$A$1:$V$1,0)),"") ->  | C67: =IFERROR(INDEX(الشاشة!$A:$U,MATCH(نوع_المخزن&$A67,الشاشة!$U:$U,0),MATCH('المراجعة بدلالة الشهر'!C$2,الشاشة!$A$1:$V$1,0)),"") ->  | D67: =SUMIFS(الشاشة!$K:$K,الشاشة!$E:$E,B67,الشاشة!$B:$B,"<"&(EOMONTH($S$1,-1)+1),الشاشة!$A:$A,$S$9)-SUMIFS(الشاشة!$M:$M,الشاشة!$E:$E,B67,الشاشة!$B:$B,"<"&(EOMONTH($S$1,-1)+1),الشاشة!$A:$A,$S$9) -> 0 | E67: =SUMIFS(الشاشة!$K:$K,الشاشة!$E:$E,'المراجعة بدلالة الشهر'!B67,الشاشة!$B:$B,">"&EOMONTH($S$1,-1),الشاشة!$B:$B,"<="&EOMONTH($S$1,0),الشاشة!$A:$A,$S$9) -> 0 | F67: =SUMIFS(الشاشة!$M:$M,الشاشة!$E:$E,'المراجعة بدلالة الشهر'!B67,الشاشة!$B:$B,">"&EOMONTH($S$1,-1),الشاشة!$B:$B,"<="&EOMONTH($S$1,0),الشاشة!$A:$A,$S$9) -> 0 | G67: 0 | I67: 65 | L67: =SUMIFS(الشاشة!$J:$J,الشاشة!$E:$E,'المراجعة بدلالة الشهر'!B67,الشاشة!$B:$B,"<"&(EOMONTH($S$1,-1)+1),الشاشة!$A:$A,$S$9)-SUMIFS(الشاشة!$L:$L,الشاشة!$E:$E,'المراجعة بدلالة الشهر'!B67,الشاشة!$B:$B,"<"&(EOMONTH($S$1,-1)+1),الشاشة!$A:$A,$S$9) -> 0 | M67: =SUMIFS(الشاشة!$J:$J,الشاشة!$E:$E,'المراجعة بدلالة الشهر'!B67,الشاشة!$B:$B,">="&(EOMONTH('المراجعة بدلالة الشهر'!$S$1,-1)+1),الشاشة!$B:$B,"<="&(EOMONTH('المراجعة بدلالة الشهر'!$S$1,0)),الشاشة!$A:$A,$S$9) -> 0 | N67: =SUMIFS(الشاشة!$L:$L,الشاشة!$E:$E,'المراجعة بدلالة الشهر'!B67,الشاشة!$B:$B,">="&(EOMONTH('المراجعة بدلالة الشهر'!$S$1,-1)+1),الشاشة!$B:$B,"<="&(EOMONTH('المراجعة بدلالة الشهر'!$S$1,0)),الشاشة!$A:$A,$S$9) -> 0 | O67: 0 | Q67: =O67-P67 -> 0 | R67: =IFERROR(ROUND(G67/((L67+O67)/2),2),0) -> 0
A68: =MAX($A$2:A67)+1 -> 66 | B68: =IFERROR(INDEX(الشاشة!$A:$U,MATCH(نوع_المخزن&$A68,الشاشة!$U:$U,0),MATCH('المراجعة بدلالة الشهر'!B$2,الشاشة!$A$1:$V$1,0)),"") ->  | C68: =IFERROR(INDEX(الشاشة!$A:$U,MATCH(نوع_المخزن&$A68,الشاشة!$U:$U,0),MATCH('المراجعة بدلالة الشهر'!C$2,الشاشة!$A$1:$V$1,0)),"") ->  | D68: =SUMIFS(الشاشة!$K:$K,الشاشة!$E:$E,B68,الشاشة!$B:$B,"<"&(EOMONTH($S$1,-1)+1),الشاشة!$A:$A,$S$9)-SUMIFS(الشاشة!$M:$M,الشاشة!$E:$E,B68,الشاشة!$B:$B,"<"&(EOMONTH($S$1,-1)+1),الشاشة!$A:$A,$S$9) -> 0 | E68: =SUMIFS(الشاشة!$K:$K,الشاشة!$E:$E,'المراجعة بدلالة الشهر'!B68,الشاشة!$B:$B,">"&EOMONTH($S$1,-1),الشاشة!$B:$B,"<="&EOMONTH($S$1,0),الشاشة!$A:$A,$S$9) -> 0 | F68: =SUMIFS(الشاشة!$M:$M,الشاشة!$E:$E,'المراجعة بدلالة الشهر'!B68,الشاشة!$B:$B,">"&EOMONTH($S$1,-1),الشاشة!$B:$B,"<="&EOMONTH($S$1,0),الشاشة!$A:$A,$S$9) -> 0 | G68: =ROUND(D68+E68-F68,2) -> 0 | I68: =A68 -> 66 | J68: =B68 ->  | K68: =C68 ->  | L68: =SUMIFS(الشاشة!$J:$J,الشاشة!$E:$E,'المراجعة بدلالة الشهر'!B68,الشاشة!$B:$B,"<"&(EOMONTH($S$1,-1)+1),الشاشة!$A:$A,$S$9)-SUMIFS(الشاشة!$L:$L,الشاشة!$E:$E,'المراجعة بدلالة الشهر'!B68,الشاشة!$B:$B,"<"&(EOMONTH($S$1,-1)+1),الشاشة!$A:$A,$S$9) -> 0 | M68: =SUMIFS(الشاشة!$J:$J,الشاشة!$E:$E,'المراجعة بدلالة الشهر'!B68,الشاشة!$B:$B,">="&(EOMONTH('المراجعة بدلالة الشهر'!$S$1,-1)+1),الشاشة!$B:$B,"<="&(EOMONTH('المراجعة بدلالة الشهر'!$S$1,0)),الشاشة!$A:$A,$S$9) -> 0 | N68: =SUMIFS(الشاشة!$L:$L,الشاشة!$E:$E,'المراجعة بدلالة الشهر'!B68,الشاشة!$B:$B,">="&(EOMONTH('المراجعة بدلالة الشهر'!$S$1,-1)+1),الشاشة!$B:$B,"<="&(EOMONTH('المراجعة بدلالة الشهر'!$S$1,0)),الشاشة!$A:$A,$S$9) -> 0 | O68: =L68+M68-N68 -> 0 | Q68: 0 | R68: 0
A69: =MAX($A$2:A68)+1 -> 67 | B69: =IFERROR(INDEX(الشاشة!$A:$U,MATCH(نوع_المخزن&$A69,الشاشة!$U:$U,0),MATCH('المراجعة بدلالة الشهر'!B$2,الشاشة!$A$1:$V$1,0)),"") ->  | C69: =IFERROR(INDEX(الشاشة!$A:$U,MATCH(نوع_المخزن&$A69,الشاشة!$U:$U,0),MATCH('المراجعة بدلالة الشهر'!C$2,الشاشة!$A$1:$V$1,0)),"") ->  | D69: =SUMIFS(الشاشة!$K:$K,الشاشة!$E:$E,B69,الشاشة!$B:$B,"<"&(EOMONTH($S$1,-1)+1),الشاشة!$A:$A,$S$9)-SUMIFS(الشاشة!$M:$M,الشاشة!$E:$E,B69,الشاشة!$B:$B,"<"&(EOMONTH($S$1,-1)+1),الشاشة!$A:$A,$S$9) -> 0 | E69: =SUMIFS(الشاشة!$K:$K,الشاشة!$E:$E,'المراجعة بدلالة الشهر'!B69,الشاشة!$B:$B,">"&EOMONTH($S$1,-1),الشاشة!$B:$B,"<="&EOMONTH($S$1,0),الشاشة!$A:$A,$S$9) -> 0 | F69: =SUMIFS(الشاشة!$M:$M,الشاشة!$E:$E,'المراجعة بدلالة الشهر'!B69,الشاشة!$B:$B,">"&EOMONTH($S$1,-1),الشاشة!$B:$B,"<="&EOMONTH($S$1,0),الشاشة!$A:$A,$S$9) -> 0 | G69: 0 | I69: 67 | L69: =SUMIFS(الشاشة!$J:$J,الشاشة!$E:$E,'المراجعة بدلالة الشهر'!B69,الشاشة!$B:$B,"<"&(EOMONTH($S$1,-1)+1),الشاشة!$A:$A,$S$9)-SUMIFS(الشاشة!$L:$L,الشاشة!$E:$E,'المراجعة بدلالة الشهر'!B69,الشاشة!$B:$B,"<"&(EOMONTH($S$1,-1)+1),الشاشة!$A:$A,$S$9) -> 0 | M69: =SUMIFS(الشاشة!$J:$J,الشاشة!$E:$E,'المراجعة بدلالة الشهر'!B69,الشاشة!$B:$B,">="&(EOMONTH('المراجعة بدلالة الشهر'!$S$1,-1)+1),الشاشة!$B:$B,"<="&(EOMONTH('المراجعة بدلالة الشهر'!$S$1,0)),الشاشة!$A:$A,$S$9) -> 0 | N69: =SUMIFS(الشاشة!$L:$L,الشاشة!$E:$E,'المراجعة بدلالة الشهر'!B69,الشاشة!$B:$B,">="&(EOMONTH('المراجعة بدلالة الشهر'!$S$1,-1)+1),الشاشة!$B:$B,"<="&(EOMONTH('المراجعة بدلالة الشهر'!$S$1,0)),الشاشة!$A:$A,$S$9) -> 0 | O69: 0 | Q69: 0 | R69: 0
A70: =MAX($A$2:A69)+1 -> 68 | B70: =IFERROR(INDEX(الشاشة!$A:$U,MATCH(نوع_المخزن&$A70,الشاشة!$U:$U,0),MATCH('المراجعة بدلالة الشهر'!B$2,الشاشة!$A$1:$V$1,0)),"") ->  | C70: =IFERROR(INDEX(الشاشة!$A:$U,MATCH(نوع_المخزن&$A70,الشاشة!$U:$U,0),MATCH('المراجعة بدلالة الشهر'!C$2,الشاشة!$A$1:$V$1,0)),"") ->  | D70: =SUMIFS(الشاشة!$K:$K,الشاشة!$E:$E,B70,الشاشة!$B:$B,"<"&(EOMONTH($S$1,-1)+1),الشاشة!$A:$A,$S$9)-SUMIFS(الشاشة!$M:$M,الشاشة!$E:$E,B70,الشاشة!$B:$B,"<"&(EOMONTH($S$1,-1)+1),الشاشة!$A:$A,$S$9) -> 0 | E70: =SUMIFS(الشاشة!$K:$K,الشاشة!$E:$E,'المراجعة بدلالة الشهر'!B70,الشاشة!$B:$B,">"&EOMONTH($S$1,-1),الشاشة!$B:$B,"<="&EOMONTH($S$1,0),الشاشة!$A:$A,$S$9) -> 0 | F70: =SUMIFS(الشاشة!$M:$M,الشاشة!$E:$E,'المراجعة بدلالة الشهر'!B70,الشاشة!$B:$B,">"&EOMONTH($S$1,-1),الشاشة!$B:$B,"<="&EOMONTH($S$1,0),الشاشة!$A:$A,$S$9) -> 0 | G70: 0 | I70: 68 | L70: =SUMIFS(الشاشة!$J:$J,الشاشة!$E:$E,'المراجعة بدلالة الشهر'!B70,الشاشة!$B:$B,"<"&(EOMONTH($S$1,-1)+1),الشاشة!$A:$A,$S$9)-SUMIFS(الشاشة!$L:$L,الشاشة!$E:$E,'المراجعة بدلالة الشهر'!B70,الشاشة!$B:$B,"<"&(EOMONTH($S$1,-1)+1),الشاشة!$A:$A,$S$9) -> 0 | M70: =SUMIFS(الشاشة!$J:$J,الشاشة!$E:$E,'المراجعة بدلالة الشهر'!B70,الشاشة!$B:$B,">="&(EOMONTH('المراجعة بدلالة الشهر'!$S$1,-1)+1),الشاشة!$B:$B,"<="&(EOMONTH('المراجعة بدلالة الشهر'!$S$1,0)),الشاشة!$A:$A,$S$9) -> 0 | N70: =SUMIFS(الشاشة!$L:$L,الشاشة!$E:$E,'المراجعة بدلالة الشهر'!B70,الشاشة!$B:$B,">="&(EOMONTH('المراجعة بدلالة الشهر'!$S$1,-1)+1),الشاشة!$B:$B,"<="&(EOMONTH('المراجعة بدلالة الشهر'!$S$1,0)),الشاشة!$A:$A,$S$9) -> 0 | O70: 0 | Q70: 0 | R70: 0
A71: =MAX($A$2:A70)+1 -> 69 | B71: =IFERROR(INDEX(الشاشة!$A:$U,MATCH(نوع_المخزن&$A71,الشاشة!$U:$U,0),MATCH('المراجعة بدلالة الشهر'!B$2,الشاشة!$A$1:$V$1,0)),"") ->  | C71: =IFERROR(INDEX(الشاشة!$A:$U,MATCH(نوع_المخزن&$A71,الشاشة!$U:$U,0),MATCH('المراجعة بدلالة الشهر'!C$2,الشاشة!$A$1:$V$1,0)),"") ->  | D71: =SUMIFS(الشاشة!$K:$K,الشاشة!$E:$E,B71,الشاشة!$B:$B,"<"&(EOMONTH($S$1,-1)+1),الشاشة!$A:$A,$S$9)-SUMIFS(الشاشة!$M:$M,الشاشة!$E:$E,B71,الشاشة!$B:$B,"<"&(EOMONTH($S$1,-1)+1),الشاشة!$A:$A,$S$9) -> 0 | E71: =SUMIFS(الشاشة!$K:$K,الشاشة!$E:$E,'المراجعة بدلالة الشهر'!B71,الشاشة!$B:$B,">"&EOMONTH($S$1,-1),الشاشة!$B:$B,"<="&EOMONTH($S$1,0),الشاشة!$A:$A,$S$9) -> 0 | F71: =SUMIFS(الشاشة!$M:$M,الشاشة!$E:$E,'المراجعة بدلالة الشهر'!B71,الشاشة!$B:$B,">"&EOMONTH($S$1,-1),الشاشة!$B:$B,"<="&EOMONTH($S$1,0),الشاشة!$A:$A,$S$9) -> 0 | G71: 0 | I71: 69 | L71: =SUMIFS(الشاشة!$J:$J,الشاشة!$E:$E,'المراجعة بدلالة الشهر'!B71,الشاشة!$B:$B,"<"&(EOMONTH($S$1,-1)+1),الشاشة!$A:$A,$S$9)-SUMIFS(الشاشة!$L:$L,الشاشة!$E:$E,'المراجعة بدلالة الشهر'!B71,الشاشة!$B:$B,"<"&(EOMONTH($S$1,-1)+1),الشاشة!$A:$A,$S$9) -> 0 | M71: =SUMIFS(الشاشة!$J:$J,الشاشة!$E:$E,'المراجعة بدلالة الشهر'!B71,الشاشة!$B:$B,">="&(EOMONTH('المراجعة بدلالة الشهر'!$S$1,-1)+1),الشاشة!$B:$B,"<="&(EOMONTH('المراجعة بدلالة الشهر'!$S$1,0)),الشاشة!$A:$A,$S$9) -> 0 | N71: =SUMIFS(الشاشة!$L:$L,الشاشة!$E:$E,'المراجعة بدلالة الشهر'!B71,الشاشة!$B:$B,">="&(EOMONTH('المراجعة بدلالة الشهر'!$S$1,-1)+1),الشاشة!$B:$B,"<="&(EOMONTH('المراجعة بدلالة الشهر'!$S$1,0)),الشاشة!$A:$A,$S$9) -> 0 | O71: 0 | Q71: 0 | R71: 0
A72: =MAX($A$2:A71)+1 -> 70 | B72: =IFERROR(INDEX(الشاشة!$A:$U,MATCH(نوع_المخزن&$A72,الشاشة!$U:$U,0),MATCH('المراجعة بدلالة الشهر'!B$2,الشاشة!$A$1:$V$1,0)),"") ->  | C72: =IFERROR(INDEX(الشاشة!$A:$U,MATCH(نوع_المخزن&$A72,الشاشة!$U:$U,0),MATCH('المراجعة بدلالة الشهر'!C$2,الشاشة!$A$1:$V$1,0)),"") ->  | D72: =SUMIFS(الشاشة!$K:$K,الشاشة!$E:$E,B72,الشاشة!$B:$B,"<"&(EOMONTH($S$1,-1)+1),الشاشة!$A:$A,$S$9)-SUMIFS(الشاشة!$M:$M,الشاشة!$E:$E,B72,الشاشة!$B:$B,"<"&(EOMONTH($S$1,-1)+1),الشاشة!$A:$A,$S$9) -> 0 | E72: =SUMIFS(الشاشة!$K:$K,الشاشة!$E:$E,'المراجعة بدلالة الشهر'!B72,الشاشة!$B:$B,">"&EOMONTH($S$1,-1),الشاشة!$B:$B,"<="&EOMONTH($S$1,0),الشاشة!$A:$A,$S$9) -> 0 | F72: =SUMIFS(الشاشة!$M:$M,الشاشة!$E:$E,'المراجعة بدلالة الشهر'!B72,الشاشة!$B:$B,">"&EOMONTH($S$1,-1),الشاشة!$B:$B,"<="&EOMONTH($S$1,0),الشاشة!$A:$A,$S$9) -> 0 | G72: 0 | I72: 70 | L72: =SUMIFS(الشاشة!$J:$J,الشاشة!$E:$E,'المراجعة بدلالة الشهر'!B72,الشاشة!$B:$B,"<"&(EOMONTH($S$1,-1)+1),الشاشة!$A:$A,$S$9)-SUMIFS(الشاشة!$L:$L,الشاشة!$E:$E,'المراجعة بدلالة الشهر'!B72,الشاشة!$B:$B,"<"&(EOMONTH($S$1,-1)+1),الشاشة!$A:$A,$S$9) -> 0 | M72: =SUMIFS(الشاشة!$J:$J,الشاشة!$E:$E,'المراجعة بدلالة الشهر'!B72,الشاشة!$B:$B,">="&(EOMONTH('المراجعة بدلالة الشهر'!$S$1,-1)+1),الشاشة!$B:$B,"<="&(EOMONTH('المراجعة بدلالة الشهر'!$S$1,0)),الشاشة!$A:$A,$S$9) -> 0 | N72: =SUMIFS(الشاشة!$L:$L,الشاشة!$E:$E,'المراجعة بدلالة الشهر'!B72,الشاشة!$B:$B,">="&(EOMONTH('المراجعة بدلالة الشهر'!$S$1,-1)+1),الشاشة!$B:$B,"<="&(EOMONTH('المراجعة بدلالة الشهر'!$S$1,0)),الشاشة!$A:$A,$S$9) -> 0 | O72: 0 | Q72: 0 | R72: 0
A73: =MAX($A$2:A72)+1 -> 71 | B73: =IFERROR(INDEX(الشاشة!$A:$U,MATCH(نوع_المخزن&$A73,الشاشة!$U:$U,0),MATCH('المراجعة بدلالة الشهر'!B$2,الشاشة!$A$1:$V$1,0)),"") ->  | C73: =IFERROR(INDEX(الشاشة!$A:$U,MATCH(نوع_المخزن&$A73,الشاشة!$U:$U,0),MATCH('المراجعة بدلالة الشهر'!C$2,الشاشة!$A$1:$V$1,0)),"") ->  | D73: =SUMIFS(الشاشة!$K:$K,الشاشة!$E:$E,B73,الشاشة!$B:$B,"<"&(EOMONTH($S$1,-1)+1),الشاشة!$A:$A,$S$9)-SUMIFS(الشاشة!$M:$M,الشاشة!$E:$E,B73,الشاشة!$B:$B,"<"&(EOMONTH($S$1,-1)+1),الشاشة!$A:$A,$S$9) -> 0 | E73: =SUMIFS(الشاشة!$K:$K,الشاشة!$E:$E,'المراجعة بدلالة الشهر'!B73,الشاشة!$B:$B,">"&EOMONTH($S$1,-1),الشاشة!$B:$B,"<="&EOMONTH($S$1,0),الشاشة!$A:$A,$S$9) -> 0 | F73: =SUMIFS(الشاشة!$M:$M,الشاشة!$E:$E,'المراجعة بدلالة الشهر'!B73,الشاشة!$B:$B,">"&EOMONTH($S$1,-1),الشاشة!$B:$B,"<="&EOMONTH($S$1,0),الشاشة!$A:$A,$S$9) -> 0 | G73: 0 | I73: 71 | L73: =SUMIFS(الشاشة!$J:$J,الشاشة!$E:$E,'المراجعة بدلالة الشهر'!B73,الشاشة!$B:$B,"<"&(EOMONTH($S$1,-1)+1),الشاشة!$A:$A,$S$9)-SUMIFS(الشاشة!$L:$L,الشاشة!$E:$E,'المراجعة بدلالة الشهر'!B73,الشاشة!$B:$B,"<"&(EOMONTH($S$1,-1)+1),الشاشة!$A:$A,$S$9) -> 0 | M73: =SUMIFS(الشاشة!$J:$J,الشاشة!$E:$E,'المراجعة بدلالة الشهر'!B73,الشاشة!$B:$B,">="&(EOMONTH('المراجعة بدلالة الشهر'!$S$1,-1)+1),الشاشة!$B:$B,"<="&(EOMONTH('المراجعة بدلالة الشهر'!$S$1,0)),الشاشة!$A:$A,$S$9) -> 0 | N73: =SUMIFS(الشاشة!$L:$L,الشاشة!$E:$E,'المراجعة بدلالة الشهر'!B73,الشاشة!$B:$B,">="&(EOMONTH('المراجعة بدلالة الشهر'!$S$1,-1)+1),الشاشة!$B:$B,"<="&(EOMONTH('المراجعة بدلالة الشهر'!$S$1,0)),الشاشة!$A:$A,$S$9) -> 0 | O73: 0 | Q73: 0 | R73: 0
A74: =MAX($A$2:A73)+1 -> 72 | B74: =IFERROR(INDEX(الشاشة!$A:$U,MATCH(نوع_المخزن&$A74,الشاشة!$U:$U,0),MATCH('المراجعة بدلالة الشهر'!B$2,الشاشة!$A$1:$V$1,0)),"") ->  | C74: =IFERROR(INDEX(الشاشة!$A:$U,MATCH(نوع_المخزن&$A74,الشاشة!$U:$U,0),MATCH('المراجعة بدلالة الشهر'!C$2,الشاشة!$A$1:$V$1,0)),"") ->  | D74: =SUMIFS(الشاشة!$K:$K,الشاشة!$E:$E,B74,الشاشة!$B:$B,"<"&(EOMONTH($S$1,-1)+1),الشاشة!$A:$A,$S$9)-SUMIFS(الشاشة!$M:$M,الشاشة!$E:$E,B74,الشاشة!$B:$B,"<"&(EOMONTH($S$1,-1)+1),الشاشة!$A:$A,$S$9) -> 0 | E74: =SUMIFS(الشاشة!$K:$K,الشاشة!$E:$E,'المراجعة بدلالة الشهر'!B74,الشاشة!$B:$B,">"&EOMONTH($S$1,-1),الشاشة!$B:$B,"<="&EOMONTH($S$1,0),الشاشة!$A:$A,$S$9) -> 0 | F74: =SUMIFS(الشاشة!$M:$M,الشاشة!$E:$E,'المراجعة بدلالة الشهر'!B74,الشاشة!$B:$B,">"&EOMONTH($S$1,-1),الشاشة!$B:$B,"<="&EOMONTH($S$1,0),الشاشة!$A:$A,$S$9) -> 0 | G74: 0 | I74: 72 | L74: =SUMIFS(الشاشة!$J:$J,الشاشة!$E:$E,'المراجعة بدلالة الشهر'!B74,الشاشة!$B:$B,"<"&(EOMONTH($S$1,-1)+1),الشاشة!$A:$A,$S$9)-SUMIFS(الشاشة!$L:$L,الشاشة!$E:$E,'المراجعة بدلالة الشهر'!B74,الشاشة!$B:$B,"<"&(EOMONTH($S$1,-1)+1),الشاشة!$A:$A,$S$9) -> 0 | M74: =SUMIFS(الشاشة!$J:$J,الشاشة!$E:$E,'المراجعة بدلالة الشهر'!B74,الشاشة!$B:$B,">="&(EOMONTH('المراجعة بدلالة الشهر'!$S$1,-1)+1),الشاشة!$B:$B,"<="&(EOMONTH('المراجعة بدلالة الشهر'!$S$1,0)),الشاشة!$A:$A,$S$9) -> 0 | N74: =SUMIFS(الشاشة!$L:$L,الشاشة!$E:$E,'المراجعة بدلالة الشهر'!B74,الشاشة!$B:$B,">="&(EOMONTH('المراجعة بدلالة الشهر'!$S$1,-1)+1),الشاشة!$B:$B,"<="&(EOMONTH('المراجعة بدلالة الشهر'!$S$1,0)),الشاشة!$A:$A,$S$9) -> 0 | O74: 0 | Q74: 0 | R74: 0
A75: =MAX($A$2:A74)+1 -> 73 | B75: =IFERROR(INDEX(الشاشة!$A:$U,MATCH(نوع_المخزن&$A75,الشاشة!$U:$U,0),MATCH('المراجعة بدلالة الشهر'!B$2,الشاشة!$A$1:$V$1,0)),"") ->  | C75: =IFERROR(INDEX(الشاشة!$A:$U,MATCH(نوع_المخزن&$A75,الشاشة!$U:$U,0),MATCH('المراجعة بدلالة الشهر'!C$2,الشاشة!$A$1:$V$1,0)),"") ->  | D75: =SUMIFS(الشاشة!$K:$K,الشاشة!$E:$E,B75,الشاشة!$B:$B,"<"&(EOMONTH($S$1,-1)+1),الشاشة!$A:$A,$S$9)-SUMIFS(الشاشة!$M:$M,الشاشة!$E:$E,B75,الشاشة!$B:$B,"<"&(EOMONTH($S$1,-1)+1),الشاشة!$A:$A,$S$9) -> 0 | E75: =SUMIFS(الشاشة!$K:$K,الشاشة!$E:$E,'المراجعة بدلالة الشهر'!B75,الشاشة!$B:$B,">"&EOMONTH($S$1,-1),الشاشة!$B:$B,"<="&EOMONTH($S$1,0),الشاشة!$A:$A,$S$9) -> 0 | F75: =SUMIFS(الشاشة!$M:$M,الشاشة!$E:$E,'المراجعة بدلالة الشهر'!B75,الشاشة!$B:$B,">"&EOMONTH($S$1,-1),الشاشة!$B:$B,"<="&EOMONTH($S$1,0),الشاشة!$A:$A,$S$9) -> 0 | G75: 0 | I75: 73 | L75: =SUMIFS(الشاشة!$J:$J,الشاشة!$E:$E,'المراجعة بدلالة الشهر'!B75,الشاشة!$B:$B,"<"&(EOMONTH($S$1,-1)+1),الشاشة!$A:$A,$S$9)-SUMIFS(الشاشة!$L:$L,الشاشة!$E:$E,'المراجعة بدلالة الشهر'!B75,الشاشة!$B:$B,"<"&(EOMONTH($S$1,-1)+1),الشاشة!$A:$A,$S$9) -> 0 | M75: =SUMIFS(الشاشة!$J:$J,الشاشة!$E:$E,'المراجعة بدلالة الشهر'!B75,الشاشة!$B:$B,">="&(EOMONTH('المراجعة بدلالة الشهر'!$S$1,-1)+1),الشاشة!$B:$B,"<="&(EOMONTH('المراجعة بدلالة الشهر'!$S$1,0)),الشاشة!$A:$A,$S$9) -> 0 | N75: =SUMIFS(الشاشة!$L:$L,الشاشة!$E:$E,'المراجعة بدلالة الشهر'!B75,الشاشة!$B:$B,">="&(EOMONTH('المراجعة بدلالة الشهر'!$S$1,-1)+1),الشاشة!$B:$B,"<="&(EOMONTH('المراجعة بدلالة الشهر'!$S$1,0)),الشاشة!$A:$A,$S$9) -> 0 | O75: 0 | Q75: 0 | R75: 0
A76: =MAX($A$2:A75)+1 -> 74 | B76: =IFERROR(INDEX(الشاشة!$A:$U,MATCH(نوع_المخزن&$A76,الشاشة!$U:$U,0),MATCH('المراجعة بدلالة الشهر'!B$2,الشاشة!$A$1:$V$1,0)),"") ->  | C76: =IFERROR(INDEX(الشاشة!$A:$U,MATCH(نوع_المخزن&$A76,الشاشة!$U:$U,0),MATCH('المراجعة بدلالة الشهر'!C$2,الشاشة!$A$1:$V$1,0)),"") ->  | D76: =SUMIFS(الشاشة!$K:$K,الشاشة!$E:$E,B76,الشاشة!$B:$B,"<"&(EOMONTH($S$1,-1)+1),الشاشة!$A:$A,$S$9)-SUMIFS(الشاشة!$M:$M,الشاشة!$E:$E,B76,الشاشة!$B:$B,"<"&(EOMONTH($S$1,-1)+1),الشاشة!$A:$A,$S$9) -> 0 | E76: =SUMIFS(الشاشة!$K:$K,الشاشة!$E:$E,'المراجعة بدلالة الشهر'!B76,الشاشة!$B:$B,">"&EOMONTH($S$1,-1),الشاشة!$B:$B,"<="&EOMONTH($S$1,0),الشاشة!$A:$A,$S$9) -> 0 | F76: =SUMIFS(الشاشة!$M:$M,الشاشة!$E:$E,'المراجعة بدلالة الشهر'!B76,الشاشة!$B:$B,">"&EOMONTH($S$1,-1),الشاشة!$B:$B,"<="&EOMONTH($S$1,0),الشاشة!$A:$A,$S$9) -> 0 | G76: 0 | I76: 74 | L76: =SUMIFS(الشاشة!$J:$J,الشاشة!$E:$E,'المراجعة بدلالة الشهر'!B76,الشاشة!$B:$B,"<"&(EOMONTH($S$1,-1)+1),الشاشة!$A:$A,$S$9)-SUMIFS(الشاشة!$L:$L,الشاشة!$E:$E,'المراجعة بدلالة الشهر'!B76,الشاشة!$B:$B,"<"&(EOMONTH($S$1,-1)+1),الشاشة!$A:$A,$S$9) -> 0 | M76: =SUMIFS(الشاشة!$J:$J,الشاشة!$E:$E,'المراجعة بدلالة الشهر'!B76,الشاشة!$B:$B,">="&(EOMONTH('المراجعة بدلالة الشهر'!$S$1,-1)+1),الشاشة!$B:$B,"<="&(EOMONTH('المراجعة بدلالة الشهر'!$S$1,0)),الشاشة!$A:$A,$S$9) -> 0 | N76: =SUMIFS(الشاشة!$L:$L,الشاشة!$E:$E,'المراجعة بدلالة الشهر'!B76,الشاشة!$B:$B,">="&(EOMONTH('المراجعة بدلالة الشهر'!$S$1,-1)+1),الشاشة!$B:$B,"<="&(EOMONTH('المراجعة بدلالة الشهر'!$S$1,0)),الشاشة!$A:$A,$S$9) -> 0 | O76: 0 | Q76: 0 | R76: 0
A77: =MAX($A$2:A76)+1 -> 75 | B77: =IFERROR(INDEX(الشاشة!$A:$U,MATCH(نوع_المخزن&$A77,الشاشة!$U:$U,0),MATCH('المراجعة بدلالة الشهر'!B$2,الشاشة!$A$1:$V$1,0)),"") ->  | C77: =IFERROR(INDEX(الشاشة!$A:$U,MATCH(نوع_المخزن&$A77,الشاشة!$U:$U,0),MATCH('المراجعة بدلالة الشهر'!C$2,الشاشة!$A$1:$V$1,0)),"") ->  | D77: =SUMIFS(الشاشة!$K:$K,الشاشة!$E:$E,B77,الشاشة!$B:$B,"<"&(EOMONTH($S$1,-1)+1),الشاشة!$A:$A,$S$9)-SUMIFS(الشاشة!$M:$M,الشاشة!$E:$E,B77,الشاشة!$B:$B,"<"&(EOMONTH($S$1,-1)+1),الشاشة!$A:$A,$S$9) -> 0 | E77: =SUMIFS(الشاشة!$K:$K,الشاشة!$E:$E,'المراجعة بدلالة الشهر'!B77,الشاشة!$B:$B,">"&EOMONTH($S$1,-1),الشاشة!$B:$B,"<="&EOMONTH($S$1,0),الشاشة!$A:$A,$S$9) -> 0 | F77: =SUMIFS(الشاشة!$M:$M,الشاشة!$E:$E,'المراجعة بدلالة الشهر'!B77,الشاشة!$B:$B,">"&EOMONTH($S$1,-1),الشاشة!$B:$B,"<="&EOMONTH($S$1,0),الشاشة!$A:$A,$S$9) -> 0 | G77: 0 | I77: 75 | L77: =SUMIFS(الشاشة!$J:$J,الشاشة!$E:$E,'المراجعة بدلالة الشهر'!B77,الشاشة!$B:$B,"<"&(EOMONTH($S$1,-1)+1),الشاشة!$A:$A,$S$9)-SUMIFS(الشاشة!$L:$L,الشاشة!$E:$E,'المراجعة بدلالة الشهر'!B77,الشاشة!$B:$B,"<"&(EOMONTH($S$1,-1)+1),الشاشة!$A:$A,$S$9) -> 0 | M77: =SUMIFS(الشاشة!$J:$J,الشاشة!$E:$E,'المراجعة بدلالة الشهر'!B77,الشاشة!$B:$B,">="&(EOMONTH('المراجعة بدلالة الشهر'!$S$1,-1)+1),الشاشة!$B:$B,"<="&(EOMONTH('المراجعة بدلالة الشهر'!$S$1,0)),الشاشة!$A:$A,$S$9) -> 0 | N77: =SUMIFS(الشاشة!$L:$L,الشاشة!$E:$E,'المراجعة بدلالة الشهر'!B77,الشاشة!$B:$B,">="&(EOMONTH('المراجعة بدلالة الشهر'!$S$1,-1)+1),الشاشة!$B:$B,"<="&(EOMONTH('المراجعة بدلالة الشهر'!$S$1,0)),الشاشة!$A:$A,$S$9) -> 0 | O77: 0 | Q77: 0 | R77: 0
A78: =MAX($A$2:A77)+1 -> 76 | B78: =IFERROR(INDEX(الشاشة!$A:$U,MATCH(نوع_المخزن&$A78,الشاشة!$U:$U,0),MATCH('المراجعة بدلالة الشهر'!B$2,الشاشة!$A$1:$V$1,0)),"") ->  | C78: =IFERROR(INDEX(الشاشة!$A:$U,MATCH(نوع_المخزن&$A78,الشاشة!$U:$U,0),MATCH('المراجعة بدلالة الشهر'!C$2,الشاشة!$A$1:$V$1,0)),"") ->  | D78: =SUMIFS(الشاشة!$K:$K,الشاشة!$E:$E,B78,الشاشة!$B:$B,"<"&(EOMONTH($S$1,-1)+1),الشاشة!$A:$A,$S$9)-SUMIFS(الشاشة!$M:$M,الشاشة!$E:$E,B78,الشاشة!$B:$B,"<"&(EOMONTH($S$1,-1)+1),الشاشة!$A:$A,$S$9) -> 0 | E78: =SUMIFS(الشاشة!$K:$K,الشاشة!$E:$E,'المراجعة بدلالة الشهر'!B78,الشاشة!$B:$B,">"&EOMONTH($S$1,-1),الشاشة!$B:$B,"<="&EOMONTH($S$1,0),الشاشة!$A:$A,$S$9) -> 0 | F78: =SUMIFS(الشاشة!$M:$M,الشاشة!$E:$E,'المراجعة بدلالة الشهر'!B78,الشاشة!$B:$B,">"&EOMONTH($S$1,-1),الشاشة!$B:$B,"<="&EOMONTH($S$1,0),الشاشة!$A:$A,$S$9) -> 0 | G78: 0 | I78: 76 | L78: =SUMIFS(الشاشة!$J:$J,الشاشة!$E:$E,'المراجعة بدلالة الشهر'!B78,الشاشة!$B:$B,"<"&(EOMONTH($S$1,-1)+1),الشاشة!$A:$A,$S$9)-SUMIFS(الشاشة!$L:$L,الشاشة!$E:$E,'المراجعة بدلالة الشهر'!B78,الشاشة!$B:$B,"<"&(EOMONTH($S$1,-1)+1),الشاشة!$A:$A,$S$9) -> 0 | M78: =SUMIFS(الشاشة!$J:$J,الشاشة!$E:$E,'المراجعة بدلالة الشهر'!B78,الشاشة!$B:$B,">="&(EOMONTH('المراجعة بدلالة الشهر'!$S$1,-1)+1),الشاشة!$B:$B,"<="&(EOMONTH('المراجعة بدلالة الشهر'!$S$1,0)),الشاشة!$A:$A,$S$9) -> 0 | N78: =SUMIFS(الشاشة!$L:$L,الشاشة!$E:$E,'المراجعة بدلالة الشهر'!B78,الشاشة!$B:$B,">="&(EOMONTH('المراجعة بدلالة الشهر'!$S$1,-1)+1),الشاشة!$B:$B,"<="&(EOMONTH('المراجعة بدلالة الشهر'!$S$1,0)),الشاشة!$A:$A,$S$9) -> 0 | O78: 0 | Q78: 0 | R78: 0
A79: =MAX($A$2:A78)+1 -> 77 | B79: =IFERROR(INDEX(الشاشة!$A:$U,MATCH(نوع_المخزن&$A79,الشاشة!$U:$U,0),MATCH('المراجعة بدلالة الشهر'!B$2,الشاشة!$A$1:$V$1,0)),"") ->  | C79: =IFERROR(INDEX(الشاشة!$A:$U,MATCH(نوع_المخزن&$A79,الشاشة!$U:$U,0),MATCH('المراجعة بدلالة الشهر'!C$2,الشاشة!$A$1:$V$1,0)),"") ->  | D79: =SUMIFS(الشاشة!$K:$K,الشاشة!$E:$E,B79,الشاشة!$B:$B,"<"&(EOMONTH($S$1,-1)+1),الشاشة!$A:$A,$S$9)-SUMIFS(الشاشة!$M:$M,الشاشة!$E:$E,B79,الشاشة!$B:$B,"<"&(EOMONTH($S$1,-1)+1),الشاشة!$A:$A,$S$9) -> 0 | E79: =SUMIFS(الشاشة!$K:$K,الشاشة!$E:$E,'المراجعة بدلالة الشهر'!B79,الشاشة!$B:$B,">"&EOMONTH($S$1,-1),الشاشة!$B:$B,"<="&EOMONTH($S$1,0),الشاشة!$A:$A,$S$9) -> 0 | F79: =SUMIFS(الشاشة!$M:$M,الشاشة!$E:$E,'المراجعة بدلالة الشهر'!B79,الشاشة!$B:$B,">"&EOMONTH($S$1,-1),الشاشة!$B:$B,"<="&EOMONTH($S$1,0),الشاشة!$A:$A,$S$9) -> 0 | G79: 0 | I79: 77 | L79: =SUMIFS(الشاشة!$J:$J,الشاشة!$E:$E,'المراجعة بدلالة الشهر'!B79,الشاشة!$B:$B,"<"&(EOMONTH($S$1,-1)+1),الشاشة!$A:$A,$S$9)-SUMIFS(الشاشة!$L:$L,الشاشة!$E:$E,'المراجعة بدلالة الشهر'!B79,الشاشة!$B:$B,"<"&(EOMONTH($S$1,-1)+1),الشاشة!$A:$A,$S$9) -> 0 | M79: =SUMIFS(الشاشة!$J:$J,الشاشة!$E:$E,'المراجعة بدلالة الشهر'!B79,الشاشة!$B:$B,">="&(EOMONTH('المراجعة بدلالة الشهر'!$S$1,-1)+1),الشاشة!$B:$B,"<="&(EOMONTH('المراجعة بدلالة الشهر'!$S$1,0)),الشاشة!$A:$A,$S$9) -> 0 | N79: =SUMIFS(الشاشة!$L:$L,الشاشة!$E:$E,'المراجعة بدلالة الشهر'!B79,الشاشة!$B:$B,">="&(EOMONTH('المراجعة بدلالة الشهر'!$S$1,-1)+1),الشاشة!$B:$B,"<="&(EOMONTH('المراجعة بدلالة الشهر'!$S$1,0)),الشاشة!$A:$A,$S$9) -> 0 | O79: 0 | Q79: 0 | R79: 0
A80: =MAX($A$2:A79)+1 -> 78 | B80: =IFERROR(INDEX(الشاشة!$A:$U,MATCH(نوع_المخزن&$A80,الشاشة!$U:$U,0),MATCH('المراجعة بدلالة الشهر'!B$2,الشاشة!$A$1:$V$1,0)),"") ->  | C80: =IFERROR(INDEX(الشاشة!$A:$U,MATCH(نوع_المخزن&$A80,الشاشة!$U:$U,0),MATCH('المراجعة بدلالة الشهر'!C$2,الشاشة!$A$1:$V$1,0)),"") ->  | D80: =SUMIFS(الشاشة!$K:$K,الشاشة!$E:$E,B80,الشاشة!$B:$B,"<"&(EOMONTH($S$1,-1)+1),الشاشة!$A:$A,$S$9)-SUMIFS(الشاشة!$M:$M,الشاشة!$E:$E,B80,الشاشة!$B:$B,"<"&(EOMONTH($S$1,-1)+1),الشاشة!$A:$A,$S$9) -> 0 | E80: =SUMIFS(الشاشة!$K:$K,الشاشة!$E:$E,'المراجعة بدلالة الشهر'!B80,الشاشة!$B:$B,">"&EOMONTH($S$1,-1),الشاشة!$B:$B,"<="&EOMONTH($S$1,0),الشاشة!$A:$A,$S$9) -> 0 | F80: =SUMIFS(الشاشة!$M:$M,الشاشة!$E:$E,'المراجعة بدلالة الشهر'!B80,الشاشة!$B:$B,">"&EOMONTH($S$1,-1),الشاشة!$B:$B,"<="&EOMONTH($S$1,0),الشاشة!$A:$A,$S$9) -> 0 | G80: 0 | I80: 78 | L80: =SUMIFS(الشاشة!$J:$J,الشاشة!$E:$E,'المراجعة بدلالة الشهر'!B80,الشاشة!$B:$B,"<"&(EOMONTH($S$1,-1)+1),الشاشة!$A:$A,$S$9)-SUMIFS(الشاشة!$L:$L,الشاشة!$E:$E,'المراجعة بدلالة الشهر'!B80,الشاشة!$B:$B,"<"&(EOMONTH($S$1,-1)+1),الشاشة!$A:$A,$S$9) -> 0 | M80: =SUMIFS(الشاشة!$J:$J,الشاشة!$E:$E,'المراجعة بدلالة الشهر'!B80,الشاشة!$B:$B,">="&(EOMONTH('المراجعة بدلالة الشهر'!$S$1,-1)+1),الشاشة!$B:$B,"<="&(EOMONTH('المراجعة بدلالة الشهر'!$S$1,0)),الشاشة!$A:$A,$S$9) -> 0 | N80: =SUMIFS(الشاشة!$L:$L,الشاشة!$E:$E,'المراجعة بدلالة الشهر'!B80,الشاشة!$B:$B,">="&(EOMONTH('المراجعة بدلالة الشهر'!$S$1,-1)+1),الشاشة!$B:$B,"<="&(EOMONTH('المراجعة بدلالة الشهر'!$S$1,0)),الشاشة!$A:$A,$S$9) -> 0 | O80: 0 | Q80: 0 | R80: 0
A81: =MAX($A$2:A80)+1 -> 79 | B81: =IFERROR(INDEX(الشاشة!$A:$U,MATCH(نوع_المخزن&$A81,الشاشة!$U:$U,0),MATCH('المراجعة بدلالة الشهر'!B$2,الشاشة!$A$1:$V$1,0)),"") ->  | C81: =IFERROR(INDEX(الشاشة!$A:$U,MATCH(نوع_المخزن&$A81,الشاشة!$U:$U,0),MATCH('المراجعة بدلالة الشهر'!C$2,الشاشة!$A$1:$V$1,0)),"") ->  | D81: =SUMIFS(الشاشة!$K:$K,الشاشة!$E:$E,B81,الشاشة!$B:$B,"<"&(EOMONTH($S$1,-1)+1),الشاشة!$A:$A,$S$9)-SUMIFS(الشاشة!$M:$M,الشاشة!$E:$E,B81,الشاشة!$B:$B,"<"&(EOMONTH($S$1,-1)+1),الشاشة!$A:$A,$S$9) -> 0 | E81: =SUMIFS(الشاشة!$K:$K,الشاشة!$E:$E,'المراجعة بدلالة الشهر'!B81,الشاشة!$B:$B,">"&EOMONTH($S$1,-1),الشاشة!$B:$B,"<="&EOMONTH($S$1,0),الشاشة!$A:$A,$S$9) -> 0 | F81: =SUMIFS(الشاشة!$M:$M,الشاشة!$E:$E,'المراجعة بدلالة الشهر'!B81,الشاشة!$B:$B,">"&EOMONTH($S$1,-1),الشاشة!$B:$B,"<="&EOMONTH($S$1,0),الشاشة!$A:$A,$S$9) -> 0 | G81: 0 | I81: 79 | L81: =SUMIFS(الشاشة!$J:$J,الشاشة!$E:$E,'المراجعة بدلالة الشهر'!B81,الشاشة!$B:$B,"<"&(EOMONTH($S$1,-1)+1),الشاشة!$A:$A,$S$9)-SUMIFS(الشاشة!$L:$L,الشاشة!$E:$E,'المراجعة بدلالة الشهر'!B81,الشاشة!$B:$B,"<"&(EOMONTH($S$1,-1)+1),الشاشة!$A:$A,$S$9) -> 0 | M81: =SUMIFS(الشاشة!$J:$J,الشاشة!$E:$E,'المراجعة بدلالة الشهر'!B81,الشاشة!$B:$B,">="&(EOMONTH('المراجعة بدلالة الشهر'!$S$1,-1)+1),الشاشة!$B:$B,"<="&(EOMONTH('المراجعة بدلالة الشهر'!$S$1,0)),الشاشة!$A:$A,$S$9) -> 0 | N81: =SUMIFS(الشاشة!$L:$L,الشاشة!$E:$E,'المراجعة بدلالة الشهر'!B81,الشاشة!$B:$B,">="&(EOMONTH('المراجعة بدلالة الشهر'!$S$1,-1)+1),الشاشة!$B:$B,"<="&(EOMONTH('المراجعة بدلالة الشهر'!$S$1,0)),الشاشة!$A:$A,$S$9) -> 0 | O81: 0 | Q81: 0 | R81: 0
A82: =MAX($A$2:A81)+1 -> 80 | B82: =IFERROR(INDEX(الشاشة!$A:$U,MATCH(نوع_المخزن&$A82,الشاشة!$U:$U,0),MATCH('المراجعة بدلالة الشهر'!B$2,الشاشة!$A$1:$V$1,0)),"") ->  | C82: =IFERROR(INDEX(الشاشة!$A:$U,MATCH(نوع_المخزن&$A82,الشاشة!$U:$U,0),MATCH('المراجعة بدلالة الشهر'!C$2,الشاشة!$A$1:$V$1,0)),"") ->  | D82: =SUMIFS(الشاشة!$K:$K,الشاشة!$E:$E,B82,الشاشة!$B:$B,"<"&(EOMONTH($S$1,-1)+1),الشاشة!$A:$A,$S$9)-SUMIFS(الشاشة!$M:$M,الشاشة!$E:$E,B82,الشاشة!$B:$B,"<"&(EOMONTH($S$1,-1)+1),الشاشة!$A:$A,$S$9) -> 0 | E82: =SUMIFS(الشاشة!$K:$K,الشاشة!$E:$E,'المراجعة بدلالة الشهر'!B82,الشاشة!$B:$B,">"&EOMONTH($S$1,-1),الشاشة!$B:$B,"<="&EOMONTH($S$1,0),الشاشة!$A:$A,$S$9) -> 0 | F82: =SUMIFS(الشاشة!$M:$M,الشاشة!$E:$E,'المراجعة بدلالة الشهر'!B82,الشاشة!$B:$B,">"&EOMONTH($S$1,-1),الشاشة!$B:$B,"<="&EOMONTH($S$1,0),الشاشة!$A:$A,$S$9) -> 0 | G82: 0 | I82: 80 | L82: =SUMIFS(الشاشة!$J:$J,الشاشة!$E:$E,'المراجعة بدلالة الشهر'!B82,الشاشة!$B:$B,"<"&(EOMONTH($S$1,-1)+1),الشاشة!$A:$A,$S$9)-SUMIFS(الشاشة!$L:$L,الشاشة!$E:$E,'المراجعة بدلالة الشهر'!B82,الشاشة!$B:$B,"<"&(EOMONTH($S$1,-1)+1),الشاشة!$A:$A,$S$9) -> 0 | M82: =SUMIFS(الشاشة!$J:$J,الشاشة!$E:$E,'المراجعة بدلالة الشهر'!B82,الشاشة!$B:$B,">="&(EOMONTH('المراجعة بدلالة الشهر'!$S$1,-1)+1),الشاشة!$B:$B,"<="&(EOMONTH('المراجعة بدلالة الشهر'!$S$1,0)),الشاشة!$A:$A,$S$9) -> 0 | N82: =SUMIFS(الشاشة!$L:$L,الشاشة!$E:$E,'المراجعة بدلالة الشهر'!B82,الشاشة!$B:$B,">="&(EOMONTH('المراجعة بدلالة الشهر'!$S$1,-1)+1),الشاشة!$B:$B,"<="&(EOMONTH('المراجعة بدلالة الشهر'!$S$1,0)),الشاشة!$A:$A,$S$9) -> 0 | O82: 0 | Q82: 0 | R82: 0
A83: =MAX($A$2:A82)+1 -> 81 | B83: =IFERROR(INDEX(الشاشة!$A:$U,MATCH(نوع_المخزن&$A83,الشاشة!$U:$U,0),MATCH('المراجعة بدلالة الشهر'!B$2,الشاشة!$A$1:$V$1,0)),"") ->  | C83: =IFERROR(INDEX(الشاشة!$A:$U,MATCH(نوع_المخزن&$A83,الشاشة!$U:$U,0),MATCH('المراجعة بدلالة الشهر'!C$2,الشاشة!$A$1:$V$1,0)),"") ->  | D83: =SUMIFS(الشاشة!$K:$K,الشاشة!$E:$E,B83,الشاشة!$B:$B,"<"&(EOMONTH($S$1,-1)+1),الشاشة!$A:$A,$S$9)-SUMIFS(الشاشة!$M:$M,الشاشة!$E:$E,B83,الشاشة!$B:$B,"<"&(EOMONTH($S$1,-1)+1),الشاشة!$A:$A,$S$9) -> 0 | E83: =SUMIFS(الشاشة!$K:$K,الشاشة!$E:$E,'المراجعة بدلالة الشهر'!B83,الشاشة!$B:$B,">"&EOMONTH($S$1,-1),الشاشة!$B:$B,"<="&EOMONTH($S$1,0),الشاشة!$A:$A,$S$9) -> 0 | F83: =SUMIFS(الشاشة!$M:$M,الشاشة!$E:$E,'المراجعة بدلالة الشهر'!B83,الشاشة!$B:$B,">"&EOMONTH($S$1,-1),الشاشة!$B:$B,"<="&EOMONTH($S$1,0),الشاشة!$A:$A,$S$9) -> 0 | G83: 0 | I83: 81 | L83: =SUMIFS(الشاشة!$J:$J,الشاشة!$E:$E,'المراجعة بدلالة الشهر'!B83,الشاشة!$B:$B,"<"&(EOMONTH($S$1,-1)+1),الشاشة!$A:$A,$S$9)-SUMIFS(الشاشة!$L:$L,الشاشة!$E:$E,'المراجعة بدلالة الشهر'!B83,الشاشة!$B:$B,"<"&(EOMONTH($S$1,-1)+1),الشاشة!$A:$A,$S$9) -> 0 | M83: =SUMIFS(الشاشة!$J:$J,الشاشة!$E:$E,'المراجعة بدلالة الشهر'!B83,الشاشة!$B:$B,">="&(EOMONTH('المراجعة بدلالة الشهر'!$S$1,-1)+1),الشاشة!$B:$B,"<="&(EOMONTH('المراجعة بدلالة الشهر'!$S$1,0)),الشاشة!$A:$A,$S$9) -> 0 | N83: =SUMIFS(الشاشة!$L:$L,الشاشة!$E:$E,'المراجعة بدلالة الشهر'!B83,الشاشة!$B:$B,">="&(EOMONTH('المراجعة بدلالة الشهر'!$S$1,-1)+1),الشاشة!$B:$B,"<="&(EOMONTH('المراجعة بدلالة الشهر'!$S$1,0)),الشاشة!$A:$A,$S$9) -> 0 | O83: 0 | Q83: 0 | R83: 0
A84: =MAX($A$2:A83)+1 -> 82 | B84: =IFERROR(INDEX(الشاشة!$A:$U,MATCH(نوع_المخزن&$A84,الشاشة!$U:$U,0),MATCH('المراجعة بدلالة الشهر'!B$2,الشاشة!$A$1:$V$1,0)),"") ->  | C84: =IFERROR(INDEX(الشاشة!$A:$U,MATCH(نوع_المخزن&$A84,الشاشة!$U:$U,0),MATCH('المراجعة بدلالة الشهر'!C$2,الشاشة!$A$1:$V$1,0)),"") ->  | D84: =SUMIFS(الشاشة!$K:$K,الشاشة!$E:$E,B84,الشاشة!$B:$B,"<"&(EOMONTH($S$1,-1)+1),الشاشة!$A:$A,$S$9)-SUMIFS(الشاشة!$M:$M,الشاشة!$E:$E,B84,الشاشة!$B:$B,"<"&(EOMONTH($S$1,-1)+1),الشاشة!$A:$A,$S$9) -> 0 | E84: =SUMIFS(الشاشة!$K:$K,الشاشة!$E:$E,'المراجعة بدلالة الشهر'!B84,الشاشة!$B:$B,">"&EOMONTH($S$1,-1),الشاشة!$B:$B,"<="&EOMONTH($S$1,0),الشاشة!$A:$A,$S$9) -> 0 | F84: =SUMIFS(الشاشة!$M:$M,الشاشة!$E:$E,'المراجعة بدلالة الشهر'!B84,الشاشة!$B:$B,">"&EOMONTH($S$1,-1),الشاشة!$B:$B,"<="&EOMONTH($S$1,0),الشاشة!$A:$A,$S$9) -> 0 | G84: 0 | I84: 82 | L84: =SUMIFS(الشاشة!$J:$J,الشاشة!$E:$E,'المراجعة بدلالة الشهر'!B84,الشاشة!$B:$B,"<"&(EOMONTH($S$1,-1)+1),الشاشة!$A:$A,$S$9)-SUMIFS(الشاشة!$L:$L,الشاشة!$E:$E,'المراجعة بدلالة الشهر'!B84,الشاشة!$B:$B,"<"&(EOMONTH($S$1,-1)+1),الشاشة!$A:$A,$S$9) -> 0 | M84: =SUMIFS(الشاشة!$J:$J,الشاشة!$E:$E,'المراجعة بدلالة الشهر'!B84,الشاشة!$B:$B,">="&(EOMONTH('المراجعة بدلالة الشهر'!$S$1,-1)+1),الشاشة!$B:$B,"<="&(EOMONTH('المراجعة بدلالة الشهر'!$S$1,0)),الشاشة!$A:$A,$S$9) -> 0 | N84: =SUMIFS(الشاشة!$L:$L,الشاشة!$E:$E,'المراجعة بدلالة الشهر'!B84,الشاشة!$B:$B,">="&(EOMONTH('المراجعة بدلالة الشهر'!$S$1,-1)+1),الشاشة!$B:$B,"<="&(EOMONTH('المراجعة بدلالة الشهر'!$S$1,0)),الشاشة!$A:$A,$S$9) -> 0 | O84: 0 | Q84: 0 | R84: 0
A85: =MAX($A$2:A84)+1 -> 83 | B85: =IFERROR(INDEX(الشاشة!$A:$U,MATCH(نوع_المخزن&$A85,الشاشة!$U:$U,0),MATCH('المراجعة بدلالة الشهر'!B$2,الشاشة!$A$1:$V$1,0)),"") ->  | C85: =IFERROR(INDEX(الشاشة!$A:$U,MATCH(نوع_المخزن&$A85,الشاشة!$U:$U,0),MATCH('المراجعة بدلالة الشهر'!C$2,الشاشة!$A$1:$V$1,0)),"") ->  | D85: =SUMIFS(الشاشة!$K:$K,الشاشة!$E:$E,B85,الشاشة!$B:$B,"<"&(EOMONTH($S$1,-1)+1),الشاشة!$A:$A,$S$9)-SUMIFS(الشاشة!$M:$M,الشاشة!$E:$E,B85,الشاشة!$B:$B,"<"&(EOMONTH($S$1,-1)+1),الشاشة!$A:$A,$S$9) -> 0 | E85: =SUMIFS(الشاشة!$K:$K,الشاشة!$E:$E,'المراجعة بدلالة الشهر'!B85,الشاشة!$B:$B,">"&EOMONTH($S$1,-1),الشاشة!$B:$B,"<="&EOMONTH($S$1,0),الشاشة!$A:$A,$S$9) -> 0 | F85: =SUMIFS(الشاشة!$M:$M,الشاشة!$E:$E,'المراجعة بدلالة الشهر'!B85,الشاشة!$B:$B,">"&EOMONTH($S$1,-1),الشاشة!$B:$B,"<="&EOMONTH($S$1,0),الشاشة!$A:$A,$S$9) -> 0 | G85: 0 | I85: 83 | L85: =SUMIFS(الشاشة!$J:$J,الشاشة!$E:$E,'المراجعة بدلالة الشهر'!B85,الشاشة!$B:$B,"<"&(EOMONTH($S$1,-1)+1),الشاشة!$A:$A,$S$9)-SUMIFS(الشاشة!$L:$L,الشاشة!$E:$E,'المراجعة بدلالة الشهر'!B85,الشاشة!$B:$B,"<"&(EOMONTH($S$1,-1)+1),الشاشة!$A:$A,$S$9) -> 0 | M85: =SUMIFS(الشاشة!$J:$J,الشاشة!$E:$E,'المراجعة بدلالة الشهر'!B85,الشاشة!$B:$B,">="&(EOMONTH('المراجعة بدلالة الشهر'!$S$1,-1)+1),الشاشة!$B:$B,"<="&(EOMONTH('المراجعة بدلالة الشهر'!$S$1,0)),الشاشة!$A:$A,$S$9) -> 0 | N85: =SUMIFS(الشاشة!$L:$L,الشاشة!$E:$E,'المراجعة بدلالة الشهر'!B85,الشاشة!$B:$B,">="&(EOMONTH('المراجعة بدلالة الشهر'!$S$1,-1)+1),الشاشة!$B:$B,"<="&(EOMONTH('المراجعة بدلالة الشهر'!$S$1,0)),الشاشة!$A:$A,$S$9) -> 0 | O85: 0 | Q85: 0 | R85: 0
A86: =MAX($A$2:A85)+1 -> 84 | B86: =IFERROR(INDEX(الشاشة!$A:$U,MATCH(نوع_المخزن&$A86,الشاشة!$U:$U,0),MATCH('المراجعة بدلالة الشهر'!B$2,الشاشة!$A$1:$V$1,0)),"") ->  | C86: =IFERROR(INDEX(الشاشة!$A:$U,MATCH(نوع_المخزن&$A86,الشاشة!$U:$U,0),MATCH('المراجعة بدلالة الشهر'!C$2,الشاشة!$A$1:$V$1,0)),"") ->  | D86: =SUMIFS(الشاشة!$K:$K,الشاشة!$E:$E,B86,الشاشة!$B:$B,"<"&(EOMONTH($S$1,-1)+1),الشاشة!$A:$A,$S$9)-SUMIFS(الشاشة!$M:$M,الشاشة!$E:$E,B86,الشاشة!$B:$B,"<"&(EOMONTH($S$1,-1)+1),الشاشة!$A:$A,$S$9) -> 0 | E86: =SUMIFS(الشاشة!$K:$K,الشاشة!$E:$E,'المراجعة بدلالة الشهر'!B86,الشاشة!$B:$B,">"&EOMONTH($S$1,-1),الشاشة!$B:$B,"<="&EOMONTH($S$1,0),الشاشة!$A:$A,$S$9) -> 0 | F86: =SUMIFS(الشاشة!$M:$M,الشاشة!$E:$E,'المراجعة بدلالة الشهر'!B86,الشاشة!$B:$B,">"&EOMONTH($S$1,-1),الشاشة!$B:$B,"<="&EOMONTH($S$1,0),الشاشة!$A:$A,$S$9) -> 0 | G86: 0 | I86: 84 | L86: =SUMIFS(الشاشة!$J:$J,الشاشة!$E:$E,'المراجعة بدلالة الشهر'!B86,الشاشة!$B:$B,"<"&(EOMONTH($S$1,-1)+1),الشاشة!$A:$A,$S$9)-SUMIFS(الشاشة!$L:$L,الشاشة!$E:$E,'المراجعة بدلالة الشهر'!B86,الشاشة!$B:$B,"<"&(EOMONTH($S$1,-1)+1),الشاشة!$A:$A,$S$9) -> 0 | M86: =SUMIFS(الشاشة!$J:$J,الشاشة!$E:$E,'المراجعة بدلالة الشهر'!B86,الشاشة!$B:$B,">="&(EOMONTH('المراجعة بدلالة الشهر'!$S$1,-1)+1),الشاشة!$B:$B,"<="&(EOMONTH('المراجعة بدلالة الشهر'!$S$1,0)),الشاشة!$A:$A,$S$9) -> 0 | N86: =SUMIFS(الشاشة!$L:$L,الشاشة!$E:$E,'المراجعة بدلالة الشهر'!B86,الشاشة!$B:$B,">="&(EOMONTH('المراجعة بدلالة الشهر'!$S$1,-1)+1),الشاشة!$B:$B,"<="&(EOMONTH('المراجعة بدلالة الشهر'!$S$1,0)),الشاشة!$A:$A,$S$9) -> 0 | O86: 0 | Q86: 0 | R86: 0
A87: =MAX($A$2:A86)+1 -> 85 | B87: =IFERROR(INDEX(الشاشة!$A:$U,MATCH(نوع_المخزن&$A87,الشاشة!$U:$U,0),MATCH('المراجعة بدلالة الشهر'!B$2,الشاشة!$A$1:$V$1,0)),"") ->  | C87: =IFERROR(INDEX(الشاشة!$A:$U,MATCH(نوع_المخزن&$A87,الشاشة!$U:$U,0),MATCH('المراجعة بدلالة الشهر'!C$2,الشاشة!$A$1:$V$1,0)),"") ->  | D87: =SUMIFS(الشاشة!$K:$K,الشاشة!$E:$E,B87,الشاشة!$B:$B,"<"&(EOMONTH($S$1,-1)+1),الشاشة!$A:$A,$S$9)-SUMIFS(الشاشة!$M:$M,الشاشة!$E:$E,B87,الشاشة!$B:$B,"<"&(EOMONTH($S$1,-1)+1),الشاشة!$A:$A,$S$9) -> 0 | E87: =SUMIFS(الشاشة!$K:$K,الشاشة!$E:$E,'المراجعة بدلالة الشهر'!B87,الشاشة!$B:$B,">"&EOMONTH($S$1,-1),الشاشة!$B:$B,"<="&EOMONTH($S$1,0),الشاشة!$A:$A,$S$9) -> 0 | F87: =SUMIFS(الشاشة!$M:$M,الشاشة!$E:$E,'المراجعة بدلالة الشهر'!B87,الشاشة!$B:$B,">"&EOMONTH($S$1,-1),الشاشة!$B:$B,"<="&EOMONTH($S$1,0),الشاشة!$A:$A,$S$9) -> 0 | G87: 0 | I87: 85 | L87: =SUMIFS(الشاشة!$J:$J,الشاشة!$E:$E,'المراجعة بدلالة الشهر'!B87,الشاشة!$B:$B,"<"&(EOMONTH($S$1,-1)+1),الشاشة!$A:$A,$S$9)-SUMIFS(الشاشة!$L:$L,الشاشة!$E:$E,'المراجعة بدلالة الشهر'!B87,الشاشة!$B:$B,"<"&(EOMONTH($S$1,-1)+1),الشاشة!$A:$A,$S$9) -> 0 | M87: =SUMIFS(الشاشة!$J:$J,الشاشة!$E:$E,'المراجعة بدلالة الشهر'!B87,الشاشة!$B:$B,">="&(EOMONTH('المراجعة بدلالة الشهر'!$S$1,-1)+1),الشاشة!$B:$B,"<="&(EOMONTH('المراجعة بدلالة الشهر'!$S$1,0)),الشاشة!$A:$A,$S$9) -> 0 | N87: =SUMIFS(الشاشة!$L:$L,الشاشة!$E:$E,'المراجعة بدلالة الشهر'!B87,الشاشة!$B:$B,">="&(EOMONTH('المراجعة بدلالة الشهر'!$S$1,-1)+1),الشاشة!$B:$B,"<="&(EOMONTH('المراجعة بدلالة الشهر'!$S$1,0)),الشاشة!$A:$A,$S$9) -> 0 | O87: 0 | Q87: 0 | R87: 0
A88: =MAX($A$2:A87)+1 -> 86 | B88: =IFERROR(INDEX(الشاشة!$A:$U,MATCH(نوع_المخزن&$A88,الشاشة!$U:$U,0),MATCH('المراجعة بدلالة الشهر'!B$2,الشاشة!$A$1:$V$1,0)),"") ->  | C88: =IFERROR(INDEX(الشاشة!$A:$U,MATCH(نوع_المخزن&$A88,الشاشة!$U:$U,0),MATCH('المراجعة بدلالة الشهر'!C$2,الشاشة!$A$1:$V$1,0)),"") ->  | D88: =SUMIFS(الشاشة!$K:$K,الشاشة!$E:$E,B88,الشاشة!$B:$B,"<"&(EOMONTH($S$1,-1)+1),الشاشة!$A:$A,$S$9)-SUMIFS(الشاشة!$M:$M,الشاشة!$E:$E,B88,الشاشة!$B:$B,"<"&(EOMONTH($S$1,-1)+1),الشاشة!$A:$A,$S$9) -> 0 | E88: =SUMIFS(الشاشة!$K:$K,الشاشة!$E:$E,'المراجعة بدلالة الشهر'!B88,الشاشة!$B:$B,">"&EOMONTH($S$1,-1),الشاشة!$B:$B,"<="&EOMONTH($S$1,0),الشاشة!$A:$A,$S$9) -> 0 | F88: =SUMIFS(الشاشة!$M:$M,الشاشة!$E:$E,'المراجعة بدلالة الشهر'!B88,الشاشة!$B:$B,">"&EOMONTH($S$1,-1),الشاشة!$B:$B,"<="&EOMONTH($S$1,0),الشاشة!$A:$A,$S$9) -> 0 | G88: 0 | I88: 86 | L88: =SUMIFS(الشاشة!$J:$J,الشاشة!$E:$E,'المراجعة بدلالة الشهر'!B88,الشاشة!$B:$B,"<"&(EOMONTH($S$1,-1)+1),الشاشة!$A:$A,$S$9)-SUMIFS(الشاشة!$L:$L,الشاشة!$E:$E,'المراجعة بدلالة الشهر'!B88,الشاشة!$B:$B,"<"&(EOMONTH($S$1,-1)+1),الشاشة!$A:$A,$S$9) -> 0 | M88: =SUMIFS(الشاشة!$J:$J,الشاشة!$E:$E,'المراجعة بدلالة الشهر'!B88,الشاشة!$B:$B,">="&(EOMONTH('المراجعة بدلالة الشهر'!$S$1,-1)+1),الشاشة!$B:$B,"<="&(EOMONTH('المراجعة بدلالة الشهر'!$S$1,0)),الشاشة!$A:$A,$S$9) -> 0 | N88: =SUMIFS(الشاشة!$L:$L,الشاشة!$E:$E,'المراجعة بدلالة الشهر'!B88,الشاشة!$B:$B,">="&(EOMONTH('المراجعة بدلالة الشهر'!$S$1,-1)+1),الشاشة!$B:$B,"<="&(EOMONTH('المراجعة بدلالة الشهر'!$S$1,0)),الشاشة!$A:$A,$S$9) -> 0 | O88: 0 | Q88: 0 | R88: 0
A89: =MAX($A$2:A88)+1 -> 87 | B89: =IFERROR(INDEX(الشاشة!$A:$U,MATCH(نوع_المخزن&$A89,الشاشة!$U:$U,0),MATCH('المراجعة بدلالة الشهر'!B$2,الشاشة!$A$1:$V$1,0)),"") ->  | C89: =IFERROR(INDEX(الشاشة!$A:$U,MATCH(نوع_المخزن&$A89,الشاشة!$U:$U,0),MATCH('المراجعة بدلالة الشهر'!C$2,الشاشة!$A$1:$V$1,0)),"") ->  | D89: =SUMIFS(الشاشة!$K:$K,الشاشة!$E:$E,B89,الشاشة!$B:$B,"<"&(EOMONTH($S$1,-1)+1),الشاشة!$A:$A,$S$9)-SUMIFS(الشاشة!$M:$M,الشاشة!$E:$E,B89,الشاشة!$B:$B,"<"&(EOMONTH($S$1,-1)+1),الشاشة!$A:$A,$S$9) -> 0 | E89: =SUMIFS(الشاشة!$K:$K,الشاشة!$E:$E,'المراجعة بدلالة الشهر'!B89,الشاشة!$B:$B,">"&EOMONTH($S$1,-1),الشاشة!$B:$B,"<="&EOMONTH($S$1,0),الشاشة!$A:$A,$S$9) -> 0 | F89: =SUMIFS(الشاشة!$M:$M,الشاشة!$E:$E,'المراجعة بدلالة الشهر'!B89,الشاشة!$B:$B,">"&EOMONTH($S$1,-1),الشاشة!$B:$B,"<="&EOMONTH($S$1,0),الشاشة!$A:$A,$S$9) -> 0 | G89: 0 | I89: 87 | L89: =SUMIFS(الشاشة!$J:$J,الشاشة!$E:$E,'المراجعة بدلالة الشهر'!B89,الشاشة!$B:$B,"<"&(EOMONTH($S$1,-1)+1),الشاشة!$A:$A,$S$9)-SUMIFS(الشاشة!$L:$L,الشاشة!$E:$E,'المراجعة بدلالة الشهر'!B89,الشاشة!$B:$B,"<"&(EOMONTH($S$1,-1)+1),الشاشة!$A:$A,$S$9) -> 0 | M89: =SUMIFS(الشاشة!$J:$J,الشاشة!$E:$E,'المراجعة بدلالة الشهر'!B89,الشاشة!$B:$B,">="&(EOMONTH('المراجعة بدلالة الشهر'!$S$1,-1)+1),الشاشة!$B:$B,"<="&(EOMONTH('المراجعة بدلالة الشهر'!$S$1,0)),الشاشة!$A:$A,$S$9) -> 0 | N89: =SUMIFS(الشاشة!$L:$L,الشاشة!$E:$E,'المراجعة بدلالة الشهر'!B89,الشاشة!$B:$B,">="&(EOMONTH('المراجعة بدلالة الشهر'!$S$1,-1)+1),الشاشة!$B:$B,"<="&(EOMONTH('المراجعة بدلالة الشهر'!$S$1,0)),الشاشة!$A:$A,$S$9) -> 0 | O89: 0 | Q89: 0 | R89: 0
A90: =MAX($A$2:A89)+1 -> 88 | B90: =IFERROR(INDEX(الشاشة!$A:$U,MATCH(نوع_المخزن&$A90,الشاشة!$U:$U,0),MATCH('المراجعة بدلالة الشهر'!B$2,الشاشة!$A$1:$V$1,0)),"") ->  | C90: =IFERROR(INDEX(الشاشة!$A:$U,MATCH(نوع_المخزن&$A90,الشاشة!$U:$U,0),MATCH('المراجعة بدلالة الشهر'!C$2,الشاشة!$A$1:$V$1,0)),"") ->  | D90: =SUMIFS(الشاشة!$K:$K,الشاشة!$E:$E,B90,الشاشة!$B:$B,"<"&(EOMONTH($S$1,-1)+1),الشاشة!$A:$A,$S$9)-SUMIFS(الشاشة!$M:$M,الشاشة!$E:$E,B90,الشاشة!$B:$B,"<"&(EOMONTH($S$1,-1)+1),الشاشة!$A:$A,$S$9) -> 0 | E90: =SUMIFS(الشاشة!$K:$K,الشاشة!$E:$E,'المراجعة بدلالة الشهر'!B90,الشاشة!$B:$B,">"&EOMONTH($S$1,-1),الشاشة!$B:$B,"<="&EOMONTH($S$1,0),الشاشة!$A:$A,$S$9) -> 0 | F90: =SUMIFS(الشاشة!$M:$M,الشاشة!$E:$E,'المراجعة بدلالة الشهر'!B90,الشاشة!$B:$B,">"&EOMONTH($S$1,-1),الشاشة!$B:$B,"<="&EOMONTH($S$1,0),الشاشة!$A:$A,$S$9) -> 0 | G90: 0 | I90: 88 | L90: =SUMIFS(الشاشة!$J:$J,الشاشة!$E:$E,'المراجعة بدلالة الشهر'!B90,الشاشة!$B:$B,"<"&(EOMONTH($S$1,-1)+1),الشاشة!$A:$A,$S$9)-SUMIFS(الشاشة!$L:$L,الشاشة!$E:$E,'المراجعة بدلالة الشهر'!B90,الشاشة!$B:$B,"<"&(EOMONTH($S$1,-1)+1),الشاشة!$A:$A,$S$9) -> 0 | M90: =SUMIFS(الشاشة!$J:$J,الشاشة!$E:$E,'المراجعة بدلالة الشهر'!B90,الشاشة!$B:$B,">="&(EOMONTH('المراجعة بدلالة الشهر'!$S$1,-1)+1),الشاشة!$B:$B,"<="&(EOMONTH('المراجعة بدلالة الشهر'!$S$1,0)),الشاشة!$A:$A,$S$9) -> 0 | N90: =SUMIFS(الشاشة!$L:$L,الشاشة!$E:$E,'المراجعة بدلالة الشهر'!B90,الشاشة!$B:$B,">="&(EOMONTH('المراجعة بدلالة الشهر'!$S$1,-1)+1),الشاشة!$B:$B,"<="&(EOMONTH('المراجعة بدلالة الشهر'!$S$1,0)),الشاشة!$A:$A,$S$9) -> 0 | O90: 0 | Q90: 0 | R90: 0
A91: =MAX($A$2:A90)+1 -> 89 | B91: =IFERROR(INDEX(الشاشة!$A:$U,MATCH(نوع_المخزن&$A91,الشاشة!$U:$U,0),MATCH('المراجعة بدلالة الشهر'!B$2,الشاشة!$A$1:$V$1,0)),"") ->  | C91: =IFERROR(INDEX(الشاشة!$A:$U,MATCH(نوع_المخزن&$A91,الشاشة!$U:$U,0),MATCH('المراجعة بدلالة الشهر'!C$2,الشاشة!$A$1:$V$1,0)),"") ->  | D91: =SUMIFS(الشاشة!$K:$K,الشاشة!$E:$E,B91,الشاشة!$B:$B,"<"&(EOMONTH($S$1,-1)+1),الشاشة!$A:$A,$S$9)-SUMIFS(الشاشة!$M:$M,الشاشة!$E:$E,B91,الشاشة!$B:$B,"<"&(EOMONTH($S$1,-1)+1),الشاشة!$A:$A,$S$9) -> 0 | E91: =SUMIFS(الشاشة!$K:$K,الشاشة!$E:$E,'المراجعة بدلالة الشهر'!B91,الشاشة!$B:$B,">"&EOMONTH($S$1,-1),الشاشة!$B:$B,"<="&EOMONTH($S$1,0),الشاشة!$A:$A,$S$9) -> 0 | F91: =SUMIFS(الشاشة!$M:$M,الشاشة!$E:$E,'المراجعة بدلالة الشهر'!B91,الشاشة!$B:$B,">"&EOMONTH($S$1,-1),الشاشة!$B:$B,"<="&EOMONTH($S$1,0),الشاشة!$A:$A,$S$9) -> 0 | G91: 0 | I91: 89 | L91: =SUMIFS(الشاشة!$J:$J,الشاشة!$E:$E,'المراجعة بدلالة الشهر'!B91,الشاشة!$B:$B,"<"&(EOMONTH($S$1,-1)+1),الشاشة!$A:$A,$S$9)-SUMIFS(الشاشة!$L:$L,الشاشة!$E:$E,'المراجعة بدلالة الشهر'!B91,الشاشة!$B:$B,"<"&(EOMONTH($S$1,-1)+1),الشاشة!$A:$A,$S$9) -> 0 | M91: =SUMIFS(الشاشة!$J:$J,الشاشة!$E:$E,'المراجعة بدلالة الشهر'!B91,الشاشة!$B:$B,">="&(EOMONTH('المراجعة بدلالة الشهر'!$S$1,-1)+1),الشاشة!$B:$B,"<="&(EOMONTH('المراجعة بدلالة الشهر'!$S$1,0)),الشاشة!$A:$A,$S$9) -> 0 | N91: =SUMIFS(الشاشة!$L:$L,الشاشة!$E:$E,'المراجعة بدلالة الشهر'!B91,الشاشة!$B:$B,">="&(EOMONTH('المراجعة بدلالة الشهر'!$S$1,-1)+1),الشاشة!$B:$B,"<="&(EOMONTH('المراجعة بدلالة الشهر'!$S$1,0)),الشاشة!$A:$A,$S$9) -> 0 | O91: 0 | Q91: 0 | R91: 0
A92: =MAX($A$2:A91)+1 -> 90 | B92: =IFERROR(INDEX(الشاشة!$A:$U,MATCH(نوع_المخزن&$A92,الشاشة!$U:$U,0),MATCH('المراجعة بدلالة الشهر'!B$2,الشاشة!$A$1:$V$1,0)),"") ->  | C92: =IFERROR(INDEX(الشاشة!$A:$U,MATCH(نوع_المخزن&$A92,الشاشة!$U:$U,0),MATCH('المراجعة بدلالة الشهر'!C$2,الشاشة!$A$1:$V$1,0)),"") ->  | D92: =SUMIFS(الشاشة!$K:$K,الشاشة!$E:$E,B92,الشاشة!$B:$B,"<"&(EOMONTH($S$1,-1)+1),الشاشة!$A:$A,$S$9)-SUMIFS(الشاشة!$M:$M,الشاشة!$E:$E,B92,الشاشة!$B:$B,"<"&(EOMONTH($S$1,-1)+1),الشاشة!$A:$A,$S$9) -> 0 | E92: =SUMIFS(الشاشة!$K:$K,الشاشة!$E:$E,'المراجعة بدلالة الشهر'!B92,الشاشة!$B:$B,">"&EOMONTH($S$1,-1),الشاشة!$B:$B,"<="&EOMONTH($S$1,0),الشاشة!$A:$A,$S$9) -> 0 | F92: =SUMIFS(الشاشة!$M:$M,الشاشة!$E:$E,'المراجعة بدلالة الشهر'!B92,الشاشة!$B:$B,">"&EOMONTH($S$1,-1),الشاشة!$B:$B,"<="&EOMONTH($S$1,0),الشاشة!$A:$A,$S$9) -> 0 | G92: 0 | I92: 90 | L92: =SUMIFS(الشاشة!$J:$J,الشاشة!$E:$E,'المراجعة بدلالة الشهر'!B92,الشاشة!$B:$B,"<"&(EOMONTH($S$1,-1)+1),الشاشة!$A:$A,$S$9)-SUMIFS(الشاشة!$L:$L,الشاشة!$E:$E,'المراجعة بدلالة الشهر'!B92,الشاشة!$B:$B,"<"&(EOMONTH($S$1,-1)+1),الشاشة!$A:$A,$S$9) -> 0 | M92: =SUMIFS(الشاشة!$J:$J,الشاشة!$E:$E,'المراجعة بدلالة الشهر'!B92,الشاشة!$B:$B,">="&(EOMONTH('المراجعة بدلالة الشهر'!$S$1,-1)+1),الشاشة!$B:$B,"<="&(EOMONTH('المراجعة بدلالة الشهر'!$S$1,0)),الشاشة!$A:$A,$S$9) -> 0 | N92: =SUMIFS(الشاشة!$L:$L,الشاشة!$E:$E,'المراجعة بدلالة الشهر'!B92,الشاشة!$B:$B,">="&(EOMONTH('المراجعة بدلالة الشهر'!$S$1,-1)+1),الشاشة!$B:$B,"<="&(EOMONTH('المراجعة بدلالة الشهر'!$S$1,0)),الشاشة!$A:$A,$S$9) -> 0 | O92: 0 | Q92: 0 | R92: 0
A93: =MAX($A$2:A92)+1 -> 91 | B93: =IFERROR(INDEX(الشاشة!$A:$U,MATCH(نوع_المخزن&$A93,الشاشة!$U:$U,0),MATCH('المراجعة بدلالة الشهر'!B$2,الشاشة!$A$1:$V$1,0)),"") ->  | C93: =IFERROR(INDEX(الشاشة!$A:$U,MATCH(نوع_المخزن&$A93,الشاشة!$U:$U,0),MATCH('المراجعة بدلالة الشهر'!C$2,الشاشة!$A$1:$V$1,0)),"") ->  | D93: =SUMIFS(الشاشة!$K:$K,الشاشة!$E:$E,B93,الشاشة!$B:$B,"<"&(EOMONTH($S$1,-1)+1),الشاشة!$A:$A,$S$9)-SUMIFS(الشاشة!$M:$M,الشاشة!$E:$E,B93,الشاشة!$B:$B,"<"&(EOMONTH($S$1,-1)+1),الشاشة!$A:$A,$S$9) -> 0 | E93: =SUMIFS(الشاشة!$K:$K,الشاشة!$E:$E,'المراجعة بدلالة الشهر'!B93,الشاشة!$B:$B,">"&EOMONTH($S$1,-1),الشاشة!$B:$B,"<="&EOMONTH($S$1,0),الشاشة!$A:$A,$S$9) -> 0 | F93: =SUMIFS(الشاشة!$M:$M,الشاشة!$E:$E,'المراجعة بدلالة الشهر'!B93,الشاشة!$B:$B,">"&EOMONTH($S$1,-1),الشاشة!$B:$B,"<="&EOMONTH($S$1,0),الشاشة!$A:$A,$S$9) -> 0 | G93: 0 | I93: 91 | L93: =SUMIFS(الشاشة!$J:$J,الشاشة!$E:$E,'المراجعة بدلالة الشهر'!B93,الشاشة!$B:$B,"<"&(EOMONTH($S$1,-1)+1),الشاشة!$A:$A,$S$9)-SUMIFS(الشاشة!$L:$L,الشاشة!$E:$E,'المراجعة بدلالة الشهر'!B93,الشاشة!$B:$B,"<"&(EOMONTH($S$1,-1)+1),الشاشة!$A:$A,$S$9) -> 0 | M93: =SUMIFS(الشاشة!$J:$J,الشاشة!$E:$E,'المراجعة بدلالة الشهر'!B93,الشاشة!$B:$B,">="&(EOMONTH('المراجعة بدلالة الشهر'!$S$1,-1)+1),الشاشة!$B:$B,"<="&(EOMONTH('المراجعة بدلالة الشهر'!$S$1,0)),الشاشة!$A:$A,$S$9) -> 0 | N93: =SUMIFS(الشاشة!$L:$L,الشاشة!$E:$E,'المراجعة بدلالة الشهر'!B93,الشاشة!$B:$B,">="&(EOMONTH('المراجعة بدلالة الشهر'!$S$1,-1)+1),الشاشة!$B:$B,"<="&(EOMONTH('المراجعة بدلالة الشهر'!$S$1,0)),الشاشة!$A:$A,$S$9) -> 0 | O93: 0 | Q93: 0 | R93: 0
A94: =MAX($A$2:A93)+1 -> 92 | B94: =IFERROR(INDEX(الشاشة!$A:$U,MATCH(نوع_المخزن&$A94,الشاشة!$U:$U,0),MATCH('المراجعة بدلالة الشهر'!B$2,الشاشة!$A$1:$V$1,0)),"") ->  | C94: =IFERROR(INDEX(الشاشة!$A:$U,MATCH(نوع_المخزن&$A94,الشاشة!$U:$U,0),MATCH('المراجعة بدلالة الشهر'!C$2,الشاشة!$A$1:$V$1,0)),"") ->  | D94: =SUMIFS(الشاشة!$K:$K,الشاشة!$E:$E,B94,الشاشة!$B:$B,"<"&(EOMONTH($S$1,-1)+1),الشاشة!$A:$A,$S$9)-SUMIFS(الشاشة!$M:$M,الشاشة!$E:$E,B94,الشاشة!$B:$B,"<"&(EOMONTH($S$1,-1)+1),الشاشة!$A:$A,$S$9) -> 0 | E94: =SUMIFS(الشاشة!$K:$K,الشاشة!$E:$E,'المراجعة بدلالة الشهر'!B94,الشاشة!$B:$B,">"&EOMONTH($S$1,-1),الشاشة!$B:$B,"<="&EOMONTH($S$1,0),الشاشة!$A:$A,$S$9) -> 0 | F94: =SUMIFS(الشاشة!$M:$M,الشاشة!$E:$E,'المراجعة بدلالة الشهر'!B94,الشاشة!$B:$B,">"&EOMONTH($S$1,-1),الشاشة!$B:$B,"<="&EOMONTH($S$1,0),الشاشة!$A:$A,$S$9) -> 0 | G94: 0 | I94: 92 | L94: =SUMIFS(الشاشة!$J:$J,الشاشة!$E:$E,'المراجعة بدلالة الشهر'!B94,الشاشة!$B:$B,"<"&(EOMONTH($S$1,-1)+1),الشاشة!$A:$A,$S$9)-SUMIFS(الشاشة!$L:$L,الشاشة!$E:$E,'المراجعة بدلالة الشهر'!B94,الشاشة!$B:$B,"<"&(EOMONTH($S$1,-1)+1),الشاشة!$A:$A,$S$9) -> 0 | M94: =SUMIFS(الشاشة!$J:$J,الشاشة!$E:$E,'المراجعة بدلالة الشهر'!B94,الشاشة!$B:$B,">="&(EOMONTH('المراجعة بدلالة الشهر'!$S$1,-1)+1),الشاشة!$B:$B,"<="&(EOMONTH('المراجعة بدلالة الشهر'!$S$1,0)),الشاشة!$A:$A,$S$9) -> 0 | N94: =SUMIFS(الشاشة!$L:$L,الشاشة!$E:$E,'المراجعة بدلالة الشهر'!B94,الشاشة!$B:$B,">="&(EOMONTH('المراجعة بدلالة الشهر'!$S$1,-1)+1),الشاشة!$B:$B,"<="&(EOMONTH('المراجعة بدلالة الشهر'!$S$1,0)),الشاشة!$A:$A,$S$9) -> 0 | O94: 0 | Q94: 0 | R94: 0
A95: =MAX($A$2:A94)+1 -> 93 | B95: =IFERROR(INDEX(الشاشة!$A:$U,MATCH(نوع_المخزن&$A95,الشاشة!$U:$U,0),MATCH('المراجعة بدلالة الشهر'!B$2,الشاشة!$A$1:$V$1,0)),"") ->  | C95: =IFERROR(INDEX(الشاشة!$A:$U,MATCH(نوع_المخزن&$A95,الشاشة!$U:$U,0),MATCH('المراجعة بدلالة الشهر'!C$2,الشاشة!$A$1:$V$1,0)),"") ->  | D95: =SUMIFS(الشاشة!$K:$K,الشاشة!$E:$E,B95,الشاشة!$B:$B,"<"&(EOMONTH($S$1,-1)+1),الشاشة!$A:$A,$S$9)-SUMIFS(الشاشة!$M:$M,الشاشة!$E:$E,B95,الشاشة!$B:$B,"<"&(EOMONTH($S$1,-1)+1),الشاشة!$A:$A,$S$9) -> 0 | E95: =SUMIFS(الشاشة!$K:$K,الشاشة!$E:$E,'المراجعة بدلالة الشهر'!B95,الشاشة!$B:$B,">"&EOMONTH($S$1,-1),الشاشة!$B:$B,"<="&EOMONTH($S$1,0),الشاشة!$A:$A,$S$9) -> 0 | F95: =SUMIFS(الشاشة!$M:$M,الشاشة!$E:$E,'المراجعة بدلالة الشهر'!B95,الشاشة!$B:$B,">"&EOMONTH($S$1,-1),الشاشة!$B:$B,"<="&EOMONTH($S$1,0),الشاشة!$A:$A,$S$9) -> 0 | G95: 0 | I95: 93 | L95: =SUMIFS(الشاشة!$J:$J,الشاشة!$E:$E,'المراجعة بدلالة الشهر'!B95,الشاشة!$B:$B,"<"&(EOMONTH($S$1,-1)+1),الشاشة!$A:$A,$S$9)-SUMIFS(الشاشة!$L:$L,الشاشة!$E:$E,'المراجعة بدلالة الشهر'!B95,الشاشة!$B:$B,"<"&(EOMONTH($S$1,-1)+1),الشاشة!$A:$A,$S$9) -> 0 | M95: =SUMIFS(الشاشة!$J:$J,الشاشة!$E:$E,'المراجعة بدلالة الشهر'!B95,الشاشة!$B:$B,">="&(EOMONTH('المراجعة بدلالة الشهر'!$S$1,-1)+1),الشاشة!$B:$B,"<="&(EOMONTH('المراجعة بدلالة الشهر'!$S$1,0)),الشاشة!$A:$A,$S$9) -> 0 | N95: =SUMIFS(الشاشة!$L:$L,الشاشة!$E:$E,'المراجعة بدلالة الشهر'!B95,الشاشة!$B:$B,">="&(EOMONTH('المراجعة بدلالة الشهر'!$S$1,-1)+1),الشاشة!$B:$B,"<="&(EOMONTH('المراجعة بدلالة الشهر'!$S$1,0)),الشاشة!$A:$A,$S$9) -> 0 | O95: 0 | Q95: 0 | R95: 0
A96: =MAX($A$2:A95)+1 -> 94 | B96: =IFERROR(INDEX(الشاشة!$A:$U,MATCH(نوع_المخزن&$A96,الشاشة!$U:$U,0),MATCH('المراجعة بدلالة الشهر'!B$2,الشاشة!$A$1:$V$1,0)),"") ->  | C96: =IFERROR(INDEX(الشاشة!$A:$U,MATCH(نوع_المخزن&$A96,الشاشة!$U:$U,0),MATCH('المراجعة بدلالة الشهر'!C$2,الشاشة!$A$1:$V$1,0)),"") ->  | D96: =SUMIFS(الشاشة!$K:$K,الشاشة!$E:$E,B96,الشاشة!$B:$B,"<"&(EOMONTH($S$1,-1)+1),الشاشة!$A:$A,$S$9)-SUMIFS(الشاشة!$M:$M,الشاشة!$E:$E,B96,الشاشة!$B:$B,"<"&(EOMONTH($S$1,-1)+1),الشاشة!$A:$A,$S$9) -> 0 | E96: =SUMIFS(الشاشة!$K:$K,الشاشة!$E:$E,'المراجعة بدلالة الشهر'!B96,الشاشة!$B:$B,">"&EOMONTH($S$1,-1),الشاشة!$B:$B,"<="&EOMONTH($S$1,0),الشاشة!$A:$A,$S$9) -> 0 | F96: =SUMIFS(الشاشة!$M:$M,الشاشة!$E:$E,'المراجعة بدلالة الشهر'!B96,الشاشة!$B:$B,">"&EOMONTH($S$1,-1),الشاشة!$B:$B,"<="&EOMONTH($S$1,0),الشاشة!$A:$A,$S$9) -> 0 | G96: 0 | I96: 94 | L96: =SUMIFS(الشاشة!$J:$J,الشاشة!$E:$E,'المراجعة بدلالة الشهر'!B96,الشاشة!$B:$B,"<"&(EOMONTH($S$1,-1)+1),الشاشة!$A:$A,$S$9)-SUMIFS(الشاشة!$L:$L,الشاشة!$E:$E,'المراجعة بدلالة الشهر'!B96,الشاشة!$B:$B,"<"&(EOMONTH($S$1,-1)+1),الشاشة!$A:$A,$S$9) -> 0 | M96: =SUMIFS(الشاشة!$J:$J,الشاشة!$E:$E,'المراجعة بدلالة الشهر'!B96,الشاشة!$B:$B,">="&(EOMONTH('المراجعة بدلالة الشهر'!$S$1,-1)+1),الشاشة!$B:$B,"<="&(EOMONTH('المراجعة بدلالة الشهر'!$S$1,0)),الشاشة!$A:$A,$S$9) -> 0 | N96: =SUMIFS(الشاشة!$L:$L,الشاشة!$E:$E,'المراجعة بدلالة الشهر'!B96,الشاشة!$B:$B,">="&(EOMONTH('المراجعة بدلالة الشهر'!$S$1,-1)+1),الشاشة!$B:$B,"<="&(EOMONTH('المراجعة بدلالة الشهر'!$S$1,0)),الشاشة!$A:$A,$S$9) -> 0 | O96: 0 | Q96: 0 | R96: 0
A97: =MAX($A$2:A96)+1 -> 95 | B97: =IFERROR(INDEX(الشاشة!$A:$U,MATCH(نوع_المخزن&$A97,الشاشة!$U:$U,0),MATCH('المراجعة بدلالة الشهر'!B$2,الشاشة!$A$1:$V$1,0)),"") ->  | C97: =IFERROR(INDEX(الشاشة!$A:$U,MATCH(نوع_المخزن&$A97,الشاشة!$U:$U,0),MATCH('المراجعة بدلالة الشهر'!C$2,الشاشة!$A$1:$V$1,0)),"") ->  | D97: =SUMIFS(الشاشة!$K:$K,الشاشة!$E:$E,B97,الشاشة!$B:$B,"<"&(EOMONTH($S$1,-1)+1),الشاشة!$A:$A,$S$9)-SUMIFS(الشاشة!$M:$M,الشاشة!$E:$E,B97,الشاشة!$B:$B,"<"&(EOMONTH($S$1,-1)+1),الشاشة!$A:$A,$S$9) -> 0 | E97: =SUMIFS(الشاشة!$K:$K,الشاشة!$E:$E,'المراجعة بدلالة الشهر'!B97,الشاشة!$B:$B,">"&EOMONTH($S$1,-1),الشاشة!$B:$B,"<="&EOMONTH($S$1,0),الشاشة!$A:$A,$S$9) -> 0 | F97: =SUMIFS(الشاشة!$M:$M,الشاشة!$E:$E,'المراجعة بدلالة الشهر'!B97,الشاشة!$B:$B,">"&EOMONTH($S$1,-1),الشاشة!$B:$B,"<="&EOMONTH($S$1,0),الشاشة!$A:$A,$S$9) -> 0 | G97: 0 | I97: 95 | L97: =SUMIFS(الشاشة!$J:$J,الشاشة!$E:$E,'المراجعة بدلالة الشهر'!B97,الشاشة!$B:$B,"<"&(EOMONTH($S$1,-1)+1),الشاشة!$A:$A,$S$9)-SUMIFS(الشاشة!$L:$L,الشاشة!$E:$E,'المراجعة بدلالة الشهر'!B97,الشاشة!$B:$B,"<"&(EOMONTH($S$1,-1)+1),الشاشة!$A:$A,$S$9) -> 0 | M97: =SUMIFS(الشاشة!$J:$J,الشاشة!$E:$E,'المراجعة بدلالة الشهر'!B97,الشاشة!$B:$B,">="&(EOMONTH('المراجعة بدلالة الشهر'!$S$1,-1)+1),الشاشة!$B:$B,"<="&(EOMONTH('المراجعة بدلالة الشهر'!$S$1,0)),الشاشة!$A:$A,$S$9) -> 0 | N97: =SUMIFS(الشاشة!$L:$L,الشاشة!$E:$E,'المراجعة بدلالة الشهر'!B97,الشاشة!$B:$B,">="&(EOMONTH('المراجعة بدلالة الشهر'!$S$1,-1)+1),الشاشة!$B:$B,"<="&(EOMONTH('المراجعة بدلالة الشهر'!$S$1,0)),الشاشة!$A:$A,$S$9) -> 0 | O97: 0 | Q97: 0 | R97: 0
A98: =MAX($A$2:A97)+1 -> 96 | B98: =IFERROR(INDEX(الشاشة!$A:$U,MATCH(نوع_المخزن&$A98,الشاشة!$U:$U,0),MATCH('المراجعة بدلالة الشهر'!B$2,الشاشة!$A$1:$V$1,0)),"") ->  | C98: =IFERROR(INDEX(الشاشة!$A:$U,MATCH(نوع_المخزن&$A98,الشاشة!$U:$U,0),MATCH('المراجعة بدلالة الشهر'!C$2,الشاشة!$A$1:$V$1,0)),"") ->  | D98: =SUMIFS(الشاشة!$K:$K,الشاشة!$E:$E,B98,الشاشة!$B:$B,"<"&(EOMONTH($S$1,-1)+1),الشاشة!$A:$A,$S$9)-SUMIFS(الشاشة!$M:$M,الشاشة!$E:$E,B98,الشاشة!$B:$B,"<"&(EOMONTH($S$1,-1)+1),الشاشة!$A:$A,$S$9) -> 0 | E98: =SUMIFS(الشاشة!$K:$K,الشاشة!$E:$E,'المراجعة بدلالة الشهر'!B98,الشاشة!$B:$B,">"&EOMONTH($S$1,-1),الشاشة!$B:$B,"<="&EOMONTH($S$1,0),الشاشة!$A:$A,$S$9) -> 0 | F98: =SUMIFS(الشاشة!$M:$M,الشاشة!$E:$E,'المراجعة بدلالة الشهر'!B98,الشاشة!$B:$B,">"&EOMONTH($S$1,-1),الشاشة!$B:$B,"<="&EOMONTH($S$1,0),الشاشة!$A:$A,$S$9) -> 0 | G98: 0 | I98: 96 | L98: =SUMIFS(الشاشة!$J:$J,الشاشة!$E:$E,'المراجعة بدلالة الشهر'!B98,الشاشة!$B:$B,"<"&(EOMONTH($S$1,-1)+1),الشاشة!$A:$A,$S$9)-SUMIFS(الشاشة!$L:$L,الشاشة!$E:$E,'المراجعة بدلالة الشهر'!B98,الشاشة!$B:$B,"<"&(EOMONTH($S$1,-1)+1),الشاشة!$A:$A,$S$9) -> 0 | M98: =SUMIFS(الشاشة!$J:$J,الشاشة!$E:$E,'المراجعة بدلالة الشهر'!B98,الشاشة!$B:$B,">="&(EOMONTH('المراجعة بدلالة الشهر'!$S$1,-1)+1),الشاشة!$B:$B,"<="&(EOMONTH('المراجعة بدلالة الشهر'!$S$1,0)),الشاشة!$A:$A,$S$9) -> 0 | N98: =SUMIFS(الشاشة!$L:$L,الشاشة!$E:$E,'المراجعة بدلالة الشهر'!B98,الشاشة!$B:$B,">="&(EOMONTH('المراجعة بدلالة الشهر'!$S$1,-1)+1),الشاشة!$B:$B,"<="&(EOMONTH('المراجعة بدلالة الشهر'!$S$1,0)),الشاشة!$A:$A,$S$9) -> 0 | O98: 0 | Q98: 0 | R98: 0
A99: =MAX($A$2:A98)+1 -> 97 | B99: =IFERROR(INDEX(الشاشة!$A:$U,MATCH(نوع_المخزن&$A99,الشاشة!$U:$U,0),MATCH('المراجعة بدلالة الشهر'!B$2,الشاشة!$A$1:$V$1,0)),"") ->  | C99: =IFERROR(INDEX(الشاشة!$A:$U,MATCH(نوع_المخزن&$A99,الشاشة!$U:$U,0),MATCH('المراجعة بدلالة الشهر'!C$2,الشاشة!$A$1:$V$1,0)),"") ->  | D99: =SUMIFS(الشاشة!$K:$K,الشاشة!$E:$E,B99,الشاشة!$B:$B,"<"&(EOMONTH($S$1,-1)+1),الشاشة!$A:$A,$S$9)-SUMIFS(الشاشة!$M:$M,الشاشة!$E:$E,B99,الشاشة!$B:$B,"<"&(EOMONTH($S$1,-1)+1),الشاشة!$A:$A,$S$9) -> 0 | E99: =SUMIFS(الشاشة!$K:$K,الشاشة!$E:$E,'المراجعة بدلالة الشهر'!B99,الشاشة!$B:$B,">"&EOMONTH($S$1,-1),الشاشة!$B:$B,"<="&EOMONTH($S$1,0),الشاشة!$A:$A,$S$9) -> 0 | F99: =SUMIFS(الشاشة!$M:$M,الشاشة!$E:$E,'المراجعة بدلالة الشهر'!B99,الشاشة!$B:$B,">"&EOMONTH($S$1,-1),الشاشة!$B:$B,"<="&EOMONTH($S$1,0),الشاشة!$A:$A,$S$9) -> 0 | G99: 0 | I99: 97 | L99: =SUMIFS(الشاشة!$J:$J,الشاشة!$E:$E,'المراجعة بدلالة الشهر'!B99,الشاشة!$B:$B,"<"&(EOMONTH($S$1,-1)+1),الشاشة!$A:$A,$S$9)-SUMIFS(الشاشة!$L:$L,الشاشة!$E:$E,'المراجعة بدلالة الشهر'!B99,الشاشة!$B:$B,"<"&(EOMONTH($S$1,-1)+1),الشاشة!$A:$A,$S$9) -> 0 | M99: =SUMIFS(الشاشة!$J:$J,الشاشة!$E:$E,'المراجعة بدلالة الشهر'!B99,الشاشة!$B:$B,">="&(EOMONTH('المراجعة بدلالة الشهر'!$S$1,-1)+1),الشاشة!$B:$B,"<="&(EOMONTH('المراجعة بدلالة الشهر'!$S$1,0)),الشاشة!$A:$A,$S$9) -> 0 | N99: =SUMIFS(الشاشة!$L:$L,الشاشة!$E:$E,'المراجعة بدلالة الشهر'!B99,الشاشة!$B:$B,">="&(EOMONTH('المراجعة بدلالة الشهر'!$S$1,-1)+1),الشاشة!$B:$B,"<="&(EOMONTH('المراجعة بدلالة الشهر'!$S$1,0)),الشاشة!$A:$A,$S$9) -> 0 | O99: 0 | Q99: =O99-P99 -> 0 | R99: =IFERROR(ROUND(G99/((L99+O99)/2),2),0) -> 0
A100: =MAX($A$2:A99)+1 -> 98 | B100: =IFERROR(INDEX(الشاشة!$A:$U,MATCH(نوع_المخزن&$A100,الشاشة!$U:$U,0),MATCH('المراجعة بدلالة الشهر'!B$2,الشاشة!$A$1:$V$1,0)),"") ->  | C100: =IFERROR(INDEX(الشاشة!$A:$U,MATCH(نوع_المخزن&$A100,الشاشة!$U:$U,0),MATCH('المراجعة بدلالة الشهر'!C$2,الشاشة!$A$1:$V$1,0)),"") ->  | D100: =SUMIFS(الشاشة!$K:$K,الشاشة!$E:$E,B100,الشاشة!$B:$B,"<"&(EOMONTH($S$1,-1)+1),الشاشة!$A:$A,$S$9)-SUMIFS(الشاشة!$M:$M,الشاشة!$E:$E,B100,الشاشة!$B:$B,"<"&(EOMONTH($S$1,-1)+1),الشاشة!$A:$A,$S$9) -> 0 | E100: =SUMIFS(الشاشة!$K:$K,الشاشة!$E:$E,'المراجعة بدلالة الشهر'!B100,الشاشة!$B:$B,">"&EOMONTH($S$1,-1),الشاشة!$B:$B,"<="&EOMONTH($S$1,0),الشاشة!$A:$A,$S$9) -> 0 | F100: =SUMIFS(الشاشة!$M:$M,الشاشة!$E:$E,'المراجعة بدلالة الشهر'!B100,الشاشة!$B:$B,">"&EOMONTH($S$1,-1),الشاشة!$B:$B,"<="&EOMONTH($S$1,0),الشاشة!$A:$A,$S$9) -> 0 | G100: 0 | I100: 98 | L100: =SUMIFS(الشاشة!$J:$J,الشاشة!$E:$E,'المراجعة بدلالة الشهر'!B100,الشاشة!$B:$B,"<"&(EOMONTH($S$1,-1)+1),الشاشة!$A:$A,$S$9)-SUMIFS(الشاشة!$L:$L,الشاشة!$E:$E,'المراجعة بدلالة الشهر'!B100,الشاشة!$B:$B,"<"&(EOMONTH($S$1,-1)+1),الشاشة!$A:$A,$S$9) -> 0 | M100: =SUMIFS(الشاشة!$J:$J,الشاشة!$E:$E,'المراجعة بدلالة الشهر'!B100,الشاشة!$B:$B,">="&(EOMONTH('المراجعة بدلالة الشهر'!$S$1,-1)+1),الشاشة!$B:$B,"<="&(EOMONTH('المراجعة بدلالة الشهر'!$S$1,0)),الشاشة!$A:$A,$S$9) -> 0 | N100: =SUMIFS(الشاشة!$L:$L,الشاشة!$E:$E,'المراجعة بدلالة الشهر'!B100,الشاشة!$B:$B,">="&(EOMONTH('المراجعة بدلالة الشهر'!$S$1,-1)+1),الشاشة!$B:$B,"<="&(EOMONTH('المراجعة بدلالة الشهر'!$S$1,0)),الشاشة!$A:$A,$S$9) -> 0 | O100: 0 | Q100: 0 | R100: 0
A101: =MAX($A$2:A100)+1 -> 99 | B101: =IFERROR(INDEX(الشاشة!$A:$U,MATCH(نوع_المخزن&$A101,الشاشة!$U:$U,0),MATCH('المراجعة بدلالة الشهر'!B$2,الشاشة!$A$1:$V$1,0)),"") ->  | C101: =IFERROR(INDEX(الشاشة!$A:$U,MATCH(نوع_المخزن&$A101,الشاشة!$U:$U,0),MATCH('المراجعة بدلالة الشهر'!C$2,الشاشة!$A$1:$V$1,0)),"") ->  | D101: =SUMIFS(الشاشة!$K:$K,الشاشة!$E:$E,B101,الشاشة!$B:$B,"<"&(EOMONTH($S$1,-1)+1),الشاشة!$A:$A,$S$9)-SUMIFS(الشاشة!$M:$M,الشاشة!$E:$E,B101,الشاشة!$B:$B,"<"&(EOMONTH($S$1,-1)+1),الشاشة!$A:$A,$S$9) -> 0 | E101: =SUMIFS(الشاشة!$K:$K,الشاشة!$E:$E,'المراجعة بدلالة الشهر'!B101,الشاشة!$B:$B,">"&EOMONTH($S$1,-1),الشاشة!$B:$B,"<="&EOMONTH($S$1,0),الشاشة!$A:$A,$S$9) -> 0 | F101: =SUMIFS(الشاشة!$M:$M,الشاشة!$E:$E,'المراجعة بدلالة الشهر'!B101,الشاشة!$B:$B,">"&EOMONTH($S$1,-1),الشاشة!$B:$B,"<="&EOMONTH($S$1,0),الشاشة!$A:$A,$S$9) -> 0 | G101: 0 | I101: 99 | L101: =SUMIFS(الشاشة!$J:$J,الشاشة!$E:$E,'المراجعة بدلالة الشهر'!B101,الشاشة!$B:$B,"<"&(EOMONTH($S$1,-1)+1),الشاشة!$A:$A,$S$9)-SUMIFS(الشاشة!$L:$L,الشاشة!$E:$E,'المراجعة بدلالة الشهر'!B101,الشاشة!$B:$B,"<"&(EOMONTH($S$1,-1)+1),الشاشة!$A:$A,$S$9) -> 0 | M101: =SUMIFS(الشاشة!$J:$J,الشاشة!$E:$E,'المراجعة بدلالة الشهر'!B101,الشاشة!$B:$B,">="&(EOMONTH('المراجعة بدلالة الشهر'!$S$1,-1)+1),الشاشة!$B:$B,"<="&(EOMONTH('المراجعة بدلالة الشهر'!$S$1,0)),الشاشة!$A:$A,$S$9) -> 0 | N101: =SUMIFS(الشاشة!$L:$L,الشاشة!$E:$E,'المراجعة بدلالة الشهر'!B101,الشاشة!$B:$B,">="&(EOMONTH('المراجعة بدلالة الشهر'!$S$1,-1)+1),الشاشة!$B:$B,"<="&(EOMONTH('المراجعة بدلالة الشهر'!$S$1,0)),الشاشة!$A:$A,$S$9) -> 0 | O101: 0 | Q101: 0 | R101: 0
A102: =MAX($A$2:A101)+1 -> 100 | B102: =IFERROR(INDEX(الشاشة!$A:$U,MATCH(نوع_المخزن&$A102,الشاشة!$U:$U,0),MATCH('المراجعة بدلالة الشهر'!B$2,الشاشة!$A$1:$V$1,0)),"") ->  | C102: =IFERROR(INDEX(الشاشة!$A:$U,MATCH(نوع_المخزن&$A102,الشاشة!$U:$U,0),MATCH('المراجعة بدلالة الشهر'!C$2,الشاشة!$A$1:$V$1,0)),"") ->  | D102: =SUMIFS(الشاشة!$K:$K,الشاشة!$E:$E,B102,الشاشة!$B:$B,"<"&(EOMONTH($S$1,-1)+1),الشاشة!$A:$A,$S$9)-SUMIFS(الشاشة!$M:$M,الشاشة!$E:$E,B102,الشاشة!$B:$B,"<"&(EOMONTH($S$1,-1)+1),الشاشة!$A:$A,$S$9) -> 0 | E102: =SUMIFS(الشاشة!$K:$K,الشاشة!$E:$E,'المراجعة بدلالة الشهر'!B102,الشاشة!$B:$B,">"&EOMONTH($S$1,-1),الشاشة!$B:$B,"<="&EOMONTH($S$1,0),الشاشة!$A:$A,$S$9) -> 0 | F102: =SUMIFS(الشاشة!$M:$M,الشاشة!$E:$E,'المراجعة بدلالة الشهر'!B102,الشاشة!$B:$B,">"&EOMONTH($S$1,-1),الشاشة!$B:$B,"<="&EOMONTH($S$1,0),الشاشة!$A:$A,$S$9) -> 0 | G102: 0 | I102: 100 | L102: =SUMIFS(الشاشة!$J:$J,الشاشة!$E:$E,'المراجعة بدلالة الشهر'!B102,الشاشة!$B:$B,"<"&(EOMONTH($S$1,-1)+1),الشاشة!$A:$A,$S$9)-SUMIFS(الشاشة!$L:$L,الشاشة!$E:$E,'المراجعة بدلالة الشهر'!B102,الشاشة!$B:$B,"<"&(EOMONTH($S$1,-1)+1),الشاشة!$A:$A,$S$9) -> 0 | M102: =SUMIFS(الشاشة!$J:$J,الشاشة!$E:$E,'المراجعة بدلالة الشهر'!B102,الشاشة!$B:$B,">="&(EOMONTH('المراجعة بدلالة الشهر'!$S$1,-1)+1),الشاشة!$B:$B,"<="&(EOMONTH('المراجعة بدلالة الشهر'!$S$1,0)),الشاشة!$A:$A,$S$9) -> 0 | N102: =SUMIFS(الشاشة!$L:$L,الشاشة!$E:$E,'المراجعة بدلالة الشهر'!B102,الشاشة!$B:$B,">="&(EOMONTH('المراجعة بدلالة الشهر'!$S$1,-1)+1),الشاشة!$B:$B,"<="&(EOMONTH('المراجعة بدلالة الشهر'!$S$1,0)),الشاشة!$A:$A,$S$9) -> 0 | O102: 0 | Q102: 0 | R102: 0
A103: =MAX($A$2:A102)+1 -> 101 | B103: =IFERROR(INDEX(الشاشة!$A:$U,MATCH(نوع_المخزن&$A103,الشاشة!$U:$U,0),MATCH('المراجعة بدلالة الشهر'!B$2,الشاشة!$A$1:$V$1,0)),"") ->  | C103: =IFERROR(INDEX(الشاشة!$A:$U,MATCH(نوع_المخزن&$A103,الشاشة!$U:$U,0),MATCH('المراجعة بدلالة الشهر'!C$2,الشاشة!$A$1:$V$1,0)),"") ->  | D103: =SUMIFS(الشاشة!$K:$K,الشاشة!$E:$E,B103,الشاشة!$B:$B,"<"&(EOMONTH($S$1,-1)+1),الشاشة!$A:$A,$S$9)-SUMIFS(الشاشة!$M:$M,الشاشة!$E:$E,B103,الشاشة!$B:$B,"<"&(EOMONTH($S$1,-1)+1),الشاشة!$A:$A,$S$9) -> 0 | E103: =SUMIFS(الشاشة!$K:$K,الشاشة!$E:$E,'المراجعة بدلالة الشهر'!B103,الشاشة!$B:$B,">"&EOMONTH($S$1,-1),الشاشة!$B:$B,"<="&EOMONTH($S$1,0),الشاشة!$A:$A,$S$9) -> 0 | F103: =SUMIFS(الشاشة!$M:$M,الشاشة!$E:$E,'المراجعة بدلالة الشهر'!B103,الشاشة!$B:$B,">"&EOMONTH($S$1,-1),الشاشة!$B:$B,"<="&EOMONTH($S$1,0),الشاشة!$A:$A,$S$9) -> 0 | G103: 0 | I103: 101 | L103: =SUMIFS(الشاشة!$J:$J,الشاشة!$E:$E,'المراجعة بدلالة الشهر'!B103,الشاشة!$B:$B,"<"&(EOMONTH($S$1,-1)+1),الشاشة!$A:$A,$S$9)-SUMIFS(الشاشة!$L:$L,الشاشة!$E:$E,'المراجعة بدلالة الشهر'!B103,الشاشة!$B:$B,"<"&(EOMONTH($S$1,-1)+1),الشاشة!$A:$A,$S$9) -> 0 | M103: =SUMIFS(الشاشة!$J:$J,الشاشة!$E:$E,'المراجعة بدلالة الشهر'!B103,الشاشة!$B:$B,">="&(EOMONTH('المراجعة بدلالة الشهر'!$S$1,-1)+1),الشاشة!$B:$B,"<="&(EOMONTH('المراجعة بدلالة الشهر'!$S$1,0)),الشاشة!$A:$A,$S$9) -> 0 | N103: =SUMIFS(الشاشة!$L:$L,الشاشة!$E:$E,'المراجعة بدلالة الشهر'!B103,الشاشة!$B:$B,">="&(EOMONTH('المراجعة بدلالة الشهر'!$S$1,-1)+1),الشاشة!$B:$B,"<="&(EOMONTH('المراجعة بدلالة الشهر'!$S$1,0)),الشاشة!$A:$A,$S$9) -> 0 | O103: 0 | Q103: 0 | R103: 0
A104: =MAX($A$2:A103)+1 -> 102 | B104: =IFERROR(INDEX(الشاشة!$A:$U,MATCH(نوع_المخزن&$A104,الشاشة!$U:$U,0),MATCH('المراجعة بدلالة الشهر'!B$2,الشاشة!$A$1:$V$1,0)),"") ->  | C104: =IFERROR(INDEX(الشاشة!$A:$U,MATCH(نوع_المخزن&$A104,الشاشة!$U:$U,0),MATCH('المراجعة بدلالة الشهر'!C$2,الشاشة!$A$1:$V$1,0)),"") ->  | D104: =SUMIFS(الشاشة!$K:$K,الشاشة!$E:$E,B104,الشاشة!$B:$B,"<"&(EOMONTH($S$1,-1)+1),الشاشة!$A:$A,$S$9)-SUMIFS(الشاشة!$M:$M,الشاشة!$E:$E,B104,الشاشة!$B:$B,"<"&(EOMONTH($S$1,-1)+1),الشاشة!$A:$A,$S$9) -> 0 | E104: =SUMIFS(الشاشة!$K:$K,الشاشة!$E:$E,'المراجعة بدلالة الشهر'!B104,الشاشة!$B:$B,">"&EOMONTH($S$1,-1),الشاشة!$B:$B,"<="&EOMONTH($S$1,0),الشاشة!$A:$A,$S$9) -> 0 | F104: =SUMIFS(الشاشة!$M:$M,الشاشة!$E:$E,'المراجعة بدلالة الشهر'!B104,الشاشة!$B:$B,">"&EOMONTH($S$1,-1),الشاشة!$B:$B,"<="&EOMONTH($S$1,0),الشاشة!$A:$A,$S$9) -> 0 | G104: 0 | I104: 102 | L104: =SUMIFS(الشاشة!$J:$J,الشاشة!$E:$E,'المراجعة بدلالة الشهر'!B104,الشاشة!$B:$B,"<"&(EOMONTH($S$1,-1)+1),الشاشة!$A:$A,$S$9)-SUMIFS(الشاشة!$L:$L,الشاشة!$E:$E,'المراجعة بدلالة الشهر'!B104,الشاشة!$B:$B,"<"&(EOMONTH($S$1,-1)+1),الشاشة!$A:$A,$S$9) -> 0 | M104: =SUMIFS(الشاشة!$J:$J,الشاشة!$E:$E,'المراجعة بدلالة الشهر'!B104,الشاشة!$B:$B,">="&(EOMONTH('المراجعة بدلالة الشهر'!$S$1,-1)+1),الشاشة!$B:$B,"<="&(EOMONTH('المراجعة بدلالة الشهر'!$S$1,0)),الشاشة!$A:$A,$S$9) -> 0 | N104: =SUMIFS(الشاشة!$L:$L,الشاشة!$E:$E,'المراجعة بدلالة الشهر'!B104,الشاشة!$B:$B,">="&(EOMONTH('المراجعة بدلالة الشهر'!$S$1,-1)+1),الشاشة!$B:$B,"<="&(EOMONTH('المراجعة بدلالة الشهر'!$S$1,0)),الشاشة!$A:$A,$S$9) -> 0 | O104: 0 | Q104: 0 | R104: 0
A105: =MAX($A$2:A104)+1 -> 103 | B105: =IFERROR(INDEX(الشاشة!$A:$U,MATCH(نوع_المخزن&$A105,الشاشة!$U:$U,0),MATCH('المراجعة بدلالة الشهر'!B$2,الشاشة!$A$1:$V$1,0)),"") ->  | C105: =IFERROR(INDEX(الشاشة!$A:$U,MATCH(نوع_المخزن&$A105,الشاشة!$U:$U,0),MATCH('المراجعة بدلالة الشهر'!C$2,الشاشة!$A$1:$V$1,0)),"") ->  | D105: =SUMIFS(الشاشة!$K:$K,الشاشة!$E:$E,B105,الشاشة!$B:$B,"<"&(EOMONTH($S$1,-1)+1),الشاشة!$A:$A,$S$9)-SUMIFS(الشاشة!$M:$M,الشاشة!$E:$E,B105,الشاشة!$B:$B,"<"&(EOMONTH($S$1,-1)+1),الشاشة!$A:$A,$S$9) -> 0 | E105: =SUMIFS(الشاشة!$K:$K,الشاشة!$E:$E,'المراجعة بدلالة الشهر'!B105,الشاشة!$B:$B,">"&EOMONTH($S$1,-1),الشاشة!$B:$B,"<="&EOMONTH($S$1,0),الشاشة!$A:$A,$S$9) -> 0 | F105: =SUMIFS(الشاشة!$M:$M,الشاشة!$E:$E,'المراجعة بدلالة الشهر'!B105,الشاشة!$B:$B,">"&EOMONTH($S$1,-1),الشاشة!$B:$B,"<="&EOMONTH($S$1,0),الشاشة!$A:$A,$S$9) -> 0 | G105: 0 | I105: 103 | L105: =SUMIFS(الشاشة!$J:$J,الشاشة!$E:$E,'المراجعة بدلالة الشهر'!B105,الشاشة!$B:$B,"<"&(EOMONTH($S$1,-1)+1),الشاشة!$A:$A,$S$9)-SUMIFS(الشاشة!$L:$L,الشاشة!$E:$E,'المراجعة بدلالة الشهر'!B105,الشاشة!$B:$B,"<"&(EOMONTH($S$1,-1)+1),الشاشة!$A:$A,$S$9) -> 0 | M105: =SUMIFS(الشاشة!$J:$J,الشاشة!$E:$E,'المراجعة بدلالة الشهر'!B105,الشاشة!$B:$B,">="&(EOMONTH('المراجعة بدلالة الشهر'!$S$1,-1)+1),الشاشة!$B:$B,"<="&(EOMONTH('المراجعة بدلالة الشهر'!$S$1,0)),الشاشة!$A:$A,$S$9) -> 0 | N105: =SUMIFS(الشاشة!$L:$L,الشاشة!$E:$E,'المراجعة بدلالة الشهر'!B105,الشاشة!$B:$B,">="&(EOMONTH('المراجعة بدلالة الشهر'!$S$1,-1)+1),الشاشة!$B:$B,"<="&(EOMONTH('المراجعة بدلالة الشهر'!$S$1,0)),الشاشة!$A:$A,$S$9) -> 0 | O105: 0 | Q105: 0 | R105: 0
A106: =MAX($A$2:A105)+1 -> 104 | B106: =IFERROR(INDEX(الشاشة!$A:$U,MATCH(نوع_المخزن&$A106,الشاشة!$U:$U,0),MATCH('المراجعة بدلالة الشهر'!B$2,الشاشة!$A$1:$V$1,0)),"") ->  | C106: =IFERROR(INDEX(الشاشة!$A:$U,MATCH(نوع_المخزن&$A106,الشاشة!$U:$U,0),MATCH('المراجعة بدلالة الشهر'!C$2,الشاشة!$A$1:$V$1,0)),"") ->  | D106: =SUMIFS(الشاشة!$K:$K,الشاشة!$E:$E,B106,الشاشة!$B:$B,"<"&(EOMONTH($S$1,-1)+1),الشاشة!$A:$A,$S$9)-SUMIFS(الشاشة!$M:$M,الشاشة!$E:$E,B106,الشاشة!$B:$B,"<"&(EOMONTH($S$1,-1)+1),الشاشة!$A:$A,$S$9) -> 0 | E106: =SUMIFS(الشاشة!$K:$K,الشاشة!$E:$E,'المراجعة بدلالة الشهر'!B106,الشاشة!$B:$B,">"&EOMONTH($S$1,-1),الشاشة!$B:$B,"<="&EOMONTH($S$1,0),الشاشة!$A:$A,$S$9) -> 0 | F106: =SUMIFS(الشاشة!$M:$M,الشاشة!$E:$E,'المراجعة بدلالة الشهر'!B106,الشاشة!$B:$B,">"&EOMONTH($S$1,-1),الشاشة!$B:$B,"<="&EOMONTH($S$1,0),الشاشة!$A:$A,$S$9) -> 0 | G106: 0 | I106: 104 | L106: =SUMIFS(الشاشة!$J:$J,الشاشة!$E:$E,'المراجعة بدلالة الشهر'!B106,الشاشة!$B:$B,"<"&(EOMONTH($S$1,-1)+1),الشاشة!$A:$A,$S$9)-SUMIFS(الشاشة!$L:$L,الشاشة!$E:$E,'المراجعة بدلالة الشهر'!B106,الشاشة!$B:$B,"<"&(EOMONTH($S$1,-1)+1),الشاشة!$A:$A,$S$9) -> 0 | M106: =SUMIFS(الشاشة!$J:$J,الشاشة!$E:$E,'المراجعة بدلالة الشهر'!B106,الشاشة!$B:$B,">="&(EOMONTH('المراجعة بدلالة الشهر'!$S$1,-1)+1),الشاشة!$B:$B,"<="&(EOMONTH('المراجعة بدلالة الشهر'!$S$1,0)),الشاشة!$A:$A,$S$9) -> 0 | N106: =SUMIFS(الشاشة!$L:$L,الشاشة!$E:$E,'المراجعة بدلالة الشهر'!B106,الشاشة!$B:$B,">="&(EOMONTH('المراجعة بدلالة الشهر'!$S$1,-1)+1),الشاشة!$B:$B,"<="&(EOMONTH('المراجعة بدلالة الشهر'!$S$1,0)),الشاشة!$A:$A,$S$9) -> 0 | O106: 0 | Q106: 0 | R106: 0
A107: =MAX($A$2:A106)+1 -> 105 | B107: =IFERROR(INDEX(الشاشة!$A:$U,MATCH(نوع_المخزن&$A107,الشاشة!$U:$U,0),MATCH('المراجعة بدلالة الشهر'!B$2,الشاشة!$A$1:$V$1,0)),"") ->  | C107: =IFERROR(INDEX(الشاشة!$A:$U,MATCH(نوع_المخزن&$A107,الشاشة!$U:$U,0),MATCH('المراجعة بدلالة الشهر'!C$2,الشاشة!$A$1:$V$1,0)),"") ->  | D107: =SUMIFS(الشاشة!$K:$K,الشاشة!$E:$E,B107,الشاشة!$B:$B,"<"&(EOMONTH($S$1,-1)+1),الشاشة!$A:$A,$S$9)-SUMIFS(الشاشة!$M:$M,الشاشة!$E:$E,B107,الشاشة!$B:$B,"<"&(EOMONTH($S$1,-1)+1),الشاشة!$A:$A,$S$9) -> 0 | E107: =SUMIFS(الشاشة!$K:$K,الشاشة!$E:$E,'المراجعة بدلالة الشهر'!B107,الشاشة!$B:$B,">"&EOMONTH($S$1,-1),الشاشة!$B:$B,"<="&EOMONTH($S$1,0),الشاشة!$A:$A,$S$9) -> 0 | F107: =SUMIFS(الشاشة!$M:$M,الشاشة!$E:$E,'المراجعة بدلالة الشهر'!B107,الشاشة!$B:$B,">"&EOMONTH($S$1,-1),الشاشة!$B:$B,"<="&EOMONTH($S$1,0),الشاشة!$A:$A,$S$9) -> 0 | G107: 0 | I107: 105 | L107: =SUMIFS(الشاشة!$J:$J,الشاشة!$E:$E,'المراجعة بدلالة الشهر'!B107,الشاشة!$B:$B,"<"&(EOMONTH($S$1,-1)+1),الشاشة!$A:$A,$S$9)-SUMIFS(الشاشة!$L:$L,الشاشة!$E:$E,'المراجعة بدلالة الشهر'!B107,الشاشة!$B:$B,"<"&(EOMONTH($S$1,-1)+1),الشاشة!$A:$A,$S$9) -> 0 | M107: =SUMIFS(الشاشة!$J:$J,الشاشة!$E:$E,'المراجعة بدلالة الشهر'!B107,الشاشة!$B:$B,">="&(EOMONTH('المراجعة بدلالة الشهر'!$S$1,-1)+1),الشاشة!$B:$B,"<="&(EOMONTH('المراجعة بدلالة الشهر'!$S$1,0)),الشاشة!$A:$A,$S$9) -> 0 | N107: =SUMIFS(الشاشة!$L:$L,الشاشة!$E:$E,'المراجعة بدلالة الشهر'!B107,الشاشة!$B:$B,">="&(EOMONTH('المراجعة بدلالة الشهر'!$S$1,-1)+1),الشاشة!$B:$B,"<="&(EOMONTH('المراجعة بدلالة الشهر'!$S$1,0)),الشاشة!$A:$A,$S$9) -> 0 | O107: 0 | Q107: 0 | R107: 0
A108: =MAX($A$2:A107)+1 -> 106 | B108: =IFERROR(INDEX(الشاشة!$A:$U,MATCH(نوع_المخزن&$A108,الشاشة!$U:$U,0),MATCH('المراجعة بدلالة الشهر'!B$2,الشاشة!$A$1:$V$1,0)),"") ->  | C108: =IFERROR(INDEX(الشاشة!$A:$U,MATCH(نوع_المخزن&$A108,الشاشة!$U:$U,0),MATCH('المراجعة بدلالة الشهر'!C$2,الشاشة!$A$1:$V$1,0)),"") ->  | D108: =SUMIFS(الشاشة!$K:$K,الشاشة!$E:$E,B108,الشاشة!$B:$B,"<"&(EOMONTH($S$1,-1)+1),الشاشة!$A:$A,$S$9)-SUMIFS(الشاشة!$M:$M,الشاشة!$E:$E,B108,الشاشة!$B:$B,"<"&(EOMONTH($S$1,-1)+1),الشاشة!$A:$A,$S$9) -> 0 | E108: =SUMIFS(الشاشة!$K:$K,الشاشة!$E:$E,'المراجعة بدلالة الشهر'!B108,الشاشة!$B:$B,">"&EOMONTH($S$1,-1),الشاشة!$B:$B,"<="&EOMONTH($S$1,0),الشاشة!$A:$A,$S$9) -> 0 | F108: =SUMIFS(الشاشة!$M:$M,الشاشة!$E:$E,'المراجعة بدلالة الشهر'!B108,الشاشة!$B:$B,">"&EOMONTH($S$1,-1),الشاشة!$B:$B,"<="&EOMONTH($S$1,0),الشاشة!$A:$A,$S$9) -> 0 | G108: 0 | I108: 106 | L108: =SUMIFS(الشاشة!$J:$J,الشاشة!$E:$E,'المراجعة بدلالة الشهر'!B108,الشاشة!$B:$B,"<"&(EOMONTH($S$1,-1)+1),الشاشة!$A:$A,$S$9)-SUMIFS(الشاشة!$L:$L,الشاشة!$E:$E,'المراجعة بدلالة الشهر'!B108,الشاشة!$B:$B,"<"&(EOMONTH($S$1,-1)+1),الشاشة!$A:$A,$S$9) -> 0 | M108: =SUMIFS(الشاشة!$J:$J,الشاشة!$E:$E,'المراجعة بدلالة الشهر'!B108,الشاشة!$B:$B,">="&(EOMONTH('المراجعة بدلالة الشهر'!$S$1,-1)+1),الشاشة!$B:$B,"<="&(EOMONTH('المراجعة بدلالة الشهر'!$S$1,0)),الشاشة!$A:$A,$S$9) -> 0 | N108: =SUMIFS(الشاشة!$L:$L,الشاشة!$E:$E,'المراجعة بدلالة الشهر'!B108,الشاشة!$B:$B,">="&(EOMONTH('المراجعة بدلالة الشهر'!$S$1,-1)+1),الشاشة!$B:$B,"<="&(EOMONTH('المراجعة بدلالة الشهر'!$S$1,0)),الشاشة!$A:$A,$S$9) -> 0 | O108: 0 | Q108: 0 | R108: 0
A109: =MAX($A$2:A108)+1 -> 107 | B109: =IFERROR(INDEX(الشاشة!$A:$U,MATCH(نوع_المخزن&$A109,الشاشة!$U:$U,0),MATCH('المراجعة بدلالة الشهر'!B$2,الشاشة!$A$1:$V$1,0)),"") ->  | C109: =IFERROR(INDEX(الشاشة!$A:$U,MATCH(نوع_المخزن&$A109,الشاشة!$U:$U,0),MATCH('المراجعة بدلالة الشهر'!C$2,الشاشة!$A$1:$V$1,0)),"") ->  | D109: =SUMIFS(الشاشة!$K:$K,الشاشة!$E:$E,B109,الشاشة!$B:$B,"<"&(EOMONTH($S$1,-1)+1),الشاشة!$A:$A,$S$9)-SUMIFS(الشاشة!$M:$M,الشاشة!$E:$E,B109,الشاشة!$B:$B,"<"&(EOMONTH($S$1,-1)+1),الشاشة!$A:$A,$S$9) -> 0 | E109: =SUMIFS(الشاشة!$K:$K,الشاشة!$E:$E,'المراجعة بدلالة الشهر'!B109,الشاشة!$B:$B,">"&EOMONTH($S$1,-1),الشاشة!$B:$B,"<="&EOMONTH($S$1,0),الشاشة!$A:$A,$S$9) -> 0 | F109: =SUMIFS(الشاشة!$M:$M,الشاشة!$E:$E,'المراجعة بدلالة الشهر'!B109,الشاشة!$B:$B,">"&EOMONTH($S$1,-1),الشاشة!$B:$B,"<="&EOMONTH($S$1,0),الشاشة!$A:$A,$S$9) -> 0 | G109: 0 | I109: 107 | L109: =SUMIFS(الشاشة!$J:$J,الشاشة!$E:$E,'المراجعة بدلالة الشهر'!B109,الشاشة!$B:$B,"<"&(EOMONTH($S$1,-1)+1),الشاشة!$A:$A,$S$9)-SUMIFS(الشاشة!$L:$L,الشاشة!$E:$E,'المراجعة بدلالة الشهر'!B109,الشاشة!$B:$B,"<"&(EOMONTH($S$1,-1)+1),الشاشة!$A:$A,$S$9) -> 0 | M109: =SUMIFS(الشاشة!$J:$J,الشاشة!$E:$E,'المراجعة بدلالة الشهر'!B109,الشاشة!$B:$B,">="&(EOMONTH('المراجعة بدلالة الشهر'!$S$1,-1)+1),الشاشة!$B:$B,"<="&(EOMONTH('المراجعة بدلالة الشهر'!$S$1,0)),الشاشة!$A:$A,$S$9) -> 0 | N109: =SUMIFS(الشاشة!$L:$L,الشاشة!$E:$E,'المراجعة بدلالة الشهر'!B109,الشاشة!$B:$B,">="&(EOMONTH('المراجعة بدلالة الشهر'!$S$1,-1)+1),الشاشة!$B:$B,"<="&(EOMONTH('المراجعة بدلالة الشهر'!$S$1,0)),الشاشة!$A:$A,$S$9) -> 0 | O109: 0 | Q109: 0 | R109: 0
A110: =MAX($A$2:A109)+1 -> 108 | B110: =IFERROR(INDEX(الشاشة!$A:$U,MATCH(نوع_المخزن&$A110,الشاشة!$U:$U,0),MATCH('المراجعة بدلالة الشهر'!B$2,الشاشة!$A$1:$V$1,0)),"") ->  | C110: =IFERROR(INDEX(الشاشة!$A:$U,MATCH(نوع_المخزن&$A110,الشاشة!$U:$U,0),MATCH('المراجعة بدلالة الشهر'!C$2,الشاشة!$A$1:$V$1,0)),"") ->  | D110: =SUMIFS(الشاشة!$K:$K,الشاشة!$E:$E,B110,الشاشة!$B:$B,"<"&(EOMONTH($S$1,-1)+1),الشاشة!$A:$A,$S$9)-SUMIFS(الشاشة!$M:$M,الشاشة!$E:$E,B110,الشاشة!$B:$B,"<"&(EOMONTH($S$1,-1)+1),الشاشة!$A:$A,$S$9) -> 0 | E110: =SUMIFS(الشاشة!$K:$K,الشاشة!$E:$E,'المراجعة بدلالة الشهر'!B110,الشاشة!$B:$B,">"&EOMONTH($S$1,-1),الشاشة!$B:$B,"<="&EOMONTH($S$1,0),الشاشة!$A:$A,$S$9) -> 0 | F110: =SUMIFS(الشاشة!$M:$M,الشاشة!$E:$E,'المراجعة بدلالة الشهر'!B110,الشاشة!$B:$B,">"&EOMONTH($S$1,-1),الشاشة!$B:$B,"<="&EOMONTH($S$1,0),الشاشة!$A:$A,$S$9) -> 0 | G110: 0 | I110: 108 | L110: =SUMIFS(الشاشة!$J:$J,الشاشة!$E:$E,'المراجعة بدلالة الشهر'!B110,الشاشة!$B:$B,"<"&(EOMONTH($S$1,-1)+1),الشاشة!$A:$A,$S$9)-SUMIFS(الشاشة!$L:$L,الشاشة!$E:$E,'المراجعة بدلالة الشهر'!B110,الشاشة!$B:$B,"<"&(EOMONTH($S$1,-1)+1),الشاشة!$A:$A,$S$9) -> 0 | M110: =SUMIFS(الشاشة!$J:$J,الشاشة!$E:$E,'المراجعة بدلالة الشهر'!B110,الشاشة!$B:$B,">="&(EOMONTH('المراجعة بدلالة الشهر'!$S$1,-1)+1),الشاشة!$B:$B,"<="&(EOMONTH('المراجعة بدلالة الشهر'!$S$1,0)),الشاشة!$A:$A,$S$9) -> 0 | N110: =SUMIFS(الشاشة!$L:$L,الشاشة!$E:$E,'المراجعة بدلالة الشهر'!B110,الشاشة!$B:$B,">="&(EOMONTH('المراجعة بدلالة الشهر'!$S$1,-1)+1),الشاشة!$B:$B,"<="&(EOMONTH('المراجعة بدلالة الشهر'!$S$1,0)),الشاشة!$A:$A,$S$9) -> 0 | O110: 0 | Q110: 0 | R110: 0
A111: =MAX($A$2:A110)+1 -> 109 | B111: =IFERROR(INDEX(الشاشة!$A:$U,MATCH(نوع_المخزن&$A111,الشاشة!$U:$U,0),MATCH('المراجعة بدلالة الشهر'!B$2,الشاشة!$A$1:$V$1,0)),"") ->  | C111: =IFERROR(INDEX(الشاشة!$A:$U,MATCH(نوع_المخزن&$A111,الشاشة!$U:$U,0),MATCH('المراجعة بدلالة الشهر'!C$2,الشاشة!$A$1:$V$1,0)),"") ->  | D111: =SUMIFS(الشاشة!$K:$K,الشاشة!$E:$E,B111,الشاشة!$B:$B,"<"&(EOMONTH($S$1,-1)+1),الشاشة!$A:$A,$S$9)-SUMIFS(الشاشة!$M:$M,الشاشة!$E:$E,B111,الشاشة!$B:$B,"<"&(EOMONTH($S$1,-1)+1),الشاشة!$A:$A,$S$9) -> 0 | E111: =SUMIFS(الشاشة!$K:$K,الشاشة!$E:$E,'المراجعة بدلالة الشهر'!B111,الشاشة!$B:$B,">"&EOMONTH($S$1,-1),الشاشة!$B:$B,"<="&EOMONTH($S$1,0),الشاشة!$A:$A,$S$9) -> 0 | F111: =SUMIFS(الشاشة!$M:$M,الشاشة!$E:$E,'المراجعة بدلالة الشهر'!B111,الشاشة!$B:$B,">"&EOMONTH($S$1,-1),الشاشة!$B:$B,"<="&EOMONTH($S$1,0),الشاشة!$A:$A,$S$9) -> 0 | G111: 0 | I111: 109 | L111: =SUMIFS(الشاشة!$J:$J,الشاشة!$E:$E,'المراجعة بدلالة الشهر'!B111,الشاشة!$B:$B,"<"&(EOMONTH($S$1,-1)+1),الشاشة!$A:$A,$S$9)-SUMIFS(الشاشة!$L:$L,الشاشة!$E:$E,'المراجعة بدلالة الشهر'!B111,الشاشة!$B:$B,"<"&(EOMONTH($S$1,-1)+1),الشاشة!$A:$A,$S$9) -> 0 | M111: =SUMIFS(الشاشة!$J:$J,الشاشة!$E:$E,'المراجعة بدلالة الشهر'!B111,الشاشة!$B:$B,">="&(EOMONTH('المراجعة بدلالة الشهر'!$S$1,-1)+1),الشاشة!$B:$B,"<="&(EOMONTH('المراجعة بدلالة الشهر'!$S$1,0)),الشاشة!$A:$A,$S$9) -> 0 | N111: =SUMIFS(الشاشة!$L:$L,الشاشة!$E:$E,'المراجعة بدلالة الشهر'!B111,الشاشة!$B:$B,">="&(EOMONTH('المراجعة بدلالة الشهر'!$S$1,-1)+1),الشاشة!$B:$B,"<="&(EOMONTH('المراجعة بدلالة الشهر'!$S$1,0)),الشاشة!$A:$A,$S$9) -> 0 | O111: 0 | Q111: 0 | R111: 0
A112: =MAX($A$2:A111)+1 -> 110 | B112: =IFERROR(INDEX(الشاشة!$A:$U,MATCH(نوع_المخزن&$A112,الشاشة!$U:$U,0),MATCH('المراجعة بدلالة الشهر'!B$2,الشاشة!$A$1:$V$1,0)),"") ->  | C112: =IFERROR(INDEX(الشاشة!$A:$U,MATCH(نوع_المخزن&$A112,الشاشة!$U:$U,0),MATCH('المراجعة بدلالة الشهر'!C$2,الشاشة!$A$1:$V$1,0)),"") ->  | D112: =SUMIFS(الشاشة!$K:$K,الشاشة!$E:$E,B112,الشاشة!$B:$B,"<"&(EOMONTH($S$1,-1)+1),الشاشة!$A:$A,$S$9)-SUMIFS(الشاشة!$M:$M,الشاشة!$E:$E,B112,الشاشة!$B:$B,"<"&(EOMONTH($S$1,-1)+1),الشاشة!$A:$A,$S$9) -> 0 | E112: =SUMIFS(الشاشة!$K:$K,الشاشة!$E:$E,'المراجعة بدلالة الشهر'!B112,الشاشة!$B:$B,">"&EOMONTH($S$1,-1),الشاشة!$B:$B,"<="&EOMONTH($S$1,0),الشاشة!$A:$A,$S$9) -> 0 | F112: =SUMIFS(الشاشة!$M:$M,الشاشة!$E:$E,'المراجعة بدلالة الشهر'!B112,الشاشة!$B:$B,">"&EOMONTH($S$1,-1),الشاشة!$B:$B,"<="&EOMONTH($S$1,0),الشاشة!$A:$A,$S$9) -> 0 | G112: 0 | I112: 110 | L112: =SUMIFS(الشاشة!$J:$J,الشاشة!$E:$E,'المراجعة بدلالة الشهر'!B112,الشاشة!$B:$B,"<"&(EOMONTH($S$1,-1)+1),الشاشة!$A:$A,$S$9)-SUMIFS(الشاشة!$L:$L,الشاشة!$E:$E,'المراجعة بدلالة الشهر'!B112,الشاشة!$B:$B,"<"&(EOMONTH($S$1,-1)+1),الشاشة!$A:$A,$S$9) -> 0 | M112: =SUMIFS(الشاشة!$J:$J,الشاشة!$E:$E,'المراجعة بدلالة الشهر'!B112,الشاشة!$B:$B,">="&(EOMONTH('المراجعة بدلالة الشهر'!$S$1,-1)+1),الشاشة!$B:$B,"<="&(EOMONTH('المراجعة بدلالة الشهر'!$S$1,0)),الشاشة!$A:$A,$S$9) -> 0 | N112: =SUMIFS(الشاشة!$L:$L,الشاشة!$E:$E,'المراجعة بدلالة الشهر'!B112,الشاشة!$B:$B,">="&(EOMONTH('المراجعة بدلالة الشهر'!$S$1,-1)+1),الشاشة!$B:$B,"<="&(EOMONTH('المراجعة بدلالة الشهر'!$S$1,0)),الشاشة!$A:$A,$S$9) -> 0 | O112: 0 | Q112: 0 | R112: 0
A113: =MAX($A$2:A112)+1 -> 111 | B113: =IFERROR(INDEX(الشاشة!$A:$U,MATCH(نوع_المخزن&$A113,الشاشة!$U:$U,0),MATCH('المراجعة بدلالة الشهر'!B$2,الشاشة!$A$1:$V$1,0)),"") ->  | C113: =IFERROR(INDEX(الشاشة!$A:$U,MATCH(نوع_المخزن&$A113,الشاشة!$U:$U,0),MATCH('المراجعة بدلالة الشهر'!C$2,الشاشة!$A$1:$V$1,0)),"") ->  | D113: =SUMIFS(الشاشة!$K:$K,الشاشة!$E:$E,B113,الشاشة!$B:$B,"<"&(EOMONTH($S$1,-1)+1),الشاشة!$A:$A,$S$9)-SUMIFS(الشاشة!$M:$M,الشاشة!$E:$E,B113,الشاشة!$B:$B,"<"&(EOMONTH($S$1,-1)+1),الشاشة!$A:$A,$S$9) -> 0 | E113: =SUMIFS(الشاشة!$K:$K,الشاشة!$E:$E,'المراجعة بدلالة الشهر'!B113,الشاشة!$B:$B,">"&EOMONTH($S$1,-1),الشاشة!$B:$B,"<="&EOMONTH($S$1,0),الشاشة!$A:$A,$S$9) -> 0 | F113: =SUMIFS(الشاشة!$M:$M,الشاشة!$E:$E,'المراجعة بدلالة الشهر'!B113,الشاشة!$B:$B,">"&EOMONTH($S$1,-1),الشاشة!$B:$B,"<="&EOMONTH($S$1,0),الشاشة!$A:$A,$S$9) -> 0 | G113: 0 | I113: 111 | L113: =SUMIFS(الشاشة!$J:$J,الشاشة!$E:$E,'المراجعة بدلالة الشهر'!B113,الشاشة!$B:$B,"<"&(EOMONTH($S$1,-1)+1),الشاشة!$A:$A,$S$9)-SUMIFS(الشاشة!$L:$L,الشاشة!$E:$E,'المراجعة بدلالة الشهر'!B113,الشاشة!$B:$B,"<"&(EOMONTH($S$1,-1)+1),الشاشة!$A:$A,$S$9) -> 0 | M113: =SUMIFS(الشاشة!$J:$J,الشاشة!$E:$E,'المراجعة بدلالة الشهر'!B113,الشاشة!$B:$B,">="&(EOMONTH('المراجعة بدلالة الشهر'!$S$1,-1)+1),الشاشة!$B:$B,"<="&(EOMONTH('المراجعة بدلالة الشهر'!$S$1,0)),الشاشة!$A:$A,$S$9) -> 0 | N113: =SUMIFS(الشاشة!$L:$L,الشاشة!$E:$E,'المراجعة بدلالة الشهر'!B113,الشاشة!$B:$B,">="&(EOMONTH('المراجعة بدلالة الشهر'!$S$1,-1)+1),الشاشة!$B:$B,"<="&(EOMONTH('المراجعة بدلالة الشهر'!$S$1,0)),الشاشة!$A:$A,$S$9) -> 0 | O113: 0 | Q113: 0 | R113: 0
A114: =MAX($A$2:A113)+1 -> 112 | B114: =IFERROR(INDEX(الشاشة!$A:$U,MATCH(نوع_المخزن&$A114,الشاشة!$U:$U,0),MATCH('المراجعة بدلالة الشهر'!B$2,الشاشة!$A$1:$V$1,0)),"") ->  | C114: =IFERROR(INDEX(الشاشة!$A:$U,MATCH(نوع_المخزن&$A114,الشاشة!$U:$U,0),MATCH('المراجعة بدلالة الشهر'!C$2,الشاشة!$A$1:$V$1,0)),"") ->  | D114: =SUMIFS(الشاشة!$K:$K,الشاشة!$E:$E,B114,الشاشة!$B:$B,"<"&(EOMONTH($S$1,-1)+1),الشاشة!$A:$A,$S$9)-SUMIFS(الشاشة!$M:$M,الشاشة!$E:$E,B114,الشاشة!$B:$B,"<"&(EOMONTH($S$1,-1)+1),الشاشة!$A:$A,$S$9) -> 0 | E114: =SUMIFS(الشاشة!$K:$K,الشاشة!$E:$E,'المراجعة بدلالة الشهر'!B114,الشاشة!$B:$B,">"&EOMONTH($S$1,-1),الشاشة!$B:$B,"<="&EOMONTH($S$1,0),الشاشة!$A:$A,$S$9) -> 0 | F114: =SUMIFS(الشاشة!$M:$M,الشاشة!$E:$E,'المراجعة بدلالة الشهر'!B114,الشاشة!$B:$B,">"&EOMONTH($S$1,-1),الشاشة!$B:$B,"<="&EOMONTH($S$1,0),الشاشة!$A:$A,$S$9) -> 0 | G114: 0 | I114: 112 | L114: =SUMIFS(الشاشة!$J:$J,الشاشة!$E:$E,'المراجعة بدلالة الشهر'!B114,الشاشة!$B:$B,"<"&(EOMONTH($S$1,-1)+1),الشاشة!$A:$A,$S$9)-SUMIFS(الشاشة!$L:$L,الشاشة!$E:$E,'المراجعة بدلالة الشهر'!B114,الشاشة!$B:$B,"<"&(EOMONTH($S$1,-1)+1),الشاشة!$A:$A,$S$9) -> 0 | M114: =SUMIFS(الشاشة!$J:$J,الشاشة!$E:$E,'المراجعة بدلالة الشهر'!B114,الشاشة!$B:$B,">="&(EOMONTH('المراجعة بدلالة الشهر'!$S$1,-1)+1),الشاشة!$B:$B,"<="&(EOMONTH('المراجعة بدلالة الشهر'!$S$1,0)),الشاشة!$A:$A,$S$9) -> 0 | N114: =SUMIFS(الشاشة!$L:$L,الشاشة!$E:$E,'المراجعة بدلالة الشهر'!B114,الشاشة!$B:$B,">="&(EOMONTH('المراجعة بدلالة الشهر'!$S$1,-1)+1),الشاشة!$B:$B,"<="&(EOMONTH('المراجعة بدلالة الشهر'!$S$1,0)),الشاشة!$A:$A,$S$9) -> 0 | O114: 0 | Q114: 0 | R114: 0
A115: =MAX($A$2:A114)+1 -> 113 | B115: =IFERROR(INDEX(الشاشة!$A:$U,MATCH(نوع_المخزن&$A115,الشاشة!$U:$U,0),MATCH('المراجعة بدلالة الشهر'!B$2,الشاشة!$A$1:$V$1,0)),"") ->  | C115: =IFERROR(INDEX(الشاشة!$A:$U,MATCH(نوع_المخزن&$A115,الشاشة!$U:$U,0),MATCH('المراجعة بدلالة الشهر'!C$2,الشاشة!$A$1:$V$1,0)),"") ->  | D115: =SUMIFS(الشاشة!$K:$K,الشاشة!$E:$E,B115,الشاشة!$B:$B,"<"&(EOMONTH($S$1,-1)+1),الشاشة!$A:$A,$S$9)-SUMIFS(الشاشة!$M:$M,الشاشة!$E:$E,B115,الشاشة!$B:$B,"<"&(EOMONTH($S$1,-1)+1),الشاشة!$A:$A,$S$9) -> 0 | E115: =SUMIFS(الشاشة!$K:$K,الشاشة!$E:$E,'المراجعة بدلالة الشهر'!B115,الشاشة!$B:$B,">"&EOMONTH($S$1,-1),الشاشة!$B:$B,"<="&EOMONTH($S$1,0),الشاشة!$A:$A,$S$9) -> 0 | F115: =SUMIFS(الشاشة!$M:$M,الشاشة!$E:$E,'المراجعة بدلالة الشهر'!B115,الشاشة!$B:$B,">"&EOMONTH($S$1,-1),الشاشة!$B:$B,"<="&EOMONTH($S$1,0),الشاشة!$A:$A,$S$9) -> 0 | G115: 0 | I115: 113 | L115: =SUMIFS(الشاشة!$J:$J,الشاشة!$E:$E,'المراجعة بدلالة الشهر'!B115,الشاشة!$B:$B,"<"&(EOMONTH($S$1,-1)+1),الشاشة!$A:$A,$S$9)-SUMIFS(الشاشة!$L:$L,الشاشة!$E:$E,'المراجعة بدلالة الشهر'!B115,الشاشة!$B:$B,"<"&(EOMONTH($S$1,-1)+1),الشاشة!$A:$A,$S$9) -> 0 | M115: =SUMIFS(الشاشة!$J:$J,الشاشة!$E:$E,'المراجعة بدلالة الشهر'!B115,الشاشة!$B:$B,">="&(EOMONTH('المراجعة بدلالة الشهر'!$S$1,-1)+1),الشاشة!$B:$B,"<="&(EOMONTH('المراجعة بدلالة الشهر'!$S$1,0)),الشاشة!$A:$A,$S$9) -> 0 | N115: =SUMIFS(الشاشة!$L:$L,الشاشة!$E:$E,'المراجعة بدلالة الشهر'!B115,الشاشة!$B:$B,">="&(EOMONTH('المراجعة بدلالة الشهر'!$S$1,-1)+1),الشاشة!$B:$B,"<="&(EOMONTH('المراجعة بدلالة الشهر'!$S$1,0)),الشاشة!$A:$A,$S$9) -> 0 | O115: 0 | Q115: 0 | R115: 0
A116: =MAX($A$2:A115)+1 -> 114 | B116: =IFERROR(INDEX(الشاشة!$A:$U,MATCH(نوع_المخزن&$A116,الشاشة!$U:$U,0),MATCH('المراجعة بدلالة الشهر'!B$2,الشاشة!$A$1:$V$1,0)),"") ->  | C116: =IFERROR(INDEX(الشاشة!$A:$U,MATCH(نوع_المخزن&$A116,الشاشة!$U:$U,0),MATCH('المراجعة بدلالة الشهر'!C$2,الشاشة!$A$1:$V$1,0)),"") ->  | D116: =SUMIFS(الشاشة!$K:$K,الشاشة!$E:$E,B116,الشاشة!$B:$B,"<"&(EOMONTH($S$1,-1)+1),الشاشة!$A:$A,$S$9)-SUMIFS(الشاشة!$M:$M,الشاشة!$E:$E,B116,الشاشة!$B:$B,"<"&(EOMONTH($S$1,-1)+1),الشاشة!$A:$A,$S$9) -> 0 | E116: =SUMIFS(الشاشة!$K:$K,الشاشة!$E:$E,'المراجعة بدلالة الشهر'!B116,الشاشة!$B:$B,">"&EOMONTH($S$1,-1),الشاشة!$B:$B,"<="&EOMONTH($S$1,0),الشاشة!$A:$A,$S$9) -> 0 | F116: =SUMIFS(الشاشة!$M:$M,الشاشة!$E:$E,'المراجعة بدلالة الشهر'!B116,الشاشة!$B:$B,">"&EOMONTH($S$1,-1),الشاشة!$B:$B,"<="&EOMONTH($S$1,0),الشاشة!$A:$A,$S$9) -> 0 | G116: 0 | I116: 114 | L116: =SUMIFS(الشاشة!$J:$J,الشاشة!$E:$E,'المراجعة بدلالة الشهر'!B116,الشاشة!$B:$B,"<"&(EOMONTH($S$1,-1)+1),الشاشة!$A:$A,$S$9)-SUMIFS(الشاشة!$L:$L,الشاشة!$E:$E,'المراجعة بدلالة الشهر'!B116,الشاشة!$B:$B,"<"&(EOMONTH($S$1,-1)+1),الشاشة!$A:$A,$S$9) -> 0 | M116: =SUMIFS(الشاشة!$J:$J,الشاشة!$E:$E,'المراجعة بدلالة الشهر'!B116,الشاشة!$B:$B,">="&(EOMONTH('المراجعة بدلالة الشهر'!$S$1,-1)+1),الشاشة!$B:$B,"<="&(EOMONTH('المراجعة بدلالة الشهر'!$S$1,0)),الشاشة!$A:$A,$S$9) -> 0 | N116: =SUMIFS(الشاشة!$L:$L,الشاشة!$E:$E,'المراجعة بدلالة الشهر'!B116,الشاشة!$B:$B,">="&(EOMONTH('المراجعة بدلالة الشهر'!$S$1,-1)+1),الشاشة!$B:$B,"<="&(EOMONTH('المراجعة بدلالة الشهر'!$S$1,0)),الشاشة!$A:$A,$S$9) -> 0 | O116: 0 | Q116: 0 | R116: 0
A117: =MAX($A$2:A116)+1 -> 115 | B117: =IFERROR(INDEX(الشاشة!$A:$U,MATCH(نوع_المخزن&$A117,الشاشة!$U:$U,0),MATCH('المراجعة بدلالة الشهر'!B$2,الشاشة!$A$1:$V$1,0)),"") ->  | C117: =IFERROR(INDEX(الشاشة!$A:$U,MATCH(نوع_المخزن&$A117,الشاشة!$U:$U,0),MATCH('المراجعة بدلالة الشهر'!C$2,الشاشة!$A$1:$V$1,0)),"") ->  | D117: =SUMIFS(الشاشة!$K:$K,الشاشة!$E:$E,B117,الشاشة!$B:$B,"<"&(EOMONTH($S$1,-1)+1),الشاشة!$A:$A,$S$9)-SUMIFS(الشاشة!$M:$M,الشاشة!$E:$E,B117,الشاشة!$B:$B,"<"&(EOMONTH($S$1,-1)+1),الشاشة!$A:$A,$S$9) -> 0 | E117: =SUMIFS(الشاشة!$K:$K,الشاشة!$E:$E,'المراجعة بدلالة الشهر'!B117,الشاشة!$B:$B,">"&EOMONTH($S$1,-1),الشاشة!$B:$B,"<="&EOMONTH($S$1,0),الشاشة!$A:$A,$S$9) -> 0 | F117: =SUMIFS(الشاشة!$M:$M,الشاشة!$E:$E,'المراجعة بدلالة الشهر'!B117,الشاشة!$B:$B,">"&EOMONTH($S$1,-1),الشاشة!$B:$B,"<="&EOMONTH($S$1,0),الشاشة!$A:$A,$S$9) -> 0 | G117: 0 | I117: 115 | L117: =SUMIFS(الشاشة!$J:$J,الشاشة!$E:$E,'المراجعة بدلالة الشهر'!B117,الشاشة!$B:$B,"<"&(EOMONTH($S$1,-1)+1),الشاشة!$A:$A,$S$9)-SUMIFS(الشاشة!$L:$L,الشاشة!$E:$E,'المراجعة بدلالة الشهر'!B117,الشاشة!$B:$B,"<"&(EOMONTH($S$1,-1)+1),الشاشة!$A:$A,$S$9) -> 0 | M117: =SUMIFS(الشاشة!$J:$J,الشاشة!$E:$E,'المراجعة بدلالة الشهر'!B117,الشاشة!$B:$B,">="&(EOMONTH('المراجعة بدلالة الشهر'!$S$1,-1)+1),الشاشة!$B:$B,"<="&(EOMONTH('المراجعة بدلالة الشهر'!$S$1,0)),الشاشة!$A:$A,$S$9) -> 0 | N117: =SUMIFS(الشاشة!$L:$L,الشاشة!$E:$E,'المراجعة بدلالة الشهر'!B117,الشاشة!$B:$B,">="&(EOMONTH('المراجعة بدلالة الشهر'!$S$1,-1)+1),الشاشة!$B:$B,"<="&(EOMONTH('المراجعة بدلالة الشهر'!$S$1,0)),الشاشة!$A:$A,$S$9) -> 0 | O117: 0 | Q117: 0 | R117: 0
A118: =MAX($A$2:A117)+1 -> 116 | B118: =IFERROR(INDEX(الشاشة!$A:$U,MATCH(نوع_المخزن&$A118,الشاشة!$U:$U,0),MATCH('المراجعة بدلالة الشهر'!B$2,الشاشة!$A$1:$V$1,0)),"") ->  | C118: =IFERROR(INDEX(الشاشة!$A:$U,MATCH(نوع_المخزن&$A118,الشاشة!$U:$U,0),MATCH('المراجعة بدلالة الشهر'!C$2,الشاشة!$A$1:$V$1,0)),"") ->  | D118: =SUMIFS(الشاشة!$K:$K,الشاشة!$E:$E,B118,الشاشة!$B:$B,"<"&(EOMONTH($S$1,-1)+1),الشاشة!$A:$A,$S$9)-SUMIFS(الشاشة!$M:$M,الشاشة!$E:$E,B118,الشاشة!$B:$B,"<"&(EOMONTH($S$1,-1)+1),الشاشة!$A:$A,$S$9) -> 0 | E118: =SUMIFS(الشاشة!$K:$K,الشاشة!$E:$E,'المراجعة بدلالة الشهر'!B118,الشاشة!$B:$B,">"&EOMONTH($S$1,-1),الشاشة!$B:$B,"<="&EOMONTH($S$1,0),الشاشة!$A:$A,$S$9) -> 0 | F118: =SUMIFS(الشاشة!$M:$M,الشاشة!$E:$E,'المراجعة بدلالة الشهر'!B118,الشاشة!$B:$B,">"&EOMONTH($S$1,-1),الشاشة!$B:$B,"<="&EOMONTH($S$1,0),الشاشة!$A:$A,$S$9) -> 0 | G118: 0 | I118: 116 | L118: =SUMIFS(الشاشة!$J:$J,الشاشة!$E:$E,'المراجعة بدلالة الشهر'!B118,الشاشة!$B:$B,"<"&(EOMONTH($S$1,-1)+1),الشاشة!$A:$A,$S$9)-SUMIFS(الشاشة!$L:$L,الشاشة!$E:$E,'المراجعة بدلالة الشهر'!B118,الشاشة!$B:$B,"<"&(EOMONTH($S$1,-1)+1),الشاشة!$A:$A,$S$9) -> 0 | M118: =SUMIFS(الشاشة!$J:$J,الشاشة!$E:$E,'المراجعة بدلالة الشهر'!B118,الشاشة!$B:$B,">="&(EOMONTH('المراجعة بدلالة الشهر'!$S$1,-1)+1),الشاشة!$B:$B,"<="&(EOMONTH('المراجعة بدلالة الشهر'!$S$1,0)),الشاشة!$A:$A,$S$9) -> 0 | N118: =SUMIFS(الشاشة!$L:$L,الشاشة!$E:$E,'المراجعة بدلالة الشهر'!B118,الشاشة!$B:$B,">="&(EOMONTH('المراجعة بدلالة الشهر'!$S$1,-1)+1),الشاشة!$B:$B,"<="&(EOMONTH('المراجعة بدلالة الشهر'!$S$1,0)),الشاشة!$A:$A,$S$9) -> 0 | O118: 0 | Q118: 0 | R118: 0
A119: =MAX($A$2:A118)+1 -> 117 | B119: =IFERROR(INDEX(الشاشة!$A:$U,MATCH(نوع_المخزن&$A119,الشاشة!$U:$U,0),MATCH('المراجعة بدلالة الشهر'!B$2,الشاشة!$A$1:$V$1,0)),"") ->  | C119: =IFERROR(INDEX(الشاشة!$A:$U,MATCH(نوع_المخزن&$A119,الشاشة!$U:$U,0),MATCH('المراجعة بدلالة الشهر'!C$2,الشاشة!$A$1:$V$1,0)),"") ->  | D119: =SUMIFS(الشاشة!$K:$K,الشاشة!$E:$E,B119,الشاشة!$B:$B,"<"&(EOMONTH($S$1,-1)+1),الشاشة!$A:$A,$S$9)-SUMIFS(الشاشة!$M:$M,الشاشة!$E:$E,B119,الشاشة!$B:$B,"<"&(EOMONTH($S$1,-1)+1),الشاشة!$A:$A,$S$9) -> 0 | E119: =SUMIFS(الشاشة!$K:$K,الشاشة!$E:$E,'المراجعة بدلالة الشهر'!B119,الشاشة!$B:$B,">"&EOMONTH($S$1,-1),الشاشة!$B:$B,"<="&EOMONTH($S$1,0),الشاشة!$A:$A,$S$9) -> 0 | F119: =SUMIFS(الشاشة!$M:$M,الشاشة!$E:$E,'المراجعة بدلالة الشهر'!B119,الشاشة!$B:$B,">"&EOMONTH($S$1,-1),الشاشة!$B:$B,"<="&EOMONTH($S$1,0),الشاشة!$A:$A,$S$9) -> 0 | G119: 0 | I119: 117 | L119: =SUMIFS(الشاشة!$J:$J,الشاشة!$E:$E,'المراجعة بدلالة الشهر'!B119,الشاشة!$B:$B,"<"&(EOMONTH($S$1,-1)+1),الشاشة!$A:$A,$S$9)-SUMIFS(الشاشة!$L:$L,الشاشة!$E:$E,'المراجعة بدلالة الشهر'!B119,الشاشة!$B:$B,"<"&(EOMONTH($S$1,-1)+1),الشاشة!$A:$A,$S$9) -> 0 | M119: =SUMIFS(الشاشة!$J:$J,الشاشة!$E:$E,'المراجعة بدلالة الشهر'!B119,الشاشة!$B:$B,">="&(EOMONTH('المراجعة بدلالة الشهر'!$S$1,-1)+1),الشاشة!$B:$B,"<="&(EOMONTH('المراجعة بدلالة الشهر'!$S$1,0)),الشاشة!$A:$A,$S$9) -> 0 | N119: =SUMIFS(الشاشة!$L:$L,الشاشة!$E:$E,'المراجعة بدلالة الشهر'!B119,الشاشة!$B:$B,">="&(EOMONTH('المراجعة بدلالة الشهر'!$S$1,-1)+1),الشاشة!$B:$B,"<="&(EOMONTH('المراجعة بدلالة الشهر'!$S$1,0)),الشاشة!$A:$A,$S$9) -> 0 | O119: 0 | Q119: 0 | R119: 0
A120: =MAX($A$2:A119)+1 -> 118 | B120: =IFERROR(INDEX(الشاشة!$A:$U,MATCH(نوع_المخزن&$A120,الشاشة!$U:$U,0),MATCH('المراجعة بدلالة الشهر'!B$2,الشاشة!$A$1:$V$1,0)),"") ->  | C120: =IFERROR(INDEX(الشاشة!$A:$U,MATCH(نوع_المخزن&$A120,الشاشة!$U:$U,0),MATCH('المراجعة بدلالة الشهر'!C$2,الشاشة!$A$1:$V$1,0)),"") ->  | D120: =SUMIFS(الشاشة!$K:$K,الشاشة!$E:$E,B120,الشاشة!$B:$B,"<"&(EOMONTH($S$1,-1)+1),الشاشة!$A:$A,$S$9)-SUMIFS(الشاشة!$M:$M,الشاشة!$E:$E,B120,الشاشة!$B:$B,"<"&(EOMONTH($S$1,-1)+1),الشاشة!$A:$A,$S$9) -> 0 | E120: =SUMIFS(الشاشة!$K:$K,الشاشة!$E:$E,'المراجعة بدلالة الشهر'!B120,الشاشة!$B:$B,">"&EOMONTH($S$1,-1),الشاشة!$B:$B,"<="&EOMONTH($S$1,0),الشاشة!$A:$A,$S$9) -> 0 | F120: =SUMIFS(الشاشة!$M:$M,الشاشة!$E:$E,'المراجعة بدلالة الشهر'!B120,الشاشة!$B:$B,">"&EOMONTH($S$1,-1),الشاشة!$B:$B,"<="&EOMONTH($S$1,0),الشاشة!$A:$A,$S$9) -> 0 | G120: 0 | I120: 118 | L120: =SUMIFS(الشاشة!$J:$J,الشاشة!$E:$E,'المراجعة بدلالة الشهر'!B120,الشاشة!$B:$B,"<"&(EOMONTH($S$1,-1)+1),الشاشة!$A:$A,$S$9)-SUMIFS(الشاشة!$L:$L,الشاشة!$E:$E,'المراجعة بدلالة الشهر'!B120,الشاشة!$B:$B,"<"&(EOMONTH($S$1,-1)+1),الشاشة!$A:$A,$S$9) -> 0 | M120: =SUMIFS(الشاشة!$J:$J,الشاشة!$E:$E,'المراجعة بدلالة الشهر'!B120,الشاشة!$B:$B,">="&(EOMONTH('المراجعة بدلالة الشهر'!$S$1,-1)+1),الشاشة!$B:$B,"<="&(EOMONTH('المراجعة بدلالة الشهر'!$S$1,0)),الشاشة!$A:$A,$S$9) -> 0 | N120: =SUMIFS(الشاشة!$L:$L,الشاشة!$E:$E,'المراجعة بدلالة الشهر'!B120,الشاشة!$B:$B,">="&(EOMONTH('المراجعة بدلالة الشهر'!$S$1,-1)+1),الشاشة!$B:$B,"<="&(EOMONTH('المراجعة بدلالة الشهر'!$S$1,0)),الشاشة!$A:$A,$S$9) -> 0 | O120: 0 | Q120: 0 | R120: 0
A121: =MAX($A$2:A120)+1 -> 119 | B121: =IFERROR(INDEX(الشاشة!$A:$U,MATCH(نوع_المخزن&$A121,الشاشة!$U:$U,0),MATCH('المراجعة بدلالة الشهر'!B$2,الشاشة!$A$1:$V$1,0)),"") ->  | C121: =IFERROR(INDEX(الشاشة!$A:$U,MATCH(نوع_المخزن&$A121,الشاشة!$U:$U,0),MATCH('المراجعة بدلالة الشهر'!C$2,الشاشة!$A$1:$V$1,0)),"") ->  | D121: =SUMIFS(الشاشة!$K:$K,الشاشة!$E:$E,B121,الشاشة!$B:$B,"<"&(EOMONTH($S$1,-1)+1),الشاشة!$A:$A,$S$9)-SUMIFS(الشاشة!$M:$M,الشاشة!$E:$E,B121,الشاشة!$B:$B,"<"&(EOMONTH($S$1,-1)+1),الشاشة!$A:$A,$S$9) -> 0 | E121: =SUMIFS(الشاشة!$K:$K,الشاشة!$E:$E,'المراجعة بدلالة الشهر'!B121,الشاشة!$B:$B,">"&EOMONTH($S$1,-1),الشاشة!$B:$B,"<="&EOMONTH($S$1,0),الشاشة!$A:$A,$S$9) -> 0 | F121: =SUMIFS(الشاشة!$M:$M,الشاشة!$E:$E,'المراجعة بدلالة الشهر'!B121,الشاشة!$B:$B,">"&EOMONTH($S$1,-1),الشاشة!$B:$B,"<="&EOMONTH($S$1,0),الشاشة!$A:$A,$S$9) -> 0 | G121: 0 | I121: 119 | L121: =SUMIFS(الشاشة!$J:$J,الشاشة!$E:$E,'المراجعة بدلالة الشهر'!B121,الشاشة!$B:$B,"<"&(EOMONTH($S$1,-1)+1),الشاشة!$A:$A,$S$9)-SUMIFS(الشاشة!$L:$L,الشاشة!$E:$E,'المراجعة بدلالة الشهر'!B121,الشاشة!$B:$B,"<"&(EOMONTH($S$1,-1)+1),الشاشة!$A:$A,$S$9) -> 0 | M121: =SUMIFS(الشاشة!$J:$J,الشاشة!$E:$E,'المراجعة بدلالة الشهر'!B121,الشاشة!$B:$B,">="&(EOMONTH('المراجعة بدلالة الشهر'!$S$1,-1)+1),الشاشة!$B:$B,"<="&(EOMONTH('المراجعة بدلالة الشهر'!$S$1,0)),الشاشة!$A:$A,$S$9) -> 0 | N121: =SUMIFS(الشاشة!$L:$L,الشاشة!$E:$E,'المراجعة بدلالة الشهر'!B121,الشاشة!$B:$B,">="&(EOMONTH('المراجعة بدلالة الشهر'!$S$1,-1)+1),الشاشة!$B:$B,"<="&(EOMONTH('المراجعة بدلالة الشهر'!$S$1,0)),الشاشة!$A:$A,$S$9) -> 0 | O121: 0 | Q121: 0 | R121: 0
A122: =MAX($A$2:A121)+1 -> 120 | B122: =IFERROR(INDEX(الشاشة!$A:$U,MATCH(نوع_المخزن&$A122,الشاشة!$U:$U,0),MATCH('المراجعة بدلالة الشهر'!B$2,الشاشة!$A$1:$V$1,0)),"") ->  | C122: =IFERROR(INDEX(الشاشة!$A:$U,MATCH(نوع_المخزن&$A122,الشاشة!$U:$U,0),MATCH('المراجعة بدلالة الشهر'!C$2,الشاشة!$A$1:$V$1,0)),"") ->  | D122: =SUMIFS(الشاشة!$K:$K,الشاشة!$E:$E,B122,الشاشة!$B:$B,"<"&(EOMONTH($S$1,-1)+1),الشاشة!$A:$A,$S$9)-SUMIFS(الشاشة!$M:$M,الشاشة!$E:$E,B122,الشاشة!$B:$B,"<"&(EOMONTH($S$1,-1)+1),الشاشة!$A:$A,$S$9) -> 0 | E122: =SUMIFS(الشاشة!$K:$K,الشاشة!$E:$E,'المراجعة بدلالة الشهر'!B122,الشاشة!$B:$B,">"&EOMONTH($S$1,-1),الشاشة!$B:$B,"<="&EOMONTH($S$1,0),الشاشة!$A:$A,$S$9) -> 0 | F122: =SUMIFS(الشاشة!$M:$M,الشاشة!$E:$E,'المراجعة بدلالة الشهر'!B122,الشاشة!$B:$B,">"&EOMONTH($S$1,-1),الشاشة!$B:$B,"<="&EOMONTH($S$1,0),الشاشة!$A:$A,$S$9) -> 0 | G122: 0 | I122: 120 | L122: =SUMIFS(الشاشة!$J:$J,الشاشة!$E:$E,'المراجعة بدلالة الشهر'!B122,الشاشة!$B:$B,"<"&(EOMONTH($S$1,-1)+1),الشاشة!$A:$A,$S$9)-SUMIFS(الشاشة!$L:$L,الشاشة!$E:$E,'المراجعة بدلالة الشهر'!B122,الشاشة!$B:$B,"<"&(EOMONTH($S$1,-1)+1),الشاشة!$A:$A,$S$9) -> 0 | M122: =SUMIFS(الشاشة!$J:$J,الشاشة!$E:$E,'المراجعة بدلالة الشهر'!B122,الشاشة!$B:$B,">="&(EOMONTH('المراجعة بدلالة الشهر'!$S$1,-1)+1),الشاشة!$B:$B,"<="&(EOMONTH('المراجعة بدلالة الشهر'!$S$1,0)),الشاشة!$A:$A,$S$9) -> 0 | N122: =SUMIFS(الشاشة!$L:$L,الشاشة!$E:$E,'المراجعة بدلالة الشهر'!B122,الشاشة!$B:$B,">="&(EOMONTH('المراجعة بدلالة الشهر'!$S$1,-1)+1),الشاشة!$B:$B,"<="&(EOMONTH('المراجعة بدلالة الشهر'!$S$1,0)),الشاشة!$A:$A,$S$9) -> 0 | O122: 0 | Q122: 0 | R122: 0
A123: =MAX($A$2:A122)+1 -> 121 | B123: =IFERROR(INDEX(الشاشة!$A:$U,MATCH(نوع_المخزن&$A123,الشاشة!$U:$U,0),MATCH('المراجعة بدلالة الشهر'!B$2,الشاشة!$A$1:$V$1,0)),"") ->  | C123: =IFERROR(INDEX(الشاشة!$A:$U,MATCH(نوع_المخزن&$A123,الشاشة!$U:$U,0),MATCH('المراجعة بدلالة الشهر'!C$2,الشاشة!$A$1:$V$1,0)),"") ->  | D123: =SUMIFS(الشاشة!$K:$K,الشاشة!$E:$E,B123,الشاشة!$B:$B,"<"&(EOMONTH($S$1,-1)+1),الشاشة!$A:$A,$S$9)-SUMIFS(الشاشة!$M:$M,الشاشة!$E:$E,B123,الشاشة!$B:$B,"<"&(EOMONTH($S$1,-1)+1),الشاشة!$A:$A,$S$9) -> 0 | E123: =SUMIFS(الشاشة!$K:$K,الشاشة!$E:$E,'المراجعة بدلالة الشهر'!B123,الشاشة!$B:$B,">"&EOMONTH($S$1,-1),الشاشة!$B:$B,"<="&EOMONTH($S$1,0),الشاشة!$A:$A,$S$9) -> 0 | F123: =SUMIFS(الشاشة!$M:$M,الشاشة!$E:$E,'المراجعة بدلالة الشهر'!B123,الشاشة!$B:$B,">"&EOMONTH($S$1,-1),الشاشة!$B:$B,"<="&EOMONTH($S$1,0),الشاشة!$A:$A,$S$9) -> 0 | G123: 0 | I123: 121 | L123: =SUMIFS(الشاشة!$J:$J,الشاشة!$E:$E,'المراجعة بدلالة الشهر'!B123,الشاشة!$B:$B,"<"&(EOMONTH($S$1,-1)+1),الشاشة!$A:$A,$S$9)-SUMIFS(الشاشة!$L:$L,الشاشة!$E:$E,'المراجعة بدلالة الشهر'!B123,الشاشة!$B:$B,"<"&(EOMONTH($S$1,-1)+1),الشاشة!$A:$A,$S$9) -> 0 | M123: =SUMIFS(الشاشة!$J:$J,الشاشة!$E:$E,'المراجعة بدلالة الشهر'!B123,الشاشة!$B:$B,">="&(EOMONTH('المراجعة بدلالة الشهر'!$S$1,-1)+1),الشاشة!$B:$B,"<="&(EOMONTH('المراجعة بدلالة الشهر'!$S$1,0)),الشاشة!$A:$A,$S$9) -> 0 | N123: =SUMIFS(الشاشة!$L:$L,الشاشة!$E:$E,'المراجعة بدلالة الشهر'!B123,الشاشة!$B:$B,">="&(EOMONTH('المراجعة بدلالة الشهر'!$S$1,-1)+1),الشاشة!$B:$B,"<="&(EOMONTH('المراجعة بدلالة الشهر'!$S$1,0)),الشاشة!$A:$A,$S$9) -> 0 | O123: 0 | Q123: 0 | R123: 0
A124: =MAX($A$2:A123)+1 -> 122 | B124: =IFERROR(INDEX(الشاشة!$A:$U,MATCH(نوع_المخزن&$A124,الشاشة!$U:$U,0),MATCH('المراجعة بدلالة الشهر'!B$2,الشاشة!$A$1:$V$1,0)),"") ->  | C124: =IFERROR(INDEX(الشاشة!$A:$U,MATCH(نوع_المخزن&$A124,الشاشة!$U:$U,0),MATCH('المراجعة بدلالة الشهر'!C$2,الشاشة!$A$1:$V$1,0)),"") ->  | D124: =SUMIFS(الشاشة!$K:$K,الشاشة!$E:$E,B124,الشاشة!$B:$B,"<"&(EOMONTH($S$1,-1)+1),الشاشة!$A:$A,$S$9)-SUMIFS(الشاشة!$M:$M,الشاشة!$E:$E,B124,الشاشة!$B:$B,"<"&(EOMONTH($S$1,-1)+1),الشاشة!$A:$A,$S$9) -> 0 | E124: =SUMIFS(الشاشة!$K:$K,الشاشة!$E:$E,'المراجعة بدلالة الشهر'!B124,الشاشة!$B:$B,">"&EOMONTH($S$1,-1),الشاشة!$B:$B,"<="&EOMONTH($S$1,0),الشاشة!$A:$A,$S$9) -> 0 | F124: =SUMIFS(الشاشة!$M:$M,الشاشة!$E:$E,'المراجعة بدلالة الشهر'!B124,الشاشة!$B:$B,">"&EOMONTH($S$1,-1),الشاشة!$B:$B,"<="&EOMONTH($S$1,0),الشاشة!$A:$A,$S$9) -> 0 | G124: 0 | I124: 122 | L124: =SUMIFS(الشاشة!$J:$J,الشاشة!$E:$E,'المراجعة بدلالة الشهر'!B124,الشاشة!$B:$B,"<"&(EOMONTH($S$1,-1)+1),الشاشة!$A:$A,$S$9)-SUMIFS(الشاشة!$L:$L,الشاشة!$E:$E,'المراجعة بدلالة الشهر'!B124,الشاشة!$B:$B,"<"&(EOMONTH($S$1,-1)+1),الشاشة!$A:$A,$S$9) -> 0 | M124: =SUMIFS(الشاشة!$J:$J,الشاشة!$E:$E,'المراجعة بدلالة الشهر'!B124,الشاشة!$B:$B,">="&(EOMONTH('المراجعة بدلالة الشهر'!$S$1,-1)+1),الشاشة!$B:$B,"<="&(EOMONTH('المراجعة بدلالة الشهر'!$S$1,0)),الشاشة!$A:$A,$S$9) -> 0 | N124: =SUMIFS(الشاشة!$L:$L,الشاشة!$E:$E,'المراجعة بدلالة الشهر'!B124,الشاشة!$B:$B,">="&(EOMONTH('المراجعة بدلالة الشهر'!$S$1,-1)+1),الشاشة!$B:$B,"<="&(EOMONTH('المراجعة بدلالة الشهر'!$S$1,0)),الشاشة!$A:$A,$S$9) -> 0 | O124: 0 | Q124: 0 | R124: 0
A125: =MAX($A$2:A124)+1 -> 123 | B125: =IFERROR(INDEX(الشاشة!$A:$U,MATCH(نوع_المخزن&$A125,الشاشة!$U:$U,0),MATCH('المراجعة بدلالة الشهر'!B$2,الشاشة!$A$1:$V$1,0)),"") ->  | C125: =IFERROR(INDEX(الشاشة!$A:$U,MATCH(نوع_المخزن&$A125,الشاشة!$U:$U,0),MATCH('المراجعة بدلالة الشهر'!C$2,الشاشة!$A$1:$V$1,0)),"") ->  | D125: =SUMIFS(الشاشة!$K:$K,الشاشة!$E:$E,B125,الشاشة!$B:$B,"<"&(EOMONTH($S$1,-1)+1),الشاشة!$A:$A,$S$9)-SUMIFS(الشاشة!$M:$M,الشاشة!$E:$E,B125,الشاشة!$B:$B,"<"&(EOMONTH($S$1,-1)+1),الشاشة!$A:$A,$S$9) -> 0 | E125: =SUMIFS(الشاشة!$K:$K,الشاشة!$E:$E,'المراجعة بدلالة الشهر'!B125,الشاشة!$B:$B,">"&EOMONTH($S$1,-1),الشاشة!$B:$B,"<="&EOMONTH($S$1,0),الشاشة!$A:$A,$S$9) -> 0 | F125: =SUMIFS(الشاشة!$M:$M,الشاشة!$E:$E,'المراجعة بدلالة الشهر'!B125,الشاشة!$B:$B,">"&EOMONTH($S$1,-1),الشاشة!$B:$B,"<="&EOMONTH($S$1,0),الشاشة!$A:$A,$S$9) -> 0 | G125: 0 | I125: 123 | L125: =SUMIFS(الشاشة!$J:$J,الشاشة!$E:$E,'المراجعة بدلالة الشهر'!B125,الشاشة!$B:$B,"<"&(EOMONTH($S$1,-1)+1),الشاشة!$A:$A,$S$9)-SUMIFS(الشاشة!$L:$L,الشاشة!$E:$E,'المراجعة بدلالة الشهر'!B125,الشاشة!$B:$B,"<"&(EOMONTH($S$1,-1)+1),الشاشة!$A:$A,$S$9) -> 0 | M125: =SUMIFS(الشاشة!$J:$J,الشاشة!$E:$E,'المراجعة بدلالة الشهر'!B125,الشاشة!$B:$B,">="&(EOMONTH('المراجعة بدلالة الشهر'!$S$1,-1)+1),الشاشة!$B:$B,"<="&(EOMONTH('المراجعة بدلالة الشهر'!$S$1,0)),الشاشة!$A:$A,$S$9) -> 0 | N125: =SUMIFS(الشاشة!$L:$L,الشاشة!$E:$E,'المراجعة بدلالة الشهر'!B125,الشاشة!$B:$B,">="&(EOMONTH('المراجعة بدلالة الشهر'!$S$1,-1)+1),الشاشة!$B:$B,"<="&(EOMONTH('المراجعة بدلالة الشهر'!$S$1,0)),الشاشة!$A:$A,$S$9) -> 0 | O125: 0 | Q125: 0 | R125: 0
A126: =MAX($A$2:A125)+1 -> 124 | B126: =IFERROR(INDEX(الشاشة!$A:$U,MATCH(نوع_المخزن&$A126,الشاشة!$U:$U,0),MATCH('المراجعة بدلالة الشهر'!B$2,الشاشة!$A$1:$V$1,0)),"") ->  | C126: =IFERROR(INDEX(الشاشة!$A:$U,MATCH(نوع_المخزن&$A126,الشاشة!$U:$U,0),MATCH('المراجعة بدلالة الشهر'!C$2,الشاشة!$A$1:$V$1,0)),"") ->  | D126: =SUMIFS(الشاشة!$K:$K,الشاشة!$E:$E,B126,الشاشة!$B:$B,"<"&(EOMONTH($S$1,-1)+1),الشاشة!$A:$A,$S$9)-SUMIFS(الشاشة!$M:$M,الشاشة!$E:$E,B126,الشاشة!$B:$B,"<"&(EOMONTH($S$1,-1)+1),الشاشة!$A:$A,$S$9) -> 0 | E126: =SUMIFS(الشاشة!$K:$K,الشاشة!$E:$E,'المراجعة بدلالة الشهر'!B126,الشاشة!$B:$B,">"&EOMONTH($S$1,-1),الشاشة!$B:$B,"<="&EOMONTH($S$1,0),الشاشة!$A:$A,$S$9) -> 0 | F126: =SUMIFS(الشاشة!$M:$M,الشاشة!$E:$E,'المراجعة بدلالة الشهر'!B126,الشاشة!$B:$B,">"&EOMONTH($S$1,-1),الشاشة!$B:$B,"<="&EOMONTH($S$1,0),الشاشة!$A:$A,$S$9) -> 0 | G126: 0 | I126: 124 | L126: =SUMIFS(الشاشة!$J:$J,الشاشة!$E:$E,'المراجعة بدلالة الشهر'!B126,الشاشة!$B:$B,"<"&(EOMONTH($S$1,-1)+1),الشاشة!$A:$A,$S$9)-SUMIFS(الشاشة!$L:$L,الشاشة!$E:$E,'المراجعة بدلالة الشهر'!B126,الشاشة!$B:$B,"<"&(EOMONTH($S$1,-1)+1),الشاشة!$A:$A,$S$9) -> 0 | M126: =SUMIFS(الشاشة!$J:$J,الشاشة!$E:$E,'المراجعة بدلالة الشهر'!B126,الشاشة!$B:$B,">="&(EOMONTH('المراجعة بدلالة الشهر'!$S$1,-1)+1),الشاشة!$B:$B,"<="&(EOMONTH('المراجعة بدلالة الشهر'!$S$1,0)),الشاشة!$A:$A,$S$9) -> 0 | N126: =SUMIFS(الشاشة!$L:$L,الشاشة!$E:$E,'المراجعة بدلالة الشهر'!B126,الشاشة!$B:$B,">="&(EOMONTH('المراجعة بدلالة الشهر'!$S$1,-1)+1),الشاشة!$B:$B,"<="&(EOMONTH('المراجعة بدلالة الشهر'!$S$1,0)),الشاشة!$A:$A,$S$9) -> 0 | O126: 0 | Q126: 0 | R126: 0
A127: =MAX($A$2:A126)+1 -> 125 | B127: =IFERROR(INDEX(الشاشة!$A:$U,MATCH(نوع_المخزن&$A127,الشاشة!$U:$U,0),MATCH('المراجعة بدلالة الشهر'!B$2,الشاشة!$A$1:$V$1,0)),"") ->  | C127: =IFERROR(INDEX(الشاشة!$A:$U,MATCH(نوع_المخزن&$A127,الشاشة!$U:$U,0),MATCH('المراجعة بدلالة الشهر'!C$2,الشاشة!$A$1:$V$1,0)),"") ->  | D127: =SUMIFS(الشاشة!$K:$K,الشاشة!$E:$E,B127,الشاشة!$B:$B,"<"&(EOMONTH($S$1,-1)+1),الشاشة!$A:$A,$S$9)-SUMIFS(الشاشة!$M:$M,الشاشة!$E:$E,B127,الشاشة!$B:$B,"<"&(EOMONTH($S$1,-1)+1),الشاشة!$A:$A,$S$9) -> 0 | E127: =SUMIFS(الشاشة!$K:$K,الشاشة!$E:$E,'المراجعة بدلالة الشهر'!B127,الشاشة!$B:$B,">"&EOMONTH($S$1,-1),الشاشة!$B:$B,"<="&EOMONTH($S$1,0),الشاشة!$A:$A,$S$9) -> 0 | F127: =SUMIFS(الشاشة!$M:$M,الشاشة!$E:$E,'المراجعة بدلالة الشهر'!B127,الشاشة!$B:$B,">"&EOMONTH($S$1,-1),الشاشة!$B:$B,"<="&EOMONTH($S$1,0),الشاشة!$A:$A,$S$9) -> 0 | G127: 0 | I127: 125 | L127: =SUMIFS(الشاشة!$J:$J,الشاشة!$E:$E,'المراجعة بدلالة الشهر'!B127,الشاشة!$B:$B,"<"&(EOMONTH($S$1,-1)+1),الشاشة!$A:$A,$S$9)-SUMIFS(الشاشة!$L:$L,الشاشة!$E:$E,'المراجعة بدلالة الشهر'!B127,الشاشة!$B:$B,"<"&(EOMONTH($S$1,-1)+1),الشاشة!$A:$A,$S$9) -> 0 | M127: =SUMIFS(الشاشة!$J:$J,الشاشة!$E:$E,'المراجعة بدلالة الشهر'!B127,الشاشة!$B:$B,">="&(EOMONTH('المراجعة بدلالة الشهر'!$S$1,-1)+1),الشاشة!$B:$B,"<="&(EOMONTH('المراجعة بدلالة الشهر'!$S$1,0)),الشاشة!$A:$A,$S$9) -> 0 | N127: =SUMIFS(الشاشة!$L:$L,الشاشة!$E:$E,'المراجعة بدلالة الشهر'!B127,الشاشة!$B:$B,">="&(EOMONTH('المراجعة بدلالة الشهر'!$S$1,-1)+1),الشاشة!$B:$B,"<="&(EOMONTH('المراجعة بدلالة الشهر'!$S$1,0)),الشاشة!$A:$A,$S$9) -> 0 | O127: 0 | Q127: 0 | R127: 0
A128: =MAX($A$2:A127)+1 -> 126 | B128: =IFERROR(INDEX(الشاشة!$A:$U,MATCH(نوع_المخزن&$A128,الشاشة!$U:$U,0),MATCH('المراجعة بدلالة الشهر'!B$2,الشاشة!$A$1:$V$1,0)),"") ->  | C128: =IFERROR(INDEX(الشاشة!$A:$U,MATCH(نوع_المخزن&$A128,الشاشة!$U:$U,0),MATCH('المراجعة بدلالة الشهر'!C$2,الشاشة!$A$1:$V$1,0)),"") ->  | D128: =SUMIFS(الشاشة!$K:$K,الشاشة!$E:$E,B128,الشاشة!$B:$B,"<"&(EOMONTH($S$1,-1)+1),الشاشة!$A:$A,$S$9)-SUMIFS(الشاشة!$M:$M,الشاشة!$E:$E,B128,الشاشة!$B:$B,"<"&(EOMONTH($S$1,-1)+1),الشاشة!$A:$A,$S$9) -> 0 | E128: =SUMIFS(الشاشة!$K:$K,الشاشة!$E:$E,'المراجعة بدلالة الشهر'!B128,الشاشة!$B:$B,">"&EOMONTH($S$1,-1),الشاشة!$B:$B,"<="&EOMONTH($S$1,0),الشاشة!$A:$A,$S$9) -> 0 | F128: =SUMIFS(الشاشة!$M:$M,الشاشة!$E:$E,'المراجعة بدلالة الشهر'!B128,الشاشة!$B:$B,">"&EOMONTH($S$1,-1),الشاشة!$B:$B,"<="&EOMONTH($S$1,0),الشاشة!$A:$A,$S$9) -> 0 | G128: 0 | I128: 126 | L128: =SUMIFS(الشاشة!$J:$J,الشاشة!$E:$E,'المراجعة بدلالة الشهر'!B128,الشاشة!$B:$B,"<"&(EOMONTH($S$1,-1)+1),الشاشة!$A:$A,$S$9)-SUMIFS(الشاشة!$L:$L,الشاشة!$E:$E,'المراجعة بدلالة الشهر'!B128,الشاشة!$B:$B,"<"&(EOMONTH($S$1,-1)+1),الشاشة!$A:$A,$S$9) -> 0 | M128: =SUMIFS(الشاشة!$J:$J,الشاشة!$E:$E,'المراجعة بدلالة الشهر'!B128,الشاشة!$B:$B,">="&(EOMONTH('المراجعة بدلالة الشهر'!$S$1,-1)+1),الشاشة!$B:$B,"<="&(EOMONTH('المراجعة بدلالة الشهر'!$S$1,0)),الشاشة!$A:$A,$S$9) -> 0 | N128: =SUMIFS(الشاشة!$L:$L,الشاشة!$E:$E,'المراجعة بدلالة الشهر'!B128,الشاشة!$B:$B,">="&(EOMONTH('المراجعة بدلالة الشهر'!$S$1,-1)+1),الشاشة!$B:$B,"<="&(EOMONTH('المراجعة بدلالة الشهر'!$S$1,0)),الشاشة!$A:$A,$S$9) -> 0 | O128: 0 | Q128: 0 | R128: 0
A129: =MAX($A$2:A128)+1 -> 127 | B129: =IFERROR(INDEX(الشاشة!$A:$U,MATCH(نوع_المخزن&$A129,الشاشة!$U:$U,0),MATCH('المراجعة بدلالة الشهر'!B$2,الشاشة!$A$1:$V$1,0)),"") ->  | C129: =IFERROR(INDEX(الشاشة!$A:$U,MATCH(نوع_المخزن&$A129,الشاشة!$U:$U,0),MATCH('المراجعة بدلالة الشهر'!C$2,الشاشة!$A$1:$V$1,0)),"") ->  | D129: =SUMIFS(الشاشة!$K:$K,الشاشة!$E:$E,B129,الشاشة!$B:$B,"<"&(EOMONTH($S$1,-1)+1),الشاشة!$A:$A,$S$9)-SUMIFS(الشاشة!$M:$M,الشاشة!$E:$E,B129,الشاشة!$B:$B,"<"&(EOMONTH($S$1,-1)+1),الشاشة!$A:$A,$S$9) -> 0 | E129: =SUMIFS(الشاشة!$K:$K,الشاشة!$E:$E,'المراجعة بدلالة الشهر'!B129,الشاشة!$B:$B,">"&EOMONTH($S$1,-1),الشاشة!$B:$B,"<="&EOMONTH($S$1,0),الشاشة!$A:$A,$S$9) -> 0 | F129: =SUMIFS(الشاشة!$M:$M,الشاشة!$E:$E,'المراجعة بدلالة الشهر'!B129,الشاشة!$B:$B,">"&EOMONTH($S$1,-1),الشاشة!$B:$B,"<="&EOMONTH($S$1,0),الشاشة!$A:$A,$S$9) -> 0 | G129: 0 | I129: 127 | L129: =SUMIFS(الشاشة!$J:$J,الشاشة!$E:$E,'المراجعة بدلالة الشهر'!B129,الشاشة!$B:$B,"<"&(EOMONTH($S$1,-1)+1),الشاشة!$A:$A,$S$9)-SUMIFS(الشاشة!$L:$L,الشاشة!$E:$E,'المراجعة بدلالة الشهر'!B129,الشاشة!$B:$B,"<"&(EOMONTH($S$1,-1)+1),الشاشة!$A:$A,$S$9) -> 0 | M129: =SUMIFS(الشاشة!$J:$J,الشاشة!$E:$E,'المراجعة بدلالة الشهر'!B129,الشاشة!$B:$B,">="&(EOMONTH('المراجعة بدلالة الشهر'!$S$1,-1)+1),الشاشة!$B:$B,"<="&(EOMONTH('المراجعة بدلالة الشهر'!$S$1,0)),الشاشة!$A:$A,$S$9) -> 0 | N129: =SUMIFS(الشاشة!$L:$L,الشاشة!$E:$E,'المراجعة بدلالة الشهر'!B129,الشاشة!$B:$B,">="&(EOMONTH('المراجعة بدلالة الشهر'!$S$1,-1)+1),الشاشة!$B:$B,"<="&(EOMONTH('المراجعة بدلالة الشهر'!$S$1,0)),الشاشة!$A:$A,$S$9) -> 0 | O129: 0 | Q129: 0 | R129: 0
A130: =MAX($A$2:A129)+1 -> 128 | B130: =IFERROR(INDEX(الشاشة!$A:$U,MATCH(نوع_المخزن&$A130,الشاشة!$U:$U,0),MATCH('المراجعة بدلالة الشهر'!B$2,الشاشة!$A$1:$V$1,0)),"") ->  | C130: =IFERROR(INDEX(الشاشة!$A:$U,MATCH(نوع_المخزن&$A130,الشاشة!$U:$U,0),MATCH('المراجعة بدلالة الشهر'!C$2,الشاشة!$A$1:$V$1,0)),"") ->  | D130: =SUMIFS(الشاشة!$K:$K,الشاشة!$E:$E,B130,الشاشة!$B:$B,"<"&(EOMONTH($S$1,-1)+1),الشاشة!$A:$A,$S$9)-SUMIFS(الشاشة!$M:$M,الشاشة!$E:$E,B130,الشاشة!$B:$B,"<"&(EOMONTH($S$1,-1)+1),الشاشة!$A:$A,$S$9) -> 0 | E130: =SUMIFS(الشاشة!$K:$K,الشاشة!$E:$E,'المراجعة بدلالة الشهر'!B130,الشاشة!$B:$B,">"&EOMONTH($S$1,-1),الشاشة!$B:$B,"<="&EOMONTH($S$1,0),الشاشة!$A:$A,$S$9) -> 0 | F130: =SUMIFS(الشاشة!$M:$M,الشاشة!$E:$E,'المراجعة بدلالة الشهر'!B130,الشاشة!$B:$B,">"&EOMONTH($S$1,-1),الشاشة!$B:$B,"<="&EOMONTH($S$1,0),الشاشة!$A:$A,$S$9) -> 0 | G130: 0 | I130: 128 | L130: =SUMIFS(الشاشة!$J:$J,الشاشة!$E:$E,'المراجعة بدلالة الشهر'!B130,الشاشة!$B:$B,"<"&(EOMONTH($S$1,-1)+1),الشاشة!$A:$A,$S$9)-SUMIFS(الشاشة!$L:$L,الشاشة!$E:$E,'المراجعة بدلالة الشهر'!B130,الشاشة!$B:$B,"<"&(EOMONTH($S$1,-1)+1),الشاشة!$A:$A,$S$9) -> 0 | M130: =SUMIFS(الشاشة!$J:$J,الشاشة!$E:$E,'المراجعة بدلالة الشهر'!B130,الشاشة!$B:$B,">="&(EOMONTH('المراجعة بدلالة الشهر'!$S$1,-1)+1),الشاشة!$B:$B,"<="&(EOMONTH('المراجعة بدلالة الشهر'!$S$1,0)),الشاشة!$A:$A,$S$9) -> 0 | N130: =SUMIFS(الشاشة!$L:$L,الشاشة!$E:$E,'المراجعة بدلالة الشهر'!B130,الشاشة!$B:$B,">="&(EOMONTH('المراجعة بدلالة الشهر'!$S$1,-1)+1),الشاشة!$B:$B,"<="&(EOMONTH('المراجعة بدلالة الشهر'!$S$1,0)),الشاشة!$A:$A,$S$9) -> 0 | O130: 0 | Q130: 0 | R130: 0
A131: =MAX($A$2:A130)+1 -> 129 | B131: =IFERROR(INDEX(الشاشة!$A:$U,MATCH(نوع_المخزن&$A131,الشاشة!$U:$U,0),MATCH('المراجعة بدلالة الشهر'!B$2,الشاشة!$A$1:$V$1,0)),"") ->  | C131: =IFERROR(INDEX(الشاشة!$A:$U,MATCH(نوع_المخزن&$A131,الشاشة!$U:$U,0),MATCH('المراجعة بدلالة الشهر'!C$2,الشاشة!$A$1:$V$1,0)),"") ->  | D131: =SUMIFS(الشاشة!$K:$K,الشاشة!$E:$E,B131,الشاشة!$B:$B,"<"&(EOMONTH($S$1,-1)+1),الشاشة!$A:$A,$S$9)-SUMIFS(الشاشة!$M:$M,الشاشة!$E:$E,B131,الشاشة!$B:$B,"<"&(EOMONTH($S$1,-1)+1),الشاشة!$A:$A,$S$9) -> 0 | E131: =SUMIFS(الشاشة!$K:$K,الشاشة!$E:$E,'المراجعة بدلالة الشهر'!B131,الشاشة!$B:$B,">"&EOMONTH($S$1,-1),الشاشة!$B:$B,"<="&EOMONTH($S$1,0),الشاشة!$A:$A,$S$9) -> 0 | F131: =SUMIFS(الشاشة!$M:$M,الشاشة!$E:$E,'المراجعة بدلالة الشهر'!B131,الشاشة!$B:$B,">"&EOMONTH($S$1,-1),الشاشة!$B:$B,"<="&EOMONTH($S$1,0),الشاشة!$A:$A,$S$9) -> 0 | G131: 0 | I131: 129 | L131: =SUMIFS(الشاشة!$J:$J,الشاشة!$E:$E,'المراجعة بدلالة الشهر'!B131,الشاشة!$B:$B,"<"&(EOMONTH($S$1,-1)+1),الشاشة!$A:$A,$S$9)-SUMIFS(الشاشة!$L:$L,الشاشة!$E:$E,'المراجعة بدلالة الشهر'!B131,الشاشة!$B:$B,"<"&(EOMONTH($S$1,-1)+1),الشاشة!$A:$A,$S$9) -> 0 | M131: =SUMIFS(الشاشة!$J:$J,الشاشة!$E:$E,'المراجعة بدلالة الشهر'!B131,الشاشة!$B:$B,">="&(EOMONTH('المراجعة بدلالة الشهر'!$S$1,-1)+1),الشاشة!$B:$B,"<="&(EOMONTH('المراجعة بدلالة الشهر'!$S$1,0)),الشاشة!$A:$A,$S$9) -> 0 | N131: =SUMIFS(الشاشة!$L:$L,الشاشة!$E:$E,'المراجعة بدلالة الشهر'!B131,الشاشة!$B:$B,">="&(EOMONTH('المراجعة بدلالة الشهر'!$S$1,-1)+1),الشاشة!$B:$B,"<="&(EOMONTH('المراجعة بدلالة الشهر'!$S$1,0)),الشاشة!$A:$A,$S$9) -> 0 | O131: 0 | Q131: =O131-P131 -> 0 | R131: =IFERROR(ROUND(G131/((L131+O131)/2),2),0) -> 0
A132: =MAX($A$2:A131)+1 -> 130 | B132: =IFERROR(INDEX(الشاشة!$A:$U,MATCH(نوع_المخزن&$A132,الشاشة!$U:$U,0),MATCH('المراجعة بدلالة الشهر'!B$2,الشاشة!$A$1:$V$1,0)),"") ->  | C132: =IFERROR(INDEX(الشاشة!$A:$U,MATCH(نوع_المخزن&$A132,الشاشة!$U:$U,0),MATCH('المراجعة بدلالة الشهر'!C$2,الشاشة!$A$1:$V$1,0)),"") ->  | D132: =SUMIFS(الشاشة!$K:$K,الشاشة!$E:$E,B132,الشاشة!$B:$B,"<"&(EOMONTH($S$1,-1)+1),الشاشة!$A:$A,$S$9)-SUMIFS(الشاشة!$M:$M,الشاشة!$E:$E,B132,الشاشة!$B:$B,"<"&(EOMONTH($S$1,-1)+1),الشاشة!$A:$A,$S$9) -> 0 | E132: =SUMIFS(الشاشة!$K:$K,الشاشة!$E:$E,'المراجعة بدلالة الشهر'!B132,الشاشة!$B:$B,">"&EOMONTH($S$1,-1),الشاشة!$B:$B,"<="&EOMONTH($S$1,0),الشاشة!$A:$A,$S$9) -> 0 | F132: =SUMIFS(الشاشة!$M:$M,الشاشة!$E:$E,'المراجعة بدلالة الشهر'!B132,الشاشة!$B:$B,">"&EOMONTH($S$1,-1),الشاشة!$B:$B,"<="&EOMONTH($S$1,0),الشاشة!$A:$A,$S$9) -> 0 | G132: =ROUND(D132+E132-F132,2) -> 0 | I132: =A132 -> 130 | J132: =B132 ->  | K132: =C132 ->  | L132: =SUMIFS(الشاشة!$J:$J,الشاشة!$E:$E,'المراجعة بدلالة الشهر'!B132,الشاشة!$B:$B,"<"&(EOMONTH($S$1,-1)+1),الشاشة!$A:$A,$S$9)-SUMIFS(الشاشة!$L:$L,الشاشة!$E:$E,'المراجعة بدلالة الشهر'!B132,الشاشة!$B:$B,"<"&(EOMONTH($S$1,-1)+1),الشاشة!$A:$A,$S$9) -> 0 | M132: =SUMIFS(الشاشة!$J:$J,الشاشة!$E:$E,'المراجعة بدلالة الشهر'!B132,الشاشة!$B:$B,">="&(EOMONTH('المراجعة بدلالة الشهر'!$S$1,-1)+1),الشاشة!$B:$B,"<="&(EOMONTH('المراجعة بدلالة الشهر'!$S$1,0)),الشاشة!$A:$A,$S$9) -> 0 | N132: =SUMIFS(الشاشة!$L:$L,الشاشة!$E:$E,'المراجعة بدلالة الشهر'!B132,الشاشة!$B:$B,">="&(EOMONTH('المراجعة بدلالة الشهر'!$S$1,-1)+1),الشاشة!$B:$B,"<="&(EOMONTH('المراجعة بدلالة الشهر'!$S$1,0)),الشاشة!$A:$A,$S$9) -> 0 | O132: =L132+M132-N132 -> 0 | Q132: 0 | R132: 0
A133: =MAX($A$2:A132)+1 -> 131 | B133: =IFERROR(INDEX(الشاشة!$A:$U,MATCH(نوع_المخزن&$A133,الشاشة!$U:$U,0),MATCH('المراجعة بدلالة الشهر'!B$2,الشاشة!$A$1:$V$1,0)),"") ->  | C133: =IFERROR(INDEX(الشاشة!$A:$U,MATCH(نوع_المخزن&$A133,الشاشة!$U:$U,0),MATCH('المراجعة بدلالة الشهر'!C$2,الشاشة!$A$1:$V$1,0)),"") ->  | D133: =SUMIFS(الشاشة!$K:$K,الشاشة!$E:$E,B133,الشاشة!$B:$B,"<"&(EOMONTH($S$1,-1)+1),الشاشة!$A:$A,$S$9)-SUMIFS(الشاشة!$M:$M,الشاشة!$E:$E,B133,الشاشة!$B:$B,"<"&(EOMONTH($S$1,-1)+1),الشاشة!$A:$A,$S$9) -> 0 | E133: =SUMIFS(الشاشة!$K:$K,الشاشة!$E:$E,'المراجعة بدلالة الشهر'!B133,الشاشة!$B:$B,">"&EOMONTH($S$1,-1),الشاشة!$B:$B,"<="&EOMONTH($S$1,0),الشاشة!$A:$A,$S$9) -> 0 | F133: =SUMIFS(الشاشة!$M:$M,الشاشة!$E:$E,'المراجعة بدلالة الشهر'!B133,الشاشة!$B:$B,">"&EOMONTH($S$1,-1),الشاشة!$B:$B,"<="&EOMONTH($S$1,0),الشاشة!$A:$A,$S$9) -> 0 | G133: 0 | I133: 131 | L133: =SUMIFS(الشاشة!$J:$J,الشاشة!$E:$E,'المراجعة بدلالة الشهر'!B133,الشاشة!$B:$B,"<"&(EOMONTH($S$1,-1)+1),الشاشة!$A:$A,$S$9)-SUMIFS(الشاشة!$L:$L,الشاشة!$E:$E,'المراجعة بدلالة الشهر'!B133,الشاشة!$B:$B,"<"&(EOMONTH($S$1,-1)+1),الشاشة!$A:$A,$S$9) -> 0 | M133: =SUMIFS(الشاشة!$J:$J,الشاشة!$E:$E,'المراجعة بدلالة الشهر'!B133,الشاشة!$B:$B,">="&(EOMONTH('المراجعة بدلالة الشهر'!$S$1,-1)+1),الشاشة!$B:$B,"<="&(EOMONTH('المراجعة بدلالة الشهر'!$S$1,0)),الشاشة!$A:$A,$S$9) -> 0 | N133: =SUMIFS(الشاشة!$L:$L,الشاشة!$E:$E,'المراجعة بدلالة الشهر'!B133,الشاشة!$B:$B,">="&(EOMONTH('المراجعة بدلالة الشهر'!$S$1,-1)+1),الشاشة!$B:$B,"<="&(EOMONTH('المراجعة بدلالة الشهر'!$S$1,0)),الشاشة!$A:$A,$S$9) -> 0 | O133: 0 | Q133: 0 | R133: 0
A134: =MAX($A$2:A133)+1 -> 132 | B134: =IFERROR(INDEX(الشاشة!$A:$U,MATCH(نوع_المخزن&$A134,الشاشة!$U:$U,0),MATCH('المراجعة بدلالة الشهر'!B$2,الشاشة!$A$1:$V$1,0)),"") ->  | C134: =IFERROR(INDEX(الشاشة!$A:$U,MATCH(نوع_المخزن&$A134,الشاشة!$U:$U,0),MATCH('المراجعة بدلالة الشهر'!C$2,الشاشة!$A$1:$V$1,0)),"") ->  | D134: =SUMIFS(الشاشة!$K:$K,الشاشة!$E:$E,B134,الشاشة!$B:$B,"<"&(EOMONTH($S$1,-1)+1),الشاشة!$A:$A,$S$9)-SUMIFS(الشاشة!$M:$M,الشاشة!$E:$E,B134,الشاشة!$B:$B,"<"&(EOMONTH($S$1,-1)+1),الشاشة!$A:$A,$S$9) -> 0 | E134: =SUMIFS(الشاشة!$K:$K,الشاشة!$E:$E,'المراجعة بدلالة الشهر'!B134,الشاشة!$B:$B,">"&EOMONTH($S$1,-1),الشاشة!$B:$B,"<="&EOMONTH($S$1,0),الشاشة!$A:$A,$S$9) -> 0 | F134: =SUMIFS(الشاشة!$M:$M,الشاشة!$E:$E,'المراجعة بدلالة الشهر'!B134,الشاشة!$B:$B,">"&EOMONTH($S$1,-1),الشاشة!$B:$B,"<="&EOMONTH($S$1,0),الشاشة!$A:$A,$S$9) -> 0 | G134: 0 | I134: 132 | L134: =SUMIFS(الشاشة!$J:$J,الشاشة!$E:$E,'المراجعة بدلالة الشهر'!B134,الشاشة!$B:$B,"<"&(EOMONTH($S$1,-1)+1),الشاشة!$A:$A,$S$9)-SUMIFS(الشاشة!$L:$L,الشاشة!$E:$E,'المراجعة بدلالة الشهر'!B134,الشاشة!$B:$B,"<"&(EOMONTH($S$1,-1)+1),الشاشة!$A:$A,$S$9) -> 0 | M134: =SUMIFS(الشاشة!$J:$J,الشاشة!$E:$E,'المراجعة بدلالة الشهر'!B134,الشاشة!$B:$B,">="&(EOMONTH('المراجعة بدلالة الشهر'!$S$1,-1)+1),الشاشة!$B:$B,"<="&(EOMONTH('المراجعة بدلالة الشهر'!$S$1,0)),الشاشة!$A:$A,$S$9) -> 0 | N134: =SUMIFS(الشاشة!$L:$L,الشاشة!$E:$E,'المراجعة بدلالة الشهر'!B134,الشاشة!$B:$B,">="&(EOMONTH('المراجعة بدلالة الشهر'!$S$1,-1)+1),الشاشة!$B:$B,"<="&(EOMONTH('المراجعة بدلالة الشهر'!$S$1,0)),الشاشة!$A:$A,$S$9) -> 0 | O134: 0 | Q134: 0 | R134: 0
A135: =MAX($A$2:A134)+1 -> 133 | B135: =IFERROR(INDEX(الشاشة!$A:$U,MATCH(نوع_المخزن&$A135,الشاشة!$U:$U,0),MATCH('المراجعة بدلالة الشهر'!B$2,الشاشة!$A$1:$V$1,0)),"") ->  | C135: =IFERROR(INDEX(الشاشة!$A:$U,MATCH(نوع_المخزن&$A135,الشاشة!$U:$U,0),MATCH('المراجعة بدلالة الشهر'!C$2,الشاشة!$A$1:$V$1,0)),"") ->  | D135: =SUMIFS(الشاشة!$K:$K,الشاشة!$E:$E,B135,الشاشة!$B:$B,"<"&(EOMONTH($S$1,-1)+1),الشاشة!$A:$A,$S$9)-SUMIFS(الشاشة!$M:$M,الشاشة!$E:$E,B135,الشاشة!$B:$B,"<"&(EOMONTH($S$1,-1)+1),الشاشة!$A:$A,$S$9) -> 0 | E135: =SUMIFS(الشاشة!$K:$K,الشاشة!$E:$E,'المراجعة بدلالة الشهر'!B135,الشاشة!$B:$B,">"&EOMONTH($S$1,-1),الشاشة!$B:$B,"<="&EOMONTH($S$1,0),الشاشة!$A:$A,$S$9) -> 0 | F135: =SUMIFS(الشاشة!$M:$M,الشاشة!$E:$E,'المراجعة بدلالة الشهر'!B135,الشاشة!$B:$B,">"&EOMONTH($S$1,-1),الشاشة!$B:$B,"<="&EOMONTH($S$1,0),الشاشة!$A:$A,$S$9) -> 0 | G135: 0 | I135: 133 | L135: =SUMIFS(الشاشة!$J:$J,الشاشة!$E:$E,'المراجعة بدلالة الشهر'!B135,الشاشة!$B:$B,"<"&(EOMONTH($S$1,-1)+1),الشاشة!$A:$A,$S$9)-SUMIFS(الشاشة!$L:$L,الشاشة!$E:$E,'المراجعة بدلالة الشهر'!B135,الشاشة!$B:$B,"<"&(EOMONTH($S$1,-1)+1),الشاشة!$A:$A,$S$9) -> 0 | M135: =SUMIFS(الشاشة!$J:$J,الشاشة!$E:$E,'المراجعة بدلالة الشهر'!B135,الشاشة!$B:$B,">="&(EOMONTH('المراجعة بدلالة الشهر'!$S$1,-1)+1),الشاشة!$B:$B,"<="&(EOMONTH('المراجعة بدلالة الشهر'!$S$1,0)),الشاشة!$A:$A,$S$9) -> 0 | N135: =SUMIFS(الشاشة!$L:$L,الشاشة!$E:$E,'المراجعة بدلالة الشهر'!B135,الشاشة!$B:$B,">="&(EOMONTH('المراجعة بدلالة الشهر'!$S$1,-1)+1),الشاشة!$B:$B,"<="&(EOMONTH('المراجعة بدلالة الشهر'!$S$1,0)),الشاشة!$A:$A,$S$9) -> 0 | O135: 0 | Q135: 0 | R135: 0
A136: =MAX($A$2:A135)+1 -> 134 | B136: =IFERROR(INDEX(الشاشة!$A:$U,MATCH(نوع_المخزن&$A136,الشاشة!$U:$U,0),MATCH('المراجعة بدلالة الشهر'!B$2,الشاشة!$A$1:$V$1,0)),"") ->  | C136: =IFERROR(INDEX(الشاشة!$A:$U,MATCH(نوع_المخزن&$A136,الشاشة!$U:$U,0),MATCH('المراجعة بدلالة الشهر'!C$2,الشاشة!$A$1:$V$1,0)),"") ->  | D136: =SUMIFS(الشاشة!$K:$K,الشاشة!$E:$E,B136,الشاشة!$B:$B,"<"&(EOMONTH($S$1,-1)+1),الشاشة!$A:$A,$S$9)-SUMIFS(الشاشة!$M:$M,الشاشة!$E:$E,B136,الشاشة!$B:$B,"<"&(EOMONTH($S$1,-1)+1),الشاشة!$A:$A,$S$9) -> 0 | E136: =SUMIFS(الشاشة!$K:$K,الشاشة!$E:$E,'المراجعة بدلالة الشهر'!B136,الشاشة!$B:$B,">"&EOMONTH($S$1,-1),الشاشة!$B:$B,"<="&EOMONTH($S$1,0),الشاشة!$A:$A,$S$9) -> 0 | F136: =SUMIFS(الشاشة!$M:$M,الشاشة!$E:$E,'المراجعة بدلالة الشهر'!B136,الشاشة!$B:$B,">"&EOMONTH($S$1,-1),الشاشة!$B:$B,"<="&EOMONTH($S$1,0),الشاشة!$A:$A,$S$9) -> 0 | G136: 0 | I136: 134 | L136: =SUMIFS(الشاشة!$J:$J,الشاشة!$E:$E,'المراجعة بدلالة الشهر'!B136,الشاشة!$B:$B,"<"&(EOMONTH($S$1,-1)+1),الشاشة!$A:$A,$S$9)-SUMIFS(الشاشة!$L:$L,الشاشة!$E:$E,'المراجعة بدلالة الشهر'!B136,الشاشة!$B:$B,"<"&(EOMONTH($S$1,-1)+1),الشاشة!$A:$A,$S$9) -> 0 | M136: =SUMIFS(الشاشة!$J:$J,الشاشة!$E:$E,'المراجعة بدلالة الشهر'!B136,الشاشة!$B:$B,">="&(EOMONTH('المراجعة بدلالة الشهر'!$S$1,-1)+1),الشاشة!$B:$B,"<="&(EOMONTH('المراجعة بدلالة الشهر'!$S$1,0)),الشاشة!$A:$A,$S$9) -> 0 | N136: =SUMIFS(الشاشة!$L:$L,الشاشة!$E:$E,'المراجعة بدلالة الشهر'!B136,الشاشة!$B:$B,">="&(EOMONTH('المراجعة بدلالة الشهر'!$S$1,-1)+1),الشاشة!$B:$B,"<="&(EOMONTH('المراجعة بدلالة الشهر'!$S$1,0)),الشاشة!$A:$A,$S$9) -> 0 | O136: 0 | Q136: 0 | R136: 0
A137: =MAX($A$2:A136)+1 -> 135 | B137: =IFERROR(INDEX(الشاشة!$A:$U,MATCH(نوع_المخزن&$A137,الشاشة!$U:$U,0),MATCH('المراجعة بدلالة الشهر'!B$2,الشاشة!$A$1:$V$1,0)),"") ->  | C137: =IFERROR(INDEX(الشاشة!$A:$U,MATCH(نوع_المخزن&$A137,الشاشة!$U:$U,0),MATCH('المراجعة بدلالة الشهر'!C$2,الشاشة!$A$1:$V$1,0)),"") ->  | D137: =SUMIFS(الشاشة!$K:$K,الشاشة!$E:$E,B137,الشاشة!$B:$B,"<"&(EOMONTH($S$1,-1)+1),الشاشة!$A:$A,$S$9)-SUMIFS(الشاشة!$M:$M,الشاشة!$E:$E,B137,الشاشة!$B:$B,"<"&(EOMONTH($S$1,-1)+1),الشاشة!$A:$A,$S$9) -> 0 | E137: =SUMIFS(الشاشة!$K:$K,الشاشة!$E:$E,'المراجعة بدلالة الشهر'!B137,الشاشة!$B:$B,">"&EOMONTH($S$1,-1),الشاشة!$B:$B,"<="&EOMONTH($S$1,0),الشاشة!$A:$A,$S$9) -> 0 | F137: =SUMIFS(الشاشة!$M:$M,الشاشة!$E:$E,'المراجعة بدلالة الشهر'!B137,الشاشة!$B:$B,">"&EOMONTH($S$1,-1),الشاشة!$B:$B,"<="&EOMONTH($S$1,0),الشاشة!$A:$A,$S$9) -> 0 | G137: 0 | I137: 135 | L137: =SUMIFS(الشاشة!$J:$J,الشاشة!$E:$E,'المراجعة بدلالة الشهر'!B137,الشاشة!$B:$B,"<"&(EOMONTH($S$1,-1)+1),الشاشة!$A:$A,$S$9)-SUMIFS(الشاشة!$L:$L,الشاشة!$E:$E,'المراجعة بدلالة الشهر'!B137,الشاشة!$B:$B,"<"&(EOMONTH($S$1,-1)+1),الشاشة!$A:$A,$S$9) -> 0 | M137: =SUMIFS(الشاشة!$J:$J,الشاشة!$E:$E,'المراجعة بدلالة الشهر'!B137,الشاشة!$B:$B,">="&(EOMONTH('المراجعة بدلالة الشهر'!$S$1,-1)+1),الشاشة!$B:$B,"<="&(EOMONTH('المراجعة بدلالة الشهر'!$S$1,0)),الشاشة!$A:$A,$S$9) -> 0 | N137: =SUMIFS(الشاشة!$L:$L,الشاشة!$E:$E,'المراجعة بدلالة الشهر'!B137,الشاشة!$B:$B,">="&(EOMONTH('المراجعة بدلالة الشهر'!$S$1,-1)+1),الشاشة!$B:$B,"<="&(EOMONTH('المراجعة بدلالة الشهر'!$S$1,0)),الشاشة!$A:$A,$S$9) -> 0 | O137: 0 | Q137: 0 | R137: 0
A138: =MAX($A$2:A137)+1 -> 136 | B138: =IFERROR(INDEX(الشاشة!$A:$U,MATCH(نوع_المخزن&$A138,الشاشة!$U:$U,0),MATCH('المراجعة بدلالة الشهر'!B$2,الشاشة!$A$1:$V$1,0)),"") ->  | C138: =IFERROR(INDEX(الشاشة!$A:$U,MATCH(نوع_المخزن&$A138,الشاشة!$U:$U,0),MATCH('المراجعة بدلالة الشهر'!C$2,الشاشة!$A$1:$V$1,0)),"") ->  | D138: =SUMIFS(الشاشة!$K:$K,الشاشة!$E:$E,B138,الشاشة!$B:$B,"<"&(EOMONTH($S$1,-1)+1),الشاشة!$A:$A,$S$9)-SUMIFS(الشاشة!$M:$M,الشاشة!$E:$E,B138,الشاشة!$B:$B,"<"&(EOMONTH($S$1,-1)+1),الشاشة!$A:$A,$S$9) -> 0 | E138: =SUMIFS(الشاشة!$K:$K,الشاشة!$E:$E,'المراجعة بدلالة الشهر'!B138,الشاشة!$B:$B,">"&EOMONTH($S$1,-1),الشاشة!$B:$B,"<="&EOMONTH($S$1,0),الشاشة!$A:$A,$S$9) -> 0 | F138: =SUMIFS(الشاشة!$M:$M,الشاشة!$E:$E,'المراجعة بدلالة الشهر'!B138,الشاشة!$B:$B,">"&EOMONTH($S$1,-1),الشاشة!$B:$B,"<="&EOMONTH($S$1,0),الشاشة!$A:$A,$S$9) -> 0 | G138: 0 | I138: 136 | L138: =SUMIFS(الشاشة!$J:$J,الشاشة!$E:$E,'المراجعة بدلالة الشهر'!B138,الشاشة!$B:$B,"<"&(EOMONTH($S$1,-1)+1),الشاشة!$A:$A,$S$9)-SUMIFS(الشاشة!$L:$L,الشاشة!$E:$E,'المراجعة بدلالة الشهر'!B138,الشاشة!$B:$B,"<"&(EOMONTH($S$1,-1)+1),الشاشة!$A:$A,$S$9) -> 0 | M138: =SUMIFS(الشاشة!$J:$J,الشاشة!$E:$E,'المراجعة بدلالة الشهر'!B138,الشاشة!$B:$B,">="&(EOMONTH('المراجعة بدلالة الشهر'!$S$1,-1)+1),الشاشة!$B:$B,"<="&(EOMONTH('المراجعة بدلالة الشهر'!$S$1,0)),الشاشة!$A:$A,$S$9) -> 0 | N138: =SUMIFS(الشاشة!$L:$L,الشاشة!$E:$E,'المراجعة بدلالة الشهر'!B138,الشاشة!$B:$B,">="&(EOMONTH('المراجعة بدلالة الشهر'!$S$1,-1)+1),الشاشة!$B:$B,"<="&(EOMONTH('المراجعة بدلالة الشهر'!$S$1,0)),الشاشة!$A:$A,$S$9) -> 0 | O138: 0 | Q138: 0 | R138: 0
A139: =MAX($A$2:A138)+1 -> 137 | B139: =IFERROR(INDEX(الشاشة!$A:$U,MATCH(نوع_المخزن&$A139,الشاشة!$U:$U,0),MATCH('المراجعة بدلالة الشهر'!B$2,الشاشة!$A$1:$V$1,0)),"") ->  | C139: =IFERROR(INDEX(الشاشة!$A:$U,MATCH(نوع_المخزن&$A139,الشاشة!$U:$U,0),MATCH('المراجعة بدلالة الشهر'!C$2,الشاشة!$A$1:$V$1,0)),"") ->  | D139: =SUMIFS(الشاشة!$K:$K,الشاشة!$E:$E,B139,الشاشة!$B:$B,"<"&(EOMONTH($S$1,-1)+1),الشاشة!$A:$A,$S$9)-SUMIFS(الشاشة!$M:$M,الشاشة!$E:$E,B139,الشاشة!$B:$B,"<"&(EOMONTH($S$1,-1)+1),الشاشة!$A:$A,$S$9) -> 0 | E139: =SUMIFS(الشاشة!$K:$K,الشاشة!$E:$E,'المراجعة بدلالة الشهر'!B139,الشاشة!$B:$B,">"&EOMONTH($S$1,-1),الشاشة!$B:$B,"<="&EOMONTH($S$1,0),الشاشة!$A:$A,$S$9) -> 0 | F139: =SUMIFS(الشاشة!$M:$M,الشاشة!$E:$E,'المراجعة بدلالة الشهر'!B139,الشاشة!$B:$B,">"&EOMONTH($S$1,-1),الشاشة!$B:$B,"<="&EOMONTH($S$1,0),الشاشة!$A:$A,$S$9) -> 0 | G139: 0 | I139: 137 | L139: =SUMIFS(الشاشة!$J:$J,الشاشة!$E:$E,'المراجعة بدلالة الشهر'!B139,الشاشة!$B:$B,"<"&(EOMONTH($S$1,-1)+1),الشاشة!$A:$A,$S$9)-SUMIFS(الشاشة!$L:$L,الشاشة!$E:$E,'المراجعة بدلالة الشهر'!B139,الشاشة!$B:$B,"<"&(EOMONTH($S$1,-1)+1),الشاشة!$A:$A,$S$9) -> 0 | M139: =SUMIFS(الشاشة!$J:$J,الشاشة!$E:$E,'المراجعة بدلالة الشهر'!B139,الشاشة!$B:$B,">="&(EOMONTH('المراجعة بدلالة الشهر'!$S$1,-1)+1),الشاشة!$B:$B,"<="&(EOMONTH('المراجعة بدلالة الشهر'!$S$1,0)),الشاشة!$A:$A,$S$9) -> 0 | N139: =SUMIFS(الشاشة!$L:$L,الشاشة!$E:$E,'المراجعة بدلالة الشهر'!B139,الشاشة!$B:$B,">="&(EOMONTH('المراجعة بدلالة الشهر'!$S$1,-1)+1),الشاشة!$B:$B,"<="&(EOMONTH('المراجعة بدلالة الشهر'!$S$1,0)),الشاشة!$A:$A,$S$9) -> 0 | O139: 0 | Q139: 0 | R139: 0
A140: =MAX($A$2:A139)+1 -> 138 | B140: =IFERROR(INDEX(الشاشة!$A:$U,MATCH(نوع_المخزن&$A140,الشاشة!$U:$U,0),MATCH('المراجعة بدلالة الشهر'!B$2,الشاشة!$A$1:$V$1,0)),"") ->  | C140: =IFERROR(INDEX(الشاشة!$A:$U,MATCH(نوع_المخزن&$A140,الشاشة!$U:$U,0),MATCH('المراجعة بدلالة الشهر'!C$2,الشاشة!$A$1:$V$1,0)),"") ->  | D140: =SUMIFS(الشاشة!$K:$K,الشاشة!$E:$E,B140,الشاشة!$B:$B,"<"&(EOMONTH($S$1,-1)+1),الشاشة!$A:$A,$S$9)-SUMIFS(الشاشة!$M:$M,الشاشة!$E:$E,B140,الشاشة!$B:$B,"<"&(EOMONTH($S$1,-1)+1),الشاشة!$A:$A,$S$9) -> 0 | E140: =SUMIFS(الشاشة!$K:$K,الشاشة!$E:$E,'المراجعة بدلالة الشهر'!B140,الشاشة!$B:$B,">"&EOMONTH($S$1,-1),الشاشة!$B:$B,"<="&EOMONTH($S$1,0),الشاشة!$A:$A,$S$9) -> 0 | F140: =SUMIFS(الشاشة!$M:$M,الشاشة!$E:$E,'المراجعة بدلالة الشهر'!B140,الشاشة!$B:$B,">"&EOMONTH($S$1,-1),الشاشة!$B:$B,"<="&EOMONTH($S$1,0),الشاشة!$A:$A,$S$9) -> 0 | G140: 0 | I140: 138 | L140: =SUMIFS(الشاشة!$J:$J,الشاشة!$E:$E,'المراجعة بدلالة الشهر'!B140,الشاشة!$B:$B,"<"&(EOMONTH($S$1,-1)+1),الشاشة!$A:$A,$S$9)-SUMIFS(الشاشة!$L:$L,الشاشة!$E:$E,'المراجعة بدلالة الشهر'!B140,الشاشة!$B:$B,"<"&(EOMONTH($S$1,-1)+1),الشاشة!$A:$A,$S$9) -> 0 | M140: =SUMIFS(الشاشة!$J:$J,الشاشة!$E:$E,'المراجعة بدلالة الشهر'!B140,الشاشة!$B:$B,">="&(EOMONTH('المراجعة بدلالة الشهر'!$S$1,-1)+1),الشاشة!$B:$B,"<="&(EOMONTH('المراجعة بدلالة الشهر'!$S$1,0)),الشاشة!$A:$A,$S$9) -> 0 | N140: =SUMIFS(الشاشة!$L:$L,الشاشة!$E:$E,'المراجعة بدلالة الشهر'!B140,الشاشة!$B:$B,">="&(EOMONTH('المراجعة بدلالة الشهر'!$S$1,-1)+1),الشاشة!$B:$B,"<="&(EOMONTH('المراجعة بدلالة الشهر'!$S$1,0)),الشاشة!$A:$A,$S$9) -> 0 | O140: 0 | Q140: 0 | R140: 0
A141: =MAX($A$2:A140)+1 -> 139 | B141: =IFERROR(INDEX(الشاشة!$A:$U,MATCH(نوع_المخزن&$A141,الشاشة!$U:$U,0),MATCH('المراجعة بدلالة الشهر'!B$2,الشاشة!$A$1:$V$1,0)),"") ->  | C141: =IFERROR(INDEX(الشاشة!$A:$U,MATCH(نوع_المخزن&$A141,الشاشة!$U:$U,0),MATCH('المراجعة بدلالة الشهر'!C$2,الشاشة!$A$1:$V$1,0)),"") ->  | D141: =SUMIFS(الشاشة!$K:$K,الشاشة!$E:$E,B141,الشاشة!$B:$B,"<"&(EOMONTH($S$1,-1)+1),الشاشة!$A:$A,$S$9)-SUMIFS(الشاشة!$M:$M,الشاشة!$E:$E,B141,الشاشة!$B:$B,"<"&(EOMONTH($S$1,-1)+1),الشاشة!$A:$A,$S$9) -> 0 | E141: =SUMIFS(الشاشة!$K:$K,الشاشة!$E:$E,'المراجعة بدلالة الشهر'!B141,الشاشة!$B:$B,">"&EOMONTH($S$1,-1),الشاشة!$B:$B,"<="&EOMONTH($S$1,0),الشاشة!$A:$A,$S$9) -> 0 | F141: =SUMIFS(الشاشة!$M:$M,الشاشة!$E:$E,'المراجعة بدلالة الشهر'!B141,الشاشة!$B:$B,">"&EOMONTH($S$1,-1),الشاشة!$B:$B,"<="&EOMONTH($S$1,0),الشاشة!$A:$A,$S$9) -> 0 | G141: 0 | I141: 139 | L141: =SUMIFS(الشاشة!$J:$J,الشاشة!$E:$E,'المراجعة بدلالة الشهر'!B141,الشاشة!$B:$B,"<"&(EOMONTH($S$1,-1)+1),الشاشة!$A:$A,$S$9)-SUMIFS(الشاشة!$L:$L,الشاشة!$E:$E,'المراجعة بدلالة الشهر'!B141,الشاشة!$B:$B,"<"&(EOMONTH($S$1,-1)+1),الشاشة!$A:$A,$S$9) -> 0 | M141: =SUMIFS(الشاشة!$J:$J,الشاشة!$E:$E,'المراجعة بدلالة الشهر'!B141,الشاشة!$B:$B,">="&(EOMONTH('المراجعة بدلالة الشهر'!$S$1,-1)+1),الشاشة!$B:$B,"<="&(EOMONTH('المراجعة بدلالة الشهر'!$S$1,0)),الشاشة!$A:$A,$S$9) -> 0 | N141: =SUMIFS(الشاشة!$L:$L,الشاشة!$E:$E,'المراجعة بدلالة الشهر'!B141,الشاشة!$B:$B,">="&(EOMONTH('المراجعة بدلالة الشهر'!$S$1,-1)+1),الشاشة!$B:$B,"<="&(EOMONTH('المراجعة بدلالة الشهر'!$S$1,0)),الشاشة!$A:$A,$S$9) -> 0 | O141: 0 | Q141: 0 | R141: 0
A142: =MAX($A$2:A141)+1 -> 140 | B142: =IFERROR(INDEX(الشاشة!$A:$U,MATCH(نوع_المخزن&$A142,الشاشة!$U:$U,0),MATCH('المراجعة بدلالة الشهر'!B$2,الشاشة!$A$1:$V$1,0)),"") ->  | C142: =IFERROR(INDEX(الشاشة!$A:$U,MATCH(نوع_المخزن&$A142,الشاشة!$U:$U,0),MATCH('المراجعة بدلالة الشهر'!C$2,الشاشة!$A$1:$V$1,0)),"") ->  | D142: =SUMIFS(الشاشة!$K:$K,الشاشة!$E:$E,B142,الشاشة!$B:$B,"<"&(EOMONTH($S$1,-1)+1),الشاشة!$A:$A,$S$9)-SUMIFS(الشاشة!$M:$M,الشاشة!$E:$E,B142,الشاشة!$B:$B,"<"&(EOMONTH($S$1,-1)+1),الشاشة!$A:$A,$S$9) -> 0 | E142: =SUMIFS(الشاشة!$K:$K,الشاشة!$E:$E,'المراجعة بدلالة الشهر'!B142,الشاشة!$B:$B,">"&EOMONTH($S$1,-1),الشاشة!$B:$B,"<="&EOMONTH($S$1,0),الشاشة!$A:$A,$S$9) -> 0 | F142: =SUMIFS(الشاشة!$M:$M,الشاشة!$E:$E,'المراجعة بدلالة الشهر'!B142,الشاشة!$B:$B,">"&EOMONTH($S$1,-1),الشاشة!$B:$B,"<="&EOMONTH($S$1,0),الشاشة!$A:$A,$S$9) -> 0 | G142: 0 | I142: 140 | L142: =SUMIFS(الشاشة!$J:$J,الشاشة!$E:$E,'المراجعة بدلالة الشهر'!B142,الشاشة!$B:$B,"<"&(EOMONTH($S$1,-1)+1),الشاشة!$A:$A,$S$9)-SUMIFS(الشاشة!$L:$L,الشاشة!$E:$E,'المراجعة بدلالة الشهر'!B142,الشاشة!$B:$B,"<"&(EOMONTH($S$1,-1)+1),الشاشة!$A:$A,$S$9) -> 0 | M142: =SUMIFS(الشاشة!$J:$J,الشاشة!$E:$E,'المراجعة بدلالة الشهر'!B142,الشاشة!$B:$B,">="&(EOMONTH('المراجعة بدلالة الشهر'!$S$1,-1)+1),الشاشة!$B:$B,"<="&(EOMONTH('المراجعة بدلالة الشهر'!$S$1,0)),الشاشة!$A:$A,$S$9) -> 0 | N142: =SUMIFS(الشاشة!$L:$L,الشاشة!$E:$E,'المراجعة بدلالة الشهر'!B142,الشاشة!$B:$B,">="&(EOMONTH('المراجعة بدلالة الشهر'!$S$1,-1)+1),الشاشة!$B:$B,"<="&(EOMONTH('المراجعة بدلالة الشهر'!$S$1,0)),الشاشة!$A:$A,$S$9) -> 0 | O142: 0 | Q142: 0 | R142: 0
A143: =MAX($A$2:A142)+1 -> 141 | B143: =IFERROR(INDEX(الشاشة!$A:$U,MATCH(نوع_المخزن&$A143,الشاشة!$U:$U,0),MATCH('المراجعة بدلالة الشهر'!B$2,الشاشة!$A$1:$V$1,0)),"") ->  | C143: =IFERROR(INDEX(الشاشة!$A:$U,MATCH(نوع_المخزن&$A143,الشاشة!$U:$U,0),MATCH('المراجعة بدلالة الشهر'!C$2,الشاشة!$A$1:$V$1,0)),"") ->  | D143: =SUMIFS(الشاشة!$K:$K,الشاشة!$E:$E,B143,الشاشة!$B:$B,"<"&(EOMONTH($S$1,-1)+1),الشاشة!$A:$A,$S$9)-SUMIFS(الشاشة!$M:$M,الشاشة!$E:$E,B143,الشاشة!$B:$B,"<"&(EOMONTH($S$1,-1)+1),الشاشة!$A:$A,$S$9) -> 0 | E143: =SUMIFS(الشاشة!$K:$K,الشاشة!$E:$E,'المراجعة بدلالة الشهر'!B143,الشاشة!$B:$B,">"&EOMONTH($S$1,-1),الشاشة!$B:$B,"<="&EOMONTH($S$1,0),الشاشة!$A:$A,$S$9) -> 0 | F143: =SUMIFS(الشاشة!$M:$M,الشاشة!$E:$E,'المراجعة بدلالة الشهر'!B143,الشاشة!$B:$B,">"&EOMONTH($S$1,-1),الشاشة!$B:$B,"<="&EOMONTH($S$1,0),الشاشة!$A:$A,$S$9) -> 0 | G143: 0 | I143: 141 | L143: =SUMIFS(الشاشة!$J:$J,الشاشة!$E:$E,'المراجعة بدلالة الشهر'!B143,الشاشة!$B:$B,"<"&(EOMONTH($S$1,-1)+1),الشاشة!$A:$A,$S$9)-SUMIFS(الشاشة!$L:$L,الشاشة!$E:$E,'المراجعة بدلالة الشهر'!B143,الشاشة!$B:$B,"<"&(EOMONTH($S$1,-1)+1),الشاشة!$A:$A,$S$9) -> 0 | M143: =SUMIFS(الشاشة!$J:$J,الشاشة!$E:$E,'المراجعة بدلالة الشهر'!B143,الشاشة!$B:$B,">="&(EOMONTH('المراجعة بدلالة الشهر'!$S$1,-1)+1),الشاشة!$B:$B,"<="&(EOMONTH('المراجعة بدلالة الشهر'!$S$1,0)),الشاشة!$A:$A,$S$9) -> 0 | N143: =SUMIFS(الشاشة!$L:$L,الشاشة!$E:$E,'المراجعة بدلالة الشهر'!B143,الشاشة!$B:$B,">="&(EOMONTH('المراجعة بدلالة الشهر'!$S$1,-1)+1),الشاشة!$B:$B,"<="&(EOMONTH('المراجعة بدلالة الشهر'!$S$1,0)),الشاشة!$A:$A,$S$9) -> 0 | O143: 0 | Q143: 0 | R143: 0
A144: =MAX($A$2:A143)+1 -> 142 | B144: =IFERROR(INDEX(الشاشة!$A:$U,MATCH(نوع_المخزن&$A144,الشاشة!$U:$U,0),MATCH('المراجعة بدلالة الشهر'!B$2,الشاشة!$A$1:$V$1,0)),"") ->  | C144: =IFERROR(INDEX(الشاشة!$A:$U,MATCH(نوع_المخزن&$A144,الشاشة!$U:$U,0),MATCH('المراجعة بدلالة الشهر'!C$2,الشاشة!$A$1:$V$1,0)),"") ->  | D144: =SUMIFS(الشاشة!$K:$K,الشاشة!$E:$E,B144,الشاشة!$B:$B,"<"&(EOMONTH($S$1,-1)+1),الشاشة!$A:$A,$S$9)-SUMIFS(الشاشة!$M:$M,الشاشة!$E:$E,B144,الشاشة!$B:$B,"<"&(EOMONTH($S$1,-1)+1),الشاشة!$A:$A,$S$9) -> 0 | E144: =SUMIFS(الشاشة!$K:$K,الشاشة!$E:$E,'المراجعة بدلالة الشهر'!B144,الشاشة!$B:$B,">"&EOMONTH($S$1,-1),الشاشة!$B:$B,"<="&EOMONTH($S$1,0),الشاشة!$A:$A,$S$9) -> 0 | F144: =SUMIFS(الشاشة!$M:$M,الشاشة!$E:$E,'المراجعة بدلالة الشهر'!B144,الشاشة!$B:$B,">"&EOMONTH($S$1,-1),الشاشة!$B:$B,"<="&EOMONTH($S$1,0),الشاشة!$A:$A,$S$9) -> 0 | G144: 0 | I144: 142 | L144: =SUMIFS(الشاشة!$J:$J,الشاشة!$E:$E,'المراجعة بدلالة الشهر'!B144,الشاشة!$B:$B,"<"&(EOMONTH($S$1,-1)+1),الشاشة!$A:$A,$S$9)-SUMIFS(الشاشة!$L:$L,الشاشة!$E:$E,'المراجعة بدلالة الشهر'!B144,الشاشة!$B:$B,"<"&(EOMONTH($S$1,-1)+1),الشاشة!$A:$A,$S$9) -> 0 | M144: =SUMIFS(الشاشة!$J:$J,الشاشة!$E:$E,'المراجعة بدلالة الشهر'!B144,الشاشة!$B:$B,">="&(EOMONTH('المراجعة بدلالة الشهر'!$S$1,-1)+1),الشاشة!$B:$B,"<="&(EOMONTH('المراجعة بدلالة الشهر'!$S$1,0)),الشاشة!$A:$A,$S$9) -> 0 | N144: =SUMIFS(الشاشة!$L:$L,الشاشة!$E:$E,'المراجعة بدلالة الشهر'!B144,الشاشة!$B:$B,">="&(EOMONTH('المراجعة بدلالة الشهر'!$S$1,-1)+1),الشاشة!$B:$B,"<="&(EOMONTH('المراجعة بدلالة الشهر'!$S$1,0)),الشاشة!$A:$A,$S$9) -> 0 | O144: 0 | Q144: 0 | R144: 0
